{"text_format":"1","workbook":"xlsx","n_sheets":37,"sheets":["Ajánlás","Adat","Fők","MLE","MLE (É)","MLM","MLM (É)","Kiegm","Kiegm (É)","Tárgyi (É)","Pénz","Köv","Köt","Mutatók","Mutatók (É)","ST","LT","AP (É)","Szem","CF (É)","TA","MinA","Fiz0531","NY-Borító","NY-Borító (É)","NY-Mérl-Er","NY-Mérl-Er (É)","Elfogad-Jk","Oszt.nyil","Bilanz-német","Bilanz-német (É)","Balance-angol","Balance-angol (É)","olasz","olasz (É)","francia","francia (É)"],"not_rendered":{"charts":0,"images":1,"macros":1,"external_links":0,"defined_names":35,"comments":10,"pivot_tables":0},"unopened":[],"bounds":{"document_bytes":16777216,"sheet_cells":100000,"rows_first":2000,"rows_last":500,"rows_between":2000,"halvings":0,"cell_chars":16384,"cell_head_chars":4096},"cells_cut":0,"cells_raw":0,"read":"whole","date_system":"1900"}

{"sheet":"Ajánlás","index":0,"n_rows":15,"n_cols":6,"rows_kept":15,"cut":false,"hidden":false,"merged":[[12,0,12,8],[7,0,7,8],[10,0,10,8],[15,1,15,3],[13,1,13,3],[13,5,13,7],[14,5,14,7],[14,1,14,3],[11,0,11,8],[8,0,8,8],[9,0,9,8],[0,0,0,8],[1,0,1,8],[2,0,2,8],[6,0,6,8],[3,0,3,8],[4,0,4,8],[5,0,5,8]]}
["Kedves Felhasználó!"]
["Ez egy sok év alatt összeállított táblázatos beszámolási lehetőség, amely jelentősen megkönnyítheti a munkát. Ez csak egy lehetőség ..."]
["A táblazatok használata felhasználói szintű Excel ismeretet igényel, de az esetleges újraképletezéshez már legalább középszintű Exceltudás szükséges."]
["A beszámoló típusának kiválasztásához szükséges a Markók engedélyezése. "]
["A táblázat rendszer tartalmazza az \n      - egyszerűsített éves beszámolót és az \n      - éves beszámolót is.\nAz adat munkalapon kell kiválasztani a kívánt beszámoló típusát. "]
["A kitöltő feladata annak az eldöntése, hogy a Szt. előírásai szerint éves vagy egyszerűsített éves beszámolót kell-e az adott cégre készíteni."]
["A táblázatok, a képletek nincsenek levédve, mert mindekinek más az alkalmazott számlatükre, leltárai, számlaszámok megnevezései, stb. Tehát, mindenki  - a saját felelősségére - átjavíthat a táblázatokban bármit. Mi - az anyag készítői - semmilyen felelősséget nem vállalunk a táblázat használatából, a képletek esetleges felülírásából és a törvények nem megfelelő alkalmazásából eredő hibákért."]
["A kitöltésnél csak a sárga színű cellákba szabad írni! Innen kerülnek át az értékek a megfelelő végső pozíciókba, illetve a képletekbe. Egyes cellákra kattintva további kapcsolódó információk és törvényi hivatkozások találhatók. "]
["Továbbá, szeretnénk felhívni a figyelmeteket arra is, hogy az esetleges fellelt hibákról a visszajelzéseket köszönettel vesszük, de arra nincsen sem módunk, sem időnk, hogy bárkinek is az igényei szerint a táblázatokat \"testre szabjuk\" vagy a használatra vonartkozóan további \"oktatást\" tartsunk."]
["A pénzeszközök, a követelések, kötelezettségek és a személyi jellegű kifizetések táblázatból a nyomtatás előtt célszerű kitörölni azokat a sorokat, amelyekbe nem írtunk értéket. Ezzel szebb lesz a nyomtatási kép."]
["Jó munkát kívánunk!"]
["Stallum cégcsoport "]
[]
[null,"dr. Sallai Csilla",null,null,null,"Tusnádiné Ágoston Márta"]
[null,"kamarai tag könyvvizsgáló",null,null,null,"könyvvizsgáló, adótanácsadó"]

{"sheet":"Adat","index":1,"n_rows":91,"n_cols":8,"rows_kept":91,"cut":false,"hidden":false,"merged":[[35,2,35,4],[27,2,27,4],[39,2,39,4],[0,0,0,4],[1,0,1,4],[2,3,2,4],[3,0,3,4],[10,2,10,4],[11,2,11,4],[6,1,6,4],[4,1,4,2],[5,1,5,3],[12,2,12,4],[7,2,7,4],[8,2,8,4],[9,2,9,4],[13,2,13,4],[57,1,57,4],[45,2,45,4],[48,2,48,4],[58,1,58,4],[23,0,23,3],[21,0,21,1],[22,0,22,4],[51,2,51,4],[17,0,20,4],[21,2,21,4],[14,3,14,4],[16,0,16,4],[15,0,15,4],[42,2,42,4],[31,2,31,4],[53,0,53,4],[55,0,55,4],[56,1,56,4],[75,3,75,4],[81,0,81,2],[70,2,70,4],[71,2,71,4],[73,0,73,4],[74,0,74,4],[60,1,60,4],[59,2,59,4],[61,3,61,4],[63,3,63,4],[64,0,64,4],[62,0,62,1],[62,3,62,4],[90,2,90,3],[83,0,83,4],[84,2,84,3],[85,2,85,3],[86,2,86,3],[87,2,87,3],[88,2,88,3],[69,2,69,4],[65,0,65,4],[67,2,67,4],[89,2,89,3],[68,2,68,4]]}
["ELŐRE FELTÖLTENDŐ CÉGADATOK"]
[]
["Csak kiemelés","Mi íjuk be","Vagy - vagy\n(a kettőből csak egyik OK)","Választási lehetőség v. Ellenőrzendő \n(A nem kívánt szöveg törlendő!!!)"]
[null,null,null,null,null,null,"prg. segédlet"]
["A vállalkozás rövid neve:","Macskafarka Kft",null,"Névelő",{"$f":"IF(SEARCH(LEFT(B5,1),G6,1)<17,\"Az\",\"A\")","v":"A"},null,"ABC betűi:"]
["A vállalkozás teljes neve:","Macskafarka Egérhajhász Kereskedelmi és Szolgáltató",null,null,"KFT",null,"15AÁEÉIÍOÓÖŐUÚÜŰbcdfghjklmnpqrstvwxyz23467890"]
["Címe és tel.száma:","Macskafalva, Egér út 1."]
["Stat.szám:","12005954-5170-113-01"]
["Cégb.azon:","01-09-366783"]
["Adószám:","12005954-2-43"]
["Tárgy időszak:",2012]
["Mérleg fordulónapja:","2012-12-31"]
["Bázis év fordulónapja:","2011-12-31"]
["Mérlegkészítés időpontja:","2013-01-31"]
["Beszámoló keltezése:","Budapest,","2013-03-31",null,null,null,{"$f":"IF(C15>B14,\"JÓ A DÁTUM\",\"VIGYÁZZ - ROSSZ A BESZ DÁTUMA !\")","v":"JÓ A DÁTUM"}]
[]
["BESZÁMOLÓ TÍPUSA"]
[2]
[null,null,null,null,null,null,"Üzleti évet lezáró beszámoló"]
[null,null,null,null,null,null,"Közbenső mérleg"]
[null,null,null,null,null,null,"Tevékenységet záró mérleg"]
["Az MLM jegyzett tőke értéke alapján:",null,{"$f":"IF(AND('MLM (É)'!F64>0,MLM!F24>0),\"mindkét típusú beszámoló ki van töltve!\",IF('MLM (É)'!F64>0,\"éves beszámolót készített!\",IF(MLM!F24>0,\"egyszerűsített éves beszámolót készített!\",\"még nem töltötte ki a jegyzett tőkét!\")))","v":"még nem töltötte ki a jegyzett tőkét!"},null,null,null,"Záró mérleg"]
[]
["TULAJDONOSOKRA VONATKOZÓ ADATOK",null,null,null,"kapcs."]
["Cég név:","Egérfogó Kft","törzsbetét:",0,0]
["Székhely:",null,"szavazati arány:",{"$f":"+D25/$B$53","v":0},null,null,"Társasági szerződés alapján!"]
["Képviselője: ","Sajt Árpád"]
["Cégjegyzék száma:",null,{"$f":"IF(D25=0,\"függőségi kapcsolat:\",IF(E25=1,IF(((Adat!D25*E25)+(D29*E29)+(D33*E33)+(D37*E37))/Adat!$D$53>0.75,\"MINŐSÍTETT TÖBBSÉGI  BEFOLYÁSSAL  RENDELKEZŐ  TAG(ok).\",IF(((Adat!D25*E25)+(D29*E29)+(D33*E33)+(D37*E37))/Adat!$D$53>0.5,\"TÖBBSÉGI  BEFOLYÁSSAL  RENDELKEZŐ  TAG(ok).\",\".\")),IF(Adat!$D$53=0,\"Nincs kitöltve a törzstőke összege!!! [D18]\",IF(Adat!D25/Adat!$D$53>0.75,\"MINŐSÍTETT TÖBBSÉGI  BEFOLYÁSSAL  RENDELKEZŐ  TAG.\",IF(Adat!D25/Adat!$D$53>0.5,\"TÖBBSÉGI  BEFOLYÁSSAL  RENDELKEZŐ  TAG.\",\".\")))))","v":"függőségi kapcsolat:"}]
["Cég név:","Kutyaharapás Kft","törzsbetét:",0,0]
["Székhely:",null,null,{"$f":"+D29/$B$53","v":0},null,null,"Társasági szerződés alapján!"]
["Képviselője: ","Kutyufülű Aladár"]
["Cégjegyzék száma:",null,{"$f":"IF(D29=0,\"függőségi kapcsolat:\",IF(E29=1,IF(((Adat!D29*E29)+(D33*E33)+(D37*E37)+(D25*E25))/Adat!$D$53>0.75,\"MINŐSÍTETT TÖBBSÉGI  BEFOLYÁSSAL  RENDELKEZŐ  TAG(ok).\",IF(((Adat!D29*E29)+(D33*E33)+(D37*E37)+(D25*E25))/Adat!$D$53>0.5,\"TÖBBSÉGI  BEFOLYÁSSAL  RENDELKEZŐ  TAG(ok).\",\".\")),IF(Adat!$D$53=0,\"Nincs kitöltve a törzstőke összege!!! [D21]\",IF(Adat!D29/Adat!$D$53>0.75,\"MINŐSÍTETT TÖBBSÉGI  BEFOLYÁSSAL  RENDELKEZŐ  TAG.\",IF(Adat!D29/Adat!$D$53>0.5,\"TÖBBSÉGI  BEFOLYÁSSAL  RENDELKEZŐ  TAG.\",\".\")))))","v":"függőségi kapcsolat:"}]
["Cég név:","Mikka-Makka Kft","törzsbetét:",0,0]
["Székhely:",null,null,{"$f":"+D33/$B$53","v":0},null,null,"Társasági szerződés alapján!"]
["Képviselője: ","Mekk Elek"]
["Cégjegyzék száma:",null,{"$f":"IF(D33=0,\"függőségi kapcsolat:\",IF(E33=1,IF(((Adat!D33*E33)+(D37*E37)+(D25*E25)+(D29*E29))/Adat!$D$53>0.75,\"MINŐSÍTETT TÖBBSÉGI  BEFOLYÁSSAL  RENDELKEZŐ  TAG(ok).\",IF(((Adat!D33*E33)+(D37*E37)+(D25*E25)+(D29*E29))/Adat!$D$53>0.5,\"TÖBBSÉGI  BEFOLYÁSSAL  RENDELKEZŐ  TAG(ok).\",\".\")),IF(Adat!$D$53=0,\"Nincs kitöltve a törzstőke összege!!! [D24]\",IF(Adat!D33/Adat!$D$53>0.75,\"MINŐSÍTETT TÖBBSÉGI  BEFOLYÁSSAL  RENDELKEZŐ  TAG.\",IF(Adat!D33/Adat!$D$53>0.5,\"TÖBBSÉGI  BEFOLYÁSSAL  RENDELKEZŐ  TAG.\",\".\")))))","v":"függőségi kapcsolat:"}]
["Cég név:","Tarajos Kft","törzsbetét:",0,0]
["Székhely:",null,null,{"$f":"+D37/$B$53","v":0},null,null,"Társasági szerződés alapján!"]
["Képviselője: ","Kukori Kázmér"]
["Cégjegyzék száma:",null,{"$f":"IF(D37=0,\"függőségi kapcsolat:\",IF(E37=1,IF(((Adat!D37*E37)+(D25*E25)+(D29*E29)+(D33*E33))/Adat!$D$53>0.75,\"MINŐSÍTETT TÖBBSÉGI  BEFOLYÁSSAL  RENDELKEZŐ  TAG(ok).\",IF(((Adat!D37*E37)+(D25*E25)+(D29*E29)+(D33*E33))/Adat!$D$53>0.5,\"TÖBBSÉGI  BEFOLYÁSSAL  RENDELKEZŐ  TAG(ok).\",\".\")),IF(Adat!$D$53=0,\"Nincs kitöltve a törzstőke összege!!! [D27]\",IF(Adat!D37/Adat!$D$53>0.75,\"MINŐSÍTETT TÖBBSÉGI  BEFOLYÁSSAL  RENDELKEZŐ  TAG.\",IF(Adat!D37/Adat!$D$53>0.5,\"TÖBBSÉGI  BEFOLYÁSSAL  RENDELKEZŐ  TAG.\",\".\")))))","v":"függőségi kapcsolat:"}]
["Név:","Mák Virág","törzsbetét:",0,0]
[null,null,null,{"$f":"+D41/$B$53","v":0},null,null,"Társasági szerződés alapján!"]
["Cím:",null,{"$f":"IF(D41=0,\"függőségi kapcsolat:\",IF(E41=1,IF(((Adat!D41*E41)+(D44*E44)+(D47*E47)+(D50*E50))/Adat!$D$53>0.75,\"MINŐSÍTETT TÖBBSÉGI  BEFOLYÁSSAL  RENDELKEZŐ  TAG(ok).\",IF(((Adat!D41*E41)+(D44*E44)+(D47*E47)+(D50*E50))/Adat!$D$53>0.5,\"TÖBBSÉGI  BEFOLYÁSSAL  RENDELKEZŐ  TAG(ok).\",\".\")),IF(Adat!$D$53=0,\"Nincs kitöltve a törzstőke összege!!! [D30]\",IF(Adat!D41/Adat!$D$53>0.75,\"MINŐSÍTETT TÖBBSÉGI  BEFOLYÁSSAL  RENDELKEZŐ  TAG.\",IF(Adat!D41/Adat!$D$53>0.5,\"TÖBBSÉGI  BEFOLYÁSSAL  RENDELKEZŐ  TAG.\",\".\")))))","v":"függőségi kapcsolat:"}]
["Név:","Kandúr Bandi","törzsbetét:",0,0]
[null,null,null,{"$f":"+D44/$B$53","v":0},null,null,"Társasági szerződés alapján!"]
["Cím:",null,{"$f":"IF(D44=0,\"függőségi kapcsolat:\",IF(E44=1,IF(((Adat!D44*E44)+(D47*E47)+(D50*E50)+(D41*E41))/Adat!$D$53>0.75,\"MINŐSÍTETT TÖBBSÉGI  BEFOLYÁSSAL  RENDELKEZŐ  TAG(ok).\",IF(((Adat!D44*E44)+(D47*E47)+(D50*E50)+(D41*E41))/Adat!$D$53>0.5,\"TÖBBSÉGI  BEFOLYÁSSAL  RENDELKEZŐ  TAG(ok).\",\".\")),IF(Adat!$D$53=0,\"Nincs kitöltve a törzstőke összege!!! [D32]\",IF(Adat!D44/Adat!$D$53>0.75,\"MINŐSÍTETT TÖBBSÉGI  BEFOLYÁSSAL  RENDELKEZŐ  TAG.\",IF(Adat!D44/Adat!$D$53>0.5,\"TÖBBSÉGI  BEFOLYÁSSAL  RENDELKEZŐ  TAG.\",\".\")))))","v":"függőségi kapcsolat:"}]
["Név:","Mor Zsolt","törzsbetét:",0,0]
[null,null,null,{"$f":"+D47/$B$53","v":0},null,null,"Társasági szerződés alapján!"]
["Cím:",null,{"$f":"IF(D47=0,\"függőségi kapcsolat:\",IF(E47=1,IF(((Adat!D47*E47)+(D50*E50)+(D41*E41)+(D44*E44))/Adat!$D$53>0.75,\"MINŐSÍTETT TÖBBSÉGI  BEFOLYÁSSAL  RENDELKEZŐ  TAG(ok).\",IF(((Adat!D47*E47)+(D50*E50)+(D41*E41)+(D44*E44))/Adat!$D$53>0.5,\"TÖBBSÉGI  BEFOLYÁSSAL  RENDELKEZŐ  TAG(ok).\",\".\")),IF(Adat!$D$53=0,\"Nincs kitöltve a törzstőke összege!!! [D34]\",IF(Adat!D47/Adat!$D$53>0.75,\"MINŐSÍTETT TÖBBSÉGI  BEFOLYÁSSAL  RENDELKEZŐ  TAG.\",IF(Adat!D47/Adat!$D$53>0.5,\"TÖBBSÉGI  BEFOLYÁSSAL  RENDELKEZŐ  TAG.\",\".\")))))","v":"függőségi kapcsolat:"}]
["Név:","Pilis Csaba","törzsbetét:",0,0]
[null,null,null,{"$f":"+D50/$B$53","v":0},null,null,"Társasági szerződés alapján!"]
["Cím:",null,{"$f":"IF(D50=0,\"függőségi kapcsolat:\",IF(E50=1,IF(((Adat!D50*E50)+(D41*E41)+(D44*E44)+(D47*E47))/Adat!$D$53>0.75,\"MINŐSÍTETT TÖBBSÉGI  BEFOLYÁSSAL  RENDELKEZŐ  TAG(ok).\",IF(((Adat!D50*E50)+(D41*E41)+(D44*E44)+(D47*E47))/Adat!$D$53>0.5,\"TÖBBSÉGI  BEFOLYÁSSAL  RENDELKEZŐ  TAG(ok).\",\".\")),IF(Adat!$D$53=0,\"Nincs kitöltve a törzstőke összege!!! [D36]\",IF(Adat!D50/Adat!$D$53>0.75,\"MINŐSÍTETT TÖBBSÉGI  BEFOLYÁSSAL  RENDELKEZŐ  TAG.\",IF(Adat!D50/Adat!$D$53>0.5,\"TÖBBSÉGI  BEFOLYÁSSAL  RENDELKEZŐ  TAG.\",\".\")))))","v":"függőségi kapcsolat:"}]
["Törzstőke összege:",3000000,"összesen:",{"$f":"SUM(D25:D52)-1","v":-1},null,null,{"$f":"IF((B53-D53)=0,\"Ok.\",\"Nem egyezik!\")","v":"Nem egyezik!"}]
["(Ellenőrízd, hogy jó-e a Kiegm 1., 9., 10. pont!   Ne felejtsd el kitölteni a Kiegm 11. pontját is! )"]
[]
["VEZETÉSRE VONATKOZÓ ADATOK"]
["A cég székhelye:"]
["A cég telephelye:"]
["A cég fióktelepe:"]
["A cég alapításának éve:"]
["Fő tevékenységi kör:"]
["A társaság ügyvezetője:","Macska János","Címe:","Macskafalva, Egérfogó u 7."]
["A könyvviteli szolgáltatások vezetéséért felelős személy",null,"neve:","Kont Irma"]
[null,null,"nyilvántartási száma:",131313]
[]
["KÖNYVVIZSGÁLÓRA VONATKOZÓ ADATOK"]
["Megjegyzés:","A közzétett adatok könyvvizsgálattal nincsenek alátámasztva."]
["Könyvvizsgáló neve",null,"Tényné Mind Etel"]
["Kamarai regisztrációs száma:",null,"003333"]
["Könyvvizsgáló társaság neve:",null,"dr. Számszaki Kft"]
["Könyvvizsgáló társaság címe:",null,"1111 Budapest, Egyenleg u.11."]
["Könyvvizsgáló társaság kamarai száma:",null,"001111"]
["Könyvvizsgálat éves díja:",null,0,null,null,null,"Csak az éves beszámolónál kell!!!"]
[]
["BÉR JELLEGŰ ADATOK"]
["Az statisztikai állományi létszám:",null,0]
["ebből:   ","fizikai",0,0,null,null,"Együttes bér: \"54\">>",{"$f":"IF(A18=1,'MLE (É)'!I13,MLE!I13)","v":0}]
[null,"szellemi",{"$f":"C76-C77","v":0},0,null,null,"       amit erre a 2 csop-ra kell "]
["ebből:   ","vezető tisztségviselőknek a gazdasági év utáni járandósága ",null,{"$f":"('AP (É)'!E33/1000)","v":0},null,null,"       megbontani…"]
["ebből:   ","FB tagjainak a gazdasági év utáni járandósága ",null,{"$f":"('AP (É)'!E34/1000)","v":0}]
["ebből:   ","igazgatóság tagjainak a gazdasági év utáni járandósága ",null,{"$f":"('AP (É)'!E35/1000)","v":0}]
["A vezető tisztségviselőknek adott előlegek összege ",null,null,0]
[]
["KAPCSOLT VÁLLALKOZÁSOKRA VONATKOZÓ ADATOK"]
["Leányvállalat:"]
["Közös vezetésű vállalat:"]
["Társult vállalkozás:"]
["Egyéb részesedési viszonyban lévő vállalat:"]
["Ahol a Társaság","jelentős befolyással rendelkezik:"]
[null,"többségi irányítást biztosító befolyásal fendelkezik:"]
[null,"közvetlen irányítást biztosító fefolyással rendelkezik:"]

{"sheet":"Fők","index":2,"n_rows":3,"n_cols":7,"rows_kept":3,"cut":false,"hidden":false,"merged":[]}
[null,null,null,null,null,null,"Erre a munkalapra másoljuk be azt a főkönyvi kivonatot,"]
[null,null,null,null,null,null,"amiből a beszámoló készült."]
[null,null,null,null,null,null,"Később jó lehet elemzésekre, ellenőzésekre vagy eltérések keresésére ..."]

{"sheet":"MLE","index":3,"n_rows":50,"n_cols":15,"rows_kept":50,"cut":false,"hidden":false,"merged":[[0,6,4,7],[3,0,3,4],[4,0,4,4],[5,0,5,5],[33,5,34,5],[33,0,34,0],[33,1,34,2],[33,3,34,3],[33,4,34,4],[6,13,6,14],[6,0,7,0],[6,1,7,2],[9,0,13,0],[9,3,13,5],[6,4,7,4]]}
["Csak a sárga mezőbe szabad írni!"]
["Stat.szám:",null,{"$f":"Adat!B8","v":"12005954-5170-113-01"}]
["Cégb.azon:",null,{"$f":"Adat!B9","v":"01-09-366783"}]
[]
[]
[{"$f":"CONCATENATE(Adat!B11,\" ÉVI EGYSZERŰSÍTETT ÉVES BESZÁMOLÓ EREDMÉNYKIMUTATÁS 'A'\n(összköltség eljárással)\")","v":"2012 ÉVI EGYSZERŰSÍTETT ÉVES BESZÁMOLÓ EREDMÉNYKIMUTATÁS 'A'\n(összköltség eljárással)"},null,null,null,null,null,null,null,"Változás mértéke"]
[null,{"$f":"Adat!B5","v":"Macskafarka Kft"},null,"Bázis év","Előző év(ek) \nmódosítása","Tárgy év",null,null,"eFt",null,"eFt",null,null,"Változás"]
[null,null,null,{"$f":"Adat!B13","v":"2011-12-31"},null,{"$f":"Adat!B12","v":"2012-12-31"},null,16,null,null,"Nem váll érdekében",null,null,"tárgy-bázis","%"]
[]
[null,91,{"$f":"I35","v":0},null,null,null,null,51,null,510]
[null,92,{"$f":"I36","v":0},null,null,null,null,52,null,520]
[null,93,{"$f":"I37","v":0},null,null,null,null,53,null,530]
[null,94,{"$f":"+I39","v":0},null,null,null,null,54,null,540]
[null,95,{"$f":"+I40","v":0},null,null,null,null,55,null,550]
["I","Értékesítés nettó árbevétele ",null,null,null,{"$f":"SUM(C10:C14)","v":0},null,5522,null,null,null,null,null,{"$f":"F15-D15","v":0},{"$f":"IF(D15=0,\"-\",N15/D15)","v":"-"}]
["II","Aktivált saját teljesítmények értéke ",null,null,null,{"$f":"I20","v":0},null,5523,null,null,null,null,null,{"$f":"F16-D16","v":0},{"$f":"IF(D16=0,\"-\",N16/D16)","v":"-"}]
["III","Egyéb bevételek",null,null,null,{"$f":"I41","v":0},null,56,null,560,null,null,null,{"$f":"F17-D17","v":0},{"$f":"IF(D17=0,\"-\",N17/D17)","v":"-"}]
[null,"   Ebből visszaírt értékvesztés",null,null,null,{"$f":"I43+I44","v":0},null,571,null,null,null,null,null,{"$f":"F18-D18","v":0},{"$f":"IF(D18=0,\"-\",N18/D18)","v":"-"}]
[null,51,{"$f":"I10","v":0},null,null,null,null,572]
[null,52,{"$f":"I11","v":0},null,null,null,null,58,null,null,null,".Sum 5",{"$f":"SUM(I10:I20)-I15-I16","v":0}]
[null,53,{"$f":"I12","v":0},null,null,null,null,814]
[null,814,{"$f":"I21","v":0},null,null,null,null,815]
[null,815,{"$f":"I22","v":0},null,null,null,null,86,null,860]
["IV","Anyagjellegű ráfordítások ",null,null,null,{"$f":"SUM(C19:C23)","v":0},null,861,null,null,null,null,null,{"$f":"F24-D24","v":0},{"$f":"IF(D24=0,\"-\",N24/D24)","v":"-"}]
[null,54,{"$f":"I13","v":0},null,null,null,null,865]
[null,55,{"$f":"I14","v":0},null,null,null,null,8632]
[null,56,{"$f":"I17","v":0},null,null,null,null,8639,null,"ebből"]
["V","Személyi jellegű ráfordítások ",null,null,null,{"$f":"SUM(C25:C27)","v":0},null,8661,null,null,null,null,null,{"$f":"F28-D28","v":0},{"$f":"IF(D28=0,\"-\",N28/D28)","v":"-"}]
[null,571,{"$f":"I18","v":0},null,null,null,null,8662]
[null,572,{"$f":"I19","v":0},null,null,null,null,8664]
["VI","Értékcsökkenési leírás",null,null,null,{"$f":"SUM(C29:C30)","v":0},null,87,null,870,null,null,null,{"$f":"F31-D31","v":0},{"$f":"IF(D31=0,\"-\",N31/D31)","v":"-"}]
["VII","Egyéb ráfordítások",null,null,null,{"$f":"I23","v":0},null,876,null,null,null,null,null,0,"-"]
[null,"   Ebből értékvesztés",null,null,null,{"$f":"I28+I29+I30","v":0},null,88,null,880,null,null,null,0,"-"]
["A","Üzemi (üzleti) tevékenység eredménye\n(I+-II+III-IV-V-VI-VII)",null,{"$f":"D15+D16+D17-D24-D28-D31-D32","v":0},{"$f":"E15+E16+E17-E24-E28-E31-E32","v":0},{"$f":"F15+F16+F17-F24-F28-F31-F32","v":0},null,8893,null,null,null,".Sum 8",{"$f":"I21+I22+I23+I31+I33","v":0}]
[null,null,null,null,null,null,null,91,null,"Sum0",{"$f":"SUM(K10:K33)","v":0},null,null,{"$f":"F34-D34","v":0},{"$f":"IF(D34=0,\"-\",N35/D34)","v":"-"}]
["VIII","Pénzügyi műveletek bevételei",null,null,null,{"$f":"I45","v":0},null,92,null,null,null,null,null,0,"-"]
["IX","Pénzügyi műveletek ráfordításai ",null,null,null,{"$f":"I31","v":0},null,93,null,null,null,null,null,0,"-"]
["B","Pénzügyi műveletek eredménye (VIII-IX)",null,{"$f":"D36-D37","v":0},{"$f":"E36-E37","v":0},{"$f":"F36-F37","v":0},null,931,null,null,null,null,null,0,"-"]
["C","Szokásos vállalkozási eredmény (+/-A+-B)",null,{"$f":"D34+D38","v":0},{"$f":"E34+E38","v":0},{"$f":"F34+F38","v":0},null,94,null,null,null,null,null,0,"-"]
["X","Rendkívüli bevételek",null,null,null,{"$f":"I47","v":0},null,95,null,null,null,null,null,0,"-"]
["XI","Rendkivüli ráfordítások",null,null,null,{"$f":"I33","v":0},null,96,null,null,null,null,null,0,"-"]
["D","Rendkívüli eredmény (X-XI)",null,{"$f":"D40-D41","v":0},{"$f":"E40-E41","v":0},{"$f":"F40-F41","v":0},null,965,null,null,null,null,null,0,"-"]
["E","Adózás előtti eredmény (+/-C+-D)",null,{"$f":"D39+D42","v":0},{"$f":"E39+E42","v":0},{"$f":"F39+F42","v":0},null,9661,null,null,null,null,null,0,"-"]
["XII","Adófizetési kötelezettség",null,null,null,{"$f":"TA!D160","v":0},{"$f":"IF(TA!F3=\"\",\"\",\"HIBA\")","v":""},9662,null,null,null,null,null,0,"-"]
["F","Adózott eredmény (+/-E-XII)",null,{"$f":"D43-D44","v":0},{"$f":"E43-E44","v":0},{"$f":"F43-F44","v":0},null,97,null,null,null,null,null,0,"-"]
[null,"Eredménytartalék igénybevétele osztalékra, részesedésre",null,{"$f":"IF(D45<0,0,IF((D45-D47)<0,D47-D45,0))","v":0},{"$f":"IF(E45<0,0,IF((E45-E47)<0,E47-E45,0))","v":0},{"$f":"IF(F45<0,IF(F47>0,F47-F45,0),IF((F45-F47)<0,F47-F45,0))","v":0},{"$f":"IF(F46>MLM!F28,\"Nincs ekkora eredménytartalék!\",\"ok\")","v":"ok"},976,null,null,null,null,null,0,"-"]
[null,"Jóváhagyott osztalék, részesedés",null,null,null,null,{"$f":"IF(F47>MLM!F49,\"Nincs ekkora fedezet, lásd MLM --> Maximális osztalék!\",\"ok\")","v":"ok"},98,null,null,null,".Sum 9",{"$f":"I35+I36+I37+I39+I40+I41+I45+I47","v":0},0,"-"]
["G","Mérleg szerinti eredmény (+/-F+22-23)",null,{"$f":"D45-D47+D46","v":0},{"$f":"E45-E47+E46","v":0},{"$f":"F45-F47+F46","v":0},null,null,null,null,null,null,null,0,"-"]
[]
[null,null,"Maximálisan kifizethető osztalék (MLM saját tőke kitöltése után!):",null,null,{"$f":"MLM!F49","v":0},"TA","Feltölt:",null,null,{"$f":"IF(F44>0,I50/F44,1)","v":1}]

{"sheet":"MLE (É)","index":4,"n_rows":61,"n_cols":15,"rows_kept":61,"cut":false,"hidden":true,"merged":[[6,13,6,14],[30,1,30,2],[60,1,60,4],[3,0,3,4],[5,0,5,5],[6,0,7,0],[6,1,7,2],[6,4,7,4],[4,0,4,4],[1,6,4,7]]}
["Csak a sárga mezőbe szabad írni!"]
["Stat.szám:",null,{"$f":"Adat!B8","v":"12005954-5170-113-01"}]
["Cégb.azon:",null,{"$f":"Adat!B9","v":"01-09-366783"}]
[]
[]
[{"$f":"CONCATENATE(Adat!B11,\". ÉVI ÉVES BESZÁMOLÓ EREDMÉNYKIMUTATÁS 'A'\n(összköltség eljárással)\")","v":"2012. ÉVI ÉVES BESZÁMOLÓ EREDMÉNYKIMUTATÁS 'A'\n(összköltség eljárással)"},null,null,null,null,null,null,null,"Változás mértéke"]
[null,{"$f":"Adat!B5","v":"Macskafarka Kft"},null,"Bázis év","Előző év(ek) \nmódosítása","Tárgy év",null,null,"eFt",null,"eFt",null,null,"Változás"]
[null,null,null,{"$f":"Adat!B13","v":"2011-12-31"},null,{"$f":"Adat!B12","v":"2012-12-31"},null,16,null,null,"Nem váll érdekében",null,null,"tárgy-bázis","%"]
[]
[1,"Belföldi értékesítés nettó árbevétele",null,null,null,{"$f":"I35+I36+I39+I40","v":0},null,51,null,510,null,null,null,{"$f":"F10-D10","v":0},{"$f":"IF(D10=0,\"-\",N10/D10)","v":"-"}]
[2,"Exportértékesítés nettó árbevétele",null,null,null,{"$f":"I37","v":0},null,52,null,520,null,null,null,0,"-"]
["I","Értékesítés nettó árbevétele (1+2)",null,{"$f":"SUM(D10:D11)","v":0},{"$f":"SUM(E10:E11)","v":0},{"$f":"SUM(F10:F11)","v":0},null,53,null,530,null,null,null,0,"-"]
[3,"Saját termelésű készletek állományváltozása",null,null,null,{"$f":"I20","v":0},null,54,null,540,null,null,null,0,"-"]
[4,"Saját előállítású eszközök aktivált értéke",null,null,null,null,null,55,null,550,null,null,null,0,"-"]
["II","Aktivált saját teljesítmények értéke (+/-3+4)",null,{"$f":"SUM(D13:D14)","v":0},{"$f":"SUM(E13:E14)","v":0},{"$f":"SUM(F13:F14)","v":0},null,5522,null,null,null,null,null,0,"-"]
["III","Egyéb bevételek",null,null,null,{"$f":"I41","v":0},null,5523,null,null,null,null,null,0,"-"]
[null,"   Ebből visszaírt értékvesztés",null,null,null,{"$f":"+I43+I44","v":0},null,56,null,560,null,null,null,0,"-"]
[5,"Anyagköltség",null,null,null,{"$f":"I10","v":0},null,571,null,null,null,null,null,0,"-"]
[6,"Igénybe vett szolgáltatások értéke",null,null,null,{"$f":"I11","v":0},null,572,null,null,null,null,null,0,"-"]
[7,"Egyéb szolgáltatások értéke",null,null,null,{"$f":"I12","v":0},null,58,null,null,null,".Sum 5",{"$f":"SUM(I10:I14)+SUM(I17:I20)","v":0},0,"-"]
[8,"Eladott áruk beszerzési értéke",null,null,null,{"$f":"I21","v":0},null,814,null,null,null,null,null,0,"-"]
[9,"Eladott (közvetített) szolgáltatások értéke",null,null,null,{"$f":"I22","v":0},null,815,null,null,null,null,null,0,"-"]
["IV","Anyagjellegű ráfordítások (5+6+7+8+9)",null,{"$f":"SUM(D18:D22)","v":0},{"$f":"SUM(E18:E22)","v":0},{"$f":"SUM(F18:F22)","v":0},null,86,null,860,null,null,null,0,"-"]
[10,"Bérköltség",null,null,null,{"$f":"I13","v":0},null,861,null,null,null,null,null,0,"-"]
[11,"Személyi jellegű egyéb kifizetések",null,null,null,{"$f":"I14","v":0},null,865,null,null,null,null,null,0,"-"]
[12,"Bérjárulékok",null,null,null,{"$f":"I17","v":0},null,8632,null,null,null,null,null,0,"-"]
["V","Személyi jellegű ráfordítások (10+11+12)",null,{"$f":"SUM(D24:D26)","v":0},{"$f":"SUM(E24:E26)","v":0},{"$f":"SUM(F24:F26)","v":0},null,8639,null,null,null,null,null,0,"-"]
["VI","Értékcsökkenési leírás",null,null,null,{"$f":"I18+I19","v":0},null,8661,null,null,null,null,null,0,"-"]
["VII","Egyéb ráfordítások",null,null,null,{"$f":"I23","v":0},null,8662,null,null,null,null,null,0,"-"]
[null,"   Ebből értékvesztés",null,null,null,{"$f":"+I28+I29+I30","v":0},null,8664,null,null,null,null,null,0,"-"]
["A","Üzemi (üzleti) tevékenység eredménye\n(I+/-II+III-IV-V-VI-VII)",null,{"$f":"D12+D15+D16-D23-D27-D28-D29","v":0},{"$f":"E12+E15+E16-E23-E27-E28-E29","v":0},{"$f":"F12+F15+F16-F23-F27-F28-F29","v":0},null,87,null,null,null,null,null,0,"-"]
[13,"Kapott (járó) osztalék és részesedés",null,null,null,null,null,876,null,870,null,null,null,0,"-"]
[null,"   Ebből: kapcsolt vállalkozástól kapott",null,null,null,null,null,88,null,null,null,null,null,0,"-"]
[14,"Részesedések értékesítésének árfolyamnyeresége",null,null,null,null,null,8893,null,880,null,".Sum 8",{"$f":"I21+I22+I23+I31+I33","v":0},0,"-"]
[null,"   Ebből: kapcsolt vállalkozástól kapott",null,null,null,null,null,91,null,"Sum0",{"$f":"SUM(K10:K34)","v":0},null,null,0,"-"]
[15,"Befektetett pénzügyi eszközök kamatai, árfolyamnyeresége",null,null,null,null,null,92,null,null,null,null,null,0,"-"]
[null,"   Ebből: kapcsolt vállalkozástól kapott",null,null,null,null,null,93,null,null,null,null,null,0,"-"]
[16,"Egyéb (kapott) kamatok és kamatjellegű bevételek",null,null,null,{"$f":"+I45-I46","v":0},null,931,null,null,null,null,null,0,"-"]
[null,"   Ebből: kapcsolt vállalkozástól kapott",null,null,null,null,null,94,null,null,null,null,null,0,"-"]
[17,"Pénzügyi műveletek egyéb bevételei",null,null,null,{"$f":"+I46","v":0},null,95,null,null,null,null,null,0,"-"]
["VIII","Pénzügyi műveletek bevételei (13+14+15+16+17)",null,{"$f":"D32+D34+D36+D38+D40","v":0},{"$f":"E32+E34+E36+E38+E40","v":0},{"$f":"F32+F34+F36+F38+F40","v":0},{"$f":"IF(F41=I45,\"Ok\",\"Hibás részletezés\")","v":"Ok"},96,null,null,null,null,null,0,"-"]
[18,"Befektetett pénzügyi eszközök árfolyamvesztesége",null,null,null,null,null,965,null,null,null,null,null,{"$f":"F42-D42","v":0},{"$f":"IF(D42=0,\"-\",N42/D42)","v":"-"}]
[null,"   Ebből: kapcsolt vállalkozának adott",null,null,null,null,null,9661,null,null,null,null,null,0,"-"]
[19,"Fizetendő kamatok és kamatjellegű ráfordítások",null,null,null,{"$f":"+I31-I32","v":0},null,9662,null,null,null,null,null,0,"-"]
[null,"   Ebből: kapcsolt vállalkozásnak adott",null,null,null,null,null,97,null,null,null,null,null,0,"-"]
[20,"Részesedések, értékpapírok, bankbetétek értékvesztése",null,null,null,null,null,976,null,null,null,null,null,0,"-"]
[21,"Pénzügyi műveletek egyéb ráfordításai",null,null,null,{"$f":"+I32","v":0},null,98,null,null,null,".Sum 9",{"$f":"I35+I36+I37+I39+I40+I41+I45+I47","v":0},0,"-"]
["IX","Pénzügyi műveletek ráfordításai (18+19+-20+21)",null,{"$f":"D42+D44+D46+D47","v":0},{"$f":"E42+E44+E46+E47","v":0},{"$f":"F42+F44+F46+F47","v":0},{"$f":"IF(F48=I31,\"Ok\",\"Hibás részletezés\")","v":"Ok"},null,null,null,null,null,null,0,"-"]
["B","Pénzügyi műveletek eredménye (VIII-IX)",null,{"$f":"D41-D48","v":0},{"$f":"E41-E48","v":0},{"$f":"F41-F48","v":0},null,null,null,null,null,null,null,0,"-"]
["C","Szokásos vállalkozási eredmény (+/-A+/-B)",null,{"$f":"D31+D49","v":0},{"$f":"E31+E49","v":0},{"$f":"F31+F49","v":0},null,null,null,null,null,null,null,0,"-"]
["X","Rendkívüli bevételek",null,null,null,{"$f":"+I47","v":0},null,null,null,null,null,null,null,0,"-"]
["XI","Rendkivüli ráfordítások",null,null,null,{"$f":"+I33","v":0},null,null,null,null,null,null,null,0,"-"]
["D","Rendkívüli eredmény (X-XI)",null,{"$f":"D51-D52","v":0},{"$f":"E51-E52","v":0},{"$f":"F51-F52","v":0},null,null,null,null,null,null,null,0,"-"]
["E","Adózás előtti eredmény (+/-C+/-D)",null,{"$f":"D50+D53","v":0},{"$f":"E50+E53","v":0},{"$f":"F50+F53","v":0},null,null,null,null,null,null,null,0,"-"]
["XII","Adófizetési kötelezettség - társasági adó",null,null,null,{"$f":"TA!D160","v":0},{"$f":"IF(TA!F3=\"\",\"\",\"HIBA\")","v":""},"Feltölt:",null,{"$f":"IF(F55>0,I55/F55,1)","v":1},null,null,null,0,"-"]
["F","Adózott eredmény (+/-E-XII)",null,{"$f":"D54-D55","v":0},{"$f":"E54-E55","v":0},{"$f":"F54-F55","v":0},null,null,null,null,null,null,null,0,"-"]
[22,"Eredménytartalék igénybevétele osztalékra, részesedésre",null,{"$f":"IF(D58=0,0,IF((D56-D58)<0,D58-D56,0))","v":0},{"$f":"IF(E58=0,0,IF((E56-E58)<0,E58-E56,0))","v":0},{"$f":"IF(F58=0,IF(F58>0,F58-F56,0),IF((F56-F58)<0,F58-F56,0))","v":0},{"$f":"IF(F57>'MLM (É)'!F68,\"Nincs ekkora eredménytartalék!\",\"ok\")","v":"ok"},null,null,null,null,null,null,0,"-"]
[23,"Jóváhagyott osztalék, részesedés",null,null,null,null,{"$f":"IF(F58>'MLM (É)'!F118,\"Nincs ekkora fedezet, lásd MLM --> Maximális osztalék!\",\"ok\")","v":"ok"},null,null,null,null,null,null,0,"-"]
["G","Mérleg szerinti eredmény (+/-F+22-23)",null,{"$f":"D56+D57-D58","v":0},{"$f":"E56+E57-E58","v":0},{"$f":"F56+F57-F58","v":0},null,null,null,null,null,null,null,0,"-"]
[]
[null,"Maximálisan kifizethető osztalék (MLM saját tőke kitöltése után!):",null,null,null,{"$f":"'MLM (É)'!F118","v":0}]

{"sheet":"MLM","index":5,"n_rows":51,"n_cols":10,"rows_kept":51,"cut":false,"hidden":false,"merged":[[4,8,4,9],[0,0,0,1],[1,0,1,1],[6,1,6,2],[4,0,5,0],[3,0,3,5],[4,1,5,2],[4,4,5,4],[0,6,2,6]]}
["Stat.szám:",null,{"$f":"Adat!B8","v":"12005954-5170-113-01"}]
["Cégb.azon:",null,{"$f":"Adat!B9","v":"01-09-366783"}]
[]
[{"$f":"CONCATENATE(Adat!B11,\" ÉVI EGYSZERŰSÍTETT ÉVES BESZÁMOLÓ MÉRLEG 'A'\")","v":"2012 ÉVI EGYSZERŰSÍTETT ÉVES BESZÁMOLÓ MÉRLEG 'A'"},null,null,null,null,null,"Változás mértéke"]
[null,{"$f":"Adat!B5","v":"Macskafarka Kft"},null,"Bázis év","Előző év(ek) \nmódosítása","Tárgy év",null,null,"Változás"]
[null,null,null,{"$f":"Adat!B13","v":"2011-12-31"},null,{"$f":"Adat!B12","v":"2012-12-31"},null,null,"tárgy-bázis","%"]
[]
["01.","A","Befektetett eszközök",{"$f":"D9+D11+D13","v":0},{"$f":"E9+E11+E13","v":0},{"$f":"ROUND(F9+F11+F13,0)","v":0},null,null,{"$f":"F8-D8","v":0},{"$f":"IF(D8=0,\"-\",I8/D8)","v":"-"}]
["02.","I","Immateriális javak",null,null,null,"előleg:",{"$f":"ROUND(Köv!E94/1000,0)","v":0},{"$f":"F9-D9","v":0},{"$f":"IF(D9=0,\"-\",I9/D9)","v":"-"}]
["03.",null,"   Ebből: Immateriális javak értékhelyesbítése",null,null,null,{"$f":"IF(($F$10+$F$12+$F$14)=$F$30,\" \",\"Nem egyezik az értékelési tartalékkal!\")","v":" "},null,{"$f":"F10-D10","v":0},{"$f":"IF(D10=0,\"-\",I10/D10)","v":"-"}]
["04.","II","Tárgyi eszközök",null,null,null,"előleg:",{"$f":"ROUND(Köv!E97/1000,0)","v":0},{"$f":"F11-D11","v":0},{"$f":"IF(D11=0,\"-\",I11/D11)","v":"-"}]
["05.",null,"   Ebből: Tárgyi eszközök értékhelyesbítése",null,null,null,{"$f":"IF(($F$10+$F$12+$F$14)=$F$30,\" \",\"Nem egyezik az értékelési tartalékkal!\")","v":" "},null,{"$f":"F12-D12","v":0},"-"]
["06.","III","Befektetett pénzügyi eszközök",null,null,null,null,null,0,"-"]
["07.",null,"   Ebből: Befektetett pénzügyi eszközök értékhelyesbítése",null,null,null,{"$f":"IF(($F$10+$F$12+$F$14)=$F$30,\" \",\"Nem egyezik az értékelési tartalékkal!\")","v":" "},null,0,"-"]
["08.","B","Forgóeszközök",{"$f":"SUM(D16:D19)","v":0},{"$f":"SUM(E16:E19)","v":0},{"$f":"ROUND(SUM(F16:F19),0)","v":0},null,null,{"$f":"F15-D15","v":0},{"$f":"IF(D15=0,\"-\",I15/D15)","v":"-"}]
["09.","I","Készletek",null,null,null,"előleg:",{"$f":"ROUND(Köv!E100/1000,0)","v":0},0,"-"]
["10.","II","Követelések",null,null,{"$f":"Köv!E83","v":0},null,null,{"$f":"F17-D17","v":0},{"$f":"IF(D17=0,\"-\",I17/D17)","v":"-"}]
["11.","III","Értékpapírok",null,null,null,null,null,{"$f":"F18-D18","v":0},{"$f":"IF(D18=0,\"-\",I18/D18)","v":"-"}]
["12.","IV","Pénzeszközök",null,null,{"$f":"Pénz!E31","v":0},null,null,0,"-"]
["13.","C","Aktív időbeli elhatárolások",null,null,null,null,null,{"$f":"F20-D20","v":0},{"$f":"IF(D20=0,\"-\",I20/D20)","v":"-"}]
["14.",null,"ESZKÖZÖK ÖSSZESEN:",{"$f":"ROUND(D8+D15+D20,0)","v":0},{"$f":"ROUND(E8+E15+E20,0)","v":0},{"$f":"ROUND(F8+F15+F20,0)","v":0},null,null,{"$f":"F21-D21","v":0},{"$f":"IF(D21=0,\"-\",I21/D21)","v":"-"}]
[]
["15.","D","Saját tőke",{"$f":"D24+SUM(D26:D31)","v":0},{"$f":"E24+SUM(E26:E31)","v":0},{"$f":"F24+SUM(F26:F31)","v":0},null,null,{"$f":"F23-D23","v":0},{"$f":"IF(D23=0,\"-\",I23/D23)","v":"-"}]
["16.","I ","Jegyzett tőke",null,null,null,"leltár szerint:",{"$f":"Adat!D53/1000","v":-1E-3},0,"-"]
["17.",null,"   Ebből: visszavásárolt tulajdonú részesedés névértéken",null,null,null,null,null,0,"-"]
["18.","II","Jegyzett, de még be nem fizetett tőke (-)",null,null,null,"leltár szerint:",{"$f":"-1*(ROUND((Köv!E88+Köv!E91)/1000,0))","v":0},{"$f":"F26-D26","v":0},{"$f":"IF(D26=0,\"-\",I26/D26)","v":"-"}]
["19.","III","Tőketartalék",null,null,null,"leltár szerint:",{"$f":"LT!F35","v":0},0,"-"]
["20.","IV","Eredménytartalék",null,null,null,"leltár szerint:",{"$f":"LT!F36","v":0},0,"-"]
["21.","V","Lekötött tartalék",null,null,null,"leltár szerint:",{"$f":"LT!F37","v":0},0,"-"]
["22.","VI","Értékelési tartalék",null,null,null,{"$f":"IF(($F$10+$F$12+$F$14)=$F$30,\" \",\"Nem egyezik az értékhelyesbítéssel!\")","v":" "},null,0,"-"]
["23.","VII","Mérleg szerinti eredmény",{"$f":"MLE!D48","v":0},{"$f":"MLE!E48","v":0},{"$f":"MLE!F48","v":0},null,null,0,"-"]
["24.","E","Céltartalék",null,null,null,null,null,{"$f":"F32-D32","v":0},{"$f":"IF(D32=0,\"-\",I32/D32)","v":"-"}]
["25.","F","Kötelezettségek",{"$f":"D34+D35+D36","v":0},{"$f":"E34+E35+E36","v":0},{"$f":"F34+F35+F36","v":0},null,null,0,"-"]
["26.","I","Hátrasorolt kötelezettségek",null,null,{"$f":"Köt!E17","v":0},null,null,0,"-"]
["27.","II","Hosszú lejáratú kötelezettségek",null,null,{"$f":"Köt!E46","v":0},null,null,0,"-"]
["28.","III","Rövid lejáratú kötelezettségek",null,null,{"$f":"Köt!E148","v":0},null,null,0,"-"]
["29.","G","Passzív időbeli elhatárolások",null,null,null,null,null,0,"-"]
["30.",null,"FORRÁSOK ÖSSZESEN:",{"$f":"ROUND(D23+D32+D33+D37,0)","v":0},{"$f":"ROUND(E23+E32+E33+E37,0)","v":0},{"$f":"ROUND(F23+F32+F33+F37,0)","v":0},null,null,0,"-"]
[]
[null,null,null,{"$f":"D21-D38","v":0},{"$f":"E21-E38","v":0},{"$f":"F21-F38","v":0}]
[]
[null,"Kötelező egyezőségek vizsgálata:"]
[null,null,"Saját tőke osztalék fizetés után - LT - ÉT   >=   Jegyzett tőke",{"$f":"IF((F23-F29-F30)<F24,\"Nem áll fent az egyezőség!\",\"ok\")","v":"ok"}]
[]
[null,"Maximális osztalék:"]
[null,null,"Adózott eredmény:",null,null,{"$f":"MLE!F45","v":0}]
[null,"+","Eredménytartalék",null,null,{"$f":"F28","v":0}]
[null,"+","Tőketartalék fedezet a negatív Eredménytartalékra",null,null,{"$f":"IF(F47<0,IF((F27-F51)>ABS(F47),ABS(F47),F27-F51),0)","v":0}]
[null,null,"Maximálisan kifizethető osztalék",null,null,{"$f":"IF(SUM(F46:F48)>0,SUM(F46:F48),0)","v":0}]
[]
[null,"(","Tőketartalék fedezet a jegyzett, de be nem fiz. tőkére",null,null,{"$f":"IF(F26<0,IF((F27)>ABS(F26),ABS(F26),(F27)),0)","v":0}]

{"sheet":"MLM (É)","index":6,"n_rows":120,"n_cols":10,"rows_kept":120,"cut":false,"hidden":true,"merged":[[0,0,0,1],[1,0,1,1],[6,1,6,2],[4,0,5,0],[3,0,3,5],[4,1,5,2],[2,0,2,5],[4,4,5,4],[4,8,4,9],[60,1,60,2],[106,1,106,2],[78,3,79,3],[78,5,79,5],[44,3,45,3],[44,4,45,4],[44,5,45,5],[78,4,79,4],[0,6,2,6],[99,3,100,3],[99,5,100,5],[99,4,100,4],[28,3,29,3],[28,4,29,4],[28,5,29,5],[88,3,89,3],[88,4,89,4],[88,5,89,5]]}
["Stat.szám:",null,{"$f":"Adat!B8","v":"12005954-5170-113-01"}]
["Cégb.azon:",null,{"$f":"Adat!B9","v":"01-09-366783"}]
[]
[{"$f":"CONCATENATE(Adat!B11,\". ÉVI ÉVES BESZÁMOLÓ MÉRLEG 'A'\")","v":"2012. ÉVI ÉVES BESZÁMOLÓ MÉRLEG 'A'"},null,null,null,null,null,"Változás mértéke"]
[null,{"$f":"Adat!B5","v":"Macskafarka Kft"},null,"Bázis év","Előző év(ek) \nmódosítása","Tárgy év",null,null,"Változás"]
[null,null,null,{"$f":"Adat!B13","v":"2011-12-31"},null,{"$f":"Adat!B12","v":"2012-12-31"},null,null,"tárgy-bázis","%"]
[]
["A.","Befektetett eszközök",null,{"$f":"D9+D17+D25","v":0},{"$f":"E9+E17+E25","v":0},{"$f":"ROUND(F9+F17+F25,0)","v":0},null,null,{"$f":"F8-D8","v":0},{"$f":"IF(D8=0,\"-\",I8/D8)","v":"-"}]
["I.","Immateriális javak",null,{"$f":"SUM(D10:D16)","v":0},{"$f":"SUM(E10:E16)","v":0},{"$f":"ROUND(SUM(F10:F16),0)","v":0},"*",null,0,"-"]
["I/1","Alapítás-átszervezés aktivált értéke",null,null,null,null,null,null,0,"-"]
["I/2","Kisérleti fejlesztés aktivált értéke",null,null,null,null,null,null,0,"-"]
["I/3","Vagyoni értékű jogok",null,null,null,null,null,null,0,"-"]
["I/4","Szellemi termékek",null,null,null,null,null,null,0,"-"]
["I/5","Üzleti vagy cégértékek",null,null,null,null,null,null,0,"-"]
["I/6","Immateriális javakra adott előlegek",null,null,null,{"$f":"ROUND(Köv!E94/1000,0)","v":0},null,null,0,"-"]
["I/7","Immateriális javak értékhelyesbítése",null,null,null,null,{"$f":"IF(($F$16+$F$24+$F$33)=$F$70,\" \",\"Nem egyezik az értékelési tartalékkal!\")","v":" "},null,0,"-"]
["II.","Tárgyi eszközök",null,{"$f":"SUM(D18:D24)","v":0},{"$f":"SUM(E18:E24)","v":0},{"$f":"ROUND(SUM(F18:F24),0)","v":0},"*",null,0,"-"]
["II/1","Ingatlanok és a kaplcsolódó vagyoni értékű jogok",null,null,null,null,null,null,0,"-"]
["II/2","Műszaki berendezések, gépek, járművek",null,null,null,null,null,null,0,"-"]
["II/3","Egyéb berendezések, felszerelések, járművek",null,null,null,null,null,null,0,"-"]
["II/4","Tenyészállatok",null,null,null,null,null,null,0,"-"]
["II/5","Beruházások, felújítások",null,null,null,null,null,null,0,"-"]
["II/6","Beruházásokra adott előlegek",null,null,null,{"$f":"ROUND(Köv!E97/1000,0)","v":0},null,null,0,"-"]
["II/7","Tárgyi eszközök értékhelyesbítése",null,null,null,null,{"$f":"IF(($F$16+$F$24+$F$33)=$F$70,\" \",\"Nem egyezik az értékelési tartalékkal!\")","v":" "},null,0,"-"]
["III","Befektetett pénzügyi eszközök",null,{"$f":"SUM(D26:D28,D30:D33)","v":0},{"$f":"SUM(E26:E28,E30:E33)","v":0},{"$f":"ROUND(SUM(F26:F28,F30:F33),0)","v":0},"*",null,0,"-"]
["III/1","Tartós részesedés kapcsolt vállalkozásban",null,null,null,null,null,null,0,"-"]
["III/2","Tartósan adott kölcsön kapcsolt vállalkozásban",null,null,null,null,null,null,0,"-"]
["III/3","Egyéb tartós részesedés",null,null,null,null,null,null,0,"-"]
["III/4","Tartósan adott kölcsön egyéb részesedési viszonyban álló",null,null,null,null,null,null,0,"-"]
[null,"   vállalkozásban",null,null,null,null,null,null,0,"-"]
["III/5","Egyéb tartósan adott kölcsön",null,null,null,null,null,null,0,"-"]
["III/6","Tartós hitelviszonyt megtestesítő értékpapír",null,null,null,null,null,null,0,"-"]
["III/7","Befektetett pénzügyi eszközök értékhelyesbítése",null,null,null,null,{"$f":"IF(($F$16+$F$24+$F$33)=$F$70,\" \",\"Nem egyezik az értékelési tartalékkal!\")","v":" "},null,0,"-"]
["B.","Forgóeszközök",null,{"$f":"+D35+D42+D49+D54","v":0},{"$f":"+E35+E42+E49+E54","v":0},{"$f":"+F35+F42+F49+F54","v":0},null,null,0,"-"]
["I","Készletek",null,{"$f":"SUM(D36:D41)","v":0},{"$f":"SUM(E36:E41)","v":0},{"$f":"ROUND(SUM(F36:F41),0)","v":0},null,null,0,"-"]
["I/1","Anyagok",null,null,null,null,null,null,0,"-"]
["I/2","Befejezetlen termelés és félkész termékek",null,null,null,null,null,null,0,"-"]
["I/3","Növendék-, hízó- és egyéb állatok",null,null,null,null,null,null,0,"-"]
["I/4","Késztermékek",null,null,null,null,null,null,0,"-"]
["I/5","Áruk",null,null,null,null,null,null,{"$f":"F40-D40","v":0},{"$f":"IF(D40=0,\"-\",I40/D40)","v":"-"}]
["I/6","Készletekre adott előlegek",null,null,null,{"$f":"ROUND(Köv!E100/1000,0)","v":0},null,null,0,"-"]
["II","Követelések",null,{"$f":"SUM(D43:D44,D46:D48)","v":0},{"$f":"SUM(E43:E44,E46:E48)","v":0},{"$f":"ROUND(SUM(F43:F44,F45:F48),0)","v":0},{"$f":"IF(F42=Köv!E83,\"Leltárral egyezik\",\"Nem egyezik a leltárral!\")","v":"Leltárral egyezik"},null,0,"-"]
["II/1","Követelések áruszállításból és szolgáltatásból (vevők)",null,null,null,{"$f":"ROUND(SUM(Köv!E11:E16)/1000,0)","v":0},null,null,0,"-"]
["II/2","Követelések kapcsolt vállalkozásokkal szemben",null,null,null,{"$f":"ROUND(SUM(Köv!E17:E21)/1000,0)","v":0},null,null,0,"-"]
["II/3","Követelések egyéb részesedési viszonyban lévő vállalkozással",null,null,null,{"$f":"ROUND((SUM(Köv!E22:E23))/1000,0)","v":0},null,null,0,"-"]
[null,"   szemben",null,null,null,null,null,null,0,"-"]
["II/4","Váltókövetelések",null,null,null,null,null,null,0,"-"]
["II/5","Egyéb követelések",null,null,null,{"$f":"ROUND((SUM(Köv!E24:E81))/1000,0)","v":0},null,null,0,"-"]
["III","Értékpapírok",null,{"$f":"SUM(D50:D53)","v":0},{"$f":"SUM(E50:E53)","v":0},{"$f":"ROUND(SUM(F50:F53),0)","v":0},null,null,0,"-"]
["III/1","Részesedés kapcsolt vállalkozásban",null,null,null,null,null,null,0,"-"]
["III/2","Egyéb részesedés",null,null,null,null,null,null,0,"-"]
["III/3","Saját részvények, saját üzletrészek",null,null,null,null,null,null,0,"-"]
["III/4","Forgatási célú hitelviszonyt megtestesítő értékpapírok",null,null,null,null,null,null,0,"-"]
["IV","Pénzeszközök",null,{"$f":"SUM(D55:D56)","v":0},{"$f":"SUM(E55:E56)","v":0},{"$f":"SUM(F55:F56)","v":0},{"$f":"IF(F54=Pénz!E31,\"Leltárral egyezik\",\"Nem egyezik a leltárral!\")","v":"Leltárral egyezik"},null,0,"-"]
["IV/1","Pénztár, csekk",null,null,null,{"$f":"ROUND((SUM(Pénz!E11:E15))/1000,0)","v":0},null,null,0,"-"]
["IV/2","Bankbetétek",null,null,null,{"$f":"ROUND(SUM(Pénz!E16:E29)/1000,0)","v":0},null,null,0,"-"]
["C.","Aktív időbeli elhatárolások",null,{"$f":"SUM(D58:D60)","v":0},{"$f":"SUM(E58:E60)","v":0},{"$f":"ROUND(SUM(F58:F60),0)","v":0},{"$f":"IF(F57='AP (É)'!E19,\"Leltárral egyezik\",\"Nem egyezik a leltárral!\")","v":"Leltárral egyezik"},null,0,"-"]
["C/1","Bevételek aktív időbeli elhatárolása",null,null,null,null,null,null,0,"-"]
["C/2","Költségek, ráfordítások aktív időbeli elhatárolása",null,null,null,null,null,null,0,"-"]
["C/3","Halasztott ráfordítások",null,null,null,null,null,null,0,"-"]
[null,"ESZKÖZÖK ÖSSZESEN:",null,{"$f":"ROUND(D8+D34+D57,0)","v":0},{"$f":"ROUND(E8+E34+E57,0)","v":0},{"$f":"ROUND(F8+F34+F57,0)","v":0},null,null,0,"-"]
[]
["D","Saját tőke",null,{"$f":"D64+SUM(D66:D71)","v":0},{"$f":"E64+SUM(E66:E71)","v":0},{"$f":"F64+SUM(F66:F71)","v":0},null,null,{"$f":"F63-D63","v":0},{"$f":"IF(D63=0,\"-\",I63/D63)","v":"-"}]
["I ","Jegyzett tőke",null,null,null,null,"leltár szerint:",{"$f":"Adat!B53/1000","v":3000},0,"-"]
[null,"   Ebből visszavásárolt tulajdonú részesedés névértéken",null,null,null,null,null,null,0,"-"]
["II","Jegyzett, de még be nem fizetett tőke (-)",null,null,null,null,"leltár szerint:",{"$f":"-1*(ROUND((Köv!E88+Köv!E91)/1000,0))","v":0},0,"-"]
["III","Tőketartalék",null,null,null,null,"leltár szerint:",{"$f":"LT!F35","v":0},0,"-"]
["IV","Eredménytartalék",null,null,null,null,"leltár szerint:",{"$f":"LT!F36","v":0},0,"-"]
["V","Lekötött tartalék",null,null,null,null,"leltár szerint:",{"$f":"LT!F37","v":0},0,"-"]
["VI","Értékelési tartalék",null,null,null,null,{"$f":"IF(($F$16+$F$24+$F$33)=$F$70,\" \",\"Nem egyezik az értékhelyesbítéssel!\")","v":" "},null,0,"-"]
["VII","Mérleg szerinti eredmény",null,{"$f":"'MLE (É)'!D59","v":0},{"$f":"'MLE (É)'!E59","v":0},{"$f":"'MLE (É)'!F59","v":0},null,null,0,"-"]
["E","Céltartalék",null,{"$f":"SUM(D73:D75)","v":0},{"$f":"SUM(E73:E75)","v":0},{"$f":"SUM(F73:F75)","v":0},null,null,0,"-"]
["E/1","Céltartalék a várható kötelezettségekre",null,null,null,null,null,null,0,"-"]
["E/2","Céltartalék a jövőbeni költségekre",null,null,null,null,null,null,0,"-"]
["E/3","Egyéb céltartalék",null,null,null,null,null,null,0,"-"]
["F","Kötelezettségek",null,{"$f":"D77+D82+D92","v":0},{"$f":"E77+E82+E92","v":0},{"$f":"F77+F82+F92","v":0},null,null,0,"-"]
["I","Hátrasorolt kötelezettségek",null,{"$f":"D78+D80+D81","v":0},{"$f":"E78+E80+E81","v":0},{"$f":"ROUND(F78+F79+F81,0)","v":0},{"$f":"IF(F77=Köt!E17,\"Leltárral egyezik\",\"Nem egyezik a leltárral!\")","v":"Leltárral egyezik"},null,0,"-"]
["I/1","Hátrasorolt kötelezettségek kapcsolt vállalkozással szemben",null,null,null,{"$f":"ROUND((Köt!E11+Köt!E12)/1000,0)","v":0},null,null,0,"-"]
["I/2","Hátrasorolt kötelezettségek egyéb részesedési",null,null,null,{"$f":"ROUND(Köt!E13/1000,0)","v":0},null,null,0,"-"]
[null,"viszonyban lévő vállalkozással szemben",null,null,null,null,null,null,0,"-"]
["I/3","Hátrasorolt kötelezettségek egyéb gazdálkodóval szemben",null,null,null,{"$f":"ROUND(Köt!E14/1000,0)","v":0},null,null,0,"-"]
["II","Hosszú lejáratú kötelezettségek",null,{"$f":"SUM(D83:D88,D90:D91)","v":0},{"$f":"SUM(E83:E88,E90:E91)","v":0},{"$f":"ROUND(SUM(F83:F88,F90:F91),0)","v":0},{"$f":"IF(F82=Köt!E46,\"Leltárral egyezik\",\"Nem egyezik a leltárral!\")","v":"Leltárral egyezik"},null,0,"-"]
["II/1","Hosszú lejáratra kapott kölcsönök",null,null,null,{"$f":"ROUND(Köt!E23/1000,0)","v":0},null,null,0,"-"]
["II/2","Átváltoztatható kötvények",null,null,null,null,null,null,0,"-"]
["II/3","Tartozások kötvénykibocsátásból",null,null,null,null,null,null,0,"-"]
["II/4","Beruházási és fejlesztési hitelek",null,null,null,{"$f":"ROUND((Köt!E26)/1000,0)","v":0},null,null,0,"-"]
["II/5","Egyéb hosszú lejáratú hitelek",null,null,null,{"$f":"ROUND(Köt!E32/1000,0)","v":0},null,null,0,"-"]
["II/6","Tartós kötelezettségek kapcsolt vállalkozással szemben",null,null,null,{"$f":"ROUND(Köt!E35/1000,0)","v":0},null,null,0,"-"]
["II/7","Tartós kötelezettségek egyéb részesedési viszonyban lévő",null,null,null,{"$f":"ROUND(Köt!E38/1000,0)","v":0},null,null,0,"-"]
[null,"   vállalkozással szemben",null,null,null,null,null,null,0,"-"]
["II/8","Egyéb hosszú lejáratú kötelezettségek",null,null,null,{"$f":"ROUND((Köt!E41+Köt!E29)/1000,0)","v":0},null,null,0,"-"]
["III","Rövid lejáratú kötelezettségek",null,{"$f":"D93+SUM(D95:D99,D101:D102)","v":0},{"$f":"E93+SUM(E95:E99,E101:E102)","v":0},{"$f":"ROUND(F93+SUM(F95:F99,F101:F102),0)","v":0},{"$f":"IF(F92=Köt!E148,\"Leltárral egyezik\",\"Nem egyezik a leltárral!\")","v":"Leltárral egyezik"},null,0,"-"]
["III/1","Rövid lejáratú kölcsönök",null,null,null,{"$f":"ROUND(SUM(Köt!E64:'Köt'!E66)/1000,0)","v":0},null,null,0,"-"]
[null,"ebből: az átváltoztatható kötvények",null,null,null,null,null,null,0,"-"]
["III/2","Rövid lejáratú hitelek",null,null,null,{"$f":"ROUND((SUM(Köt!E67:E68)+Köt!E63)/1000,0)","v":0},null,null,0,"-"]
["III/3","Vevőktől kapott előlegek",null,null,null,{"$f":"ROUND(Köt!E71/1000,0)","v":0},null,null,0,"-"]
["III/4","Kötelezettségek áruszállításból és szolgáltatásból (szállítók)",null,null,null,{"$f":"ROUND((SUM(Köt!E72:E75))/1000,0)","v":0},null,null,0,"-"]
["III/5","Váltótartozások",null,null,null,null,null,null,0,"-"]
["III/6","Rövid lejáratú kötelezettségek kapcsolt vállalkozással szemben",null,null,null,{"$f":"ROUND(Köt!E78/1000,0)","v":0},null,null,0,"-"]
["III/7","Rövid lejáratú kötelezettségek egyéb részesedési",null,null,null,{"$f":"ROUND(Köt!E79/1000,0)","v":0},null,null,0,"-"]
[null,"viszonyban lévő vállalkozással szemben",null,null,null,null,null,null,0,"-"]
["III/8","Egyéb rövid lejáratú kötelezettségek",null,null,null,{"$f":"ROUND((SUM(Köt!E53:E62)+SUM(Köt!E69:E70)+Köt!E76+Köt!E77+SUM(Köt!E80:E146))/1000,0)","v":0},null,null,0,"-"]
["G","Passzív időbeli elhatárolások",null,{"$f":"SUM(D104:D106)","v":0},{"$f":"SUM(E104:E106)","v":0},{"$f":"ROUND(SUM(F104:F106),0)","v":0},{"$f":"IF(F103='AP (É)'!E46,\"Leltárral egyezik\",\"Nem egyezik a leltárral!\")","v":"Leltárral egyezik"},null,0,"-"]
["G/1","Bevételek passzív időbeli elhatárolása",null,null,null,null,null,null,0,"-"]
["G/2","Költségek, ráfordítások passzív időbeli elhatárolása",null,null,null,null,null,null,0,"-"]
["G/3","Halasztott bevételek",null,null,null,null,null,null,0,"-"]
[null,"FORRÁSOK ÖSSZESEN:",null,{"$f":"ROUND(D63+D72+D76+D103,0)","v":0},{"$f":"ROUND(E63+E72+E76+E103,0)","v":0},{"$f":"ROUND(F63+F72+F76+F103,0)","v":0},null,null,0,"-"]
[]
[null,null,"Differencia:",{"$f":"D61-D107","v":0},{"$f":"E61-E107","v":0},{"$f":"F61-F107","v":0}]
[]
[null,"Kötelező egyezőségek vizsgálata:"]
[null,null,"Saját tőke osztalék fizetés után - LT - ÉT   >=   Jegyzett tőke",{"$f":"IF((F63-F69-F70)<F64,\"Nem áll fent az egyezőség!\",\"ok\")","v":"ok"}]
[]
[null,"Maximális osztalék:"]
[null,null,"Adózott eredmény:",null,null,{"$f":"'MLE (É)'!F56","v":0}]
[null,"+","Eredménytartalék",null,null,{"$f":"F68","v":0}]
[null,"+","Tőketartalék fedezet a negatív Eredménytartalékra",null,null,{"$f":"IF(F116<0,IF((F67-F120)>ABS(F116),ABS(F116),F67-F120),0)","v":0}]
[null,null,"Maximálisan kifizethető osztalék",null,null,{"$f":"IF(SUM(F115:F117)>0,SUM(F115:F117),0)","v":0}]
[]
[null,"(","Tőketartalék fedezet a jegyzett, de be nem fiz. tőkére",null,null,{"$f":"IF(F66<0,IF((F67)>ABS(F66),ABS(F66),(F67)),0)","v":0}]

{"sheet":"Kiegm","index":7,"n_rows":339,"n_cols":7,"rows_kept":339,"cut":false,"hidden":false,"merged":[[299,1,299,4],[315,1,315,4],[309,1,309,4],[313,1,313,4],[314,1,314,4],[302,1,302,2],[303,1,303,4],[310,1,310,4],[312,1,312,4],[304,1,304,4],[305,1,305,4],[307,1,307,4],[280,1,280,4],[292,1,292,4],[279,1,279,2],[273,1,273,2],[274,1,274,4],[278,1,278,4],[276,1,276,4],[338,2,338,4],[335,0,335,4],[336,2,336,4],[317,1,317,4],[334,1,334,4],[319,1,319,4],[321,1,321,4],[322,1,322,4],[329,1,329,4],[330,1,330,4],[316,1,316,4],[311,1,311,4],[281,1,281,2],[290,1,290,4],[291,1,291,4],[300,1,300,4],[301,1,301,4],[263,1,263,2],[269,1,269,2],[270,1,270,4],[267,1,267,2],[264,1,264,4],[266,1,266,4],[268,1,268,2],[271,1,271,2],[272,1,272,2],[260,1,260,4],[261,1,261,2],[237,1,237,4],[238,1,238,4],[242,1,242,2],[243,1,243,2],[258,1,258,2],[259,1,259,2],[262,1,262,2],[255,1,255,2],[256,1,256,4],[257,1,257,2],[247,1,247,2],[254,1,254,2],[241,1,241,2],[220,1,220,4],[221,1,221,4],[210,1,210,4],[231,1,231,2],[252,1,252,2],[253,1,253,2],[248,1,248,2],[249,1,249,2],[250,1,250,2],[251,1,251,4],[240,1,240,2],[244,1,244,4],[246,1,246,2],[217,1,217,4],[218,1,218,4],[222,1,222,2],[227,1,227,2],[228,1,228,4],[223,1,223,4],[224,1,224,4],[225,1,225,2],[229,1,229,4],[230,1,230,2],[239,1,239,2],[233,1,233,4],[234,1,234,4],[235,1,235,4],[236,1,236,4],[226,1,226,2],[186,1,186,4],[187,1,187,4],[190,1,190,4],[192,1,192,4],[193,1,193,2],[194,1,194,4],[188,1,188,4],[189,1,189,4],[206,1,206,4],[195,1,195,4],[196,1,196,4],[197,1,197,4],[198,1,198,4],[199,1,199,4],[200,1,200,4],[209,1,209,4],[219,1,219,4],[163,1,163,4],[184,1,184,4],[185,1,185,4],[177,1,177,4],[166,1,166,4],[167,1,167,4],[168,1,168,4],[169,1,169,4],[170,1,170,4],[171,1,171,4],[172,1,172,4],[178,1,178,4],[179,1,179,4],[180,1,180,4],[181,1,181,4],[182,1,182,4],[183,1,183,4],[157,1,157,4],[148,1,148,4],[149,1,149,4],[155,1,155,4],[142,1,142,4],[144,1,144,4],[145,1,145,4],[146,1,146,4],[176,1,176,4],[175,1,175,4],[164,1,164,4],[165,1,165,4],[147,1,147,4],[158,1,158,4],[150,1,150,4],[152,1,152,4],[153,1,153,4],[154,1,154,4],[173,1,173,4],[174,1,174,4],[161,1,161,4],[159,1,159,4],[160,1,160,4],[162,1,162,4],[137,1,137,4],[138,1,138,4],[141,1,141,4],[122,1,122,4],[123,1,123,4],[124,1,124,4],[125,1,125,4],[126,1,126,4],[156,1,156,4],[103,1,103,4],[105,1,105,4],[90,2,90,4],[91,2,91,4],[92,2,92,4],[102,1,102,4],[99,1,99,4],[139,1,139,4],[110,1,110,4],[114,1,114,4],[118,1,118,4],[119,1,119,4],[132,1,132,4],[133,1,133,4],[108,1,108,4],[109,1,109,4],[127,1,127,4],[128,1,128,4],[129,1,129,4],[130,1,130,4],[120,1,120,4],[121,1,121,4],[134,1,134,2],[136,1,136,4],[93,2,93,4],[98,1,98,4],[94,1,94,4],[95,1,95,4],[97,1,97,4],[86,1,86,4],[100,1,100,4],[101,1,101,4],[87,2,87,4],[88,1,88,4],[58,1,58,4],[50,1,50,4],[54,1,54,4],[53,2,53,4],[57,2,57,4],[46,1,46,4],[34,1,34,4],[85,2,85,4],[62,1,62,4],[61,2,61,4],[79,1,79,4],[82,2,82,4],[84,2,84,4],[80,1,80,4],[81,2,81,4],[45,2,45,4],[40,1,40,4],[49,2,49,4],[0,4,0,5],[3,0,3,4],[4,0,4,4],[5,0,5,4],[3,5,4,5],[39,2,39,4],[14,2,14,4],[19,2,19,4],[28,1,28,4],[15,2,15,4],[11,1,11,4],[27,2,27,4],[7,1,7,4],[33,2,33,4],[20,2,20,4],[8,1,8,4],[9,1,9,4],[16,2,16,4],[17,2,17,4],[13,2,13,4],[10,1,10,4],[12,2,12,4]]}
["Csak kiemelés","Mi íjuk be","Vagy - vagy\n(a kettőből csak egyik OK)",null,"Ellenőrzendő \n(A nem kívánt szöveg törlendő!!!)"]
[]
[]
["KIEGÉSZÍTŐ MELLÉKLET"]
[{"$f":"Adat!E5","v":"A"}]
[{"$f":"Adat!B5","v":"Macskafarka Kft"}]
[null,{"$f":"Adat!B11","v":2012},". évi BESZÁMOLÓJÁHOZ",null,null,"Fők.szám","Számviteli tv. Paragrafus"]
[]
["I.","Általános rész"]
[]
["I/1.","A vállalkozás bemutatása"]
[]
["1.","A cég elnevezése:",{"$f":"Adat!B6","v":"Macskafarka Egérhajhász Kereskedelmi és Szolgáltató"}]
[null,null,{"$f":"IF(Adat!E6=\"KFT\",\"Korlátolt Felelősségű Társaság\",IF(Adat!E6=\"BT\",\"Betéti Társaság\",IF(Adat!E6=\"KHT\",\"Közhasznú Társaság\",\"??? társasági forma ???\")))","v":"Korlátolt Felelősségű Társaság"}]
["2.","A cég rövidtett elnevezése:",{"$f":"Adat!B5","v":"Macskafarka Kft"}]
["3.","A cég székhelye:",{"$f":"(IF(Adat!B57=0,\"\",Adat!B57))","v":""}]
["4.","A cég telephelye:",{"$f":"(IF(Adat!B58=0,\"\",Adat!B58))","v":""}]
["5.","A cég fióktelepe:",{"$f":"(IF(Adat!B59=0,\"\",Adat!B59))","v":""}]
["6.","A cég alapításának éve:",{"$f":"(IF(Adat!B60=0,\"\",Adat!B60))","v":""}]
["7.","A cég főtevékenysége:",{"$f":"(IF(Adat!B61=0,\"\",Adat!B61))","v":""}]
[null,"A cég tényleges gazdasági tevékenysége:"]
["8.","A cég jegyzett tőkéje:",null,null,{"$f":"MLM!F24*1000","v":0}]
["9.","A társaság tagja:"]
[null,null,"Cég név:",{"$f":"Adat!B25","v":"Egérfogó Kft"}]
[null,null,"Székhely:",{"$f":"+Adat!B26","v":0}]
[null,null,"Képviselője: ",{"$f":"Adat!B27","v":"Sajt Árpád"}]
[null,null,"Cégjegyzék száma:",{"$f":"Adat!B28","v":0}]
[null,null,{"$f":"+Adat!C28","v":"függőségi kapcsolat:"},null,null,null,"89 § (2)"]
[]
[null,null,"Cég név:",{"$f":"Adat!B29","v":"Kutyaharapás Kft"}]
[null,null,"Székhely:",{"$f":"+Adat!B30","v":0}]
[null,null,"Képviselője: ",{"$f":"Adat!B31","v":"Kutyufülű Aladár"}]
[null,null,"Cégjegyzék száma:",{"$f":"Adat!B32","v":0}]
[null,null,{"$f":"+Adat!C32","v":"függőségi kapcsolat:"},null,null,null,"89 § (2)"]
[]
[null,null,"Cég név:",{"$f":"Adat!B33","v":"Mikka-Makka Kft"}]
[null,null,"Székhely:",{"$f":"+Adat!B34","v":0}]
[null,null,"Képviselője: ",{"$f":"Adat!B35","v":"Mekk Elek"}]
[null,null,"Cégjegyzék száma:",{"$f":"Adat!B36","v":0}]
[null,null,{"$f":"+Adat!C36","v":"függőségi kapcsolat:"},null,null,null,"89 § (2)"]
[]
[null,null,"Cég név:",{"$f":"Adat!B37","v":"Tarajos Kft"}]
[null,null,"Székhely:",{"$f":"+Adat!B38","v":0}]
[null,null,"Képviselője: ",{"$f":"Adat!B39","v":"Kukori Kázmér"}]
[null,null,"Cégjegyzék száma:",{"$f":"Adat!B40","v":0}]
[null,null,{"$f":"+Adat!C40","v":"függőségi kapcsolat:"},null,null,null,"89 § (2)"]
[]
[null,null,"Név:",{"$f":"Adat!B41","v":"Mák Virág"}]
[null,null,"Cím:",{"$f":"Adat!B43","v":0}]
[null,null,{"$f":"+Adat!C43","v":"függőségi kapcsolat:"},null,null,null,"89 § (2)"]
[]
[null,null,"Név:",{"$f":"Adat!B44","v":"Kandúr Bandi"}]
[null,null,"Cím:",{"$f":"Adat!B46","v":0}]
[null,null,{"$f":"+Adat!C46","v":"függőségi kapcsolat:"},null,null,null,"89 § (2)"]
[]
[null,null,"Név:",{"$f":"Adat!B47","v":"Mor Zsolt"}]
[null,null,"Cím:",{"$f":"Adat!B49","v":0}]
[null,null,{"$f":"+Adat!C49","v":"függőségi kapcsolat:"},null,null,null,"89 § (2)"]
[]
[null,null,"Név:",{"$f":"Adat!B50","v":"Pilis Csaba"}]
[null,null,"Cím:",{"$f":"Adat!B52","v":0}]
[null,null,{"$f":"+Adat!C52","v":"függőségi kapcsolat:"},null,null,null,"89 § (2)"]
[]
["10.","A társaság tagjainak törzsbetétei:",null,"Pénzneme:    HUF","Szavazati arány:",{"$f":"IF(E22-SUM(D65:D72)=0,\"Ok\",\"Nem egyezik a tőkebontás!\")","v":"Ok"}]
[null,null,{"$f":"D24","v":"Egérfogó Kft"},{"$f":"Adat!D25","v":0},{"$f":"+Adat!D26","v":0}]
[null,null,{"$f":"D30","v":"Kutyaharapás Kft"},{"$f":"Adat!D29","v":0},{"$f":"+Adat!D30","v":0}]
[null,null,{"$f":"D36","v":"Mikka-Makka Kft"},{"$f":"Adat!D33","v":0},{"$f":"+Adat!D34","v":0}]
[null,null,{"$f":"D42","v":"Tarajos Kft"},{"$f":"Adat!D37","v":0},{"$f":"+Adat!D38","v":0}]
[null,null,{"$f":"D48","v":"Mák Virág"},{"$f":"Adat!D41","v":0},{"$f":"+Adat!D42","v":0}]
[null,null,{"$f":"D52","v":"Kandúr Bandi"},{"$f":"Adat!D44","v":0},{"$f":"+Adat!D45","v":0}]
[null,null,{"$f":"D56","v":"Mor Zsolt"},{"$f":"Adat!D47","v":0},{"$f":"+Adat!D48","v":0}]
[null,null,{"$f":"D60","v":"Pilis Csaba"},{"$f":"Adat!D50","v":0},{"$f":"+Adat!D51","v":0}]
["11.","A társaság tevékenységi köre: "]
[null,null,"Vegyes termékkörű ügynöki nagykereskedelem"]
[null,null,"Szerszámgép nagykereskedelem"]
[null,null,"Egyéb gép, szállítóeszköz nagykereskedelme"]
[null,null,"Gyógyászati termék kiskereskedelme"]
[null,null,"Máshova nem sorolt egyéb gép kölcsönzése"]
[null,null,"Egyéb humán-egészségügyi ellátás"]
[null,"A társaság a fenti tevékenységek végzéséhez szükséges valamennyi engedéllyel rendelkezik."]
["12.","A Társaság ügyvezetése, képviseletére és cégjegyzésre:"]
[null,null,"Az ügyvezető jogosult"]
[null,null,"A Társaság ügyvezetője 5(öt) évi időtartamra:"]
[null,null,{"$f":"Adat!B62","v":"Macska János"}]
["13.","A társaság legfőbb szerve:","Taggyűlés."]
[null,null,"A taggyűlés a Társaság minden ügyében jogosult dönteni."]
["14.","A társaság dolgozói tekintetében a munkáltatói jogok gyakorlója."]
[null,null,{"$f":"C84","v":"Macska János"}]
["15.","A Társaság a tevékenységét határozatlan ideig folytatja."]
["16.","Az alább felsorolt esetekben az „Alapító okirat” szerint kell eljárni:"]
[null,null,"A társaság szervezete"]
[null,null,"Az Ügyvezető igazgató feladatai és hatásköre"]
[null,null,"A Társaságot érintő pénzügyi rendelkezések"]
[null,null,"A Társaság megszűnése és végelszámolása /felszámolása/."]
[]
["17.","A számviteli törvényben előírtakon túlmenő, további információk megadására nincs szükség. \nA számviteli alapelvek érvényesítése elegendő a megbízható és valós összképnek a mérlegben, az eredmény-kimutatásban történő bemutatásához.",null,null,null,null,"4§ (3)"]
[null,"   "]
["I/2.","A számviteli politika főbb vonásai"]
[]
[null,"A beszámolási kötelezettséggel kapcsolatos döntések"]
[null,"A számviteli törvényben rögzített alapelvek, értékelési előírások alapján alakítottuk ki az adottságainknak, körülmé\nnyeinknek leginkább megfelelő, a törvény végrehajtásának módszereit, eszközeit meghatározó számviteli politikánkat."]
[null,"A számviteli politikánk a beszámolási kötelezettsége, a valós vagyoni, pénzügyi és jövedelmi helyzetről készülő \nbeszámolót helyezi előtérbe. A törvény céljaként a megbízható és valós összképet adó információszolgáltatást és az ezt \nbiztosító alapelveket, szabályokat, követelményeket fogalmazza meg."]
[]
["1.","A beszámolási forma:",null,null,null,null,"22§"]
[null,"A Társaság a számviteli törvényben meghatározott értékek alapján készített beszámolója:"]
["·","Egyszerűsített éves beszámoló, amelynek tagolása megfelel a számviteli törvényben foglaltaknak."]
["·","A mérleg \"A\" változatban készült, a nagybetűvel és római számmal jelölt tételeit tartalmazza."]
["·","Az eredmény-kimutatása: Összköltségeljárással készült, formája: \"A\" változat."]
["·","Attérés más formájú beszámolóra csak a törvényi határértéktúllépés miatt lehetséges."]
[]
["2.","A beszámoló készítésével kapcsolatos időpontok:"]
["·","Az üzleti év megegyezik a naptári évvel."]
["·","A mérleg fordulónapja: ",{"$f":"Adat!B12","v":"2012-12-31"}]
["·","A mérlegkészítés időpontja:",{"$f":"Adat!B14","v":"2013-01-31"}]
[]
["3.","A beszámoló készítése, aláírása: "]
["·","A beszámoló nyelve:","Magyar"]
["·","Aláíró:","Ügyvezető igazató"]
[]
["4."," A könyvvezetés módja és a könyvvezetéssel kapcsolatos időpontok:"]
[null,"A Társaság a kezelésében, a használatában, a tulajdonában lévő eszközökről és azok forrásairól, továbbá a gazdasági \nműveletekről a kettős könyvvezetés keretében biztosítja, hogy az eszközökben és forrásokban bekövetkezett változások \na valóságnak megfelelően, folyamatosan, zárt rendszerben, áttekinthetően kerüljön bemutatásra."]
[]
["5.","A beszámoló közzététele:"]
[null,"A közzétételi kötelezettségét a Társaság elektronikus úton teljesíti a kormányzati portál felé."]
[]
["6.","A számviteli alapelvek érvényesítése:"]
[null,"A vállalkozás folytatásának elve; a teljesség elve; a valódiság elve; a következetesség elve; a \nfolytonosság elve; az összemérés elve; az óvatosság elve; a bruttó elszámolás elve; az egyedi értékelés elve; az időbeli elhatárolás elve; a tartalom elsődlegessége a formával szemben elve; a lényegesség elv; \na költség-haszon összevetésének elve."]
[]
["7.","Összehasonlíthatóság  biztosítása"]
[null,"A beszámolóban minden tétel összehasonlítható az előző üzleti év megfelelő adatával. ",null,null,null,"Vagy ez…","19§ (3)"]
[null,"Ellenőrzés / önellenőrzés az előző üzleti év(ek) éves beszámolójában elkövetett jelentős összegű hibá(ka)t állapított meg. Az erre vonatkozó - a mérlegkészítés napjáig megismert és nem vitatott, nem fellebbezett, illetve a jogerőssé vált megállapítások miatti - módosításokat a mérleg és az eredménykimutatás minden tételénél az előző év adatai mellett szerepelnek, azok nem képezik részét az eredménykimutatás tárgyévi adatainak. ",null,null,null,"…vagy ez.","19§ (3) és 88 § (5)"]
[null,{"$f":"Adat!B11-1","v":2011},". évi eredmény változása:",null,{"$f":"MLE!E48","v":0}]
[]
["8.","A számvtieli rendért felelős személy",null,null,null,null,"88 § (9)"]
[null,"A könyvviteli szolgáltatások vezetéséért felelős személy neve:",null,null,{"$f":"Adat!D63","v":"Kont Irma"}]
[null,null,"nyilvántartási száma:",null,{"$f":"Adat!D64","v":131313}]
[]
["9.","Könyvvizsgálati kötelezettség",null,null,null,null,"88 § (8)"]
[null,{"$f":"Adat!B67","v":"A közzétett adatok könyvvizsgálattal nincsenek alátámasztva."},null,null,null,"Vagy ez…"]
[null,"A beszámolóra vonatkozóan a bejegyzett könyvvizsgáló független könyvvizsgálói jelentést adott ki.",null,null,null,"…vagy ez."]
[]
[null,"Az eszközök és források besorolásának és értékelésének szempontjai",null,null,null,null,"88 § (3)"]
[]
["1.","Az eszközök besorolásának szempontjai:"]
[null,"A Társaság a Számviteli törvény előírása szerint a befektetett eszközök közé sorolja azokat az eszközöket, amelyek a \ntevékenységet tartósan legalább egy éven túl szolgálja; a forgóeszközök közé sorolja azokat az eszközöket, amelyek a \ntevékenységet nem tartósan szolgálják. Használatbavételkor egyedi besorolás, a mérlegkészítés során felülvizsgálat."]
[]
["2.","A források besorolásának szempontjai:"]
[null,"A Társaság a Szt előírása szerint a saját forrásokat a tulajdonosok által véglegesen rendelkezésre bocsátott és az \nadózott eredményből hagyott összegek képezik, idegen forrásokat a külső vállalkozásoktól (hitelintézetektől, gazdasági \ntársaságoktól, magánszemélyektől) egy évet meghaladó, vagy egy éven belüli fizetési határidő mellett kapott pénzeszköz, termékszállítás, szolgáltatás, vagy egyéb kötelezettség összegek alkotják."]
[]
["3.","Az eszközök értékelése:"]
["a)","A bekerülési érték:"]
["·","az eszközök vételekor a tényleges beszerzési ár, valamint a felhasználásig közvetlenül felmerülő kiadások;"]
["·","nem pénzbeli betétként való átvételekor a létesítő okiratban, vagy annak módosításában megjelölt érték;"]
["·","saját előállításkor a közvetlen költségek;"]
["·","térítés nélküli átvételkor a piaci érték;"]
["·","ajándékba kapott, hagyatékként átvett, többletként fellelt eszközök esetében a piaci érték;"]
["·","speciális elszámolást igényelnek az értékpapírok egyes változatai."]
[]
["b)","Az értékcsökkenés leírás módszerei:"]
["·","a tervezett écs leírás elszámolásának alapja az immateriális javak és a tárgyi eszközök aktiválási értéke;"]
["·","aktiválás napjától egyedileg, havonta, a tervezett leírási kulcsait alkalmazva, lineáris módon;"]
["·","aktiválás napjától egyedileg, évente, a tervezett leírási kulcsait alkalmazva, lineáris módon;"]
["·","a Társaság a kisértékű (100.000 Ft) egyedi beszerzési, előállítási érték alatti tárgyi eszköz értékét használatbavételkor egy összegben."]
[]
["c)","Az értékvesztés elszámolása és visszaírása:"]
["·","akkor számolunk el, ha az eszközök könyv szerinti értéke tartósan (két mérleg-fordulónapon fennállóan) és jelentősen \n(készleteknél 25 %-ot meghaladó eltérés, követeléseknél pedig az árbevétel 2 %-a) magasabb, mint a vizsgált eszköz \npiaci értéke, valamint, ha az eszköz a tevékenység változása miatt feleslegessé vált, megrongálódott;"]
["·","kedvező fordulat esetén újraértékelés mellett az értékvesztés visszaírása is lehetséges a könyv szerinti érték összegéig."]
[]
["d)","A valutás és devizás eszközök és kötelezettségek értékelése:"]
["·","a vásárolt valutát és devizát a ténylegesen fizetett forintösszegben kell állományba venni;"]
["·","a valuta és devizakészletek csökkenésekor az, átlagárfolyamon kell elszámolni;"]
["·","a külföldi pénzértékre szóló követelések és kötelezettségek állományba vétele az MNB középárfolyama alapján történik;"]
["·","a mérlegforduló napján meglévő valuta és devizakészletek, követelések, befektetett pénzeszközök, értékpapírok és \nkötelezettségek értékelése az MNB által, a mérlegforduló napjára meghirdetett középárfolyamon történik; és ha az \nösszesített árolyam eltérések (veszteségek és nyereségek) összege meghaladja a számviteli politikában jelentősnek ítélt \nhatárt, akkor az árfolyamveszteségeket, illetve az árfolyamnyereségeket el kell számolni. Jelentősnek minősül a tárgyév mérlegfőösszegének 1%-a"]
[]
["4.","Az aktív és passzív időbeli elhatárolások köre"]
["a)","Aktív időbeli elhatárolások"]
["·","Bevételek, melyek a mérleggel lezárt időszakra vonatkoznak, de csak a mérlegforduló napja után esedékesek. "]
["·","Költségek, ráfordítások, melyek a mérlegforduló napját követő időszakra számolhatók el. "]
["·","A véglegesen átvállalt, de a mérlegforduló napig pénzügyileg nem rendezett tartozás- átvállalás összege. "]
["·","Többletkötelezettségek (pl.: váltótartozás kamata) miatti összegek. "]
[]
["b)","Passzív időbeli elhatárolás"]
["·","Bevételek, melyek a mérlegforduló napja előtt befolytak, de a következő év bevételét képezik. "]
["·","Költségek, ráfordítások, melyek a mérleggel lezárt évet terhelik, de csak a mérleg fordulónapja után merülnek fel. "]
["·","A mérleggel lezárt évhez kapcsolódó prémiumok, jutalmak és azok járulékai. "]
["·","A mérlegforduló napja, és a mérlegkészítés napja között ismertté vált, lezárt évet terhelő kötelezettségek. "]
["·","Költségek, ráfordítások ellentételezésére kapott támogatások költséggel, ráfordítással még nem ellentételezett összege. "]
["·","Rendkívüli bevételként elszámolt  halasztott bevételek. "]
[]
["II.","Specifikus rész a mérleghez kapcsolódóan"]
[]
["II/1","Az immateriális javak és a tárgyi eszközök értékének alakulás"]
[null,"A beszámolási időszakban beszerzett tárgyi eszközök maradéktalanul aktiválva lettek, így beruházások és \nberuházásokra adott előlegek a mérlegben nem szerepelnek."]
[null,"Az év végén be nem fejezetett beruházások értéke",null,null,{"$f":"MLE!I8","v":0},"\"16\""]
[]
[null,"Az immateriális javak és a tárgyi eszközök elszámolt terv szerinti értékcsökkenésének elszámolása a \nszámviteli politikában rögzített elvek és mértékek szerint történt."]
[]
[null,"Nem következett be olyan körülmény, amely a tervezett értékcsökkenések elszámolási módjában változást eredményezett volna.",null,null,null,null,"53 § (5)"]
[]
[null,"A befektetett eszközök területén értékhelyesbítést nem számoltunk el.",null,null,null,"Vagy ez…","59 § (1)"]
[null,"Értékhelyesbítés a következő eszközcsoportra számoltunk el:",null,null,null,"…vagy ez."]
[null,null,"E s z k ö z ö k:",null,"É r t é k:"]
[null,"Nyitás:",null,null,0,{"$f":"IF(E203=MLM!D30,\"OK\",\"NÉZD MEG!\")","v":"OK"}]
[null,"Változás:",{"$f":"C203","v":0},null,0]
[null,"Zárás:",{"$f":"C203","v":0},null,{"$f":"E203+E204","v":0},{"$f":"IF(E205-MLM!F30=0,\"OK\",\"NÉZD MEG !!!\")","v":"OK"}]
[]
["II/2","Pénzeszközök bemutatása"]
[null,"Mérlegsor","Bázis év","Tárgy év","Változás"]
[null,{"$f":"+MLM!C19","v":"Pénzeszközök"},{"$f":"+MLM!D19","v":0},{"$f":"+MLM!F19","v":0},{"$f":"+MLM!J19","v":"-"}]
[]
["II/3","Követelések és kötelezettségek bemutatása"]
[null,"Mérlegsor","Bázis év","Tárgy év","Változás"]
[null,{"$f":"+MLM!C17","v":"Követelések"},{"$f":"+MLM!D17","v":0},{"$f":"+MLM!F17","v":0},{"$f":"+MLM!J17","v":"-"}]
[null,{"$f":"+MLM!C33","v":"Kötelezettségek"},{"$f":"+MLM!D33","v":0},{"$f":"+MLM!F33","v":0},{"$f":"+MLM!J33","v":"-"}]
[null,{"$f":"+MLM!C34","v":"Hátrasorolt kötelezettségek"},{"$f":"+MLM!D34","v":0},{"$f":"+MLM!F34","v":0},{"$f":"+MLM!J34","v":"-"}]
[null,{"$f":"+MLM!C35","v":"Hosszú lejáratú kötelezettségek"},{"$f":"+MLM!D35","v":0},{"$f":"+MLM!F35","v":0},{"$f":"+MLM!J35","v":"-"}]
[null,{"$f":"+MLM!C36","v":"Rövid lejáratú kötelezettségek"},{"$f":"+MLM!D36","v":0},{"$f":"+MLM!F36","v":0},{"$f":"+MLM!J36","v":"-"}]
[]
[null,"A hosszú lejáratú kötelezettségek soron a pénzügyi lízing konstrukcióban vásárolt gépkocsi egy éven túli esedékességű \ntörlesztő része szerepel."]
[]
[null,"A hosszú lejárató kötelezettségek között szerepel a Társaság részére folyósított hitel, illetve kölcsön azon érsze, amely\nnem a beszámoló elfogadásának évében esedékes."]
[]
[null,"A hosszú lejáratú kötelezettségekből egy éven belül esedékes:",null,null,{"$f":"(Köt!E66+Köt!E68+Köt!E70)/1000","v":0},null,"42 § (3)"]
[]
[null,"Az éves eredményből, illetve az eredménytartalékból osztalék nem kerül sem kifizetésre és sem meghatározásra.",null,null,null,"Vagy ez…"]
[null,"Az éves eredményből osztalék címén jóváhagyott összeg:",null,null,{"$f":"MLE!F47-MLE!F46","v":0},"…vagy ez."]
[null,"Eredménytartalékból jóváhagyott osztalék összege:",null,null,{"$f":"MLE!F46","v":0}]
[null,"Igy összesen jóváhagyott osztalék összege a beszámolási időszakra.",null,null,{"$f":"SUM(E226:E227)","v":0}]
[]
[null,"A beszámolási időszakban osztalékelőleg nem került kifizetésre sem a tárgy év, sem az eredménytartalék tehére.",null,null,null,"Vagy ez…"]
[null,"Közbenső mérleg alapján kifizetett osztalék-előleg tárgy év terhére:",null,null,0,"…vagy ez."]
[null,"Közbenső alapján kifizetett osztalék-előleg eredménytartalék terhére:",null,null,0]
[]
["II/4","A pénzügyi vagyoni helyzet bemutatása",null,null,null,null,"88  (2)"]
[null,"A pénzügyi vagyoni helyzet mutatóit az 4. sz. melléklet szemlélteti."]
[]
["III.","Specifikus rész az eredmény-kimutatáshoz kapcsolódóan"]
[]
[null,"A beszámolási időszakban az értékesítés elszámolt nettó árbevétele alapvetően a fő tevékenységből fakadt. "]
[null,"     Belföldi főtevékenység árbevétele:",null,null,{"$f":"MLE!I35","v":0},"\"91\""]
[null,"     Belföldi melléktevékenység árbevétele:",null,null,{"$f":"MLE!I36","v":0},"\"92\""]
[null,"     EU közösségi tagállamból származó árbevétel:",null,null,{"$f":"MLE!I38","v":0},"\"931\""]
[null,"     Harmadik országból származó árbevétel:",null,null,{"$f":"MLE!I37-MLE!I38","v":0},"\"93\"-\"931\""]
[null,"Összes értékesítés nettó árbevétele:",null,null,{"$f":"SUM(E240:E243)","v":0}]
[]
[null,"Az anyagjellegű ráfordítások értéke összesen:",null,null,{"$f":"SUM(E247:E251)","v":0}]
[null,"amelyből: Elszámolt anyagok költsége:",null,null,{"$f":"MLE!I10","v":0},"\"51\""]
[null,"                Igénybevett szolgáltatások költsége:",null,null,{"$f":"MLE!I11","v":0},"\"52\""]
[null,"                Egyéb szolgáltatások költségei:",null,null,{"$f":"MLE!I12","v":0},"\"53\""]
[null,"                Eladott árúk beszerzési értéke:",null,null,{"$f":"MLE!I21","v":0},"\"814\""]
[null,"                Közvetített szolgáltatások értéke:",null,null,{"$f":"MLE!I22","v":0},"\"815\""]
[]
[null,"Az elszámolt személy jellegű ráfordítások értéke összesen:",null,null,{"$f":"SUM(E254:E256)","v":0}]
[null,"amelyből: Bérköltségek:",null,null,{"$f":"MLE!I13","v":0},"\"54\""]
[null,"                Személyi jellegű kifizetések:",null,null,{"$f":"MLE!I14","v":0},"\"55\""]
[null,"                Bérjárulékok:",null,null,{"$f":"MLE!I17","v":0},"\"56\""]
[]
[null,"Az összes elszámolt terv szerinti értékcsökkenés összege:",null,null,{"$f":"SUM(E259:E260)","v":0}]
[null,"amelyből: Több év alatt elhasználódó eszközök terv szerinti écsö:",null,null,{"$f":"MLE!I18","v":0},"\"571\""]
[null,"               Használatbavételkor egy összegben elszámolt écs:",null,null,{"$f":"MLE!I19","v":0},"\"572\""]
[]
[null,"Saját termelésű készletek állományvoltozása:",null,null,{"$f":"MLE!I20","v":0},"\"58\""]
[null,"Egyéb bevételek:",null,null,{"$f":"MLE!I41","v":0},"\"96\""]
[null,"Egyéb ráfordítások:",null,null,{"$f":"MLE!I23","v":0},"\"86\""]
[]
[null,"Az üzemi(üzleti) tevékenység eredménye:",{"$f":"E244+E263+E262-E246-E253-E258-E264","v":0},null,{"$f":"IF(C266<0,\"Veszteség\",\"Nyereség\")","v":"Nyereség"}]
[]
[null,"A beszámolási időszakban a pénzügyi műveletek bevételei:",null,null,{"$f":"MLE!I45","v":0},"\"97\""]
[null,"amelyből: realizált árfolyamnyereség:",null,null,{"$f":"MLE!I46","v":0},"\"976\""]
[null,"                 kapott kamat, kamatjellegű bevétel:",null,null,{"$f":"E268-E269","v":0},"\"971--974\""]
[]
[null,"A beszámolási időszakban a pénzügyi műveletek ráfordításai:",null,null,{"$f":"MLE!F37","v":0},"\"87\""]
[null,"amelyből: realizált árfolyamveszteség:",null,null,{"$f":"MLE!I32","v":0},"\"876\""]
[null,"                 fizetett, elszámolt kamat, kamatjellegű ráfordítás:",null,null,{"$f":"E272-E273","v":0},"\"871--874\""]
[]
[null,"Pénzügyi műveletek eredménye: ",{"$f":"E268-E272","v":0},null,{"$f":"IF(C276<0,\"Veszteség\",\"Nyereség\")","v":"Nyereség"}]
[]
[null,"Szokásos vállalkozási eredmény:",{"$f":"C266+C276","v":0},null,{"$f":"IF(C278<0,\"Veszteség\",\"Nyereség\")","v":"Nyereség"}]
[]
[null,"Rendkívüli bevételek:",null,null,{"$f":"MLE!I47","v":0},"\"98\""]
[]
[null,"Rendkívüli ráfordítások:",null,null,{"$f":"MLE!I33","v":0},"\"88\""]
[]
[null,"Rendkívüli eredmény:",{"$f":"E280-E282","v":0},null,{"$f":"IF(C284<0,\"Veszteség\",\"Nyereség\")","v":"Nyereség"}]
[]
[null,"Adózás előtti eredmény:",{"$f":"C278+C284","v":0},null,{"$f":"IF(C286<0,\"Veszteség\",\"Nyereség\")","v":"Nyereség"}]
[]
[null,"Társasági adófizetési kötelezettség:",{"$f":"MLE!F44","v":0},null,null,"\"891\""]
[null,"Adózott eredmény",{"$f":"C286-C288","v":0},null,{"$f":"IF(C289<0,\"Veszteség\",\"Nyereség\")","v":"Nyereség"}]
[]
["IV.","Tájékoztató rész"]
[]
["IV/1.","A tárgyévi munkavállói létszám, bér, személyi jellegű egyéb kifizetésének bemutatása"]
[null,"Az statisztikai állományi létszám:",{"$f":"Adat!C76","v":0},null,{"$f":"MLE!I13","v":0},"\"54\""]
[null,"ebből:   fizikai",{"$f":"Adat!C77","v":0},null,{"$f":"Adat!D77","v":0}]
[null,"            szellemi",{"$f":"Adat!C78","v":0},null,{"$f":"E294-E295","v":0},{"$f":"E296-Adat!D78","v":0}]
[]
[null,"Eredménykimutatás sor","Bázis év","Tárgy év","Változás"]
[null,{"$f":"+MLE!B28","v":"Személyi jellegű ráfordítások "},{"$f":"+MLE!D28","v":0},{"$f":"+MLE!F28","v":0},{"$f":"+MLE!O28","v":"-"}]
[]
["IV/2.","A vezető tisztségviselők által a beszámolási időszakban felvett járandóság, nekik folyósított előlegek"]
[null,"A vezető tisztségviselők felvett járandósága a bérköltségekből az ügyvezetői munkabér, mert az ügyvezető \na feladatát munkaviszonyban látja el."]
[null,"A vezető tisztségviselőknek adott előlegek összege ",null,null,{"$f":"Adat!D82","v":0},null,"89 § (4) b)"]
[]
["IV/3.","A mérlegben meg nem jelenő kötelezettségekről "]
[null,"A beszámolási időszakban nem keletkezett olyan kötelezettség, amely a könyvekbe ne került volna be, viszont a \nbeszámoló, illetve a társaság gazdasági helyzetének a megítélése szempontjából jelentőséggel bírna. "]
[]
[null,"A beszámolási időszakban a Társaságban kimutatható egy készfizető kezesség, xxxxxxxxxx Ft tőketartozás és annak járulékai erejéig."]
[]
["IV/4.","A saját tőke alakulásának bemutatása",null,null,null,null,"88 § (2)"]
[null,"A saját tőke elemeinek alakulását a 6. sz. melléklet tartalmazza.",null,null,null,null,"88 § (2)"]
[null,"A saját tőkén belül a lekötött tartalék alakulását a 7. sz. melléklet tartalmazza.",null,null,null,null,"90 § (3) d)"]
[null,"A tulajdonosok a jegyzett tőkét teljes mértékben a vállalkozás rendelkezésére bocsátották."]
[null,"A beszámolási időszakban a cég tevékenységével kapcsolatosan csak a szükséges eszközöket vásárolta meg, illetve \na cégnél dolgozó munkatársak kiválasztása is e rendezőelv alapján történt meg."]
[null,"A Társaság a követekző gazdasági évet nyereséggel tervezi zárni."]
[]
["IV/5.","Veszélyes hulladékkal való gazdalkodás."]
[null,"Veszélyes hulladék előállítására és kezelésére vonatkozóan a társaság az előírt rendelkezésének megfelelően jár el."]
[]
["IV/6.","Szállítmányozás tevékenységi körével kapcsolatos kiegészítés"]
[]
[null,"A Társaság árufuvarozási tevékenységet végez, a közúti árufuvarozási tevékenység engedély kiadásának a 261/2011 (XII.7.) rendelet alapján feltételként írja elő a megfelelő vagyoni, pénzügyi feltételek meglétét. Az üzleti évre vonatkozó beszámoló alapján a Társaság saját tőkéje forduló napon XX.XXX eFt, melyből a szabad tőke összege: XX.XXX eFt."]
[null,"A 261/2011 (XII.7) kormányrendeletben meghivatkozott 1071/2009/Ek rendelet alapján  részletezett feltételek szernt az első gépjárműre szükséges saját tőkeelem: 9 000 EUR, minden további gépjárműre járművenként 5 000 EUR tőke szükséges. Árfolyamként az október első munkanapján érvényes, az EU hivatalos lapjában közzétet árfolyamot kell használni. ",null,null,null,"árf:",284.86]
[]
[null,"Szükséges saját tőke összeg","Darabszám","Összesített szükséges tőke"]
[null,0,0,0]
[null,0,0,0]
[null,"Összesen:",{"$f":"SUM(C326:C327)","v":0},{"$f":"SUM(D326:D327)","v":0}]
[]
[null,"A fentiek alapján elmondható, hogy  a 261/2011 (XII.7.) kormányrendeletben foglaltak egy évnél nem régebbi időpontra vonatkozóan a tevékenység folytatásához  előírt feltételek teljesülnek. Összeségében tehát a cég a rendelet értelmében az árufuvarozási tevékenység folytatásához megfelelő vagyonnal rendelkezik."]
[]
[null,{"$f":"Adat!C15","v":"2013-03-31"}]
[null,null,null,null,null,null,"20 § (4)"]
[null,null,null,null,"Képviseletre jogosult személy aláírása"]
[]
["Mellékletek:"]
["1.","Mutatók",null,null,null,null,"88 § (2)"]
["2.","Saját tőke alakulása",null,null,null,null,"88 § (2)"]
["3.","Lekötött tartalék elemzése",{"$f":"IF(OR(LT!D37=0,LT!F37=0),\"(Nincs mellékelve, mert nem tartalmaz adatot.)\",\"\")","v":"(Nincs mellékelve, mert nem tartalmaz adatot.)"},null,null,null,"90 § (3) d)"]

{"sheet":"Kiegm (É)","index":8,"n_rows":337,"n_cols":7,"rows_kept":337,"cut":false,"hidden":true,"merged":[[119,1,119,4],[88,1,88,4],[91,1,91,4],[89,1,89,4],[80,2,80,4],[76,1,76,4],[69,1,69,4],[81,2,81,4],[70,1,70,4],[71,2,71,4],[72,2,72,4],[74,2,74,4],[0,4,0,5],[1,0,1,4],[2,0,2,4],[3,0,3,4],[2,5,3,5],[129,1,129,4],[111,1,111,4],[112,1,112,4],[126,1,126,4],[117,1,117,4],[5,1,5,4],[8,1,8,4],[12,2,12,4],[6,1,6,4],[9,1,9,4],[10,2,10,4],[7,1,7,4],[90,1,90,4],[94,1,94,4],[82,2,82,4],[114,1,114,4],[85,1,85,4],[83,2,83,4],[118,1,118,4],[11,2,11,4],[63,2,63,4],[87,1,87,4],[101,1,101,4],[92,1,92,4],[97,1,97,4],[13,2,13,4],[15,2,15,4],[14,2,14,4],[16,2,16,4],[18,2,18,4],[68,2,68,4],[64,2,64,4],[65,2,65,4],[66,2,66,4],[67,2,67,4],[17,2,17,4],[128,1,128,4],[131,1,131,4],[132,1,132,4],[127,1,127,4],[147,1,147,4],[75,2,75,4],[140,1,140,4],[137,1,137,4],[143,1,143,4],[135,1,135,4],[139,1,139,4],[138,1,138,4],[107,1,107,4],[104,1,104,4],[105,1,105,4],[108,1,108,4],[109,1,109,4],[110,1,110,4],[106,1,106,4],[77,2,77,4],[78,1,78,4],[115,1,115,2],[133,1,133,4],[130,1,130,4],[150,1,150,4],[148,1,148,4],[149,1,149,4],[141,1,141,4],[142,1,142,4],[145,1,145,4],[146,1,146,4],[144,1,144,4],[136,1,136,4],[151,1,151,4],[152,1,152,4],[155,1,155,4],[156,1,156,4],[185,1,185,4],[186,1,186,4],[181,1,181,4],[174,1,174,4],[175,1,175,4],[173,1,173,4],[153,1,153,4],[154,1,154,4],[157,1,157,4],[158,1,158,4],[166,1,166,4],[167,1,167,4],[169,1,169,4],[171,1,171,2],[172,1,172,4],[170,1,170,4],[188,1,188,4],[187,1,187,4],[218,1,218,4],[228,1,228,2],[229,1,229,2],[224,1,224,2],[159,1,159,4],[160,1,160,4],[202,1,202,2],[203,1,203,2],[199,1,199,4],[200,1,200,2],[201,1,201,4],[161,1,161,4],[162,1,162,4],[163,1,163,4],[164,1,164,4],[165,1,165,4],[197,1,197,4],[207,1,207,2],[189,1,189,4],[244,1,244,4],[198,1,198,4],[204,1,204,2],[205,1,205,4],[234,1,234,2],[231,1,231,2],[216,1,216,4],[217,1,217,4],[239,1,239,2],[235,1,235,2],[206,1,206,2],[238,1,238,2],[209,1,209,4],[225,1,225,2],[270,1,270,4],[268,1,268,4],[261,1,261,2],[262,1,262,4],[269,1,269,4],[242,1,242,2],[219,1,219,4],[223,1,223,2],[220,1,220,4],[221,1,221,4],[236,1,236,2],[222,1,222,2],[230,1,230,2],[226,1,226,2],[232,1,232,2],[259,1,259,4],[258,1,258,4],[250,1,250,2],[256,1,256,4],[257,1,257,2],[245,1,245,2],[246,1,246,2],[260,2,260,4],[247,1,247,2],[336,2,336,4],[335,2,335,4],[333,2,333,4],[330,0,330,4],[331,2,331,4],[299,1,299,4],[282,3,282,4],[291,1,291,4],[329,1,329,4],[314,1,314,4],[316,1,316,4],[317,1,317,4],[294,1,294,4],[296,1,296,4],[311,3,311,4],[311,1,311,2],[300,1,300,4],[308,1,308,2],[308,3,308,4],[303,3,303,4],[303,1,303,2],[324,1,324,4],[286,1,286,2],[283,1,283,2],[285,1,285,2],[278,1,278,4],[290,1,290,4],[334,2,334,4],[332,2,332,4],[328,3,328,4],[327,3,327,4],[133,6,133,9],[135,6,135,9],[136,6,136,9],[137,6,137,9],[301,1,301,4],[302,1,302,4],[297,1,297,4],[293,1,293,4],[298,1,298,4],[138,6,138,9],[139,6,139,9],[282,1,282,2],[289,1,289,4],[248,1,248,2],[249,1,249,2],[254,1,254,2],[284,1,284,2],[280,1,280,2],[279,1,279,4],[274,1,274,4],[287,1,287,4],[295,1,295,4],[288,1,288,4],[281,1,281,2]]}
["Csak kiemelés","Mi íjuk be","Vagy - vagy\n(a kettőből csak egyik OK)",null,"Választási lehetőség v. Ellenőrzendő \n(A nem kívánt szöveg törlendő!!!)"]
["KIEGÉSZÍTŐ MELLÉKLET"]
[{"$f":"Adat!E5","v":"A"}]
[{"$f":"Adat!B5","v":"Macskafarka Kft"}]
[null,{"$f":"Adat!B11","v":2012},". évi BESZÁMOLÓJÁHOZ",null,null,"Fők.szám","Számviteli tv. Paragrafus"]
[]
["I.","Általános rész"]
[]
["I/1.","A vállalkozás bemutatása"]
[]
["1.","A cég elnevezése:",{"$f":"Adat!B6","v":"Macskafarka Egérhajhász Kereskedelmi és Szolgáltató"}]
[null,null,{"$f":"IF(Adat!E6=\"KFT\",\"Korlátolt Felelősségű Társaság\",IF(Adat!E6=\"BT\",\"Betéti Társaság\",IF(Adat!E6=\"KHT\",\"Közhasznú Társaság\",\"??? társasági forma ???\")))","v":"Korlátolt Felelősségű Társaság"}]
["2.","A cég rövidtett elnevezése:",{"$f":"Adat!B5","v":"Macskafarka Kft"}]
["3.","A cég székhelye:",{"$f":"(IF(Adat!B57=0,\"\",Adat!B57))","v":""}]
["4.","A cég telephelye:",{"$f":"(IF(Adat!B58=0,\"\",Adat!B58))","v":""}]
["5.","A cég fióktelepe:",{"$f":"(IF(Adat!B59=0,\"\",Adat!B59))","v":""}]
["6.","A cég alapításának éve:",{"$f":"(IF(Adat!B60=0,\"\",Adat!B60))","v":""}]
["7.","A cég főtevékenysége:",{"$f":"(IF(Adat!B61=0,\"\",Adat!B61))","v":""}]
[null,"A cég tényleges gazdasági tevékenysége:"]
["8.","A cég jegyzett tőkéje:",null,null,{"$f":"'MLM (É)'!F64*1000","v":0}]
["9.","A társaság tagja:"]
[null,null,"Cég név:",{"$f":"Adat!B25","v":"Egérfogó Kft"}]
[null,null,"Székhely:",{"$f":"+Adat!B26","v":0}]
[null,null,"Képviselője: ",{"$f":"Adat!B27","v":"Sajt Árpád"}]
[null,null,"Cégjegyzék száma:",{"$f":"Adat!B28","v":0}]
[null,null,{"$f":"Adat!C28","v":"függőségi kapcsolat:"}]
[null,null,"Cég név:",{"$f":"Adat!B29","v":"Kutyaharapás Kft"}]
[null,null,"Székhely:",{"$f":"+Adat!B30","v":0}]
[null,null,"Képviselője: ",{"$f":"Adat!B31","v":"Kutyufülű Aladár"}]
[null,null,"Cégjegyzék száma:",{"$f":"Adat!B32","v":0}]
[null,null,{"$f":"Adat!C32","v":"függőségi kapcsolat:"}]
[null,null,"Cég név:",{"$f":"Adat!B33","v":"Mikka-Makka Kft"}]
[null,null,"Székhely:",{"$f":"+Adat!B34","v":0}]
[null,null,"Képviselője: ",{"$f":"Adat!B35","v":"Mekk Elek"}]
[null,null,"Cégjegyzék száma:",{"$f":"Adat!B36","v":0}]
[null,null,{"$f":"Adat!C36","v":"függőségi kapcsolat:"}]
[null,null,"Cég név:",{"$f":"Adat!B37","v":"Tarajos Kft"}]
[null,null,"Székhely:",{"$f":"+Adat!B38","v":0}]
[null,null,"Képviselője: ",{"$f":"Adat!B39","v":"Kukori Kázmér"}]
[null,null,"Cégjegyzék száma:",{"$f":"Adat!B40","v":0}]
[null,null,{"$f":"Adat!C40","v":"függőségi kapcsolat:"}]
[null,null,"Név:",{"$f":"Adat!B41","v":"Mák Virág"}]
[null,null,"Cím:",{"$f":"Adat!B43","v":0}]
[null,null,{"$f":"Adat!C43","v":"függőségi kapcsolat:"}]
[null,null,"Név:",{"$f":"Adat!B44","v":"Kandúr Bandi"}]
[null,null,"Cím:",{"$f":"Adat!B46","v":0}]
[null,null,{"$f":"Adat!C46","v":"függőségi kapcsolat:"}]
[null,null,"Név:",{"$f":"Adat!B47","v":"Mor Zsolt"}]
[null,null,"Cím:",{"$f":"Adat!B49","v":0}]
[null,null,{"$f":"Adat!C49","v":"függőségi kapcsolat:"}]
[null,null,"Név:",{"$f":"Adat!B50","v":"Pilis Csaba"}]
[null,null,"Cím:",{"$f":"Adat!B52","v":0}]
[null,null,{"$f":"Adat!C52","v":"függőségi kapcsolat:"}]
["10.","A társaság tagjainak törzsbetétei:",null,"Pénzneme:    HUF","Szavazati arány:",{"$f":"IF(E20-SUM(D55:D62)=0,\"Ok\",\"Nem egyezik a tőkebontás!\")","v":"Ok"}]
[null,null,{"$f":"D22","v":"Egérfogó Kft"},{"$f":"Adat!D25","v":0},{"$f":"+Adat!D26","v":0}]
[null,null,{"$f":"D27","v":"Kutyaharapás Kft"},{"$f":"Adat!D29","v":0},{"$f":"+Adat!D30","v":0}]
[null,null,{"$f":"D32","v":"Mikka-Makka Kft"},{"$f":"Adat!D33","v":0},{"$f":"+Adat!D34","v":0}]
[null,null,{"$f":"D37","v":"Tarajos Kft"},{"$f":"Adat!D37","v":0},{"$f":"+Adat!D38","v":0}]
[null,null,{"$f":"D42","v":"Mák Virág"},{"$f":"Adat!D41","v":0},{"$f":"+Adat!D42","v":0}]
[null,null,{"$f":"D45","v":"Kandúr Bandi"},{"$f":"Adat!D44","v":0},{"$f":"+Adat!D45","v":0}]
[null,null,{"$f":"D48","v":"Mor Zsolt"},{"$f":"Adat!D47","v":0},{"$f":"+Adat!D48","v":0}]
[null,null,{"$f":"D51","v":"Pilis Csaba"},{"$f":"Adat!D50","v":0},{"$f":"+Adat!D51","v":0}]
["11.","A társaság tevékenységi köre:"]
[null,null,"Vegyes termékkörű ügynöki nagykereskedelem"]
[null,null,"Szerszámgép nagykereskedelem"]
[null,null,"Egyéb gép, szállítóeszköz nagykereskedelme"]
[null,null,"Gyógyászati termék kiskereskedelme"]
[null,null,"Máshova nem sorolt egyéb gép kölcsönzése"]
[null,null,"Egyéb humán-egészségügyi ellátás"]
[null,"A társaság a fenti tevékenységek végzéséhez szükséges valamennyi engedéllyel rendelkezik."]
["12.","A Társaság ügyvezetése, képviseletére és cégjegyzésre:"]
[null,null,"Az ügyvezető jogosult"]
[null,null,"A Társaság ügyvezetője 5(öt) évi időtartamra:"]
[null,null,{"$f":"Adat!B62","v":"Macska János"},{"$f":"CONCATENATE(\"(\",Adat!D62,\")\")","v":"(Macskafalva, Egérfogó u 7.)"}]
["13.","A társaság legfőbb szerve:","Taggyűlés."]
[null,null,"A taggyűlés a Társaság minden ügyében jogosult dönteni."]
["14.","A társaság dolgozói tekintetében a munkáltatói jogok gyakorlója."]
[null,null,{"$f":"C74","v":"Macska János"}]
["15.","A Társaság a tevékenységét határozatlan ideig folytatja."]
["16.","Az alább felsorolt esetekben az „Alapító okirat” szerint kell eljárni:"]
[null,null,"A társaság szervezete"]
[null,null,"Az Ügyvezető igazgató feladatai és hatásköre"]
[null,null,"A Társaságot érintő pénzügyi rendelkezések"]
[null,null,"A Társaság megszűnése és végelszámolása /felszámolása/."]
[]
["17.","A számviteli törvényben előírtakon túlmenő, további információk megadására nincs szükség. \nA számviteli alapelvek érvényesítése elegendő a megbízható és valós összképnek a mérlegben, az eredmény-kimutatásban történő bemutatásához.",null,null,null,null,"4§ (3)"]
[null,"   "]
["I/2.","A számviteli politika főbb vonásai"]
[]
[null,"A beszámolási kötelezettséggel kapcsolatos döntések"]
[null,"A számviteli törvényben rögzített alapelvek, értékelési előírások alapján alakítottuk ki az adottságainknak, körülmé\nnyeinknek leginkább megfelelő, a törvény végrehajtásának módszereit, eszközeit meghatározó számviteli politikánkat."]
[null,"A számviteli politikánk a beszámolási kötelezettsége, a valós vagyoni, pénzügyi és jövedelmi helyzetről készülő \nbeszámolót helyezi előtérbe. A törvény céljaként a megbízható és valós összképet adó információszolgáltatást és az ezt \nbiztosító alapelveket, szabályokat, követelményeket fogalmazza meg."]
["1.","A beszámolási forma:",null,null,null,null,"22§"]
[null,"A Társaság a számviteli törvényben meghatározott értékek alapján készített beszámolója:"]
["·","Éves beszámoló, amelynek tagolása megfelel a számviteli törvényben foglaltaknak."]
["·","A mérleg \"A\" változatban készült, a nagybetűvel és római számmal jelölt tételeit tartalmazza."]
["·","Az eredmény-kimutatása: Összköltségeljárással készült, formája: \"A\" változat."]
["2.","A beszámoló készítésével kapcsolatos időpontok:"]
["·","Az üzleti év megegyezik a naptári évvel."]
["·","A mérleg fordulónapja: ",{"$f":"Adat!B12","v":"2012-12-31"}]
["·","A mérlegkészítés napja:",{"$f":"Adat!B14","v":"2013-01-31"}]
["3.","A beszámoló készítése, aláírása: "]
["·","A beszámoló nyelve:","Magyar"]
["·","Aláíró:","Ügyvezető igazató"]
["4."," A könyvvezetés módja és a könyvvezetéssel kapcsolatos időpontok:"]
[null,"A Társaság a kezelésében, a használatában, a tulajdonában lévő eszközökről és azok forrásairól, továbbá a gazdasági \nműveletekről a kettős könyvvezetés keretében biztosítja, hogy az eszközökben és forrásokban bekövetkezett változások \na valóságnak megfelelően, folyamatosan, zárt rendszerben, áttekinthetően kerüljön bemutatásra."]
["5.","A beszámoló közzététele:"]
[null,"A közzétételi kötelezettségét a Társaság elektronikus úton teljesíti a kormányzati portál felé."]
["6.","A számviteli alapelvek érvényesítése:"]
[null,"A vállalkozás folytatásának elve; a teljesség elve; a valódiság elve; a következetesség elve; a \nfolytonosság elve; az összemérés elve; az óvatosság elve; a bruttó elszámolás elve; az egyedi értékelés elve; az időbeli elhatárolás elve; a tartalom elsődlegessége a formával szemben elve; a lényegesség elv; \na költség-haszon összevetésének elve."]
["7.","Összehasonlíthatóság  biztosítása"]
[null,"A beszámolóban minden tétel összehasonlítható az előző üzleti év megfelelő adatával. ",null,null,null,null,"19§ (3)"]
[null,"Ellenőrzés / önellenőrzés az előző üzleti év(ek) éves beszámolójában elkövetett jelentős összegű hibá(ka)t állapított meg. Az erre vonatkozó - a mérlegkészítés napjáig megismert és nem vitatott, nem fellebbezett, illetve a jogerőssé vált megállapítások miatti - módosításokat a mérleg és az eredménykimutatás minden tételénél az előző év adatai mellett szerepelnek, azok nem képezik részét az eredménykimutatás tárgyévi adatainak. ",null,null,null,null,"19§ (3) és 88 § (5)"]
[null,{"$f":"Adat!B11-1","v":2011},"évi eredmény változása:",null,{"$f":"'MLE (É)'!E59","v":0}]
["8.","A számvtieli rendért felelős személy",null,null,null,null,"88 § (9)"]
[null,"A könyvviteli szolgáltatások vezetéséért felelős személy neve:",null,null,{"$f":"Adat!D63","v":"Kont Irma"}]
[null,null,"nyilvántartási száma:",null,{"$f":"Adat!D64","v":131313}]
["9.","Könyvvizsgálati kötelezettség",null,null,null,null,"88 § (8)"]
[null,{"$f":"Adat!B67","v":"A közzétett adatok könyvvizsgálattal nincsenek alátámasztva."}]
[null,"A beszámolóra vonatkozóan a bejegyzett könyvvizsgáló független könyvvizsgálói jelentést adott ki."]
[null,"A könyvvizsgálat éves díja:"]
[null,{"$f":"Adat!A68","v":"Könyvvizsgáló neve"},{"$f":"Adat!C68","v":"Tényné Mind Etel"}]
[null,{"$f":"Adat!A69","v":"Kamarai regisztrációs száma:"},{"$f":"Adat!C69","v":"003333"}]
[null,{"$f":"Adat!A70","v":"Könyvvizsgáló társaság neve:"},{"$f":"Adat!C70","v":"dr. Számszaki Kft"}]
[null,{"$f":"Adat!A71","v":"Könyvvizsgáló társaság címe:"},{"$f":"Adat!C71","v":"1111 Budapest, Egyenleg u.11."}]
[null,{"$f":"Adat!A72","v":"Könyvvizsgáló társaság kamarai száma:"},{"$f":"Adat!C72","v":"001111"}]
[null,"Az eszközök és források besorolásának és értékelésének szempontjai",null,null,null,null,"88 § (3)"]
[]
["1.","Az eszközök besorolásának szempontjai:"]
[null,"A Társaság a Számviteli törvény előírása szerint a befektetett eszközök közé sorolja azokat az eszközöket, amelyek a \ntevékenységet tartósan legalább egy éven túl szolgálja; a forgóeszközök közé sorolja azokat az eszközöket, amelyek a \ntevékenységet nem tartósan szolgálják. Használatbavételkor egyedi besorolás, a mérlegkészítés során felülvizsgálat."]
["2.","A források besorolásának szempontjai:"]
[null,"A Társaság a Szt előírása szerint a saját forrásokat a tulajdonosok által véglegesen rendelkezésre bocsátott és az \nadózott eredményből hagyott összegek képezik, idegen forrásokat a külső vállalkozásoktól (hitelintézetektől, gazdasági \ntársaságoktól, magánszemélyektől) egy évet meghaladó, vagy egy éven belüli fizetési határidő mellett kapott pénzeszköz, termékszállítás, szolgáltatás, vagy egyéb kötelezettség összegek alkotják."]
["3.","Az eszközök értékelése:"]
["a)","A bekerülési érték:"]
["·","az eszközök vételekor a tényleges beszerzési ár, valamint a felhasználásig közvetlenül felmerülő kiadások;"]
["·","nem pénzbeli betétként való átvételekor a létesítő okiratban, vagy annak módosításában megjelölt érték;"]
["·","saját előállításkor a közvetlen költségek;"]
["·","térítés nélküli átvételkor a piaci érték;"]
["·","ajándékba kapott, hagyatékként átvett, többletként fellelt eszközök esetében a piaci érték;"]
["·","speciális elszámolást igényelnek az értékpapírok egyes változatai."]
["b)","Az értékcsökkenés leírás módszerei:"]
["·","a tervezett écs leírás elszámolásának alapja az immateriális javak és a tárgyi eszközök aktiválási értéke;"]
["·","aktiválás napjától egyedileg, havonta, a tervezett leírási kulcsait alkalmazva, lineáris módon;"]
["·","a Társaság a kisértékű (100.000 Ft) egyedi beszerzési, előállítási érték alatti tárgyi eszköz értékét használatbavételkor egy összegben."]
["c)","Az értékvesztés elszámolása és visszaírása:"]
["·","akkor számolunk el, ha az eszközök könyv szerinti értéke tartósan (két mérleg-fordulónapon fennállóan) és jelentősen \n(készleteknél 25 %-ot meghaladó eltérés, követeléseknél pedig az árbevétel 2 %-a) magasabb, mint a vizsgált eszköz \npiaci értéke, valamint, ha az eszköz a tevékenység változása miatt feleslegessé vált, megrongálódott;"]
["·","kedvező fordulat esetén újraértékelés mellett az értékvesztés visszaírása is lehetséges a könyv szerinti érték összegéig."]
["d)","A valutás és devizás eszközök és kötelezettségek értékelése:"]
["·","a vásárolt valutát és devizát a ténylegesen fizetett forintösszegben kell állományba venni;"]
["·","a valuta és devizakészletek csökkenésekor az, átlagárfolyamon kell elszámolni;"]
["·","a külföldi pénzértékre szóló követelések és kötelezettségek állományba vétele az MNB középárfolyama alapján történik;"]
["·","a mérlegforduló napján meglévő valuta és devizakészletek, követelések, befektetett pénzeszközök, értékpapírok és \nkötelezettségek értékelése az MNB által, a mérlegforduló napjára meghirdetett középárfolyamon történik; és ha az \nösszesített árolyam eltérések (veszteségek és nyereségek) összege meghaladja a számviteli politikában jelentősnek ítélt \nhatárt, akkor az árfolyamveszteségeket, illetve az árfolyamnyereségeket el kell számolni. Jelentősnek minősül a tárgyév mérlegfőösszegének 1%-a"]
["4.","Az aktív és passzív időbeli elhatárolások köre"]
["a)","Aktív időbeli elhatárolások"]
["·","Bevételek, melyek a mérleggel lezárt időszakra vonatkoznak, de csak a mérlegforduló napja után esedékesek. "]
["·","Költségek, ráfordítások, melyek a mérlegforduló napját követő időszakra számolhatók el. "]
["·","A véglegesen átvállalt, de a mérlegforduló napig pénzügyileg nem rendezett tartozás- átvállalás összege. "]
["·","Többletkötelezettségek (pl.: váltótartozás kamata) miatti összegek. "]
["b)","Passzív időbeli elhatárolás"]
["·","Bevételek, melyek a mérlegforduló napja előtt befolytak, de a következő év bevételét képezik. "]
["·","Költségek, ráfordítások, melyek a mérleggel lezárt évet terhelik, de csak a mérleg fordulónapja után merülnek fel. "]
["·","A mérleggel lezárt évhez kapcsolódó prémiumok, jutalmak és azok járulékai. "]
["·","A mérlegforduló napja, és a mérlegkészítés napja között ismertté vált, lezárt évet terhelő kötelezettségek. "]
["·","Költségek, ráfordítások ellentételezésére kapott támogatások költséggel, ráfordítással még nem ellentételezett összege. "]
["·","Rendkívüli bevételként elszámolt  halasztott bevételek. "]
[]
["II.","Specifikus rész a mérleghez kapcsolódóan"]
[]
["II/1","Az immateriális javak és a tárgyi eszközök értékének alakulás"]
[null,"Immateriális javak és tárgyi eszközök bruttó értékének, halmozott értékcsökkenésének, valamin nettó értékének \nmérlegsoronkénti alakulását az 1. sz.  mellékletben közreadott tükör szemlélteti, a befektetett pénzügyi eszközök alakulásával együtt."]
[null,"A beszámolási időszakban beszerzett tárgyi eszközök maradéktalanul aktiválva lettek, így beruházások és \nberuházásokra adott előlegek a mérlegben nem szerepelnek."]
[null,"Az év végén be nem fejezetett beruházások értéke",null,null,{"$f":"'MLE (É)'!I8","v":0},"\"16\""]
[null,"Az immateriális javak és a tárgyi eszközök elszámolt terv szerinti értékcsökkenésének elszámolása a \nszámviteli politikában rögzített elvek és mértékek szerint történt."]
[null,"Nem következett be olyan körülmény, amely a tervezett értékcsökkenések elszámolási módjában változást eredményezett volna.",null,null,null,null,"53 § (5)"]
[null,"A befektetett eszközök területén értékhelyesbítést nem számoltunk el.",null,null,null,null,"59 § (1)"]
[null,"Értékhelyesbítés a következő eszközcsoportra számoltunk el:"]
[null,null,"E s z k ö z ö k:",null,"É r t é k:"]
[null,"Nyitás:",null,null,0,{"$f":"IF(E178='MLM (É)'!D70,\"OK\",\"NÉZD MEG!\")","v":"OK"}]
[null,"Változás:",{"$f":"C178","v":0},null,0]
[null,"Zárás:",{"$f":"C178","v":0},null,{"$f":"E178+E179","v":0},{"$f":"IF(E180-'MLM (É)'!F70=0,\"OK\",\"NÉZD MEG !!!\")","v":"OK"}]
[]
["II/2","Pénzeszközök bemutatása"]
[null,"Mérlegsor","Bázis év","Tárgy év","Változás"]
[null,{"$f":"+'MLM (É)'!B55","v":"Pénztár, csekk"},{"$f":"+'MLM (É)'!D55","v":0},{"$f":"+'MLM (É)'!F55","v":0},{"$f":"+'MLM (É)'!J55","v":"-"}]
[null,{"$f":"+'MLM (É)'!B56","v":"Bankbetétek"},{"$f":"+'MLM (É)'!D56","v":0},{"$f":"+'MLM (É)'!F56","v":0},{"$f":"+'MLM (É)'!J56","v":"-"}]
[]
["II/3","Az időbeli elhatárolások bemutatása"]
[null,"Az aktív és passzív időbeli elhatárolások jellegét és értékét a 8. sz. melléklet szemlélteti.",null,null,null,null,"90 § (1)"]
[]
["II/4","Követelések és kötelezettségek bemutatása"]
[null,"Mérlegsor","Bázis év","Tárgy év","Változás"]
[null,{"$f":"+'MLM (É)'!B42","v":"Követelések"},{"$f":"+'MLM (É)'!D42","v":0},{"$f":"+'MLM (É)'!F42","v":0},{"$f":"+'MLM (É)'!J42","v":"-"}]
[null,{"$f":"+'MLM (É)'!B76","v":"Kötelezettségek"},{"$f":"+'MLM (É)'!D76","v":0},{"$f":"+'MLM (É)'!F76","v":0},{"$f":"+'MLM (É)'!J76","v":"-"}]
[null,{"$f":"+'MLM (É)'!B77","v":"Hátrasorolt kötelezettségek"},{"$f":"+'MLM (É)'!D77","v":0},{"$f":"+'MLM (É)'!F77","v":0},{"$f":"+'MLM (É)'!J77","v":"-"}]
[null,{"$f":"+'MLM (É)'!B82","v":"Hosszú lejáratú kötelezettségek"},{"$f":"+'MLM (É)'!D82","v":0},{"$f":"+'MLM (É)'!F82","v":0},{"$f":"+'MLM (É)'!J82","v":"-"}]
[null,{"$f":"+'MLM (É)'!B92","v":"Rövid lejáratú kötelezettségek"},{"$f":"+'MLM (É)'!D92","v":0},{"$f":"+'MLM (É)'!F92","v":0},{"$f":"+'MLM (É)'!J92","v":"-"}]
[]
[null,"A Társaság kapcsolt vállalkozásnak adott hosszú lejáratú kölcsöne anyavállalattal szemben merült fel.",null,null,null,null,"90§ (2)"]
[null,"A hosszú lejáratú kötelezettségek soron a pénzügyi lízing konstrukcióban vásárolt gépkocsi egy éven túli esedékességű \ntörlesztő része szerepel."]
[null,"A hosszú lejárató kötelezettségek között szerepel a Társaság részére folyósított hitel, illetve kölcsön azon érsze, amely\nnem a beszámoló elfogadásának évében esedékes."]
[null,"A hosszú lejáratú kötelezettségekből egy éven belül esedékes:",null,null,{"$f":"(Köt!E66+Köt!E68+Köt!E70)/1000","v":0},null,"42 § (3)"]
[null,"Az éves eredményből, illetve az eredménytartalékból osztalék nem kerül sem kifizetésre és sem meghatározásra."]
[null,"Az éves eredményből osztalék címén jóváhagyott összeg:",null,null,{"$f":"'MLE (É)'!F58-'MLE (É)'!F57","v":0}]
[null,"Eredménytartalékból jóváhagyott osztalék összege:",null,null,{"$f":"'MLE (É)'!F57","v":0}]
[null,"Igy összesen jóváhagyott osztalék összege a beszámolási időszakra.",null,null,{"$f":"SUM(E203:E204)","v":0}]
[null,"A beszámolási időszakban osztalékelőleg nem került kifizetésre sem a tárgy év, sem az eredménytartalék tehére."]
[null,"Közbenső mérleg alapján kifizetett osztalék-előleg tárgy év terhére:",null,null,0]
[null,"Közbenső alapján kifizetett osztalék-előleg eredménytartalék terhére:",null,null,0]
[]
["II/3","A céltartalékok bemutatása",null,null,null,null,"41§ (8)"]
[null,"A beszámolási időszakban sem nem képeztünk, sem nem használtunk fel céltartalékot."]
[null,"Céltartalékot képzeztünk a következő ","c é l l a l:",null,"é r t é k b e n:"]
[null,null,null,null,{"$f":"'MLE (É)'!I25","v":0}]
[null,"Feloldottunk a következő","o k b ó l:",null,"é r t é k b e n:"]
[null,null,null,null,{"$f":"'MLE (É)'!I42","v":0}]
[]
["II/6","A pénzügyi vagyoni helyzet bemutatása",null,null,null,null,"88  (2)"]
[null,"A pénzügyi vagyoni helyzet mutatóit az 5. sz. melléklet szemlélteti."]
[]
["III.","Specifikus rész az eredmény-kimutatáshoz kapcsolódóan"]
[]
[null,"A beszámolási időszakban az értékesítés elszámolt nettó árbevétele alapvetően a fő tevékenységből fakadt. "]
[null,"     Belföldi főtevékenység árbevétele:",null,null,{"$f":"'MLE (É)'!I35","v":0},"\"91\""]
[null,"     Belföldi melléktevékenység árbevétele:",null,null,{"$f":"'MLE (É)'!I36","v":0},"\"92\""]
[null,"     EU közösségi tagállamból származó árbevétel:",null,null,{"$f":"'MLE (É)'!I38","v":0},"\"931\""]
[null,"     Harmadik országból származó árbevétel:",null,null,{"$f":"'MLE (É)'!I37-'MLE (É)'!I38","v":0},"\"93\"-\"931\""]
[null,"Összes értékesítés nettó árbevétele:",null,null,{"$f":"SUM(E223:E226)","v":0}]
[null,"Az anyagjellegű ráfordítások értéke összesen:",null,null,{"$f":"SUM(E229:E233)","v":0}]
[null,"amelyből: Elszámolt anyagok költsége:",null,null,{"$f":"'MLE (É)'!F18","v":0},"\"51\""]
[null,"                Igénybevett szolgáltatások költsége:",null,null,{"$f":"'MLE (É)'!F19","v":0},"\"52\""]
[null,"                Egyéb szolgáltatások költségei:",null,null,{"$f":"'MLE (É)'!F20","v":0},"\"53\""]
[null,"                Eladott árúk beszerzési értéke:",null,null,{"$f":"'MLE (É)'!F21","v":0},"\"814\""]
[null,"                Közvetített szolgáltatások értéke:",null,null,{"$f":"'MLE (É)'!F22","v":0},"\"815\""]
[null,"Az elszámolt személy jellegű ráfordítások értéke összesen:",null,null,{"$f":"SUM(E235:E237)","v":0}]
[null,"amelyből: Bérköltségek:",null,null,{"$f":"'MLE (É)'!F24","v":0},"\"54\""]
[null,"                Személyi jellegű kifizetések:",null,null,{"$f":"'MLE (É)'!F25","v":0},"\"55\""]
[null,"                Bérjárulékok:",null,null,{"$f":"'MLE (É)'!F26","v":0},"\"56\""]
[null,"Az összes elszámolt terv szerinti értékcsökkenés összege:",null,null,{"$f":"SUM(E239:E240)","v":0}]
[null,"amelyből: Több év alatt elhasználódó eszközök terv szerinti écsö:",null,null,{"$f":"'MLE (É)'!I18","v":0},"\"571\""]
[null,"               Használatbavételkor egy összegben elszámolt écs:",null,null,{"$f":"'MLE (É)'!I19","v":0},"\"572\""]
[null,"Saját termelésű készletek állományvoltozása:",null,null,{"$f":"'MLE (É)'!F15","v":0},"\"58\""]
[null,"Egyéb bevételek:",null,null,{"$f":"'MLE (É)'!F16","v":0},"\"96\""]
[null,"Egyéb ráfordítások:",null,null,{"$f":"'MLE (É)'!F29","v":0},"\"86\""]
[null,"Az üzemi(üzleti) tevékenység eredménye:",{"$f":"E227+E242+E241-E228-E234-E238-E243","v":0},null,{"$f":"IF(C244<0,\"Veszteség\",\"Nyereség\")","v":"Nyereség"}]
[]
[null,"A beszámolási időszakban a pénzügyi műveletek bevételei:",null,null,{"$f":"'MLE (É)'!F41","v":0},"\"97\""]
[null,"amelyből: árfolyamnyereség:",null,null,{"$f":"'MLE (É)'!I46","v":0},"\"976\""]
[null,"                 kapott kamat, kamatjellegű bevétel:",null,null,{"$f":"E246-E247","v":0},"\"971--974\""]
[null,"A beszámolási időszakban a pénzügyi műveletek ráfordításai:",null,null,{"$f":"'MLE (É)'!F48","v":0},"\"87\""]
[null,"amelyből: árfolyamveszteség:",null,null,{"$f":"'MLE (É)'!I32","v":0},"\"876\""]
[null,"                 fizetett, elszámolt kamat, kamatjellegű ráfordítás:",null,null,{"$f":"E249-E250","v":0},"\"871--874\""]
[null,"Pénzügyi műveletek eredménye: ",{"$f":"E246-E249","v":0},null,{"$f":"IF(C252<0,\"Veszteség\",\"Nyereség\")","v":"Nyereség"}]
[null,"   A tárgyévben lezárt határidős deviza ügylet eredménye:",null,null,0,null,"90 (4) c.)"]
[null,"   amely teljes egészében tőzsdén kívül köttetett elszámolási ügylet volt."]
[]
[null,"Szokásos vállalkozási eredmény:",{"$f":"C244+C252","v":0},null,{"$f":"IF(C256<0,\"Veszteség\",\"Nyereség\")","v":"Nyereség"}]
[]
[null,"Rendkívüli bevételek:",null,null,{"$f":"'MLE (É)'!F51","v":0},"\"98\"","86 § (8)"]
[null,"amely kapott támogatás / véglegesen kapott pénzeszközátvétel / véglegesen kapott szolgáltatás"]
[null,"A kapott támogatából a tárgy évre vonatkozóan az időarányos rész került elszámolásra. A kapott támogatás többi része\nhalasztott bevételként a passzív időbeliről készített leltárban szerepel.",null,null,null,null,"93 § (3)"]
[null,"Kapott támogatás jellege:"]
[null,"Rendkívüli ráfordítások:",null,null,{"$f":"'MLE (É)'!F52","v":0},"\"88\""]
[null,"amely adott támogatás / véglegesen átadott pénzeszözök / elengedett követelés értéke"]
[null,"Rendkívüli eredmény:",{"$f":"E258-E262","v":0},null,{"$f":"IF(C264<0,\"Veszteség\",\"Nyereség\")","v":"Nyereség"}]
[null,"Adózás előtti eredmény:",{"$f":"C256+C264","v":0},null,{"$f":"IF(C265<0,\"Veszteség\",\"Nyereség\")","v":"Nyereség"}]
[null,"Társasági adófizetési kötelezettség:",{"$f":"'MLE (É)'!F55","v":0},null,null,"\"891\""]
[null,"Adózott eredmény",{"$f":"C265-C266","v":0},null,{"$f":"IF(C267<0,\"Veszteség\",\"Nyereség\")","v":"Nyereség"}]
[]
["IV.","Tájékoztató rész"]
[]
["IV/1.","A tárgyévi munkavállói létszám, bér, személyi jellegű egyéb kifizetésének bemutatása"]
[null,"Az statisztikai állományi létszám:",{"$f":"Adat!C76","v":0},null,{"$f":"'MLE (É)'!I13","v":0},"\"54\""]
[null,"ebből:   fizikai",{"$f":"Adat!C77","v":0},null,{"$f":"Adat!D77","v":0}]
[null,"            szellemi",{"$f":"Adat!C78","v":0},null,{"$f":"E272-E273","v":0},{"$f":"E274-Adat!D78","v":0}]
[]
[null,"Eredménykimutatás sor","Bázis év","Tárgy év","Változás"]
[null,{"$f":"'MLE (É)'!B25","v":"Személyi jellegű egyéb kifizetések"},{"$f":"+'MLE (É)'!D25","v":0},{"$f":"+'MLE (É)'!F25","v":0},{"$f":"+'MLE (É)'!O25","v":"-"}]
[]
["IV/2.","A vezető tisztségviselők jogviszonya, a beszámolási időszakban felvett járandóságának, folyósított előlegekének bemutatása"]
[null,"A vezető tisztségviselők felvett járandósága a bérköltségekből az ügyvezetői munkabér, mert az ügyvezető \na feladatát munkaviszonyban látja el."]
[null,"A vezető tisztségviselőknek üzleti év után járó javadalmazás ",null,null,{"$f":"Adat!D79","v":0},"Szv.tv előírja, de lehet, hogy az ügyvezetés nem szeretné közzétenni!"]
[null,"A vezető tisztségviselőknek adott előlegek összege ",null,null,{"$f":"Adat!D82","v":0},null,"89 § (4) b)"]
[null,"A vezető tisztségviselők nem vesznek fel munkabért. "]
[null,"A felügyelő bizottság tagjainak az üzleti év után járó járandóságuk:",null,null,{"$f":"+Adat!D80","v":0}]
[null,"A Társaságnál az üzleti évben nem működött felügyelő bizottság."]
[null,"Az igazgatóság tagjainak az üzleti év után járó járandóságuk:",null,null,{"$f":"+Adat!D81","v":0}]
[null,"A Társaságnál az üzleti évben nem működött igazgatóság."]
[]
["IV/3.","A mérlegben meg nem jelenő kötelezettségekről "]
[null,"A beszámolási időszakban nem keletkezett olyan kötelezettség, amely a könyvekbe ne került volna be, viszont a \nbeszámoló, illetve a társaság gazdasági helyzetének a megítélése szempontjából jelentőséggel bírna. "]
[null,"A beszámolási időszakban a Társaságban kimutatható egy készfizető kezesség, xxxxxxxxxx Ft tőketartozás és annak járulékai erejéig."]
[null,"A beszámolási időszakban a Társaságban kimutatható készfizető kezesség, \n   - xxxxxxx Ft tőketartozás és annak járulékai, továbbá\n   - xxxxxxx Ft tőketartozás és annak járulékai erejéig."]
[]
["IV/4.","A saját tőke alakulásának bemutatása",null,null,null,null,"88 § (2)"]
[null,"A saját tőke elemeinek alakulását a 6. sz. melléklet tartalmazza."]
[null,"A tulajdonosok a jegyzett tőkét teljes mértékben a vállalkozás rendelkezésére bocsátották."]
[null,"A beszámolási időszakban a cég tevékenységével kapcsolatosan csak a szükséges eszközöket vásárolta meg, illetve \na cégnél dolgozó munkatársak kiválasztása is e rendezőelv alapján történt meg."]
[null,"A Társaság a követekző gazdasági évet nyereséggel tervezi zárni."]
[]
["IV/5.","Veszélyes hulladékkal való gazdalkodás."]
[null,"Veszélyes hulladék előállítására és kezelésére vonatkozóan a társaság az előírt rendelkezésének megfelelően jár el."]
[]
["IV/6.","Kapcsolat vállalkozásokkal kapcsolatos ügyletek"]
[null,"A kapcsolt vállalkozásokkal szemben elszámolt ügyletek eredménye:"]
[null,"Adott kölcsön",null,0]
[null,"ebből","anyavállalat:",0]
[null,null,"leányvállalat:",0]
[null,"A kölcsön ügyletből származó kamat transzferára 0 eFt, szokásos piaci ára:",null,{"$f":"TA!F103","v":0},"amely összeg"]
[null,"növeli a társasági adó alapját."]
[null,"ebből","anyavállalat:",0]
[null,null,"leányvállalat:",0]
[null,"A tárgyévben a vállalkozás két átalakulási folyamaton ment keresztül."]
[null,"A tárgy évben nem fordult elő kapcsolt vállalkozással kapcsoaltos ügylet."]
[]
["IV/7.","Szállítmányozás tevékenységi körével kapcsolatos kiegészítés"]
[]
[null,"A Társaság árufuvarozási tevékenységet végez, a közúti árufuvarozási tevékenység engedély kiadásának a 261/2011 (XII.7.) rendelet alapján feltételként írja elő a megfelelő vagyoni, pénzügyi feltételek meglétét. Az üzleti évre vonatkozó beszámoló alapján a Társaság saját tőkéje forduló napon XX.XXX eFt, melyből a szabad tőke összege: XX.XXX eFt."]
[null,"A 261/2011 (XII.7) kormányrendeletben meghivatkozott 1071/2009/Ek rendelet alapján  részletezett feltételek szernt az első gépjárműre szükséges saját tőkeelem: 9 000 EUR, minden további gépjárműre járművenként 5 000 EUR tőke szükséges. Árfolyamként az október első munkanapján érvényes, az EU hivatalos lapjában közzétet árfolyamot kell használni. ",null,null,null,"árf:",284.86]
[]
[null,"Szükséges saját tőke összeg","Darabszám","Összesített szükséges tőke"]
[null,0,0,0]
[null,0,0,0]
[null,"Összesen:",{"$f":"SUM(C321:C322)","v":0},{"$f":"SUM(D321:D322)","v":0}]
[]
[null,"A fentiek alapján elmondható, hogy  a 261/2011 (XII.7.) kormányrendeletben foglaltak egy évnél nem régebbi időpontra vonatkozóan a tevékenység folytatásához  előírt feltételek teljesülnek. Összeségében tehát a cég a rendelet értelmében az árufuvarozási tevékenység folytatásához megfelelő vagyonnal rendelkezik."]
[]
[null,{"$f":"Adat!C15","v":"2013-03-31"}]
[null,null,null,null,null,null,"20 § (4)"]
[null,null,null,"Képviseletre jogosult személy aláírása"]
[]
["Mellékletek:"]
["1.","Befektetett eszközök - tükör",{"$f":"IF('Tárgyi (É)'!M77=0,\"(Nincs mellékelve, mert nem tartalmaz adatot.)\",\"\")","v":"(Nincs mellékelve, mert nem tartalmaz adatot.)"}]
["2.","Mutatók",null,null,null,null,"88 § (2)"]
["3.","Saját tőke alakulása",null,null,null,null,"88 § (2)"]
["4.","Lekötött tartalék elemzése",{"$f":"IF(OR(LT!D37=0,LT!F37=0),\"(Nincs mellékelve, mert nem tartalmaz adatot.)\",\"\")","v":"(Nincs mellékelve, mert nem tartalmaz adatot.)"}]
["5.","Aktív és passzív elhatárolások",{"$f":"IF(OR('AP (É)'!E18=0,'AP (É)'!E45=0),\"(Nincs mellékelve, mert nem tartalmaz adatot.)\",\"\")","v":"(Nincs mellékelve, mert nem tartalmaz adatot.)"}]
["6.","Cash flow kimutatás"]

{"sheet":"Tárgyi (É)","index":9,"n_rows":82,"n_cols":13,"rows_kept":82,"cut":false,"hidden":true,"merged":[[73,0,73,1],[67,0,67,1],[1,0,1,12],[2,4,2,6],[6,0,7,0],[6,1,7,1],[6,2,6,6],[6,7,6,11],[6,12,7,12],[45,0,45,1],[56,0,56,1],[62,0,62,1]]}
[null,null,null,null,null,null,null,null,null,null,null,null,"1. melléklet"]
["B e f e k t e t e t t   e s z k ö z ö k  -  t ü k ö r"]
[null,null,null,"Készült a ",{"$f":"Adat!B5","v":"Macskafarka Kft"},null,null,{"$f":"Adat!B11","v":2012},". évi beszámolójához"]
[]
["Dátum:",{"$f":"Adat!B12","v":"2012-12-31"},null,null,null,null,null,null,null,null,null,null,"eFt"]
[]
["Fő-\nkönyvi\nszám","Eszközcsoport","B r u t t ó   é r t é k",null,null,null,null,"É r t é k c s ö k k e n é s",null,null,null,null,"Záró\nnettó\nérték"]
[null,null,"Nyitó \negyenleg","Növekedés","Csökkenés","Átvezetés","Záró \negyenleg","Nyitó \negyenleg","Növekedés","Csökkenés","Átvezetés","Záró \negyenleg"]
["IMMATERIÁLIS JAVAK"]
[111,"Alapítás, átszerzvezés akt.ért.",null,null,null,null,{"$f":"C10+D10-E10-F10","v":0},null,null,null,null,{"$f":"H10+I10-J10-K10","v":0},{"$f":"G10-L10","v":0}]
[112,"Kisérleti fejlesztés akt.ért.",null,null,null,null,0,null,null,null,null,0,0]
[113,"Vagyoni értékű  jogok",null,null,null,null,0,null,null,null,null,0,0]
[114,"Szellemi termékek",null,null,null,null,0,null,null,null,null,0,0]
[115,"Üzleti vagy cégérték",null,null,null,null,0,null,null,null,null,0,0]
[116,"Értékhelyesbítés",null,null,null,null,0,null,null,null,null,0,0]
[null,"ÖSSZESEN:",{"$f":"SUM(C10:C15)","v":0},{"$f":"SUM(D10:D15)","v":0},{"$f":"SUM(E10:E15)","v":0},{"$f":"SUM(F10:F15)","v":0},0,{"$f":"SUM(H10:H15)","v":0},{"$f":"SUM(I10:I15)","v":0},{"$f":"SUM(J10:J15)","v":0},{"$f":"SUM(K10:K15)","v":0},0,0]
[]
["INGATLANOK"]
[121,"Földterület",null,null,null,null,{"$f":"C19+D19-E19-F19","v":0},null,null,null,null,{"$f":"H19+I19-J19-K19","v":0},{"$f":"G19-L19","v":0}]
[122,"Telek",null,null,null,null,0,null,null,null,null,0,0]
[123,"Épületek",null,null,null,null,0,null,null,null,null,0,0]
[124,"Egyéb építmények",null,null,null,null,0,null,null,null,null,0,0]
[125,"Beruházás bérelt ingatlanon",null,null,null,null,0,null,null,null,null,0,0]
[126,"Vagyoni értékű jogok ingatlanon",null,null,null,null,0,null,null,null,null,0,0]
[127,"Értékhelyesbítés",null,null,null,null,0,null,null,null,null,0,0]
[null,"ÖSSZESEN:",{"$f":"SUM(C19:C25)","v":0},{"$f":"SUM(D19:D25)","v":0},{"$f":"SUM(E19:E25)","v":0},{"$f":"SUM(F19:F25)","v":0},0,{"$f":"SUM(H19:H25)","v":0},{"$f":"SUM(I19:I25)","v":0},{"$f":"SUM(J19:J25)","v":0},{"$f":"SUM(K19:K25)","v":0},0,0]
[]
["TERMELŐ BERENDEZÉSEK"]
[131,"Termelő berendezések",null,null,null,null,{"$f":"C29+D29-E29-F29","v":0},null,null,null,null,{"$f":"H29+I29-J29-K29","v":0},{"$f":"G29-L29","v":0}]
[132,"Termelő jármüvek",null,null,null,null,{"$f":"C30+D30-E30-F30","v":0},null,null,null,null,{"$f":"H30+I30-J30-K30","v":0},{"$f":"G30-L30","v":0}]
[135,"Kisértékű termelő gépek, berend.",null,null,null,null,{"$f":"C31+D31-E31-F31","v":0},null,null,null,null,{"$f":"H31+I31-J31-K31","v":0},{"$f":"G31-L31","v":0}]
[null,"ÖSSZESEN:",{"$f":"SUM(C29:C31)","v":0},{"$f":"SUM(D29:D31)","v":0},{"$f":"SUM(E29:E31)","v":0},{"$f":"SUM(F29:F31)","v":0},{"$f":"C32+D32-E32-F32","v":0},{"$f":"SUM(H28:H31)","v":0},{"$f":"SUM(I28:I31)","v":0},{"$f":"SUM(J28:J31)","v":0},{"$f":"SUM(K28:K31)","v":0},{"$f":"H32+I32-J32-K32","v":0},{"$f":"G32-L32","v":0}]
[]
["ÜZEMI BERENDEZÉSEK"]
[141,"Üzemi berendezések",null,null,null,null,{"$f":"C35+D35-E35-F35","v":0},null,null,null,null,{"$f":"H35+I35-J35-K35","v":0},{"$f":"G35-L35","v":0}]
[142,"Üzemi jármüvek",null,null,null,null,{"$f":"C36+D36-E36-F36","v":0},null,null,null,null,{"$f":"H36+I36-J36-K36","v":0},{"$f":"G36-L36","v":0}]
[null,"ÖSSZESEN:",{"$f":"SUM(C35:C36)","v":0},{"$f":"SUM(D35:D36)","v":0},{"$f":"SUM(E35:E36)","v":0},{"$f":"SUM(F35:F36)","v":0},{"$f":"C37+D37-E37-F37","v":0},{"$f":"SUM(H34:H36)","v":0},{"$f":"SUM(I34:I36)","v":0},{"$f":"SUM(J34:J36)","v":0},{"$f":"SUM(K34:K36)","v":0},{"$f":"H37+I37-J37-K37","v":0},{"$f":"G37-L37","v":0}]
[]
["EGYÉB BERENDEZÉSEK"]
[1431,"Irodai berendezések",null,null,null,null,{"$f":"C40+D40-E40-F40","v":0},null,null,null,null,{"$f":"H40+I40-J40-K40","v":0},{"$f":"G40-L40","v":0}]
[1432,"Számitástechnikai ber",null,null,null,null,{"$f":"C41+D41-E41-F41","v":0},null,null,null,null,{"$f":"H41+I41-J41-K41","v":0},{"$f":"G41-L41","v":0}]
[1433,"Hírközlő berendezések",null,null,null,null,{"$f":"C42+D42-E42-F42","v":0},null,null,null,null,{"$f":"H42+I42-J42-K42","v":0},{"$f":"G42-L42","v":0}]
[145,"Kisértékű egyéb gépek, berend.",null,null,null,null,{"$f":"C43+D43-E43-F43","v":0},null,null,null,null,{"$f":"H43+I43-J43-K43","v":0},{"$f":"G43-L43","v":0}]
[null,"ÖSSZESEN:",{"$f":"SUM(C40:C43)","v":0},{"$f":"SUM(D40:D43)","v":0},{"$f":"SUM(E40:E43)","v":0},{"$f":"SUM(F40:F43)","v":0},{"$f":"C44+D44-E44-F44","v":0},{"$f":"SUM(H40:H43)","v":0},{"$f":"SUM(I40:I43)","v":0},{"$f":"SUM(J40:J43)","v":0},{"$f":"SUM(K40:K43)","v":0},{"$f":"H44+I44-J44-K44","v":0},{"$f":"G44-L44","v":0}]
[]
["ÜZEMKÖRÖN KÍVÜLI BEREND."]
[144,"Üzemkörön kívüli berendezések",null,null,null,null,{"$f":"C47+D47-E47+F47","v":0},null,null,null,null,{"$f":"H47+I47-J47+K47","v":0},{"$f":"G47-L47","v":0}]
[null,"ÖSSZESEN:",{"$f":"SUM(C47:C47)","v":0},{"$f":"SUM(D47:D47)","v":0},{"$f":"SUM(E47:E47)","v":0},{"$f":"SUM(F47:F47)","v":0},{"$f":"C48+D48-E48+F48","v":0},{"$f":"SUM(H47:H47)","v":0},{"$f":"SUM(I47:I47)","v":0},{"$f":"SUM(J47:J47)","v":0},{"$f":"SUM(K47:K47)","v":0},{"$f":"H48+I48-J48+K48","v":0},{"$f":"G48-L48","v":0}]
[]
["BERUHÁZÁSOK"]
[1611,"Több év alatt elhasználódó eszk.",null,null,null,null,{"$f":"C51+D51-E51-F51","v":0},null,null,null,null,{"$f":"H51+I51-J51-K51","v":0},{"$f":"G51-L51","v":0}]
[1612,"Egy év alatt elhasználódó eszk.",null,null,null,null,{"$f":"C52+D52-E52-F52","v":0},null,null,null,null,{"$f":"H52+I52-J52-K52","v":0},{"$f":"G52-L52","v":0}]
[1613,"Építési beruházás",null,null,null,null,{"$f":"C53+D53-E53-F53","v":0},null,null,null,null,{"$f":"H53+I53-J53-K53","v":0},{"$f":"G53-L53","v":0}]
[1614,"Befejezett, de nem aktivált beruh.",null,null,null,null,{"$f":"C54+D54-E54-F54","v":0},null,null,null,null,{"$f":"H54+I54-J54-K54","v":0},{"$f":"G54-L54","v":0}]
[null,"ÖSSZESEN:",{"$f":"SUM(C51:C54)","v":0},{"$f":"SUM(D51:D54)","v":0},{"$f":"SUM(E51:E54)","v":0},{"$f":"SUM(F51:F54)","v":0},{"$f":"C55+D55-E55-F55","v":0},null,null,null,null,{"$f":"H55+I55-J55+K55","v":0},{"$f":"G55-L55","v":0}]
[]
["TARTÓS BEFEKTETÉSEK"]
[171,"Tartós részesedések kapcs.váll.",null,null,null,null,{"$f":"C58+D58-E58-F58","v":0},null,null,null,null,{"$f":"H58+I58-J58-K58","v":0},{"$f":"G58-L58","v":0}]
[172,"Egyéb tartós részesedés",null,null,null,null,{"$f":"C59+D59-E59-F59","v":0},null,null,null,null,{"$f":"H59+I59-J59-K59","v":0},{"$f":"G59-L59","v":0}]
[179,"Értékhelyesbítés",null,null,null,null,{"$f":"C60+D60-E60-F60","v":0},null,null,null,null,{"$f":"H60+I60-J60-K60","v":0},{"$f":"G60-L60","v":0}]
[null,"ÖSSZESEN:",{"$f":"SUM(C58:C60)","v":0},{"$f":"SUM(D58:D60)","v":0},{"$f":"SUM(E58:E60)","v":0},{"$f":"SUM(F58:F60)","v":0},{"$f":"C61+D61-E61-F61","v":0},{"$f":"SUM(H58:H60)","v":0},{"$f":"SUM(I58:I60)","v":0},{"$f":"SUM(J58:J60)","v":0},{"$f":"SUM(K58:K60)","v":0},{"$f":"H61+I61-J61-K61","v":0},{"$f":"G61-L61","v":0}]
[]
["TARTÓS HITELVISZONYT MT. ÉRT.P."]
[181,"Államkötvény",null,null,null,null,{"$f":"C64+D64-E64-F64","v":0},null,null,null,null,{"$f":"H64+I64-J64-K64","v":0},{"$f":"G64-L64","v":0}]
[182,"Egyéb hitelviszonyt megtest. ép.",null,null,null,null,{"$f":"C65+D65-E65-F65","v":0},null,null,null,null,{"$f":"H65+I65-J65-K65","v":0},{"$f":"G65-L65","v":0}]
[null,"ÖSSZESEN:",{"$f":"SUM(C64:C65)","v":0},{"$f":"SUM(D64:D65)","v":0},{"$f":"SUM(E64:E65)","v":0},{"$f":"SUM(F64:F65)","v":0},{"$f":"C66+D66-E66-F66","v":0},{"$f":"SUM(H64:H65)","v":0},{"$f":"SUM(I64:I65)","v":0},{"$f":"SUM(J64:J65)","v":0},{"$f":"SUM(K64:K65)","v":0},{"$f":"H66+I66-J66-K66","v":0},{"$f":"G66-L66","v":0}]
[]
["TARTÓS KÖLCSÖNÖK"]
[191,"Tartósan adott kölcs.kapcs.váll.",null,null,null,null,{"$f":"C69+D69-E69-F69","v":0},null,null,null,null,{"$f":"H69+I69-J69-K69","v":0},{"$f":"G69-L69","v":0}]
[192,"Tartós kölcs.egyéb rész.váll.",null,null,null,null,{"$f":"C70+D70-E70-F70","v":0},null,null,null,null,{"$f":"H70+I70-J70-K70","v":0},{"$f":"G70-L70","v":0}]
[193,"Egyéb tartósan adott kölcsön",null,null,null,null,{"$f":"C71+D71-E71-F71","v":0},null,null,null,null,{"$f":"H71+I71-J71-K71","v":0},{"$f":"G71-L71","v":0}]
[null,"ÖSSZESEN:",{"$f":"SUM(C69:C71)","v":0},{"$f":"SUM(D69:D71)","v":0},{"$f":"SUM(E69:E71)","v":0},{"$f":"SUM(F69:F71)","v":0},{"$f":"C72+D72-E72-F72","v":0},{"$f":"SUM(H69:H71)","v":0},{"$f":"SUM(I69:I71)","v":0},{"$f":"SUM(J69:J71)","v":0},{"$f":"SUM(K69:K71)","v":0},{"$f":"H72+I72-J72-K72","v":0},{"$f":"G72-L72","v":0}]
[]
["KISÉRTÉKŰ ESZKÖZÖK",null,0,0,0,0,{"$f":"C74+D74-E74+F74","v":0},0,{"$f":"D74","v":0},0,0,{"$f":"H74+I74-J74+K74","v":0},{"$f":"G74-L74","v":0}]
[]
[]
["MIND ÖSSZESEN:",null,{"$f":"C16+C26+C32+C37+C44+C48+C55+C61+C66+C72+C74","v":0},{"$f":"D16+D26+D32+D37+D44+D48+D55+D61+D66+D72+D74","v":0},0,0,{"$f":"G16+G26+G32+G37+G44+G48+G55+G61+G66+G72+G74","v":0},0,0,0,0,0,0]
[]
[null,null,null,"Kivezetés:",{"$f":"E16+E26+E32+E37+E44+E55+E72-J16-J26-J32-J37-J44-J72","v":0},null,null,"MLE 571+572:",{"$f":"('MLE (É)'!I18+'MLE (É)'!I19)","v":0},null,"+ előlegek:",null,{"$f":"+'MLM (É)'!F15+'MLM (É)'!F23","v":0}]
[null,null,null,"MLE  861:",{"$f":"'MLE (É)'!I24","v":0},null,null,"Differencia!!",{"$f":"I77-I79","v":0},null,"Bef.pü.eszk.összesen",null,{"$f":"M77+M79","v":0}]
[null,null,null,"Differencia!!",{"$f":"E79-E80","v":0},null,null,null,null,null,"Mérlegben (MLM):",null,{"$f":"'MLM (É)'!F8","v":0}]
[null,null,null,null,null,null,null,null,null,null,"Differencia!!",null,{"$f":"M80-M81","v":0}]

{"sheet":"Pénz","index":10,"n_rows":36,"n_cols":9,"rows_kept":36,"cut":false,"hidden":false,"merged":[[1,0,1,4],[2,0,2,4],[3,0,3,4],[5,1,5,2],[35,3,35,4],[28,1,28,3],[7,0,8,0],[7,1,8,3],[9,1,9,3],[34,3,34,4]]}
[null,null,null,null,"NEM MELLÉKLET!"]
["Pénzeszközök  leltára"]
["Készült a "]
[{"$f":"Adat!B5","v":"Macskafarka Kft"}]
[null,null,{"$f":"Adat!B11","v":2012},". évi beszámolójához",null,"Ezt az oszlopot"]
["Dátum:",{"$f":"Adat!B12","v":"2012-12-31"},null,null,null,"NEM nyomtatjuk!"]
[]
["Főkönyvi\nhivatkozás","A tétel megnevezése",null,null,"Érték","Követel egyenleg"]
[null,null,null,null,"Forint","+ előjellel       [Ft]"]
["a","b",null,null,"c","d"]
[381,"Pénztár"]
[3821,"Valutapénztár","- valutanem:"]
[3822,"Valutapénztár","- valutanem:"]
[3823,"Valutapénztár","- valutanem:"]
[383,"Csekkek"]
[3841,"Elszámolási betétszámla"]
[3842,"Elszámolási betétszámla"]
[3843,"Elszámolási betétszámla"]
[3844,"Elszámolási betétszámla"]
[3845,"Elszámolási betétszámla"]
[3849,"Tisztázandó bankanyag"]
[385,"Elkülönített betétszámlák"]
[3861,"Devizabetét számla"]
[3862,"Devizabetét számla"]
[3863,"Devizabetét számla"]
[3891,"Pénztár és betétszámla közötti átvezetések"]
[3892,"Bankszámlák közötti átvezetések"]
[3892,"Devizás átvezetés"]
[]
[null,null,null,"ÖSSZESEN:",{"$f":"SUM(E11:E29)","v":0},{"$f":"SUM(F11:F29)","v":0},null,"SUM 38:",{"$f":"+E30-F30","v":0}]
[null,null,null,"Mérleg érték:",{"$f":"ROUND(E30/1000,0)","v":0},{"$f":"ROUND(F30/1000,0)","v":0}]
[]
[]
[null,null,null,null,null,"Ezek mennek a kötelezettségekhez!!!"]
[null,null,null,"……………………………...…….……"]
[null,null,null,"ügyvezető"]

{"sheet":"Köv","index":11,"n_rows":101,"n_cols":8,"rows_kept":101,"cut":false,"hidden":false,"merged":[[68,1,68,3],[70,1,70,3],[48,1,48,3],[54,1,54,3],[57,1,57,3],[49,1,49,3],[56,1,56,3],[55,1,55,3],[41,1,41,3],[37,1,37,3],[36,1,36,3],[30,1,30,3],[40,1,40,3],[31,1,31,3],[35,1,35,3],[32,1,32,3],[33,1,33,3],[39,1,39,3],[34,1,34,3],[22,1,22,3],[25,1,25,3],[27,1,27,3],[28,1,28,3],[23,1,23,3],[42,1,42,3],[44,1,44,3],[53,1,53,3],[60,1,60,3],[45,1,45,3],[58,1,58,3],[99,1,99,3],[87,1,87,3],[59,1,59,3],[96,1,96,3],[84,3,84,4],[69,1,69,3],[77,1,77,3],[90,1,90,3],[62,1,62,3],[64,1,64,3],[61,1,61,3],[65,1,65,3],[85,3,85,4],[80,1,80,3],[93,1,93,3],[66,1,66,3],[78,1,78,3],[63,1,63,3],[67,1,67,3],[21,1,21,3],[17,1,17,3],[18,1,18,3],[20,1,20,3],[76,1,76,3],[71,1,71,3],[72,1,72,3],[47,1,47,3],[46,1,46,3],[43,1,43,3],[29,1,29,3],[24,1,24,3],[26,1,26,3],[7,0,8,0],[11,1,11,3],[1,0,1,4],[2,0,2,4],[3,0,3,4],[5,1,5,2],[7,1,8,3],[9,1,9,3],[10,1,10,3],[1,6,2,6],[19,1,19,3],[12,1,12,3],[16,1,16,3],[13,1,13,3],[15,1,15,3],[14,1,14,3]]}
[null,null,null,null,"NEM MELLÉKLET!"]
["Követelések leltára"]
["Készült a "]
[{"$f":"Adat!B5","v":"Macskafarka Kft"}]
[null,null,{"$f":"Adat!B11","v":2012},". évi beszámolójához"]
["Dátum:",{"$f":"Adat!B12","v":"2012-12-31"}]
[]
["Főkönyvi\nhivatkozás","A tétel megnevezése",null,null,"Érték"]
[null,null,null,null,"Forint"]
["a","b",null,null,"c"]
[311,"Belföldi követelések (forintban)"]
[312,"Belföldi követelések (devizában)"]
[313,"Faktorált belföldi vevők"]
[315,"Belföldi követelésekre értékvesztés elszámolása és visszaírás"]
[316,"Külföldi követelések"]
[319,"Külföldi követelésekre értékvesztés elszámolása és visszaírása"]
[321,"Követelések az anyavállalattal szemben"]
[322,"Követelések a leányvállalattal szemben"]
[323,"Követelések a közös vezetésű vállalkozással szemben"]
[324,"Követelések a társult vállalkozással szemben"]
[329,"Kapcsolt váll szembeni köv. értékvesztés elszámolása és visszaírása"]
[331,"Követelések egyéb részesedési viszonyban lévő vállalkozással szemben"]
[339,"Egyéb rész.vi-ban lévő váll szemb.köv. értékvesztés elszámolása és visszaírása"]
[354,"Egyéb adott előlegek"]
[359,"Adott előlegek értékvesztés elszámolása és visszaírása"]
[361,"Munkavállalókkal szemben (letiltás, utólagos elszám, rövid.lej.kölcsön)"]
[362,"Költségvetéssel szemben"]
[364,"Rövid lejáratú kölcsönadott pénzeszközök"]
[365,"Kedvezményes adózású béren kívüli juttatás"]
[366,"Más vállalkozással szembeni követelések"]
[367,"x"]
[368,"Barter ügylet elszámolása"]
[369,"Különféle egyéb követelések, elszámolások"]
[454,"Előre fizetett szállítók"]
[460,"NAV Egyszerűsített vállalkozói adó elszámolása"]
[4611,"NAV Társasági adó elszámolása",null,null,null,null,"Éves adó:",{"$f":"ROUND(TA!D160,0)*1000","v":0}]
[4621,"NAV Személyi jövedelemadó elszámolása (103 Kifizetői)"]
[4622,"NAV Személyi jövedelemadó elszámolása (290 Levont)"]
[4630,"NAV Szociális hozzájárulási adó"]
[4631,"NAV Munkaadói járulék"]
[4632,"NAV Munkavállalói járulék"]
[4633,"NAV Szakképzési hozzájárulás elszámolása"]
[4634,"NAV Rehabilitációs hozzájárulás elszámolása"]
[4635,"NAV Nemzeti kulturális járulék elszámolása"]
[4637,"NAV Késedelmi pótlék elszámolása"]
[4638,"NAV Mulasztási bírság, bírság, önellenőrzési pótlék elszámolása"]
[4639,"NAV Cégautóadó"]
[4640,"NAV Innovációs járulék elszámoláa"]
[4641,"NAV Nyugdijbiztosítási Alapot megillető járulékok elszámolása"]
[4642,"NAV Egészségbiztositási és munkaerőpiaci járulék elszámolása"]
[46421,"NAV Egészségbiztosítási és munkaerőpiaci járulék (188)"]
[46423,"NAV Egészségbiztosítási és munkaerőpiaci járulék (293, Levont)"]
[4643,"NAV Egészségügyi hozzájárulás (152)"]
[4644,"NAV Start kártya járuléka"]
[4645,"Munkáltatói táppénzhozzájárulás elszámolása"]
[4646,"Korkedvezményes biztosítási járulék"]
[4647,"NAV Egészségügyi szolgáltatási járulék"]
[4648,"NAV Végrehajtói letéti számla elszámolása"]
[4649,"NAV Illeték számla elszámolása"]
[4651,"NAV-VPOP: vámbiztosíték"]
[4652,"NAV-VPOP: környezetvédelmi termékdíj"]
[4653,"NAV-VPOP: energia adó"]
[4654,"NAV Környezetterhelési díj"]
[468,"NAV Általános forgalmi adó elszámolása"]
[4691,"Helyi iparűzési adó elszámolása"]
[4692,"Kommunális adó elszámolása"]
[4693,"Idegenforgalmi adó elszámolása"]
[4694,"Építményadó elszámolása"]
[4695,"Telekadó elszámolása"]
[4696,"Gépjárműadó elszámolása"]
[4697,"Helyi önkormányzat - Késedelmi pólék, mulasztási bírság"]
[4699,"Egyéb helyi adó elszámolása"]
[471,"Jövedelemelszámolási számla"]
["474…","………………………..","MNYP tagdíj "]
["474…","………………………..","MNYP tagdíj "]
["474…","………………………..","MNYP tagdíj "]
[476,"Rövid lejáratú egyéb kötelezettségek a tagokkal szemben"]
[477,"Osztalék elszámolása"]
[478,"Jövedelmekkel kapcsolatos egyéb kötelezettségek"]
[479,"Egyéb kötelezettségek"]
[]
[null,null,null,"ÖSSZESEN:",{"$f":"SUM(E11:E81)","v":0}]
[null,null,null,"Mérleg érték:",{"$f":"ROUND(E82/1000,0)","v":0}]
[]
[null,null,null,"……………………………...…….……"]
[null,null,null,"ügyvezető"]
["Nem kerül be a leltárba:"]
[325,"Jegyzett, de még be nem fizetett tőke az anyavállalattól"]
["--> Jegyzett, de be nem fiz.tőke mérlegsor"]
[]
[335,"Jegyzett, de még be nem fiz.tőke egyéb részesedési visz-ban lévő váll-tól"]
["--> Jegyzett, de be nem fiz.tőke mérlegsor"]
[]
[351,"Immateriális javakra adott előlegek"]
["--> Immateriális eszközök mérlegsor"]
[]
[352,"Beruházásokra adott előlegek"]
["--> Tárgyi eszközök mérlegsor"]
[]
[353,"Készletekre adott előlegek"]
["--> Készletek mérlegsor"]

{"sheet":"Köt","index":12,"n_rows":155,"n_cols":8,"rows_kept":155,"cut":false,"hidden":false,"merged":[[88,1,88,3],[92,1,92,3],[89,1,89,3],[105,1,105,3],[99,1,99,3],[100,1,100,3],[70,1,70,3],[79,1,79,3],[81,1,81,3],[98,1,98,3],[84,1,84,3],[90,1,90,3],[85,1,85,3],[86,1,86,3],[87,1,87,3],[72,1,72,3],[71,1,71,3],[93,1,93,3],[94,1,94,3],[13,1,13,3],[18,0,18,4],[47,0,47,4],[48,0,49,0],[51,1,51,3],[50,1,50,3],[48,1,49,3],[21,1,21,3],[19,0,20,0],[19,1,20,3],[37,1,37,3],[40,1,40,3],[22,1,22,3],[25,1,25,3],[28,1,28,3],[31,1,31,3],[64,1,64,3],[80,1,80,3],[77,1,77,3],[73,1,73,3],[76,1,76,3],[69,1,69,3],[65,1,65,3],[68,1,68,3],[67,1,67,3],[66,1,66,3],[78,1,78,3],[1,0,1,4],[2,0,2,4],[3,0,3,4],[5,1,5,2],[11,1,11,3],[34,1,34,3],[63,1,63,3],[58,1,58,3],[52,1,52,3],[53,1,53,3],[56,1,56,3],[62,1,62,3],[54,1,54,3],[55,1,55,3],[60,1,60,3],[61,1,61,3],[59,1,59,3],[57,1,57,3],[82,1,82,3],[142,1,142,3],[116,1,116,3],[115,1,115,3],[109,1,109,3],[103,1,103,3],[102,1,102,3],[112,1,112,3],[108,1,108,3],[111,1,111,3],[110,1,110,3],[104,1,104,3],[107,1,107,3],[117,1,117,3],[141,1,141,3],[106,1,106,3],[145,1,145,3],[91,1,91,3],[154,3,154,4],[6,0,6,4],[10,1,10,3],[12,1,12,3],[14,1,14,3],[7,0,8,0],[7,1,8,3],[9,1,9,3],[101,1,101,3],[114,1,114,3],[153,3,153,4],[113,1,113,3],[74,1,74,3],[75,1,75,3]]}
[null,null,null,null,"NEM MELLÉKLET!"]
["Kötelezettségek leltára"]
["Készült a "]
[{"$f":"Adat!B5","v":"Macskafarka Kft"}]
[null,null,{"$f":"Adat!B11","v":2012},". évi beszámolójához"]
["Dátum:",{"$f":"Adat!B12","v":"2012-12-31"}]
["H á t r a s o r o l t   k ö t e l e z e t t s é g e k"]
["Főkönyvi\nhivatkozás","A tétel megnevezése",null,null,"Érték"]
[null,null,null,null,"Forint"]
["a","b",null,null,"c"]
[431,"Hátrasorolt kötelezettségek kapcsolt (anya) vállalkozással szemben",null,null,null,null,"90 § (2)"]
[null,"Hátrasorolt kötelezettségek kapcsolt (leány) vállalkozással szemben",null,null,null,null,"90 § (2)"]
[432,"Hátrasorolt kötelezettségek egyéb rész. vi.-ban lévő vállalkozással szemben"]
[433,"Hátrasorolt kötelezettségek egyéb gazdálkodóval szemben"]
[]
[null,null,null,"ÖSSZESEN:",{"$f":"SUM(E11:E15)","v":0}]
[null,null,null,"Mérleg érték:",{"$f":"ROUND(E16/1000,0)","v":0}]
[]
["H o s s z ú   l e j á r a t ú   k ö t e l e z e t t s é g e k"]
["Főkönyvi\nhivatkozás","A tétel megnevezése",null,null,"Érték"]
[null,null,null,null,"Forint"]
["a","b",null,null,"c"]
[441,"Hosszú lejáratra kapott kölcsönök",null,null,{"$f":"H66-E66","v":0}]
[null,null,"Ebből 5 éven túli:",null,null,null,"90 § (3) a)"]
[null,null,"Zálogjoggal terhelt:","igen / nem"]
[444,"Beruházási és fejlesztési hitelek",null,null,{"$f":"H68-E68","v":0}]
[null,null,"Ebből 5 éven túli:",null,null,null,"90 § (3) a)"]
[null,null,"Zálogjoggal terhelt:","igen / nem"]
[null,"Hosszú lejáratú lízingek",null,null,{"$f":"H70-E70","v":0}]
[null,null,"Ebből 5 éven túli:",null,null,null,"90 § (3) a)"]
[null,null,"Zálogjoggal terhelt:","igen / nem"]
[445,"Egyéb hosszú lejáratú hitelek"]
[null,null,"Ebből 5 éven túli:",null,null,null,"90 § (3) a)"]
[null,null,"Zálogjoggal terhelt:","igen / nem"]
[446,"Tartós kötelezettségek kapcsolt vállalkozással szemben",null,null,null,null,"90 § (2)"]
[null,null,"Ebből 5 éven túli:",null,null,null,"90 § (3) a)"]
[null,null,"Zálogjoggal terhelt:","igen / nem"]
[447,"Tartós kötelezettségek egyéb rész. vi-ban lévő vállalkozással szemben "]
[null,null,"Ebből 5 éven túli:",null,null,null,"90 § (3) a)"]
[null,null,"Zálogjoggal terhelt:","igen / nem"]
[449,"Egyéb hosszú lejáratú kötelezettségek"]
[null,null,"Ebből 5 éven túli:",null,null,null,"90 § (3) a)"]
[null,null,"Zálogjoggal terhelt:","igen / nem"]
[]
[null,null,null,"ÖSSZESEN:",{"$f":"SUM(E23:E44)","v":0}]
[null,null,null,"Mérleg érték:",{"$f":"ROUND(E45/1000,0)","v":0}]
[]
["R ö v i d   l e j á r a t ú   k ö t e l e z e t t s é g e k"]
["Főkönyvi\nhivatkozás","A tétel megnevezése",null,null,"Érték"]
[null,null,null,null,"Forint"]
["a","b",null,null,"c"]
[null,"Követelések túlfizetése:"]
[31,"Vevői túlfizetés"]
[32,"Követelések kapcsolt vállalkozással szemben"]
[33,"Követelések egyéb részesedéssi viszonyban lévő vállalkozással szemben"]
[35,"Adott előlegek túlfizetése"]
[361,"Munkavállalókkal szemben (letiltás, utólagos elszám, rövid.lej.kölcsön)"]
[362,"Költségvetéssel szemben"]
[364,"Rövid lejáratú kölcsönadott pénzeszközök"]
[365,"Kedvezményes adózású béren kívüli juttatás"]
[368,"Barter ügylet elszámolása"]
[369,"Különféle egyéb követelések, elszámolások"]
[384,"Bankszámlán lévő folyószámlahitel",null,null,{"$f":"Pénz!F30","v":0},null,"Pénzeszköz leltárból veszi át!"]
[450,"Részesedésekkel, értékapapírokkal kapcsolatos kötelezettségek"]
[451,"Rövid lejáratú kölcsönök"]
[null,"Hosszú lejáratú kölcsönökből egy éven belül esedékes rész",null,null,null,"Teljes összeg:"]
[452,"Rövid lejáratú hitelek"]
[null,"Hosszú lejáratú hitelekből egy éven belül esedékes rész",null,null,null,"Teljes összeg:"]
[null,"Rövid lejáratú lízingek"]
[null,"Hosszú lejáratú lízingekből egy éven belül esedékes rész",null,null,null,"Teljes összeg:"]
[453,"Vevőktől kapott előlegek"]
[454,"Belföldi szállítók"]
[4541,"Belföldi szállítók devizában"]
[455,"Külföldi szállítók"]
[456,"Elkülönítetten kezelt szállítók"]
[457,"Bónusz kötelezettség"]
[458,"Rövid lejáratú kötelezettségek magánszemély tagokkal szemben"]
[458,"Rövid lejáratú kötelezettségek kapcsolt vállalkozással szemben"]
[459,"Rövid lejáratú kötelezettségek egyéb rész.vi-ban lévő vállalkozással szemben"]
[460,"NAV Egyszerűsített vállalkozói adó elszámolása"]
[4611,"NAV Társasági adó elszámolása",null,null,null,null,"Éves adó:",{"$f":"ROUND(TA!D160,0)*1000","v":0}]
[4621,"NAV Személyi jövedelemadó elszámolása (103 Kifizetői)"]
[4622,"NAV Személyi jövedelemadó elszámolása (290 Levont)"]
[4630,"NAV Szociális hozzájárulási adó"]
[4631,"NAV Munkaadói járulék"]
[4632,"NAV Munkavállalói járulék"]
[4633,"NAV Szakképzési hozzájárulás elszámolása"]
[4634,"NAV Rehabilitációs hozzájárulás elszámolása"]
[4635,"NAV Nemzeti kulturális járulék elszámolása"]
[4637,"NAV Késedelmi pótlék elszámolása"]
[4638,"NAV Mulasztási bírság, bírság, önellenőrzési pótlék elszámolása"]
[4639,"NAV Cégautóadó"]
[4640,"NAV Innovációs járulék elszámolása"]
[4641,"NAV Nyugdijbiztosítási Alapot megillető járulékok elszámolása"]
[4642,"NAV Egészségbiztositási és munkaerőpiaci járulék elszámolása"]
[46421,"NAV Egészségbiztosítási és munkaerőpiaci járulék (188)"]
[46423,"NAV Egészségbiztosítási és munkaerőpiaci járulék (293, Levont)"]
[4643,"NAV Egészségügyi hozzájárulás (152)"]
[4644,"NAV Start kártya járuléka"]
[4645,"Munkáltatói táppénzhozzájárulás elszámolása"]
[4646,"Korkedvezményes biztosítási járulék"]
[4647,"NAV Egészségügyi szolgáltatási járulék"]
[4648,"NAV Végrehajtói letéti számla elszámolása"]
[4649,"NAV Illeték számla elszámolása"]
[4651,"NAV-VPOP: vámbiztosíték"]
[4652,"NAV-VPOP: környezetvédelmi termékdíj"]
[4653,"NAV-VPOP: energia adó"]
[4654,"NAV Környezetterhelési díj"]
[468,"NAV Általános forgalmi adó elszámolása"]
[4691,"Helyi iparűzési adó elszámolása"]
[4692,"Kommunális adó elszámolása"]
[4693,"Idegenforgalmi adó elszámolása"]
[4694,"Építményadó elszámolása"]
[4695,"Telekadó elszámolása"]
[4696,"Gépjárműadó elszámolása"]
[4697,"Helyi önkormányzat - Késedelmi pólék, mulasztási bírság"]
[4699,"Egyéb helyi adó elszámolása"]
[471,"Jövedelemelszámolási számla"]
["474…","Axa","MNYP tagdíj "]
["474…","OTP","MNYP tagdíj"]
["474…","Évgyűrűk","MNYP tagdíj"]
["474…","Aegon","MNYP tagdíj "]
["474…","Dimenzió","MNYP tagdíj "]
["474…","Honvéd","MNYP tagdíj "]
["474…","ING","MNYP tagdíj "]
["474…","Allianz","MNYP tagdíj "]
["474…","Aranykor","MNYP tagdíj "]
["474…","Életút","MNYP tagdíj "]
["474…","Erste","MNYP tagdíj "]
["474…","Richter","MNYP tagdíj "]
["474…","MKB","MNYP tagdíj "]
["474…","VIT","MNYP tagdíj "]
["474…","Budapest","MNYP tagdíj "]
["474…","Postás","MNYP tagdíj "]
["474…","Quaestor","MNYP tagdíj "]
["474…","Vasutas","MNYP tagdíj"]
["474…","MNB","MNYP tagdíj "]
["474…","Uniqa","MNYP tagdíj "]
["474…","Premium","MNYP tagdíj "]
["474…","K&H","MNYP tagdíj "]
["474…","Generali","MNYP tagdíj "]
[476,"Rövid lejáratú egyéb kötelezettségek a tagokkal szemben"]
[477,"Osztalék elszámolása"]
[478,"Jövedelmekkel kapcsolatos egyéb kötelezettségek"]
[479,"Egyéb rövid lejáratú kötelezettségek"]
[]
[null,null,null,"ÖSSZESEN:",{"$f":"SUM(E52:E145)","v":0}]
[null,null,null,"Mérleg érték:",{"$f":"ROUND(E147/1000,0)","v":0}]
[]
[null,null,null,"KÖTELEZETTSÉGEK ÖSSZESEN:",{"$f":"E16+E45+E147","v":0}]
[null,null,null,"Mérleg érték:",{"$f":"ROUND(E150/1000,0)","v":0}]
[]
[]
[null,null,null,"……………………………...…….……"]
[null,null,null,"ügyvezető"]

{"sheet":"Mutatók","index":13,"n_rows":62,"n_cols":5,"rows_kept":62,"cut":false,"hidden":false,"merged":[[1,0,1,4],[10,0,10,4],[15,0,15,4],[20,0,20,4],[26,0,26,4],[36,10,36,14],[36,5,36,9],[61,0,61,4],[31,0,31,4],[36,0,36,4],[41,0,41,4],[46,0,46,4],[56,0,56,4],[51,0,51,4],[31,5,31,9],[31,10,31,14],[31,50,31,54],[31,55,31,59],[31,60,31,64],[31,65,31,69],[31,15,31,19],[31,70,31,74],[31,75,31,79],[31,80,31,84],[3,0,4,1],[31,245,31,249],[31,185,31,189],[31,190,31,194],[31,195,31,199],[31,200,31,204],[36,15,36,19],[36,20,36,24],[36,45,36,49],[31,30,31,34],[36,25,36,29],[36,30,36,34],[36,35,36,39],[36,40,36,44],[31,95,31,99],[31,45,31,49],[31,20,31,24],[31,25,31,29],[31,35,31,39],[31,40,31,44],[31,90,31,94],[36,95,36,99],[36,50,36,54],[36,55,36,59],[31,85,31,89],[31,220,31,224],[31,225,31,229],[31,230,31,234],[31,240,31,244],[31,235,31,239],[36,100,36,104],[31,175,31,179],[31,180,31,184],[31,130,31,134],[31,160,31,164],[31,165,31,169],[31,170,31,174],[31,135,31,139],[31,140,31,144],[31,100,31,104],[31,105,31,109],[31,110,31,114],[31,145,31,149],[31,150,31,154],[31,155,31,159],[31,205,31,209],[36,190,36,194],[31,210,31,214],[36,60,36,64],[36,85,36,89],[36,70,36,74],[36,75,36,79],[36,80,36,84],[36,65,36,69],[36,90,36,94],[36,135,36,139],[36,185,36,189],[36,155,36,159],[36,160,36,164],[36,140,36,144],[36,165,36,169],[36,170,36,174],[36,175,36,179],[36,125,36,129],[36,105,36,109],[31,115,31,119],[31,120,31,124],[36,110,36,114],[36,115,36,119],[31,125,31,129],[36,120,36,124],[36,130,36,134],[36,250,36,254],[36,225,36,229],[36,230,36,234],[36,235,36,239],[36,240,36,244],[36,245,36,249],[36,220,36,224],[36,180,36,184],[36,145,36,149],[36,150,36,154],[36,205,36,209],[36,195,36,199],[36,200,36,204],[36,210,36,214],[36,215,36,219],[31,250,31,254],[31,215,31,219]]}
[null,null,null,null,"1. melléklet"]
["Pénzügyi, vagyoni helyzetet jellemzö mutatók"]
[]
[{"$f":"Adat!B5","v":"Macskafarka Kft"},null,"Bázis évre",null,"Tárgy évre"]
[null,null,{"$f":"MLE!D8","v":"2011-12-31"},null,{"$f":"MLE!F8","v":"2012-12-31"}]
[]
[]
["Befektetett eszközök aránya  ="]
[null,"Befektetett eszközök x 100",{"$f":"IF(MLM!D21=0,\"-\",MLM!D8/MLM!D21)","v":"-"},null,{"$f":"IF(MLM!F21=0,\"-\",MLM!F8/MLM!F21)","v":"-"}]
[null,"Összes eszköz"]
["A mutató értéke kifejezi, hogy a társaság összes eszközéből milyen hányadot tesznek ki a befektetett eszközök."]
[]
["Forgóeszközök aránya ="]
[null,"Forgóeszközök+aktív időbeli elhatárolás x 100",{"$f":"IF(MLM!D21=0,\"-\",(MLM!D15+MLM!D20)/MLM!D21)","v":"-"},null,{"$f":"IF(MLM!F21=0,\"-\",(MLM!F15+MLM!F20)/MLM!F21)","v":"-"}]
[null,"Összes eszköz"]
["A mutató értéke kifejezi, hogy az összes eszközön belül milyen arányt képviselnek a forgóeszközök."]
[]
["Tőkeerősség (saját tőke aránya) ="]
[null,"Saját tőke",{"$f":"IF(MLM!D21=0,\"-\",MLM!D23/MLM!D21)","v":"-"},null,{"$f":"IF(MLM!F21=0,\"-\",MLM!F23/MLM!F21)","v":"-"}]
[null,"Mérleg főösszege"]
["A mutató értéke kifejezi, hogy a társaság eszközeit milyen arányban finanszírozza a saját tőke."]
[]
["Mérleg szerinti eredmény aránya a saját"]
["tőkéhez viszonyítva ="]
[null,"Mérleg szerinti eredmény x 100",{"$f":"IF(MLM!D23=0,\"-\",MLM!D31/MLM!D23)","v":"-"},null,{"$f":"IF(MLM!F23=0,\"-\",MLM!F31/MLM!F23)","v":"-"}]
[null,"Saját tőke"]
["A mutató értéke kifejezi, hogy a tárgyévben a saját tőke növededésében/csökkenésében milyen a hatása a mérleg szerinti eredménynek."]
[]
["Kötelezettségek aránya ="]
[null,"Kötelezettségek x 100",{"$f":"IF(MLM!D21=0,\"-\",MLM!D33/MLM!D21)","v":"-"},null,{"$f":"IF(MLM!F21=0,\"-\",MLM!F33/MLM!F21)","v":"-"}]
[null,"Mérleg főösszeg"]
["A mutató értéke kifejezi, hogy milyen a hosszú- és rövidlejáratú tartozások aránya."]
[]
["Befektetett eszközök fedezete ="]
[null,"Saját tőke x 100",{"$f":"IF(MLM!D8=0,\"-\",MLM!D23/MLM!D8)","v":"-"},null,{"$f":"IF(MLM!F8=0,\"-\",MLM!F23/MLM!F8)","v":"-"}]
[null,"Befektetett eszközök"]
["A mutató értéke kifejezi, hogy az összes befektetett eszközt milyen arányban finanszírozza a saját tőke."]
[]
["Forgótőke, saját tőke aránya ="]
[null,"Forgótőke x100",{"$f":"IF(MLM!D23=0,\"-\",(MLM!D15-MLM!D36)/MLM!D23)","v":"-"},null,{"$f":"IF(MLM!F23=0,\"-\",(MLM!F15-MLM!F36)/MLM!F23)","v":"-"}]
[null,"Saját tőke"]
["A mutató értéke kifejezi, hogy a rövid lejáratú kötelezettséggel csökkentett forgóeszközök (vagyis a nettó forgótőke), a saját tőke hány százalékára nyújt fedezetet."]
[]
["Likviditási mutató ="]
[null,"Forgóeszközök x 100            ",{"$f":"IF(MLM!D36=0,\"-\",MLM!D15/MLM!D36)","v":"-"},null,{"$f":"IF(MLM!F36=0,\"-\",MLM!F15/MLM!F36)","v":"-"}]
[null,"Rövid lejáratú kötelezettségek"]
["A mutató értéke kifejezi, hogy a forgóeszközök összege milyen százalékát fedezi a rövid távú kötelezettségnek."]
[]
["Árbevétel arányos űzleti eredmény ="]
[null,"Üzemi(üzleti) tevékenység eredmény x 100",{"$f":"IF(MLE!D15=0,\"-\",MLE!D34/MLE!D15)","v":"-"},null,{"$f":"IF(MLE!F15=0,\"-\",MLE!F34/MLE!F15)","v":"-"}]
[null,"Értékesítés nettó árbevétele"]
["A mutató értéke kifejezi, hogy milyen a társaság alaptevékenységének jövedelmezősége."]
[]
["Bevétel arányos adózás előtti eredmény ="]
[null,"Adózás előtti eredmény x 100",{"$f":"IF((MLE!D15+MLE!D17+MLE!D36+MLE!D40)=0,\"-\",(MLE!D43/(MLE!D15+MLE!D17+MLE!D36+MLE!D40)))","v":"-"},null,{"$f":"IF((MLE!F15+MLE!F17+MLE!F36+MLE!F40)=0,\"-\",(MLE!F43/(MLE!F15+MLE!F17+MLE!F36+MLE!F40)))","v":"-"}]
[null,"Összes árbevétel + összes bevétel"]
["A mutató értéke kifejezi, hogy mekkora a társaság adózás előtti eredményének az összes bevételhez viszonyított hányada."]
[]
["Eszköz arányos jövedelmezőség ="]
[null,"Adózás előtti eredmény x100",{"$f":"IF(MLM!D21=0,\"-\",MLE!D43/MLM!D21)","v":"-"},null,{"$f":"IF(MLM!F21=0,\"-\",MLE!F43/MLM!F21)","v":"-"}]
[null,"Eszközök összesen"]
["A mutató értéke kifejezi, hogy egységnyi lekötött eszköz mekkora adózás előtti eredményt hoz létre, vagyis az eszköz jövedelemtermelő képessségéről ad tájékoztatást."]

{"sheet":"Mutatók (É)","index":14,"n_rows":61,"n_cols":5,"rows_kept":61,"cut":false,"hidden":true,"merged":[[30,155,30,159],[30,205,30,209],[30,210,30,214],[30,180,30,184],[30,160,30,164],[30,190,30,194],[30,195,30,199],[35,175,35,179],[35,180,35,184],[35,200,35,204],[35,155,35,159],[35,160,35,164],[35,165,35,169],[35,170,35,174],[35,185,35,189],[35,190,35,194],[30,225,30,229],[30,165,30,169],[30,240,30,244],[30,230,30,234],[30,215,30,219],[30,220,30,224],[35,210,35,214],[35,195,35,199],[35,205,35,209],[30,65,30,69],[30,85,30,89],[30,90,30,94],[30,60,30,64],[30,75,30,79],[30,80,30,84],[35,250,35,254],[35,215,35,219],[35,220,35,224],[35,225,35,229],[35,230,35,234],[35,235,35,239],[35,240,35,244],[35,245,35,249],[30,250,30,254],[30,245,30,249],[30,140,30,144],[30,185,30,189],[30,170,30,174],[30,145,30,149],[30,150,30,154],[30,175,30,179],[30,235,30,239],[30,200,30,204],[30,135,30,139],[30,125,30,129],[30,130,30,134],[30,105,30,109],[30,110,30,114],[30,115,30,119],[30,120,30,124],[30,70,30,74],[30,95,30,99],[30,100,30,104],[35,65,35,69],[35,70,35,74],[35,135,35,139],[35,75,35,79],[35,80,35,84],[35,85,35,89],[35,90,35,94],[35,125,35,129],[35,130,35,134],[35,150,35,154],[35,95,35,99],[35,100,35,104],[35,105,35,109],[35,110,35,114],[35,115,35,119],[35,120,35,124],[35,140,35,144],[35,145,35,149],[35,60,35,64],[55,0,55,4],[40,0,40,4],[35,25,35,29],[35,35,35,39],[35,40,35,44],[35,30,35,34],[35,45,35,49],[35,50,35,54],[35,15,35,19],[45,0,45,4],[50,0,50,4],[30,25,30,29],[30,20,30,24],[35,55,35,59],[30,30,30,34],[30,35,30,39],[30,40,30,44],[30,45,30,49],[30,50,30,54],[30,55,30,59],[35,20,35,24],[30,15,30,19],[60,0,60,4],[35,0,35,4],[35,5,35,9],[35,10,35,14],[1,0,1,4],[9,0,9,4],[14,0,14,4],[30,10,30,14],[19,0,19,4],[25,0,25,4],[30,0,30,4],[30,5,30,9],[3,0,4,1]]}
[null,null,null,null,{"$f":"IF(Adat!A18=1,\"2. melléklet\",\"1. melléklet\")","v":"1. melléklet"}]
["Pénzügyi, vagyoni helyzetet jellemzö mutatók"]
[]
[{"$f":"Adat!B5","v":"Macskafarka Kft"},null,"Bázis évre",null,"Tárgy évre"]
[null,null,{"$f":"'MLE (É)'!D8","v":"2011-12-31"},null,{"$f":"'MLE (É)'!F8","v":"2012-12-31"}]
[]
["Befektetett eszközök aránya  ="]
[null,"Befektetett eszközök x 100",{"$f":"IF('MLM (É)'!D61=0,\"-\",'MLM (É)'!D8/'MLM (É)'!D61)","v":"-"},null,{"$f":"IF('MLM (É)'!F61=0,\"-\",'MLM (É)'!F8/'MLM (É)'!F61)","v":"-"}]
[null,"Összes eszköz"]
["A mutató értéke kifejezi, hogy a társaság összes eszközéből milyen hányadot tesznek ki a befektetett eszközök."]
[]
["Forgóeszközök aránya ="]
[null,"Forgóeszközök+aktív időbeli elhatárolás x 100",{"$f":"IF('MLM (É)'!D61=0,\"-\",('MLM (É)'!D34+'MLM (É)'!D57)/'MLM (É)'!D61)","v":"-"},null,{"$f":"IF('MLM (É)'!F61=0,\"-\",('MLM (É)'!F34+'MLM (É)'!F57)/'MLM (É)'!F61)","v":"-"}]
[null,"Összes eszköz"]
["A mutató értéke kifejezi, hogy az összes eszközön belül milyen arányt képviselnek a forgóeszközök."]
[]
["Tőkeerősség (saját tőke aránya) ="]
[null,"Saját tőke",{"$f":"IF('MLM (É)'!D61=0,\"-\",'MLM (É)'!D63/'MLM (É)'!D61)","v":"-"},null,{"$f":"IF('MLM (É)'!F61=0,\"-\",'MLM (É)'!F63/'MLM (É)'!F61)","v":"-"}]
[null,"Mérleg főösszege"]
["A mutató értéke kifejezi, hogy a társaság eszközeit milyen arányban finanszírozza a saját tőke."]
[]
["Mérleg szerinti eredmény aránya a saját"]
["tőkéhez viszonyítva ="]
[null,"Mérleg szerinti eredmény x 100",{"$f":"IF('MLM (É)'!D63=0,\"-\",'MLE (É)'!D59/'MLM (É)'!D63)","v":"-"},null,{"$f":"IF('MLM (É)'!F63=0,\"-\",'MLE (É)'!F59/'MLM (É)'!F63)","v":"-"}]
[null,"Saját tőke"]
["A mutató értéke kifejezi, hogy a tárgyévben a saját tőke növededésében/csökkenésében milyen a hatása a mérleg szerinti eredménynek."]
[]
["Kötelezettségek aránya ="]
[null,"Kötelezettségek x 100",{"$f":"IF('MLM (É)'!D61=0,\"-\",'MLM (É)'!D76/'MLM (É)'!D61)","v":"-"},null,{"$f":"IF('MLM (É)'!F61=0,\"-\",'MLM (É)'!F76/'MLM (É)'!F61)","v":"-"}]
[null,"Mérleg főösszeg"]
["A mutató értéke kifejezi, hogy milyen a hosszú- és rövidlejáratú tartozások aránya."]
[]
["Befektetett eszközök fedezete ="]
[null,"Saját tőke x 100",{"$f":"IF('MLM (É)'!D8=0,\"-\",'MLM (É)'!D63/'MLM (É)'!D8)","v":"-"},null,{"$f":"IF('MLM (É)'!F8=0,\"-\",'MLM (É)'!F63/'MLM (É)'!F8)","v":"-"}]
[null,"Befektetett eszközök"]
["A mutató értéke kifejezi, hogy az összes befektetett eszközt milyen arányban finanszírozza a saját tőke."]
[]
["Forgótőke, saját tőke aránya ="]
[null,"Forgótőke x100",{"$f":"IF('MLM (É)'!D63=0,\"-\",('MLM (É)'!D34-'MLM (É)'!D92)/'MLM (É)'!D63)","v":"-"},null,{"$f":"IF('MLM (É)'!F63=0,\"-\",('MLM (É)'!F34-'MLM (É)'!F92)/'MLM (É)'!F63)","v":"-"}]
[null,"Saját tőke"]
["A rövid lejáratú kötelezettséggel csökkentett forgóeszközök (vagyis a nettó forgótőke), a saját tőke hány százalékára nyújt fedezetet."]
[]
["Likviditási mutató ="]
[null,"Forgóeszközök x 100            ",{"$f":"IF('MLM (É)'!D92=0,\"-\",'MLM (É)'!D34/'MLM (É)'!D92)","v":"-"},null,{"$f":"IF('MLM (É)'!F92=0,\"-\",'MLM (É)'!F34/'MLM (É)'!F92)","v":"-"}]
[null,"Rövid lejáratú kötelezettségek"]
["A mutató értéke kifejezi, hogy a forgóeszközök összege milyen százalékát fedezi a rövid távú kötelezettségnek."]
[]
["Árbevétel arányos űzleti eredmény ="]
[null,"Üzemi(üzleti) tevékenység eredmény x 100",{"$f":"IF('MLE (É)'!D12=0,\"-\",'MLE (É)'!D31/'MLE (É)'!D12)","v":"-"},null,{"$f":"IF('MLE (É)'!F12=0,\"-\",'MLE (É)'!F31/'MLE (É)'!F12)","v":"-"}]
[null,"Értékesítés nettó árbevétele"]
["A mutató értéke kifejezi, hogy milyen a társaság alaptevékenységének jövedelmezősége."]
[]
["Bevétel arányos adózás előtti eredmény ="]
[null,"Adózás előtti eredmény x 100",{"$f":"IF('MLE (É)'!D12+'MLE (É)'!D16+'MLE (É)'!D41+'MLE (É)'!D51=0,\"-\",('MLE (É)'!D54/('MLE (É)'!D12+'MLE (É)'!D16+'MLE (É)'!D41+'MLE (É)'!D51)))","v":"-"},null,{"$f":"IF('MLE (É)'!F12+'MLE (É)'!F16+'MLE (É)'!F41+'MLE (É)'!F51=0,\"-\",('MLE (É)'!F54/('MLE (É)'!F12+'MLE (É)'!F16+'MLE (É)'!F41+'MLE (É)'!F51)))","v":"-"}]
[null,"Összes árbevétel + összes bevétel"]
["A mutató értéke kifejezi, hogy mekkora a társaság adózás előtti eredményének az összes bevételhez viszonyított hányada."]
[]
["Eszköz arányos jövedelmezőség ="]
[null,"Adózás előtti eredmény x100",{"$f":"IF('MLM (É)'!D61=0,\"-\",'MLE (É)'!D54/'MLM (É)'!D61)","v":"-"},null,{"$f":"IF('MLM (É)'!F61=0,\"-\",'MLE (É)'!F54/'MLM (É)'!F61)","v":"-"}]
[null,"Eszközök összesen"]
["A mutató értéke kifejezi, hogy egységnyi lekötött eszköz mekkora adózás előtti eredményt hoz létre, vagyis az eszköz jövedelemtermelő képessségéről ad tájékoztatást."]

{"sheet":"ST","index":15,"n_rows":17,"n_cols":7,"rows_kept":17,"cut":false,"hidden":false,"merged":[[1,0,1,6],[2,0,2,6],[3,0,3,6],[16,0,16,1],[5,1,5,2],[11,0,11,1],[12,0,12,1],[13,0,13,1],[14,0,14,1],[7,0,7,1],[8,0,8,1],[9,0,9,1],[10,0,10,1]]}
[null,null,null,null,null,null,{"$f":"IF(Adat!A18=1,\"3. melléklet\",\"2. melléklet\")","v":"2. melléklet"}]
["Saját tőke alakulása"]
["Készült a "]
[{"$f":"Adat!B5","v":"Macskafarka Kft"}]
[null,null,{"$f":"Adat!B11","v":2012},". évi beszámolójához"]
["Dátum:",{"$f":"Adat!B12","v":"2012-12-31"}]
[null,null,null,null,null,null,"eFt"]
["Tőkeelem",null,"Nyitás","Növekedés","Csökkenés","Átkönyvelés","Zárás"]
["Jegyzett tőke",null,{"$f":"IF(Adat!A18=1,'MLM (É)'!D64,MLM!D24)","v":0},{"$f":"IF(G9>C9,G9-C9,\"-\")","v":"-"},{"$f":"IF(G9<C9,C9-G9,\"-\")","v":"-"},null,{"$f":"IF(Adat!A18=1,'MLM (É)'!F64,MLM!F24)","v":0}]
["Jegyzett, be nem \nfizetett tőke",null,{"$f":"IF(Adat!A18=1,'MLM (É)'!D66,MLM!D26)","v":0},{"$f":"IF(G10>C10,G10-C10,\"-\")","v":"-"},"-",null,{"$f":"IF(Adat!A18=1,'MLM (É)'!F66,MLM!H26)","v":0}]
["Tőketartalék",null,{"$f":"IF(Adat!A18=1,'MLM (É)'!D67,MLM!D27)","v":0},{"$f":"IF(G11>C11,G11-C11,\"-\")","v":"-"},"-",null,{"$f":"IF(Adat!A18=1,'MLM (É)'!F67,MLM!F27)","v":0}]
["Eredménytartalék",null,{"$f":"IF(Adat!A18=1,'MLM (É)'!D68,MLM!D28)","v":0},{"$f":"IF(G12>C12,G12-C12-F12,\"-\")","v":"-"},{"$f":"IF(G12<C12,C12-G12+F12,\"-\")","v":"-"},{"$f":"C15","v":0},{"$f":"IF(Adat!A18=1,'MLM (É)'!F68,MLM!F28)","v":0}]
["Lekötött tartalék",null,{"$f":"IF(Adat!A18=1,'MLM (É)'!D69,MLM!D29)","v":0},{"$f":"IF(G13>C13,G13-C13,\"-\")","v":"-"},"-",null,{"$f":"IF(Adat!A18=1,'MLM (É)'!F69,MLM!F29)","v":0}]
["Értékelési tartalék",null,{"$f":"IF(Adat!A18=1,'MLM (É)'!D70,MLM!D30)","v":0},{"$f":"IF(G14>C14,G14-C14,\"-\")","v":"-"},"-",null,{"$f":"IF(Adat!A18=1,'MLM (É)'!F70,MLM!F30)","v":0}]
["Mérleg szerinti eredmény",null,{"$f":"IF(Adat!A18=1,'MLM (É)'!D71,MLM!D31)","v":0},{"$f":"IF(G15>C15,G15,\"-\")","v":"-"},{"$f":"IF(G15<C15,-1*G15,\"-\")","v":"-"},{"$f":"C15*(-1)","v":0},{"$f":"IF(Adat!A18=1,'MLM (É)'!F71,MLM!F31)","v":0}]
[]
["Saját tőke",null,{"$f":"SUM(C9:C15)","v":0},{"$f":"SUM(D9:D15)","v":0},{"$f":"SUM(E9:E15)","v":0},{"$f":"SUM(F9:F15)","v":0},{"$f":"C17+D17-E17+F17","v":0}]

{"sheet":"LT","index":16,"n_rows":37,"n_cols":8,"rows_kept":37,"cut":false,"hidden":false,"merged":[[4,2,4,5],[7,1,7,3],[0,0,0,5],[1,0,1,5],[2,0,2,5],[3,0,3,5],[19,1,19,4],[9,1,9,3],[11,1,11,3],[10,1,10,4],[12,1,12,4],[15,1,15,3],[16,1,16,3],[17,1,17,4],[18,1,18,4],[20,1,20,3],[27,1,27,3],[21,1,21,3],[25,1,25,3],[26,1,26,3],[24,1,24,4]]}
[{"$f":"IF(Adat!A18=1,\"4. melléklet\",\"3. melléklet\")","v":"3. melléklet"}]
["Lekötött tartalék elemzése"]
[{"$f":"CONCATENATE(\"Készült \",LOWER(Adat!$E$5))","v":"Készült a"}]
[{"$f":"Adat!B5","v":"Macskafarka Kft"}]
[null,{"$f":"Adat!B11","v":2012},". évi beszámolójához"]
[null,null,null,null,null,"eFt"]
[1,"Tőketartalékból lekötött összeg:",null,null,null,{"$f":"IF(E8=0,0,IF(E8>D9,D9,E8))","v":0},"Szv. Tv.: 38.§"]
[null,"Tőketartalékból lekötendő összeg:",null,null,{"$f":"SUM(F10:F13)","v":0}]
[null,"Fedezet (összes tőketartalék)",null,{"$f":"H9","v":0},null,null,"Bázis év: TT",{"$f":"IF(Adat!A18=1,'MLM (É)'!D67,MLM!D27)","v":0}]
["b) ","Szövetkezetnél: fel nem osztható szövetkezeti vagyon"]
["c) ","Más jogszabály vagy saját elhatározás alapján lekötött tartalék"]
[null,"Kötelezettség fedezetét jelentő tartalék"]
["d) ","Visszafizetendő támogatás (ha a folyósításkor tőketartalékba helyeztük)"]
[2,"Eredménytartalékból lekötött összeg:",null,null,null,{"$f":"SUM(F16:F25)","v":0}]
[null,"Összes eredménytartalék",null,{"$f":"H15","v":0},null,null,"Bázis év: ET+MSZE-osztalék",{"$f":"IF(Adat!A18=1,'MLM (É)'!D68+'MLM (É)'!D71-'MLE (É)'!F57,MLM!D28+MLM!D31-MLE!F46)","v":0}]
["a) ","Visszavásárolt saját részvények, üzletrészek"]
["b) ","Átalakulás esetén a jogutódnál:\n  még fizetendő társasági adó összege"]
["c) ","Alapítás-átszervezés aktivált értékéből még le nem írt összeg"]
[null,"Kísérleti fejlesztés akt. értékéből még le nem írt összeg"]
["d) ","Beruházási célú, nem realizált árfolyam vesztesség AIE-CT különbözete"]
["e) ","Lekötendő tőketartalék (ha a tőketart. nem nyújt fedezetet)",null,null,null,{"$f":"IF(E8>D9,E8-D9,0)","v":0}]
["f) ","Tagnál: pótbefizetés fizetendő összege"]
[null,"Fejlesztési tartalék miatt lekötött összeg",null,null,"évre",{"$f":"TA!F17","v":0}]
[null,"Kedvezményes társasági adókulcs (16%-10%) miatti különbözet"]
["g)","Más jogszabály vagy saját elhatározás alapján lekötött tartalék"]
[3,"Vesztességek fedezetére kapott pótbefizetés"]
[4,"Feloldás a tőketartalékkal szemben"]
[5,"Feloldás az eredménytartalékkal szemben"]
[6,"Korábban lekötött tartalék                 -","-","Lekötés éve:",null,{"$f":"IF(Adat!A18=1,'MLM (É)'!D69,MLM!D29)","v":0},"Bázis adat: változás, vagy éves bontás esetén átírható"]
[null,null,"-","Lekötés éve:",null,null,"Ha nincs több sor, akkor törlendő"]
[null,null,"-","Lekötés éve:",null,null,"Ha nincs több sor, akkor törlendő"]
[7,"Lekötött tartalék összesen",null,null,null,{"$f":"F7+F14+F26-F27-F28+SUM(F29:F31)","v":0}]
[null,null,null,null,null,"eFt"]
[null,null,null,"Lekötés előtt","Lekötés\nváltozás","Mérleg érték"]
[8,"Tőketartalék",null,{"$f":"D9","v":0},{"$f":"-F7+F27","v":0},{"$f":"D35-E35","v":0}]
[9,"Eredménytartalék",null,{"$f":"D15","v":0},{"$f":"-F14+F28","v":0},{"$f":"D36+E36","v":0}]
[10,"Lekötött tartalék összesen",null,{"$f":"SUM(F29:F31)","v":0},{"$f":"F37-D37","v":0},{"$f":"F32","v":0}]

{"sheet":"AP (É)","index":17,"n_rows":46,"n_cols":5,"rows_kept":46,"cut":false,"hidden":true,"merged":[[45,1,45,2],[9,0,9,2],[19,0,19,2],[38,1,38,2],[31,1,31,2],[16,1,16,2],[30,1,30,2],[22,1,22,2],[18,1,18,2],[11,1,11,2],[20,1,20,2],[44,1,44,2],[0,0,0,5],[37,1,37,2],[2,0,2,4],[12,1,12,2],[13,1,13,2],[17,1,17,2],[21,1,21,2],[24,1,24,2],[25,1,25,2],[27,1,27,2],[23,1,23,2],[29,1,29,2],[28,1,28,2],[14,1,14,2],[15,1,15,2],[26,1,26,2],[8,4,8,5],[1,0,1,5],[3,0,3,5],[4,0,4,5],[7,4,7,5],[8,1,8,2],[5,2,5,3]]}
["5.melléklet"]
["Aktív   -   Passzív\nelhatárolások leltára"]
[]
["Készült a"]
[{"$f":"Adat!B5","v":"Macskafarka Kft"}]
[null,{"$f":"Adat!B11","v":2012},". évi beszámolójához"]
["Dátum:",{"$f":"Adat!B12","v":"2012-12-31"}]
[null,null,null,null,"Ft"]
["Bizonylat\ndátuma","Gazdasági \nesemény",null,"Várható\nfeloldás","Elhatárolás\nösszege"]
["A K T I V  elhatárolások"]
[{"$f":"Adat!$B$12","v":"2012-12-31"},"Kamat elhatárolása",null,{"$f":"Adat!$B$11+1","v":2013}]
[{"$f":"Adat!$B$12","v":"2012-12-31"},"Egyéb bevételek elhatárolása",null,{"$f":"Adat!$B$11+1","v":2013}]
[{"$f":"Adat!$B$12","v":"2012-12-31"},"Újságelőfizetések",null,{"$f":"Adat!$B$11+1","v":2013}]
[{"$f":"Adat!$B$12","v":"2012-12-31"},"Bérleti díjak",null,{"$f":"Adat!$B$11+1","v":2013}]
[{"$f":"Adat!$B$12","v":"2012-12-31"},"Előre fizetett biztosítási díj",null,{"$f":"Adat!$B$11+1","v":2013}]
[{"$f":"Adat!$B$12","v":"2012-12-31"},null,null,{"$f":"Adat!$B$11+1","v":2013}]
[{"$f":"Adat!$B$12","v":"2012-12-31"},"Egyéb"]
[null,"Aktiv időbeli elhatárolások összesen:",null,null,{"$f":"SUM(E10:E17)","v":0}]
[null,"Mérleg érték:",null,null,{"$f":"ROUND(E18/1000,0)","v":0}]
["P A S S Z I V  elhatárolások"]
[{"$f":"Adat!$B$12","v":"2012-12-31"},"Bevételek elhatárolása",null,{"$f":"Adat!$B$11+1","v":2013}]
[{"$f":"Adat!$B$12","v":"2012-12-31"},"Bankktg, jutalék",null,{"$f":"Adat!$B$11+1","v":2013}]
[{"$f":"Adat!$B$12","v":"2012-12-31"},"Telefonköltség",null,{"$f":"Adat!$B$11+1","v":2013}]
[{"$f":"Adat!$B$12","v":"2012-12-31"},"Közüzemi díjak",null,{"$f":"Adat!$B$11+1","v":2013}]
[{"$f":"Adat!$B$12","v":"2012-12-31"},"Könyvelés",null,{"$f":"Adat!$B$11+1","v":2013}]
[{"$f":"Adat!$B$12","v":"2012-12-31"},"Könyvvizsgálat",null,{"$f":"Adat!$B$11+1","v":2013}]
[{"$f":"Adat!$B$12","v":"2012-12-31"},"Egyéb szolgáltatás",null,{"$f":"Adat!$B$11+1","v":2013}]
[{"$f":"Adat!$B$12","v":"2012-12-31"},"Szakmai tanácsadás",null,{"$f":"Adat!$B$11+1","v":2013}]
[{"$f":"Adat!$B$12","v":"2012-12-31"},"Vámkezelés",null,{"$f":"Adat!$B$11+1","v":2013}]
[{"$f":"Adat!$B$12","v":"2012-12-31"},"Késedelmi kamat",null,{"$f":"Adat!$B$11+1","v":2013}]
[{"$f":"Adat!$B$12","v":"2012-12-31"},"Management fee",null,{"$f":"Adat!$B$11+1","v":2013}]
[{"$f":"Adat!$B$12","v":"2012-12-31"},"Munkáltatói táppénz",null,{"$f":"Adat!$B$11+1","v":2013}]
[{"$f":"Adat!$B$12","v":"2012-12-31"},"Vezető tisztségviselők","üzleti év utáni járandóság",{"$f":"Adat!$B$11+1","v":2013}]
[{"$f":"Adat!$B$12","v":"2012-12-31"},"Igazgatóság","üzleti év utáni járandóság",{"$f":"Adat!$B$11+1","v":2013}]
[{"$f":"Adat!$B$12","v":"2012-12-31"},"Felügyelő bizottság","üzleti év utáni járandóság",{"$f":"Adat!$B$11+1","v":2013}]
[{"$f":"Adat!$B$12","v":"2012-12-31"},"Egyéb évi végi eredményhez kötött prémium",null,{"$f":"Adat!$B$11+1","v":2013}]
[{"$f":"Adat!$B$12","v":"2012-12-31"},"Üzleti év utáni jutalom, prémium utáni járulékok",null,{"$f":"Adat!$B$11+1","v":2013}]
[{"$f":"Adat!$B$12","v":"2012-12-31"},"Árfolyamnyereség",null,{"$f":"Adat!$B$11+1","v":2013}]
[{"$f":"Adat!$B$12","v":"2012-12-31"},"Támogatások halasztott bevételként ",null,{"$f":"Adat!$B$11+1","v":2013}]
[null,null,null,{"$f":"Adat!$B$11+2","v":2014}]
[null,null,null,{"$f":"Adat!$B$11+3","v":2015}]
[null,null,null,{"$f":"Adat!$B$11+4","v":2016}]
[null,null,null,{"$f":"Adat!$B$11+5","v":2017}]
[{"$f":"Adat!$B$12","v":"2012-12-31"},"Egyéb  "]
[null,"Passzív időbeli elhatárolások összesen:",null,null,{"$f":"SUM(E20:E44)","v":0}]
[null,"Mérleg érték:",null,null,{"$f":"ROUND(E45/1000,0)","v":0}]

{"sheet":"Szem","index":18,"n_rows":36,"n_cols":5,"rows_kept":36,"cut":false,"hidden":false,"merged":[[33,1,33,3],[21,1,21,3],[22,1,22,3],[23,1,23,3],[24,1,24,3],[26,1,26,3],[31,1,31,3],[32,1,32,3],[9,1,9,3],[10,1,10,3],[25,1,25,3],[30,1,30,3],[11,1,11,3],[12,1,12,3],[17,1,17,3],[18,1,18,3],[27,1,27,3],[28,1,28,3],[19,1,19,3],[20,1,20,3],[13,1,13,3],[14,1,14,3],[15,1,15,3],[16,1,16,3],[5,0,5,4],[7,1,7,3],[0,3,0,4],[1,0,1,4],[2,0,2,4],[3,0,3,4]]}
[null,null,null,"NEM MELLÉKLET!"]
["Személyi jellegű kiadások "]
["Készült a"]
[{"$f":"Adat!B5","v":"Macskafarka Kft"}]
[null,{"$f":"Adat!B11","v":2012},". évi beszámolójához"]
[]
["Dátum:",{"$f":"Adat!B12","v":"2012-12-31"},null,null,"Ft"]
["Főkönyvi\nszám","Személyi jellegű\nköltségnem megnevezése",null,null,"Egyenleg"]
[]
[5511,"Utazási költségtérítés"]
[5512,"Napidíj"]
[5513,"Betegszabadság"]
[5514,"Munkáltatót terhelő táppénz, táppénzkiegészítés"]
[5515,"Munkavállaló részére kötött baleset-, élet- és nyugdíjbiztosítás"]
[5516,"Önkéntes pénztárba fizetett munkáltatói tagdíjhozzájárulás"]
[5517,"Végkielégítés, korengedményes nyugdíjhoz hozzájárulás"]
[5518,"Találmányi, újítási díjak"]
[5521,"Természetbeni juttatás"]
[5522,"Üzleti vendéglátás"]
[5523,"Üzleti ajándék"]
[5524,"Tárgyjutalmak, segélyek"]
[5525,"Kedvezményes adózású béren kívüli juttatás"]
[5526,"x"]
[5527,"Munkaruha, védőital"]
[5528,"Adómentes természetbeni juttatások"]
[5529,"x"]
[5561,"Természetbeni juttatás szja vonzata"]
[5562,"Kedvezményes adózású béren kívüli juttatás szja vonzata"]
[5563,"x"]
[5564,"Kamatkedvezményből származó jövedelem szja vonzata"]
[5591,"Foglalkozás-eü szolg."]
[5592,"Megváltozott munkaképességű dolgozók keresetkiegészítése"]
[5593,"Közteherjegy felhasználása"]
[5594,"Alkalmi munkavállalási díj"]
[]
[null,"Összesen:",null,null,{"$f":"SUM(E10:E34)","v":0}]

{"sheet":"CF (É)","index":19,"n_rows":45,"n_cols":9,"rows_kept":45,"cut":false,"hidden":true,"merged":[[5,0,5,6],[6,0,7,3],[0,0,0,6],[1,0,1,6],[2,0,2,6],[3,0,3,6],[4,2,4,6],[6,5,7,5],[18,0,18,2],[8,0,8,6],[9,0,9,2],[10,0,10,2],[12,0,12,2],[16,0,16,2],[13,0,13,2],[14,0,14,2],[15,0,15,2],[17,0,17,2],[39,0,39,2],[34,0,34,2],[35,0,35,2],[36,0,36,2],[37,0,37,2],[38,0,38,2],[31,0,31,2],[25,0,25,2],[33,0,33,2],[26,0,26,2],[27,0,27,2],[28,0,28,2],[29,0,29,2],[30,0,30,2],[32,0,32,2],[19,0,19,2],[20,0,20,2],[21,0,21,2],[24,0,24,2],[22,0,22,2],[23,0,23,2]]}
["6. melléklet"]
["Cash Flow kimutatás"]
["Készült a "]
[{"$f":"Adat!B5","v":"Macskafarka Kft"}]
[null,{"$f":"Adat!B11","v":2012},". évi beszámolójához"]
[]
["Tényező",null,null,null,{"$f":"'MLE (É)'!D7","v":"Bázis év"},{"$f":"'MLE (É)'!E7","v":"Előző év(ek) \nmódosítása"},{"$f":"'MLE (É)'!F7","v":"Tárgy év"},null,"előjel"]
[null,null,null,null,{"$f":"'MLE (É)'!D8","v":"2011-12-31"},null,{"$f":"'MLE (É)'!F8","v":"2012-12-31"},null,"ellenőrzés"]
[]
["I.   Szokásos tevékenységből származó pénzeszköz-változás \n     (Működési cash flow)",null,null,null,{"$f":"SUM(E11:E24)","v":0},{"$f":"SUM(F11:F24)","v":0},{"$f":"SUM(G11:G24)","v":0}]
["1.      Adózás előtti eredmény",null,null,"±",{"$f":"'MLE (É)'!D54","v":0},{"$f":"'MLE (É)'!E54","v":0},{"$f":"'MLE (É)'!F54+C12","v":0}]
[null,"korr:"]
["2.      Elszámolt amortizáció",null,null,"+",{"$f":"'MLE (É)'!D28","v":0},{"$f":"'MLE (É)'!E28","v":0},{"$f":"'MLE (É)'!F28","v":0},null,{"$f":"IF(OR(E13<0,G13<0),\"Hiibás az előjel!\",\"ok\")","v":"ok"}]
["3.      Elszámolt értékvesztés és visszaírás",null,null,"+",{"$f":"'MLE (É)'!D30-'MLE (É)'!D17","v":0},{"$f":"'MLE (É)'!E30-'MLE (É)'!E17","v":0},null,{"$f":"'MLE (É)'!F30-'MLE (É)'!F17","v":0},{"$f":"IF(OR(E14<0,G14<0),\"Hiibás az előjel!\",\"ok\")","v":"ok"}]
["4.      Céltartalékképzés és -felhasználás különbözete",null,null,"±",null,null,{"$f":"+'MLM (É)'!I72","v":0}]
["5.      Befektetett eszközök értékesítésének eredménye",null,null,"±",null,null,null,"861-961"]
["6.      Szállítói kötelezettség változása",null,null,"±",null,null,{"$f":"+'MLM (É)'!I97","v":0}]
["7.      Egyéb rövid lejáratú kötelezettségek változása",null,null,"±",null,null,{"$f":"'MLM (É)'!I96+'MLM (É)'!I98+'MLM (É)'!I100+'MLM (É)'!I101+'MLM (É)'!I102","v":0}]
["8.      Passzív időbeli elhatárolások változása",null,null,"±",null,null,{"$f":"+'MLM (É)'!I103","v":0}]
["9.      Vevőkövetelés változása",null,null,"±",null,null,{"$f":"-'MLM (É)'!I43","v":0}]
["10.     Forgóeszközök (vevőkövetelés és pénzeszköz nélkül) változása",null,null,"±",null,null,{"$f":"-'MLM (É)'!I34+'MLM (É)'!I43+'MLM (É)'!I54","v":0},"(+kapcsolt köv?)"]
["11.     Aktív időbeli elhatárolások változása",null,null,"±",null,null,{"$f":"-'MLM (É)'!I57","v":0}]
["12.     Fizetett, fizetendő adó (nyereség után)",null,null,"-",{"$f":"-'MLE (É)'!D55","v":0},{"$f":"-'MLE (É)'!E55","v":0},{"$f":"-'MLE (É)'!F55","v":0},null,{"$f":"IF(OR(E23>0,G23>0),\"Hiibás az előjel!\",\"ok\")","v":"ok"}]
["13.     Fizetett, fizetendő osztalék, részesedés",null,null,"-",{"$f":"-('MLE (É)'!D57+'MLE (É)'!D58)","v":0},{"$f":"-('MLE (É)'!E57+'MLE (É)'!E58)","v":0},{"$f":"-('MLE (É)'!F58)","v":0},null,{"$f":"IF(OR(E24>0,G24>0),\"Hiibás az előjel!\",\"ok\")","v":"ok"}]
["II.  Befektetési tevékenységből származó pénzeszközváltozás\n     (Befektetési cash flow)",null,null," ",{"$f":"SUM(E26:E28)","v":0},{"$f":"SUM(F26:F28)","v":0},{"$f":"SUM(G26:G28)","v":0}]
["14.     Befektetett eszközök beszerzése",null,null,"-",null,null,{"$f":"-('Tárgyi (É)'!D77-'Tárgyi (É)'!D72)","v":0},"tárgyi tükörből",{"$f":"IF(OR(E26>0,G26>0),\"Hiibás az előjel!\",\"ok\")","v":"ok"}]
["15.     Befektetett eszközök eladása",null,null,"+",null,null,null,"961.fők.szla + ép.eladás",{"$f":"IF(OR(E27<0,G27<0),\"Hiibás az előjel!\",\"ok\")","v":"ok"}]
["16.     Kapott osztalék, részesedés",null,null,"+",{"$f":"'MLE (É)'!D32","v":0},null,{"$f":"'MLE (É)'!F32","v":0},null,{"$f":"IF(OR(E28<0,G28<0),\"Hiibás az előjel!\",\"ok\")","v":"ok"}]
["III. Pénzügyi műv. szárm. Pénzeszközváltozás\n     (Finanszírozási cash flow)",null,null," ",{"$f":"SUM(E30:E40)","v":0},{"$f":"SUM(F30:F40)","v":0},{"$f":"SUM(G30:G40)","v":0}]
["17.     Részvénykibocsátás, tőkebevonás bevétele",null,null,"+",null,null,null,null,{"$f":"IF(OR(E30<0,G30<0),\"Előjel!\",\"ok\")","v":"ok"}]
["18.     Kötvény, hitelviszonyt megtestesítő értékpapír kibocsátásának\n          bevétele",null,null,"+",null,null,null,null,"ok"]
["19.     Hitel és kölcsön felvétele",null,null,"+",null,null,null,null,"ok"]
["20.     Hosszú lejáratra nyújtott kölcsönök és elhelyezett bankbetétek \n          törlesztése, megszüntetése, beváltása",null,null,"+",null,null,{"$f":"+'Tárgyi (É)'!E72","v":0},"tárgyi tükörből","ok"]
["21.     Véglegesen kapott pénzeszköz",null,null,"-",null,null,null,null,"ok"]
["22.     Részvénybevonás, tőkekivonás (tőkeleszállítás)",null,null,"-",null,null,null,null,"ok"]
["23.     Kötvény és hitelviszonyt megtestesítő értékpapír visszafizetése",null,null,"-",null,null,null,null,"ok"]
["24.     Hitel és kölcsön törlesztése, visszafizetése ",null,null,"-",null,null,null,"lízing nem!","ok"]
["25.     Hosszú lejáratra nyújtott kölcsönök és elhelyezett bankbetétek",null,null,"-",null,{"$f":"-'MLM (É)'!E25","v":0},{"$f":"-'Tárgyi (É)'!D72","v":0},"tárgyi tükörből","ok"]
["26.     Véglegesen átadott pénzeszköz",null,null,"-",null,null,null,"8694+8698","ok"]
["27.     Alapítókkal szembeni, illetve egyéb hosszú lejáratú kötelezettségek \n          változása",null,null,"+",null,null,{"$f":"+'MLM (É)'!I99+'MLM (É)'!I91","v":0},null,"ok"]
["IV.  Pénzeszközök változása (± I ± II ± III )",null,null,"±",{"$f":"E10+E25+E29","v":0},{"$f":"F10+F25+F29","v":0},{"$f":"G10+G25+G29","v":0}]
[]
[]
["Pénzeszközök változása a mérlegben",null,null,null,null,null,{"$f":"+'MLM (É)'!F54-'MLM (É)'!D54","v":0}]
[null,null,"Differencia:",null,{"$f":"ROUND(E44-E41,0)","v":0},null,{"$f":"ROUND(G44-G41,0)","v":0}]

{"sheet":"TA","index":20,"n_rows":190,"n_cols":15,"rows_kept":190,"cut":false,"hidden":false,"merged":[[137,0,137,4],[142,1,142,2],[132,2,132,4],[94,2,94,4],[95,2,95,4],[125,2,125,4],[108,2,108,4],[115,2,115,4],[119,0,119,4],[110,2,110,4],[111,2,111,4],[138,1,138,2],[127,2,127,4],[126,2,126,4],[123,2,123,4],[101,2,101,4],[105,2,105,4],[100,2,100,4],[189,0,189,4],[162,0,162,4],[177,2,177,4],[178,0,178,4],[187,0,187,4],[168,2,168,4],[159,4,159,5],[107,2,107,4],[118,0,118,5],[113,2,113,4],[109,2,109,4],[116,2,116,4],[117,0,117,4],[114,2,114,4],[112,2,112,4],[144,1,144,2],[157,4,157,5],[103,2,103,4],[102,2,102,4],[146,1,146,2],[136,2,136,4],[128,2,128,4],[129,2,129,4],[6,8,6,10],[7,8,7,15],[80,2,80,4],[96,2,96,4],[18,2,18,4],[17,2,17,4],[16,2,16,4],[14,2,14,3],[60,0,60,4],[71,2,71,4],[73,2,73,4],[79,2,79,4],[84,10,84,11],[83,10,83,11],[81,2,81,4],[74,10,74,14],[80,10,80,11],[81,10,81,11],[82,10,82,11],[75,10,75,11],[76,10,76,11],[79,10,79,11],[12,2,12,3],[24,2,24,4],[99,2,99,4],[98,2,98,4],[58,0,58,4],[61,2,61,3],[86,4,89,4],[69,2,69,4],[77,2,77,4],[4,3,4,5],[10,2,10,3],[11,2,11,4],[15,2,15,4],[19,2,19,4],[22,2,22,4],[23,2,23,4],[5,0,5,4],[13,2,13,3],[90,2,90,4],[91,2,91,4],[93,2,93,4],[47,2,47,4],[46,2,46,4],[0,0,0,5],[6,0,6,4],[7,2,7,3],[1,0,1,5],[3,0,3,5],[9,2,9,3],[2,2,2,4],[4,0,4,2],[48,2,48,4],[30,2,30,4],[20,2,20,4],[65,2,65,4],[74,2,74,4],[92,2,92,4],[63,2,63,4],[75,2,75,4],[67,2,67,4],[66,2,66,4],[76,2,76,4],[59,0,59,5],[26,2,26,3],[57,2,57,4],[54,2,54,4],[32,2,32,4],[27,2,27,3],[49,2,49,4],[37,2,37,4],[40,2,41,2],[38,2,38,4],[31,2,31,4],[50,2,50,4],[28,2,28,4],[36,2,36,4],[39,2,39,4],[0,7,4,7],[124,2,124,4],[97,2,97,4],[104,2,104,4],[35,2,35,4],[33,2,33,4],[29,2,29,4],[21,2,21,4],[106,2,106,4],[45,2,45,4],[78,2,78,4],[44,2,44,4],[51,2,51,4],[52,2,52,4],[53,2,53,4],[64,2,64,4],[55,2,55,4],[68,2,68,4],[72,2,72,4],[70,2,70,4],[25,2,25,3],[34,2,34,4]]}
[{"$f":"IF(Adat!A18=1,\"10. melléklet\",\"NEM MELLÉKLET\")","v":"NEM MELLÉKLET"}]
["Társasági adóalap korrekciós tételek"]
[null,null,"Készült a",null,null,{"$f":"IF(AND(H17=\"\",H33=\"\",H38=\"\",H45=\"\",H138=\"\"),\"\",\"HIBÁS!\")","v":""}]
[{"$f":"Adat!B5","v":"Macskafarka Kft"}]
[{"$f":"Adat!B11","v":2012},null,null,". évi beszámolójához"]
[{"$f":"Adat!B12","v":"2012-12-31"},null,null,null,null,"ezer Ft"]
["Adóalap csökkentő jogcímek \naz 1996.évi LXXXI társasági és osztalékadóról szóló törvény 7§ szerint:",null,null,null,null,"Összeg",null,"Ellenőrzés, autom megjegyz.","MAGYARÁZATOK:"]
["'29","tv.7§","megnevezés",null,"a","b"]
[]
[1,"a)","Elhatárolt veszteségből leírt összeg",null,0,0,null,"Max korábbi Tao alap 50%-ig!"]
[2,"b)","Előző évben köt-re, ktg-re, elszámolt céltartalék felhasználása",null,0,0]
[null,"c)","Jogdíj bevételre jogosító immat.jószág kivezetésének nyeresége (LT-ként kimutatott összeg)",null,null,0]
[3,"cs)","Terven felüli écs adóévben visszaírt összege",null,null,0,null,{"$f":"IF((MLE!$I$18+MLE!$I$19+TA!$E$14)=(TA!F14),\"Számviteli écs =Tao écs ?!\",\"Ellenőrizni!\")","v":"Számviteli écs =Tao écs ?!"}]
[4,"d)","Adótörv szerinti écs leírás + kivezetett, átsorolt tárgyi eszköz nyilv.érték",null,0,0,null,"Tao-s écs lista+(572)+Tao-s kivez nettó"]
[5,"dz)","Bejelentett részesedés értékesítésének árf.nyer., apportba adás nyer.",null,null,0]
[null,"e)","Bejelentett immat. jószág kivezetésének nyeresége",null,null,0]
[6,"f)","Fejlesztési tartalék (Adózás előtti nyereség 50%-a, max 500 mFt)",null,null,0,null,{"$f":"IF(F17=0,\"\",IF(F17=0,\"\",IF(D140>=0,IF(OR(F17>D140*0.5,F17>500000),\"Túl magas az összeg!\",\"\"),\"Az AEE negatív!\")))","v":""}]
[7,"g)","Kapott (járó) osztalék, részesedés címén elsz.bevétel, kivéve ell.külf-i társ-tól kapott osztalék",null,null,0]
[8,"gy)","Kivezetett részesedés: könyv sz.ért-t meghaladó bevétel ",null,null,0]
[9,"h)","Megszerzett társaság tagjánál: kedvezményezett részesedéscsere miatt kivezetett részesedés árf.nyer.",null,null,0]
[10,"i)","Iskolai rendszerű szakképzésben közreműködő adózónál tanulónként mini.bér meghat. %-a",null,null,0]
[11,"j)","Sikeres szakmai vizsgát tett szakképző iskolai tanuló, munkanélküli, ... után fiz. Tbj",null,null,0]
[12,"l)","2009-ig beszerzett képzőművészeti alkotás beszerzése, max a beszerzési ért.20%-a (2013-ig!)",null,null,0]
[13,"ly)","2009-ig kapott támogatás, juttatás, a véglegesen átvett pénzeszköz, térítés nélkül átvett eszköz időbeli elhatárolás megszűntetéseként elsz. bevétele (2012-ig!)",null,null,0]
[15,"n)","Behajthatatlan követelés, köv-re visszaírt ért.veszt., átruházáskor, kiegy-kor a könyv sz.érték felett befolyt összeg, de max. a nyilvántartott ért.veszt.\nKövetelésre visszaírt értékvesztés",null,null,{"$f":"SUM(E26:E28)","v":0},null,"Ebből visszaírt értékveszt:",{"$f":"MLE!I44","v":0}]
[null,null,"   Behajthatatlan követelés (éven túl lejárt köv 20%, max nyilv.ért.veszt)",null,0]
[null,null,"   Követelésre visszaírt ért.veszt",null,0]
[null,null,"   Követelés kivezetéskor a könyv sz.ért.felett befolyt rész",null,0]
[16,"o)","Társasház, társasüdülő tulaj-ok által megszerzett jövedelemből származó bev, ami után a társasház megfizette az szja-t.",null,null,0]
[17,"p)","Devizanem áttérés: ered.tart. csökk.-ként elsz. átszámítási különbözet (áttérést követő évben!)",null,null,0]
[18,"q)","Tulajdoni részesedésre visszaírt értékvesztés, ha korábban növelő tételként figyelembe vette",null,null,0]
[19,"r)","Bírság, Art jogkövetkezmények elengedése miatt keletkezett bevétel (ha növelő tétel is volt)",null,null,0]
[20,"s)","Kapott jogdíj alapján elszámolt bevétel 50%-a (választás alapján, de max.A.E.E. 50%-a)",null,null,0,null,{"$f":"IF(F33=0,\"\",IF($D$140>=0,IF($F$33>$D$140*0.5,\" Max AEE 50%-a !\",\"\"),\"Az AEE negatív!\"))","v":""}]
[21,"t)","Saját tev-ben végzett alapkut., alkalmazott kut., kís.fejl. közvetlen ktg. (kv: igénybe vett szolg.), \nvagy adóévben elszámolt értékcsökkenése; csökkentve a kapott támogatással!",null,null,0]
[null,"(17)","7.§ (t) pont szerinti ktg. 3-szorosa - felsőoktatás, MTA, EGT-tagállam hasonló szervezetével közösen végzett kutatás esetén (max 50 mFt)",null,null,0,null,"Bevallásban egy cellába megy!"]
[22,"ty)","Műemlék, ill. helyi egyéni védelem alatt álló épület, építmény értéknövelő felújításának értéke.",null,null,0]
[23,"u)","Adóellenőrzés, önell. során megállapított Bevétel, AST növekedés, vagy Ktg, Ráf csökkenés",null,null,0]
[24,"v)","50%-ban megváltozott munkaképességű munkavállaló bére, legfeljebb a minimálbér 50%-a",null,null,0,null,{"$f":"IF(F38=0,\"\",IF(F38>(78*12*0.5),\"Max a minimálbér 50%-a!\",\"\"))","v":""}]
[25,"29/I.§","Adózó által átruházott részesedésre elszámolt árfolyamnyereség",null,null,0]
[26,"y)","Mikrováll-nál: előző adóévhez képest bekövetkezett létszámnövekedés * minimálbér ",null,null,0]
[27,"z)","Adott támog., tér.nélkül átadott eszk, tér.nélkül ny.szolg. (max. A.E.E.)","Közh. adományozás:. 20%",0,{"$f":"E41*0.2","v":0},null,"Max AEE."]
[null,null,null,"Közhasznú szerv. + tartós 40%",0,{"$f":"E42*0.4","v":0}]
[null,null,null,"Magyar Kármentő Alap         50%",0,{"$f":"E43*0.5","v":0}]
[null,null,null,"Magyar Kármentő Alap         70%",0,{"$f":"E44*0.7","v":0}]
[28,"zs)","Mikro- és kisvállalkozásnál a korábban még használatba nem vett meghat. beruházások",null,null,0,null,{"$f":"IF(F45=0,\"\",IF(D140>=0,IF(OR(F45>D140,F45>30000),\"Túl magas az összeg!\",\"\"),\"Az AEE negatív!\"))","v":""}]
[29,"dzs)","Döntés alapján a fedezeti ügylettel nem fedezett devizás bef.pü.eszk, hosszú lej.köt. nem realizált árf.nyer + kivezett devizás bef.pü.eszk, hosszú lej.köt. Árf.nyer-e, ha az előző években 8.§(1) dzs) a) alapján növelő tétel volt.",null,null,0]
[30,"18§","Kapcs.váll-ok között a szokásos piaci ár és az elszámolóár alapján számított különbözet,\nha az elszámolóóár kisebb mint a szokásos piaci ár",null,null,0]
[31,"9§ (2)","Közhasznú alapítvány, társ szerv, vállalk tev adózás előtti nyereségének 20 %-a",null,null,0]
[32,"9§(2)","Mváll.érdekképv.szerv vállalk nyereségének egy adott része …",null,null,0]
[33,"9§(5)","Egyházak vállalk nyereségének egy adott része …",null,null,0]
[34,"14§","Külf vállalkozó belf-i telephelyre arányosan jutó üzletvezetési, ált ügyviteli ktg, ráf.",null,null,0]
[35,"16§","Kiválásnál első adóévben a nem kedvezményezett átalakuláskor …",null,null,0]
[36,"16 § ","Jogutódnél kedvezményezett átalakulás miatt fennáló csökkentő összeg",null,null,0]
[37,"16§ ","Kedvezményezett eszkátruházásnál az átruházó társaságnál…",null,null,0]
[38,"16§ ","Kedvezményezett eszkátruházásnál az átrvevő társaságnál…",null,null,0]
[39,null,"Egyéb (különösen 29/D §…)",null,null,0]
[null,null,"Egyéb …",null,null,0]
[]
["Csökkentő tételek összesen",null,null,null,null,{"$f":"SUM(F10:F57)","v":0}]
["ezer Ft"]
["Adóalap növelő jogcímek \naz 1996.évi LXXXI társasági és osztalékadóról szóló törvény 8§ szerint:",null,null,null,null,"Összeg"]
["'29","tv.8§","megnevezés",null,"a","b"]
[]
[1,"a)","Várható köt-re, jövőbeni ktg-re képzett céltartaalék, céltartalékot növelő összeg",null,null,0]
[2,"b)","Számvitel elsz. écs, terven felüli écs, kivezetett, átsorolt immat, tárgyi eszk. könyv szerinti ért.",null,null,{"$f":"IF(Adat!A18=1,('MLE (É)'!I18+'MLE (É)'!I19+'MLE (É)'!I24+'MLE (É)'!I30),MLE!I18+MLE!I19+MLE!I24+MLE!I30)","v":0},null,"Szvtv écs lista+(572)+Szvtv kivez nettó"]
[3,"d)","Nem a vállalkozási bevételszerző tevékenységgel kapcs. ktg-ek, ráfordítások, écs",null,null,{"$f":"SUM(F67:F77)","v":0},null,{"$f":"IF((MLE!$I$18+MLE!$I$19+TA!$E$14)=(TA!F65),\"OK\",\"Ellenőrizni!\")","v":"OK"}]
[null,"4.","   Nettó 200 ezer forintot meghaladó szolg ellenértéke ha az nem ésszerű gazdálkodás…",null,null,0]
[null,"5.","   Gondatlanság miatti hiány esetén a hiányzó eszköz nyilvántartási szerinti értéke",null,null,0]
[null,"6.","   Tárgyi eszk.selejtezésekor a könyv szerinti értéke, ha a nincs megfelelően dokumentálva",null,null,0]
[null,"7.","   Külön megállapodás alapján fizetett egészségbiztosítási járulék",null,null,0]
[null,"8.","   Bűncselekmény elkövetése érdekében vagy azzal összefüggésben merült fel",null,null,0]
[null,"9.","   Ellenőrzött külföldi társaság részére juttatott ellenérték következtében felmerülő ktg,ráf.",null,null,0]
[null,"10.","   Bíróság előtt nem érvényesíthető követelés, elévült követelés",null,null,0]
[null,"11.","   ST/JT arány vagy veszt fedezetére tőkeemelés révén szerzett részesedésre elsz. Ért.veszt.",null,null,0]
[null,"13.","   Adott támogatás, juttatás, eszköz, pénzeszk, nyújtott szolg., átvállalt kötelezettség, áfa\n   - külföldi személynek vagy külf-i illetőségű részére, vagy\n   - ha nincs nyilatkozat arról, hogy a támogatottnak a támogatás bevétele nélkül nem lesz \n     negatív az adóalapja! (igazolás beszámolóval)",null,null,0,null,null,null,null,"Adott támogatás, juttatás, eszköz, pénzeszk, nyújtott szolg., átvállalt kötelezettség, áfa\nTételes lista:"]
[null,"14.","   Egyszerűsített foglalkoztatás esetén az 1 napi munkabér, napi minimálbér 2x-t meghaladó \n   összege",null,null,0,null,null,null,null,"Támogatott:",null,"Támogatás összege","Ebből: igazolás - ok","igazolás - nem ok"]
[null,null,"   Egyéb, nem a váll.érdekében felmerülő tételek (Nullás végű főkönyvi számok egyenlege)",null,null,{"$f":"IF(Adat!A18=1,'MLE (É)'!K35,MLE!K35)","v":0}]
[4,"e)","Adóbírság, késedelmi pótlék, jogkövetkezményekből adódó köt (kivéve önellenőrzési pótlék)",null,null,{"$f":"IF(Adat!A18=1,'MLE (É)'!I26,MLE!I26)","v":0}]
[5,"f)","Ell.külf-i társ. Másik ell.külf.társ-ban lévő részesedésére jutó felosztott m.sz.e",null,null,0]
[6,"gy)","Követelésre elszámolt számviteli értékvesztés ",null,null,{"$f":"IF(Adat!A18=1,'MLE (É)'!I29,MLE!I29)","v":0},null,{"$f":"IF(F25>0,\"+előző adóév visszaírt ért.veszt\",\"\")","v":""}]
[7,"h)","Behajthatatlan köv-nek nem minősülő elengedett követelés: nem magánszem. kapcs.váll. javára",null,null,{"$f":"IF(Adat!A18=1,'MLE (É)'!I34,MLE!I34)","v":0}]
[8,"j)","ST 3x-t meghaladó kapott kölcsön arányos kamat része",null,null,{"$f":"IF(D86<(D87+D88-D89),(D83+D84)*(E87),0)","v":0}]
[null,null,"Kölcsön után fizetett kamat:",0]
[null,null,"Transzferár szabály miatt elszámolt Tao alap csökkentő tétel (18.§):",{"$f":"F47","v":0},null,null,null,null,null,null,"Összesen:",null,{"$f":"SUM(M77:M83)","v":0},{"$f":"SUM(N77:N83)","v":0},{"$f":"SUM(O77:O83)","v":0}]
[null,null,"Saját tőke (JT+TT+ET+LT):",0,null,null,null,null,null,null,null,null,{"$f":"ROUND(M84/1000,0)","v":0},{"$f":"ROUND(N84/1000,0)","v":0},{"$f":"ROUND(O84/1000,0)","v":0}]
[null,null,"Saját tőke háromszorosa:",{"$f":"D85*3","v":0}]
[null,null,"Nem banki kölcsön átl.állománya:",0,{"$f":"IF((D87+D88-D89)=0,0,D90/(D87+D88-D89))","v":0}]
[null,null,"Transzferár szabály miatt elszámolt Tao alap csökkentő tétel (18.§):",{"$f":"D84","v":0}]
[null,null,"Pénzkövetelés napi átl. állománya (Bef.pü.eszk, Köv., Ért.p. mérlegsor)",0]
[null,null,"ST 3x-t meghaladó kölcsön:",{"$f":"IF((D87-D86)>0,D87-D86,0)","v":0}]
[null,"k)","Termőföldből átminősített ingatlant tulajdonos tagjánál(!): a részesedés értékesítéséből származó árfolyamnyer.és a tulajdonban tartásának időszakára kiszámított szokásos eredmény különöbezének 2x-szorzata, ",null,null,0]
[null,"l)","Termőföldből átminősített ingatlan kivezetésének jövedelme (bev-ráf-beruh.), és a részesedés időszakának szokásos eredményének különbözetének 2x szorzata",null,null,0]
[9,"m)","Ellenőrzött külf-i társaságban lévő részesedés ért.veszt, árf.veszt, kivez. bevételt meghaladó része (kivéve: átalakulásnál a bejelentett részesedés)",null,null,0]
[null,"n)","Bejelentett immat.jószág kivezetésének nyeresége",null,null,0]
[10,"o)","Devizanem áttérés miatt a tőketart. növeléseként elsz. átszámítási kül. (áttérést követő évben)",null,null,0]
[11,"p)","Adóellenőrzés, önell. során megállapított Ktg, Ráf növelés, vagy Bev, AST csökkenés",null,null,0]
[12,"r)","7.§(gy) csökkentő tételből kedvezményezett átalakulással megszerzett részesedés bekerülési /könyv szerinti ért. csökkenéseként elsz.összeg ",null,null,0,null,{"$f":"IF(F19>0,\"7§ (1) gy) szerint kiv.rész...\",\"\")","v":""}]
[13,"s)","Előző években elsz. Közhasznú adomány része, ha a másik felet törölték a közhasznúsági nyilvántartásból, vagy megszűnt, ill. ennek kétszerese, ha az adózó nem teljesített",null,null,0]
[14,"t)","Kedvezményezett részesedéscsere alapján megszerzett részesedés kivezetett miatti ráf.",null,null,0,null,{"$f":"IF(F20>0,\"7§ (1) h) szerint kiv.rész...\",\"\")","v":""}]
[15,"u)","Korábban igénybe vett mikro- és kisváll. beruházási kedv. 200%, ha nem felel meg a felt-nek",null,null,0]
[16,"v)","Átl.áll.létszám előző adóévhez képest bekövetkezett csökkenése * előző évi mini.bér * 120%",null,null,0]
[17,"dzs)","Fedezeti ügylettel nem fedezett devizás bef.pü.eszk, hosszú lej.köt. nem realizált árf.veszt + kivezett devizás bef.pü.eszk, hosszú lej.köt. Árf.veszt-e, ha az előző években 7.§(1) dzs) a) alapján növelő tétel volt.",null,null,0]
[18,"18§","Kapcs.váll-ok között a szokásos piaci ár és az elszámolóár alapján számított különbözet,\nha az elszámolóóár kisebb mint a szokásos piaci ár",null,null,0]
[19,"9§ (3)","Közhasznú szervezeteknél a kapott adományok igazolt összege, ill. azoknak a Tao.tv.9.§ (7) bek-ben előírt aránnyal számított része",null,null,0]
[20,"10§","Iskolaszövetkezetnél adómentesen képződött eredménytartalék",null,null,0]
[21,"13/A§","Közhasznú szervezeteknél a tag részére kiadott saját tőknek a meghatározott értéke",null,null,0]
[22,"13/A§","Közhasznú szervezetnél egyesülés, szétválás esetén a jogutódnál keletkezett …",null,null,0]
[23,"13/A§","Közhasznú szervezetnél kapott adomány …",null,null,0]
[24,"14§","Külf vállalkozó belf-i telephelyre jutó összes üzletvezetési, ált ügyviteli ktg, ráford",null,null,0]
[25,"14§","Külf vállalkozó belf-i telephelynél a telephely közvetítésével elért árbev 5 %-a",null,null,0]
[26,"16§","Kiválásnál első adóévben a nem kedvezményezett átalakuláskor …",null,null,0]
[27,"16§","Jogutódnél kedvezményezett átalakulás miatt fennáló csökkentő összeg",null,null,0]
[28,"16§","Kedvezményezett eszkátruházásnál az átruházó társaságnál az átadott eszköz után …",null,null,0]
[29,"16§","Kedvezményezett eszkátruházásnál az átrvevő társaságnál…",null,null,0]
[null,"29/B§","Közhasznú szervezetnél saját tőke nyilvántartott adómentes rész …",null,null,0]
[null,null,"Egyéb …",null,null,0]
[]
["Növelő tételek összesen",null,null,null,null,{"$f":"SUM(F64:F66)+SUM(F78:F116)","v":0}]
["ezer Ft"]
["Adókedvezmények \naz 1996.évi LXXXI társasági és osztalékadóról szóló törvény 21-22§ szerint:",null,null,null,null,"Összeg"]
[]
[3,"22§(1)","Mozgóképszakmai támogatás",null,null,0]
[4,null,"--- ebből 2009-ben és utána kapott támogatás",null,0]
[5,"22§(1)","Előadóművészi szervezet támogatása címén",null,null,0]
[7,"22§","Kutatás, kísérleti fejlesztés  (2011.évi ktg alapján)",null,null,0]
[8,"22§","Szoftverfejlesztő bérktg 10%-a (2011.évi ktg alapján)"]
[9,"22§","Szoftverfejlesztő bérktg 15%-a (2011.évi ktg alapján)",null,null,0]
[10,"22§","Szövetkezet által képzett közösségi alap adókedvezménye",null,null,0]
[11,"22/A§","KKV kamatkedv.: tárgyi eszk. hitelszerződés alapján a kamat 40%-a",null,null,0]
[12,"22/B§","Fejlesztési adókedvezmény PM határozat alapján (a kormány engedélyével)",null,null,0]
[13,null,"ua",null,null,0]
[14,null,"Korábbi évek adókedvezményei",null,null,0]
[null,"22/C§","Látvány-csapatsportok támogatásának ",null,null,0]
[null,"29§(5)","--- ebből kárpótlási jegyhez kapcs",null,0]
[null,"29§(5)","---          befektetési adókedvezmény",null,0]
[null,null,"Egyéb adókedvezmény",null,null,0]
[]
["Adókedvezmények összesen",null,null,null,null,{"$f":"SUM(F121:F137)","v":0},null,{"$f":"IF(F138=0,\"\",IF((F138-F130)>(D151-F130)*0.7,\"Nem lehet nagyobb az adó 70%-nál! 23.§(3)\",\"\"))","v":""}]
[null,"TÁRSASÁGI ADÓ LEVEZETÉSE:"]
[null,null,"Adózás előtti eredmény:",{"$f":"IF(Adat!A18=1,'MLE (É)'!F54,MLE!F43)","v":0}]
[null,null,"Adóalapot csökkentő tételek:",{"$f":"F59","v":0}]
[null,null,"Adóalapot növelő tételek:",{"$f":"F118","v":0}]
[null,"Éves adóalap:",null,{"$f":"D140-D141+D142","v":0}]
[]
[null,"Adóalap --> 10%-os adókulcs esetén*",null,{"$f":"IF(D143>500000,500000,D143)","v":0},"* Max. 500.000 eFt",{"$f":"IF(D145>500000,\"Hibás adóalap!\",\"ok\")","v":"ok"}]
[null,0.1,"adókulcs alkalmazásával*:",{"$f":"IF((D145*B146)>0,D145*B146,0)","v":0}]
[null,"Adóalap --> 19%-os adókulcs esetén",null,{"$f":"D143-D145","v":0}]
[null,0.19,"adókulcs alkalmazásával:",{"$f":"IF((D147*B148)>0,D147*B148,0)","v":0}]
[]
[]
[null,null,"Éves társasági adó összege:",{"$f":"+D146+D148","v":0}]
[null,null,"Adómentesség (nonprofit szerv.):",0]
[null,null,"Adókedvezmények:",{"$f":"F137","v":0}]
[null,null,"Külföldön megfizetett adó:",0]
[null,null,"Visszafizetendő adókedvezmény:",0,null,null,null,{"$f":"IF(D155=0,\"\",\"késedelmi pótlék vonzata van!!\")","v":""}]
[null,null,"Számított társasági adó:",{"$f":"IF((D151-D152-D153-D154+D155)>0,ROUND(D151-D152-D153-D154+D155,0),0)","v":0}]
[null,null,"DE"]
[null,null,"Minimum társasági adóalap:",{"$f":"+MinA!H23","v":0},{"$f":"IF(OR(OR(D140>D158,D140=D158),OR(D143>D158,D143=D158)),\"ok\",\"FOGLALKOZNI KELL VELE!!!\")","v":"ok"}]
[]
[null,null,"Társasági adókötelezettség:",{"$f":"IF(D143>D158,D156,IF(OR(D140>D158,D143>D158),D156,MinA!H33))","v":0},{"$f":"IF(D160=D156,\"Tényleges társasági adó\",IF(D160=MinA!H29,MinA!H29,IF(TA!D160=MinA!H29,MinA!H29,\"Tényleges társasági adó\")))","v":"Tényleges társasági adó"}]
[]
[]
["Csekély összegű DE MINIMIS támogatások:",null,null,null,null,"ezer Ft"]
[]
["Társasági adótörvény alapján"]
[]
["7.§",{"$f":"+B40","v":"y)"},{"$f":"+C40","v":"Mikrováll-nál: előző adóévhez képest bekövetkezett létszámnövekedés * minimálbér "},null,null,0]
["7.§",{"$f":"+B45","v":"zs)"},{"$f":"+C45","v":"Mikro- és kisvállalkozásnál a korábban még használatba nem vett meghat. beruházások"},null,null,0]
["7.§",{"$f":"+B35","v":"(17)"},{"$f":"+C35","v":"7.§ (t) pont szerinti ktg. 3-szorosa - felsőoktatás, MTA, EGT-tagállam hasonló szervezetével közösen végzett kutatás esetén (max 50 mFt)"},null,null,0]
["Adóalap csökkentő tételek összesen",null,null,null,null,{"$f":"SUM(F167:F169)","v":0}]
[{"$f":"+B125","v":"22§"},null,{"$f":"+C125","v":"Kutatás, kísérleti fejlesztés  (2011.évi ktg alapján)"},null,null,{"$f":"+F125","v":0}]
[{"$f":"+B127","v":"22§"},null,{"$f":"+C127","v":"Szoftverfejlesztő bérktg 15%-a (2011.évi ktg alapján)"},null,null,{"$f":"+F127","v":0}]
[{"$f":"+B128","v":"22§"},null,{"$f":"+C128","v":"Szövetkezet által képzett közösségi alap adókedvezménye"},null,null,{"$f":"+F128","v":0}]
[{"$f":"+B129","v":"22/A§"},null,{"$f":"+C129","v":"KKV kamatkedv.: tárgyi eszk. hitelszerződés alapján a kamat 40%-a"},null,null,{"$f":"+F129","v":0}]
[{"$f":"+B135","v":"29§(5)"},null,{"$f":"CONCATENATE(C132,\" \",C135)","v":"Korábbi évek adókedvezményei ---          befektetési adókedvezmény"},null,null,{"$f":"+E135","v":0}]
["Adókedvezmény összesen",null,null,null,null,{"$f":"SUM(F171:F175)","v":0}]
[]
["1.sz","mell.\n14.","Leghátrányosabb térségben KKV által üzembe helyezett műszaki ber., gépek, járművek elszámolt écs leírásnak 1% illetve 3%-a",null,null,0]
["Társasági adó törvény alapján igénybevett (közvetett) támogatások összesen",null,null,null,null,{"$f":"+F170+F176+F178","v":0}]
[]
["Adórendszeren kívüli támogatás"]
[null,null,null,null,null,0]
[null,null,null,null,null,0]
[null,null,null,null,null,0]
[null,null,null,null,null,0]
[null,null,null,null,null,0]
[null,null,null,null,null,0]
["Adórendszeren kívüli (közvetlen) támogatások összesen",null,null,null,null,{"$f":"SUM(F182:F187)","v":0}]
[]
["Csekély összegű DE MINIMIS támogatások összesen:",null,null,null,null,{"$f":"+F179+F188","v":0}]

{"sheet":"MinA","index":21,"n_rows":33,"n_cols":10,"rows_kept":33,"cut":false,"hidden":false,"merged":[[7,0,7,8],[8,0,8,8],[1,0,1,7],[0,0,0,8],[2,0,2,8],[3,0,3,8],[4,0,4,8]]}
["NEM MELLÉKLET"]
[null,null,null,null,null,null,null,null,{"$f":"IF(G24<I24,\"KELL !\",\"NEM KELL !\")","v":"NEM KELL !"}]
["Minimáladó meghatározása"]
["Készült a "]
[{"$f":"Adat!B5","v":"Macskafarka Kft"}]
[null,null,null,null,{"$f":"Adat!B11","v":2012},". évi beszámolójához"]
[]
["Társasági adó számítása, amennyiben az adózó nem fizeti meg a magasabb jövedelem-(nyereség-) minimum alapján a"]
["társasági adót, emiatt az társasági adóbevallásával együtt nyilatkozatot tölt ki."]
[]
[null,"Adózás előtti eredmény",null,null,null,null,null,{"$f":"+TA!D140","v":0}]
[null,"Társasági adóalap",null,null,null,null,null,{"$f":"+TA!D143","v":0}]
[null,"Társasági adókötelezettség",null,null,null,null,null,{"$f":"TA!D156","v":0}]
[]
[]
[null,"Jövedelem-(nyereség-)minimum számítása:"]
[null,"Összes bevétel ",null,null,"9 szlaosztály",null,null,{"$f":"IF(Adat!A18=1,('MLE (É)'!F12+'MLE (É)'!F16+'MLE (É)'!F41+'MLE (É)'!F51),(MLE!F15+MLE!F17+MLE!F36+MLE!F40))","v":0}]
[null,"Eladott áruk beszerzési értéke",null,null,814,null,"(-)",{"$f":"IF(Adat!A18=1,'MLE (É)'!F21,MLE!I21)","v":0}]
[null,"Eladott (közvetített) szolgáltatások értéke",null,null,815,null,"(-)",{"$f":"IF(Adat!A18=1,'MLE (É)'!F22,MLE!I22)","v":0}]
[null,"Korrigált bevétel",null,null,null,null,null,{"$f":"H17-H18-H19","v":0}]
[]
[null,"Jövedelem-(nyereség-)minimum számítása:",null,null,null,null,{"$f":"IF(H23<0,\"Valami nem stimmel a ktg. elszámolással!\",\"\")","v":""}]
[null,null,null,"Korrigált bevétel","x     ",0.02,null,{"$f":"H20*F23","v":0}]
[null,"Társasági adóalap",null,{"$f":"H12","v":0},"  A magasabb érték:",null,{"$f":"MAX(D24:D25)","v":0},{"$f":"IF(G24>I24,\">\",\"<\")","v":"<"},{"$f":"H23","v":0}]
[null,"Adózás előtti eredmény",null,{"$f":"H11","v":0}]
[null,"A Jöv-(nyereség) minimum nagyobb, mint Tao alap vagy Adózás előtti eredmény?",null,null,null,null,null,{"$f":"IF((G24<I24),\"IGEN\",\"NEM\")","v":"NEM"}]
[]
[null,"Korrigált társasági adóalap minimum:",null,null,"ÉVES",null,null,{"$f":"+H23","v":0}]
[null,"Korrigált társasági adó minimum:",null,null,"ÉVES",null,null,{"$f":"+I30+I31","v":0}]
[null,null,"Korrigált társasági adó minimum:",null,null,null,0.1,"adókulcs esetén:",{"$f":"IF(H28>500000,500000,H28*G30)","v":0}]
[null,null,null,null,null,null,0.19,"adókulcs esetén:",{"$f":"IF(H28>500000,(H28-500000)*G31,0)","v":0}]
[]
[null,"Társasági adófizetési kötelezettség:",null,null,null,null,null,{"$f":"IF(H13>H29,H13,0)","v":0},null,"ide kell beírni a tényleges társasági adót!!!"]

{"sheet":"Fiz0531","index":22,"n_rows":19,"n_cols":4,"rows_kept":19,"cut":false,"hidden":false,"merged":[[5,1,5,4],[1,0,1,4],[2,0,2,4],[3,0,3,4],[4,1,4,4]]}
[]
["Fizetendő adók listája"]
["A"]
[{"$f":"Adat!B5","v":"Macskafarka Kft"}]
[{"$f":"Adat!B11","v":2012},"év beszámolója és adóbevallása alapján a következő adófizetési"]
[null,"kötelezettségek keletkeznek május 31. napjáig"]
[]
["Adónem","Bankszámlaszám","Határidő","Összeg"]
["NAV"]
["Társasági aó","10032000-01076019",{"$f":"Adat!B12+150+1","v":"2013-05-31"},{"$f":"+Köt!E81","v":0}]
[]
["NAV"]
["Eva","10032000-01076033",{"$f":"C10","v":"2013-05-31"},{"$f":"+Köt!E80","v":0}]
[]
["NAV"]
["Innovációs járulék","10032000-06056322",{"$f":"C10","v":"2013-05-31"},{"$f":"+Köt!E93","v":0}]
[]
["Önkormányzat"]
["főváros","11784009-15490012-03540000",{"$f":"C10","v":"2013-05-31"},{"$f":"+Köt!E110","v":0}]

{"sheet":"NY-Borító","index":23,"n_rows":44,"n_cols":18,"rows_kept":44,"cut":false,"hidden":false,"merged":[[42,16,42,18],[43,16,43,18],[20,0,20,18],[42,3,42,6],[42,7,42,13],[22,0,22,18],[18,0,18,18],[2,0,2,16],[5,0,5,11],[10,0,10,16],[13,0,13,14],[13,15,13,17]]}
[]
[{"$f":"MID(Adat!B8,1,1)","v":"1"},{"$f":"MID(Adat!$B8,2,1)","v":"2"},{"$f":"MID(Adat!$B8,3,1)","v":"0"},{"$f":"MID(Adat!$B8,4,1)","v":"0"},{"$f":"MID(Adat!$B8,5,1)","v":"5"},{"$f":"MID(Adat!$B8,6,1)","v":"9"},{"$f":"MID(Adat!$B8,7,1)","v":"5"},{"$f":"MID(Adat!$B8,8,1)","v":"4"},{"$f":"MID(Adat!$B8,10,1)","v":"5"},{"$f":"MID(Adat!$B8,11,1)","v":"1"},{"$f":"MID(Adat!$B8,12,1)","v":"7"},{"$f":"MID(Adat!$B8,13,1)","v":"0"},{"$f":"MID(Adat!$B8,15,1)","v":"1"},{"$f":"MID(Adat!$B8,16,1)","v":"1"},{"$f":"MID(Adat!$B8,17,1)","v":"3"},{"$f":"MID(Adat!$B8,19,1)","v":"0"},{"$f":"MID(Adat!$B8,20,1)","v":"1"}]
["Statisztikai számjel"]
[]
[{"$f":"MID(Adat!$B9,1,1)","v":"0"},{"$f":"MID(Adat!$B9,2,1)","v":"1"},"-",{"$f":"MID(Adat!$B9,4,1)","v":"0"},{"$f":"MID(Adat!$B9,5,1)","v":"9"},"-",{"$f":"MID(Adat!$B9,7,1)","v":"3"},{"$f":"MID(Adat!$B9,8,1)","v":"6"},{"$f":"MID(Adat!$B9,9,1)","v":"6"},{"$f":"MID(Adat!$B9,10,1)","v":"7"},{"$f":"MID(Adat!$B9,11,1)","v":"8"},{"$f":"MID(Adat!$B9,12,1)","v":"3"}]
["Cégjegyzék száma"]
[]
[]
[]
[]
[{"$f":"Adat!B5","v":"Macskafarka Kft"},null,null,null,null,null,null,null,null,null,null,null,null,null,null,null,null,"a vállalkozás megnevezése"]
[]
[]
[{"$f":"Adat!B7","v":"Macskafalva, Egér út 1."},null,null,null,null,null,null,null,null,null,null,null,null,null,null,"a vállalkozás címe, telefonszáma"]
[]
[]
[]
[]
[{"$f":"Adat!B11","v":2012}]
[]
["Egyszerűsített éves beszámoló"]
[]
[{"$f":"IF(Adat!B67=\"\",\"\",Adat!B67)","v":"A közzétett adatok könyvvizsgálattal nincsenek alátámasztva."}]
[]
[]
[]
[]
[]
[]
[]
[]
[]
[]
[]
[]
[]
[]
[]
[]
[]
[]
[]
["Keltezés:",null,null,{"$f":"Adat!B15","v":"Budapest,"},null,null,null,{"$f":"Adat!C15","v":"2013-03-31"}]
[null,null,null,null,null,null,null,null,null,null,null,null,null,null,null,null,"a vállalkozás vezetője\n(képviselője)"]

{"sheet":"NY-Borító (É)","index":24,"n_rows":44,"n_cols":18,"rows_kept":44,"cut":false,"hidden":true,"merged":[[18,0,18,18],[2,0,2,16],[5,0,5,11],[10,0,10,16],[13,0,13,14],[13,15,13,17],[42,16,42,18],[43,16,43,18],[20,0,20,18],[42,3,42,6],[42,7,42,13],[22,0,22,18]]}
[]
[{"$f":"MID('MLE (É)'!C2,1,1)","v":"1"},{"$f":"MID('MLE (É)'!$C2,2,1)","v":"2"},{"$f":"MID('MLE (É)'!$C2,3,1)","v":"0"},{"$f":"MID('MLE (É)'!$C2,4,1)","v":"0"},{"$f":"MID('MLE (É)'!$C2,5,1)","v":"5"},{"$f":"MID('MLE (É)'!$C2,6,1)","v":"9"},{"$f":"MID('MLE (É)'!$C2,7,1)","v":"5"},{"$f":"MID('MLE (É)'!$C2,8,1)","v":"4"},{"$f":"MID('MLE (É)'!$C2,10,1)","v":"5"},{"$f":"MID('MLE (É)'!$C2,11,1)","v":"1"},{"$f":"MID('MLE (É)'!$C2,12,1)","v":"7"},{"$f":"MID('MLE (É)'!$C2,13,1)","v":"0"},{"$f":"MID('MLE (É)'!$C2,15,1)","v":"1"},{"$f":"MID('MLE (É)'!$C2,16,1)","v":"1"},{"$f":"MID('MLE (É)'!$C2,17,1)","v":"3"},{"$f":"MID('MLE (É)'!$C2,19,1)","v":"0"},{"$f":"MID('MLE (É)'!$C2,20,1)","v":"1"}]
["Statisztikai számjel"]
[]
[{"$f":"MID('MLE (É)'!$C3,1,1)","v":"0"},{"$f":"MID('MLE (É)'!$C3,2,1)","v":"1"},"-",{"$f":"MID('MLE (É)'!$C3,4,1)","v":"0"},{"$f":"MID('MLE (É)'!$C3,5,1)","v":"9"},"-",{"$f":"MID('MLE (É)'!$C3,7,1)","v":"3"},{"$f":"MID('MLE (É)'!$C3,8,1)","v":"6"},{"$f":"MID('MLE (É)'!$C3,9,1)","v":"6"},{"$f":"MID('MLE (É)'!$C3,10,1)","v":"7"},{"$f":"MID('MLE (É)'!$C3,11,1)","v":"8"},{"$f":"MID('MLE (É)'!$C3,12,1)","v":"3"}]
["Cégjegyzék száma"]
[]
[]
[]
[]
[{"$f":"Adat!B5","v":"Macskafarka Kft"},null,null,null,null,null,null,null,null,null,null,null,null,null,null,null,null,"a vállalkozás megnevezése"]
[]
[]
[{"$f":"Adat!B7","v":"Macskafalva, Egér út 1."},null,null,null,null,null,null,null,null,null,null,null,null,null,null,"a vállalkozás címe, telefonszáma"]
[]
[]
[]
[]
[{"$f":"Adat!B11","v":2012}]
[]
["Éves beszámoló"]
[]
[{"$f":"IF(Adat!B69=\"\",\"\",Adat!B69)","v":""}]
[]
[]
[]
[]
[]
[]
[]
[]
[]
[]
[]
[]
[]
[]
[]
[]
[]
[]
[]
["Keltezés:",null,null,{"$f":"Adat!B15","v":"Budapest,"},null,null,null,{"$f":"Adat!C15","v":"2013-03-31"}]
[null,null,null,null,null,null,null,null,null,null,null,null,null,null,null,null,"a vállalkozás vezetője\n(képviselője)"]

{"sheet":"NY-Mérl-Er","index":25,"n_rows":104,"n_cols":6,"rows_kept":104,"cut":false,"hidden":false,"merged":[[2,1,2,3],[4,1,4,3],[74,1,74,2],[79,1,79,2],[70,1,70,3],[77,1,77,2],[76,1,76,2],[6,4,7,4],[29,4,29,5],[72,4,73,4],[72,1,73,2],[37,1,37,3],[39,4,40,4],[64,4,64,5],[35,1,35,3],[68,1,68,3],[103,4,103,5],[86,1,86,2],[96,1,96,2],[88,1,88,2],[97,1,97,2],[93,1,93,2],[87,1,87,2],[92,1,92,2],[95,1,95,2],[94,1,94,2],[90,1,90,2],[91,1,91,2],[89,1,89,2],[85,1,85,2],[72,0,73,0],[84,1,84,2],[82,1,82,2],[80,1,80,2],[81,1,81,2],[75,1,75,2]]}
["Stat.sz.",null,{"$f":"MLE!C2","v":"12005954-5170-113-01"}]
["Cégbir.sz.",null,{"$f":"MLE!C3","v":"01-09-366783"},null,null,{"$f":"IF(F24=F59,\"\",\"ESZKÖZ - FORRÁS !!!\")","v":""}]
[null,{"$f":"Adat!B5","v":"Macskafarka Kft"},null,null,null,11]
[null,null,"Az üzleti év mérlegfordulónapja (év, hó, nap):",{"$f":"MLE!F8","v":"2012-12-31"}]
[null,"Egyszerűsített éves beszámoló MÉRLEGE \"A\" változat\n(Eszközök)"]
[null,null,null,null,null,"adatok E Ft-ban"]
[null,null,"A tétel megnevezése","Előző év","Előző év(ek)\nmódosításai","Tárgyév"]
[null,null,null,{"$f":"MLE!D8","v":"2011-12-31"},null,{"$f":"MLE!F8","v":"2012-12-31"}]
["a",null,"b","c","d","e"]
[1,"A","Befektetett eszközök",{"$f":"MLM!D8","v":0},{"$f":"MLM!E8","v":0},{"$f":"MLM!F8","v":0}]
[2,"I. ","Immateriális javak",{"$f":"MLM!D9","v":0},{"$f":"MLM!E9","v":0},{"$f":"MLM!F9","v":0}]
[9,null,"Immateriális javak értékhelyesbítése",{"$f":"MLM!D10","v":0},{"$f":"MLM!E10","v":0},{"$f":"MLM!F10","v":0}]
[10,"II.","Tárgyi eszközök",{"$f":"MLM!D11","v":0},{"$f":"MLM!E11","v":0},{"$f":"MLM!F11","v":0}]
[17,null,"Tárgyi eszközök értékhelyesbítése",{"$f":"MLM!D12","v":0},{"$f":"MLM!E12","v":0},{"$f":"MLM!F12","v":0}]
[18,"III.","Befektetett pénzeszközök",{"$f":"MLM!D13","v":0},{"$f":"MLM!E13","v":0},{"$f":"MLM!F13","v":0}]
[25,null,"Befekt.püi.eszk.értékehelyesbítése",{"$f":"MLM!D14","v":0},{"$f":"MLM!E14","v":0},{"$f":"MLM!F14","v":0}]
[8,"B","Forgóeszközök",{"$f":"MLM!D15","v":0},{"$f":"MLM!E15","v":0},{"$f":"MLM!F15","v":0}]
[9,"I.","Készletek",{"$f":"MLM!D16","v":0},{"$f":"MLM!E16","v":0},{"$f":"MLM!F16","v":0}]
[10,"II.","Követelések",{"$f":"MLM!D17","v":0},{"$f":"MLM!E17","v":0},{"$f":"MLM!F17","v":0}]
[11,"III.","Értékpapirok",{"$f":"MLM!D18","v":0},{"$f":"MLM!E18","v":0},{"$f":"MLM!F18","v":0}]
[12,"IV.","Pénzeszközök",{"$f":"MLM!D19","v":0},{"$f":"MLM!E19","v":0},{"$f":"MLM!F19","v":0}]
[13,"C","Aktiv időbeli elhatárolás",{"$f":"MLM!D20","v":0},{"$f":"MLM!E20","v":0},{"$f":"MLM!F20","v":0}]
[]
[14,null,"ESZKÖZÖK  ÖSSZESEN",{"$f":"MLM!D21","v":0},{"$f":"MLM!E21","v":0},{"$f":"MLM!F21","v":0}]
[]
[]
[{"$f":"Adat!B67","v":"A közzétett adatok könyvvizsgálattal nincsenek alátámasztva."}]
[]
["Keltezés:",null,{"$f":"Adat!C15","v":"2013-03-31"}]
[null,null,null,null,"A vállalkozás vezetője\n(képviselője)"]
[]
[]
[]
["Stat.sz.",null,{"$f":"C1","v":"12005954-5170-113-01"}]
["Cégbir.sz.",null,{"$f":"C2","v":"01-09-366783"}]
[null,{"$f":"B3","v":"Macskafarka Kft"},null,null,null,12]
[null,null,"Az üzleti év mérlegfordulónapja (év, hó, nap):",{"$f":"MLE!F8","v":"2012-12-31"}]
[null,"Egyszerűsített éves beszámoló MÉRLEGE \"A\" változat\n(Források)"]
[null,null,null,null,null,"adatok E Ft-ban"]
[null,null,"A tétel megnevezése","Előző év","Előző év(ek)\nmódosításai","Tárgyév"]
[null,null,null,{"$f":"MLE!D8","v":"2011-12-31"},null,{"$f":"MLE!F8","v":"2012-12-31"}]
["a",null,"b","c","d","e"]
[53,"D","Saját tőke",{"$f":"MLM!D23","v":0},{"$f":"MLM!E23","v":0},{"$f":"MLM!F23","v":0}]
[54,"I.","Jegyzett tőke",{"$f":"MLM!D24","v":0},{"$f":"MLM!E24","v":0},{"$f":"MLM!F24","v":0}]
[55,null,"   Ebből visszavásárolt tulajdonú részesedés névértéke",{"$f":"MLM!D25","v":0},{"$f":"MLM!E25","v":0},{"$f":"MLM!F25","v":0}]
[56,"II.","Jegyzett, de még be nem fizetett tőke (-)",{"$f":"MLM!D26","v":0},{"$f":"MLM!E26","v":0},{"$f":"MLM!H26","v":0}]
[57,"III.","Tőketartalék",{"$f":"MLM!D27","v":0},{"$f":"MLM!E27","v":0},{"$f":"MLM!F27","v":0}]
[58,"IV.","Eredménytartalék",{"$f":"MLM!D28","v":0},{"$f":"MLM!E28","v":0},{"$f":"MLM!F28","v":0}]
[59,"V.","Lekötött tartalék",{"$f":"MLM!D29","v":0},{"$f":"MLM!E29","v":0},{"$f":"MLM!F29","v":0}]
[60,"VI.","Értékelési tartalék",{"$f":"MLM!D30","v":0},{"$f":"MLM!E30","v":0},{"$f":"MLM!F30","v":0}]
[61,"VII.","Mérleg szerinti eredmény",{"$f":"MLM!D31","v":0},{"$f":"MLM!E31","v":0},{"$f":"MLM!F31","v":0}]
[62,"E","Céltartalékok",{"$f":"MLM!D32","v":0},{"$f":"MLM!E32","v":0},{"$f":"MLM!F32","v":0}]
[66,"F","Kötelezettségek",{"$f":"MLM!D33","v":0},{"$f":"MLM!E33","v":0},{"$f":"MLM!F33","v":0}]
[67,"I.","Hátrasorolt kötelezettségek",{"$f":"MLM!D34","v":0},{"$f":"MLM!E34","v":0},{"$f":"MLM!F34","v":0}]
[71,"II.","Hosszúlejáratú kötelezettség",{"$f":"MLM!D35","v":0},{"$f":"MLM!E35","v":0},{"$f":"MLM!F35","v":0}]
[80,"III.","Rövidlejáratú kötelezettség",{"$f":"MLM!D36","v":0},{"$f":"MLM!E36","v":0},{"$f":"MLM!F36","v":0}]
[90,"G","Passziv időbeli elhatárolás",{"$f":"MLM!D37","v":0},{"$f":"MLM!E37","v":0},{"$f":"MLM!F37","v":0}]
[]
[94,null,"FORRÁSOK ÖSSZESEN",{"$f":"MLM!D38","v":0},{"$f":"MLM!E38","v":0},{"$f":"MLM!F38","v":0}]
[]
[]
[{"$f":"Adat!B67","v":"A közzétett adatok könyvvizsgálattal nincsenek alátámasztva."}]
[]
["Keltezés:",null,{"$f":"C29","v":"2013-03-31"}]
[null,null,null,null,"A vállalkozás vezetője\n(képviselője)"]
[]
["Stat.sz.",null,{"$f":"MLE!C2","v":"12005954-5170-113-01"}]
["Cégbir.sz.",null,{"$f":"MLE!C3","v":"01-09-366783"}]
[null,{"$f":"Adat!B5","v":"Macskafarka Kft"},null,null,null,31]
[null,null,"Az üzleti év mérlegfordulónapja (év, hó, nap):",{"$f":"MLE!F8","v":"2012-12-31"}]
[null,"Egyszerűsített éves beszámoló\n\"A\" EREDMÉNYKIMUTATÁSA\n(összköltség eljárásssal)"]
[null,null,null,null,null,"adatok E Ft-ban"]
["Tétel szám","A tétel megnevezése",null,"Előző év","Előző év(ek)\nmódosításai","Tárgyév"]
[null,null,null,{"$f":"MLE!D8","v":"2011-12-31"},null,{"$f":"MLE!F8","v":"2012-12-31"}]
["a","b",null,"c","d","e"]
["I.","Értékesítés nettó árbevétele",null,{"$f":"MLE!D15","v":0},{"$f":"MLE!E15","v":0},{"$f":"MLE!F15","v":0}]
["II.","Aktivált saját teljesítmények",null,{"$f":"MLE!D16","v":0},{"$f":"MLE!E16","v":0},{"$f":"MLE!F16","v":0}]
["III.","Egyéb bevételek",null,{"$f":"MLE!D17","v":0},{"$f":"MLE!E17","v":0},{"$f":"MLE!F17","v":0}]
[null,null,"III.sorból: visszaírt értékvesztés",{"$f":"MLE!D18","v":0},{"$f":"MLE!E18","v":0},{"$f":"MLE!F18","v":0}]
["IV.","Anyagjellegű ráfordítások",null,{"$f":"MLE!D24","v":0},{"$f":"MLE!E24","v":0},{"$f":"MLE!F24","v":0}]
["V.","Személyi jellegű ráfordítások",null,{"$f":"MLE!D28","v":0},{"$f":"MLE!E28","v":0},{"$f":"MLE!F28","v":0}]
["VI.","Értékcsökkenési leírás",null,{"$f":"MLE!D31","v":0},{"$f":"MLE!E31","v":0},{"$f":"MLE!F31","v":0}]
["VII.","Egyéb ráfordítások",null,{"$f":"MLE!D32","v":0},{"$f":"MLE!E32","v":0},{"$f":"MLE!F32","v":0}]
[null,null,"VII.sorból: értékvesztés",{"$f":"MLE!D33","v":0},{"$f":"MLE!E33","v":0},{"$f":"MLE!F33","v":0}]
["A","Üzemi tevékenység eredménye",null,{"$f":"MLE!D34","v":0},{"$f":"MLE!E34","v":0},{"$f":"MLE!F34","v":0}]
["VIII.","Pénzügyi műveletek bevételei",null,{"$f":"MLE!D36","v":0},{"$f":"MLE!E36","v":0},{"$f":"MLE!F36","v":0}]
["IX.","Pénzügyi műveletek ráfordításai",null,{"$f":"MLE!D37","v":0},{"$f":"MLE!E37","v":0},{"$f":"MLE!F37","v":0}]
["B","Pénzügyi műv. eredménye",null,{"$f":"MLE!D38","v":0},{"$f":"MLE!E38","v":0},{"$f":"MLE!F38","v":0}]
["C","Szokásos vállalk. eredmény",null,{"$f":"MLE!D39","v":0},{"$f":"MLE!E39","v":0},{"$f":"MLE!F39","v":0}]
["X.","Rendkivűli bevételek",null,{"$f":"MLE!D40","v":0},{"$f":"MLE!E40","v":0},{"$f":"MLE!F40","v":0}]
["XI.","Rendkivüli ráfordítások",null,{"$f":"MLE!D41","v":0},{"$f":"MLE!E41","v":0},{"$f":"MLE!F41","v":0}]
["D","Rendkivűli eredmény",null,{"$f":"MLE!D42","v":0},{"$f":"MLE!E42","v":0},{"$f":"MLE!F42","v":0}]
["E","Adózás előtti eredmény",null,{"$f":"MLE!D43","v":0},{"$f":"MLE!E43","v":0},{"$f":"MLE!F43","v":0}]
["XII.","Adófizetési kötelezettség",null,{"$f":"MLE!D44","v":0},{"$f":"MLE!E44","v":0},{"$f":"MLE!F44","v":0}]
["F","Adózott eredmény",null,{"$f":"MLE!D45","v":0},{"$f":"MLE!E45","v":0},{"$f":"MLE!F45","v":0}]
[null,"Eredménytartalék osztalékra, részesedésre",null,{"$f":"MLE!D46","v":0},{"$f":"MLE!E46","v":0},{"$f":"MLE!F46","v":0}]
[null,"Jóváhagyott osztalék, részesedés",null,{"$f":"MLE!D47","v":0},{"$f":"MLE!E47","v":0},{"$f":"MLE!F47","v":0}]
["G","Mérleg szerinti eredmény",null,{"$f":"MLE!D48","v":0},{"$f":"MLE!E48","v":0},{"$f":"MLE!F48","v":0}]
[]
[]
[{"$f":"Adat!B67","v":"A közzétett adatok könyvvizsgálattal nincsenek alátámasztva."}]
[]
["Keltezés:",null,{"$f":"Adat!C15","v":"2013-03-31"}]
[null,null,null,null,"A vállalkozás vezetője\n(képviselője)"]

{"sheet":"NY-Mérl-Er (É)","index":26,"n_rows":218,"n_cols":8,"rows_kept":218,"cut":false,"hidden":true,"merged":[[2,1,2,3],[4,1,4,3],[6,4,7,4],[75,4,75,5],[35,4,35,5],[39,1,39,3],[41,1,41,3],[43,4,44,4],[79,1,79,3],[81,1,81,3],[146,1,146,3],[148,1,148,3],[180,1,180,3],[177,0,177,7],[150,4,151,4],[165,1,165,2],[150,0,151,0],[83,4,84,4],[142,4,142,5],[100,4,100,5],[104,1,104,3],[106,1,106,3],[108,4,109,4],[150,1,151,2],[152,1,152,2],[212,1,212,2],[211,1,211,2],[198,1,198,2],[200,1,200,2],[210,1,210,2],[206,1,206,2],[186,1,186,2],[195,1,195,2],[197,1,197,2],[199,1,199,2],[191,1,191,2],[192,1,192,2],[189,1,189,2],[190,1,190,2],[187,1,187,2],[153,1,153,2],[171,1,171,2],[154,1,154,2],[184,1,185,2],[168,1,168,2],[164,1,164,2],[162,1,162,2],[166,1,166,2],[161,1,161,2],[163,1,163,2],[156,1,156,2],[169,1,169,2],[182,1,182,3],[157,1,157,2],[214,1,214,2],[184,0,185,0],[176,4,176,5],[196,1,196,2],[203,1,203,2],[193,1,193,2],[202,1,202,2],[201,1,201,2],[188,1,188,2],[213,1,213,2],[217,4,217,5],[155,1,155,2],[158,1,158,2],[159,1,159,2],[170,1,170,2],[174,1,174,2],[167,1,167,2],[172,1,172,2],[208,1,208,2],[204,1,204,2],[209,1,209,2],[184,4,185,4],[207,1,207,2],[205,1,205,2],[194,1,194,2]]}
["Stat.sz.",null,{"$f":"'MLE (É)'!C2","v":"12005954-5170-113-01"}]
["Cégbir.sz.",null,{"$f":"'MLE (É)'!C3","v":"01-09-366783"},null,null,{"$f":"IF(F74=F141,\"\",\"ESZKÖZ - FORRÁS !!!\")","v":""}]
[null,{"$f":"Adat!B5","v":"Macskafarka Kft"},null,null,null,11]
[null,null,"Az üzleti év mérlegfordulónapja (év, hó, nap):",{"$f":"'MLE (É)'!F8","v":"2012-12-31"}]
[null,"Éves beszámoló MÉRLEGE \"A\" változat\n(Eszközök)"]
[null,null,null,null,null,"adatok E Ft-ban"]
[null,null,"A tétel megnevezése","Előző év","Előző év(ek)\nmódosításai","Tárgyév"]
[null,null,null,{"$f":"'MLE (É)'!D8","v":"2011-12-31"},null,{"$f":"'MLE (É)'!F8","v":"2012-12-31"}]
["a",null,"b","c","d","e"]
[1,"A","Befektetett eszközök",{"$f":"'MLM (É)'!D8","v":0},{"$f":"'MLM (É)'!E8","v":0},{"$f":"'MLM (É)'!F8","v":0}]
[2,"I. ","Immateriális javak",{"$f":"'MLM (É)'!D9","v":0},{"$f":"'MLM (É)'!E9","v":0},{"$f":"'MLM (É)'!F9","v":0}]
[3,null,"Alapítás-átszervezés aktivált értéke",{"$f":"'MLM (É)'!D10","v":0},{"$f":"'MLM (É)'!E10","v":0},{"$f":"'MLM (É)'!F10","v":0}]
[4,null,"Kisérleti fejlesztés aktivált értéke",{"$f":"'MLM (É)'!D11","v":0},{"$f":"'MLM (É)'!E11","v":0},{"$f":"'MLM (É)'!F11","v":0}]
[5,null,"Vagyoni értékű jogok",{"$f":"'MLM (É)'!D12","v":0},{"$f":"'MLM (É)'!E12","v":0},{"$f":"'MLM (É)'!F12","v":0}]
[6,null,"Szellemi termékek",{"$f":"'MLM (É)'!D13","v":0},{"$f":"'MLM (É)'!E13","v":0},{"$f":"'MLM (É)'!F13","v":0}]
[7,null,"Üzleti vagy cégértékek",{"$f":"'MLM (É)'!D14","v":0},{"$f":"'MLM (É)'!E14","v":0},{"$f":"'MLM (É)'!F14","v":0}]
[8,null,"Immateriális javakra adott előlegek",{"$f":"'MLM (É)'!D15","v":0},{"$f":"'MLM (É)'!E15","v":0},{"$f":"'MLM (É)'!F15","v":0}]
[9,null,"Immateriális javak értékhelyesbítése",{"$f":"'MLM (É)'!D16","v":0},{"$f":"'MLM (É)'!E16","v":0},{"$f":"'MLM (É)'!F16","v":0}]
[10,"II.","Tárgyi eszközök",{"$f":"'MLM (É)'!D17","v":0},{"$f":"'MLM (É)'!E17","v":0},{"$f":"'MLM (É)'!F17","v":0}]
[11,null,"Ingatlanok és a kaplcsolódó vagyoni értékű jogok",{"$f":"'MLM (É)'!D18","v":0},{"$f":"'MLM (É)'!E18","v":0},{"$f":"'MLM (É)'!F18","v":0}]
[12,null,"Műszaki berendezések, gépek, járművek",{"$f":"'MLM (É)'!D19","v":0},{"$f":"'MLM (É)'!E19","v":0},{"$f":"'MLM (É)'!F19","v":0}]
[13,null,"Egyéb berendezések, felszerelések, járművek",{"$f":"'MLM (É)'!D20","v":0},{"$f":"'MLM (É)'!E20","v":0},{"$f":"'MLM (É)'!F20","v":0}]
[14,null,"Tenyészállatok",{"$f":"'MLM (É)'!D21","v":0},{"$f":"'MLM (É)'!E21","v":0},{"$f":"'MLM (É)'!F21","v":0}]
[15,null,"Beruházások, felújítások",{"$f":"'MLM (É)'!D22","v":0},{"$f":"'MLM (É)'!E22","v":0},{"$f":"'MLM (É)'!F22","v":0}]
[16,null,"Beruházásokra adott előlegek",{"$f":"'MLM (É)'!D23","v":0},{"$f":"'MLM (É)'!E23","v":0},{"$f":"'MLM (É)'!F23","v":0}]
[17,null,"Tárgyi eszközök értékhelyesbítése",{"$f":"'MLM (É)'!D24","v":0},{"$f":"'MLM (É)'!E24","v":0},{"$f":"'MLM (É)'!F24","v":0}]
[18,"III.","Befektetett pénzeszközök",{"$f":"'MLM (É)'!D25","v":0},{"$f":"'MLM (É)'!E25","v":0},{"$f":"'MLM (É)'!F25","v":0}]
[19,null,"Tartós részesedés kapcsolt vállalkozásban",{"$f":"'MLM (É)'!D26","v":0},{"$f":"'MLM (É)'!E26","v":0},{"$f":"'MLM (É)'!F26","v":0}]
[20,null,"Tartósan adott kölcsön kapcsolt vállalkozásban",{"$f":"'MLM (É)'!D27","v":0},{"$f":"'MLM (É)'!E27","v":0},{"$f":"'MLM (É)'!F27","v":0}]
[21,null,"Egyéb tartós részesedés",{"$f":"'MLM (É)'!D28","v":0},{"$f":"'MLM (É)'!E28","v":0},{"$f":"'MLM (É)'!F28","v":0}]
[22,null,"Tartósan adott kölcsön egyéb részesedési\nviszonyban álló vállalkozásban",{"$f":"'MLM (É)'!D30","v":0},{"$f":"'MLM (É)'!E30","v":0},{"$f":"'MLM (É)'!F30","v":0}]
[23,null,"Egyéb tartósan adott kölcsön",{"$f":"'MLM (É)'!D31","v":0},{"$f":"'MLM (É)'!E31","v":0},{"$f":"'MLM (É)'!F31","v":0}]
[24,null,"Tartós hitelviszonyt megtestesítő értékpapír",{"$f":"'MLM (É)'!D32","v":0},{"$f":"'MLM (É)'!E32","v":0},{"$f":"'MLM (É)'!F32","v":0}]
[25,null,"Befekt.püi.eszk.értékehelyesbítése",{"$f":"'MLM (É)'!D33","v":0},{"$f":"'MLM (É)'!E33","v":0},{"$f":"'MLM (É)'!F33","v":0}]
["Keltezés:",null,{"$f":"Adat!C15","v":"2013-03-31"}]
[null,null,null,null,"A vállalkozás vezetője\n(képviselője)"]
[]
["Stat.sz.",null,{"$f":"C1","v":"12005954-5170-113-01"}]
["Cégbir.sz.",null,{"$f":"C2","v":"01-09-366783"}]
[null,{"$f":"B3","v":"Macskafarka Kft"},null,null,null,12]
[null,null,"Az üzleti év mérlegfordulónapja (év, hó, nap):",{"$f":"'MLE (É)'!F8","v":"2012-12-31"}]
[null,"Éves beszámoló MÉRLEGE \"A\" változat\n(Eszközök)"]
[null,null,null,null,null,"adatok E Ft-ban"]
[null,null,"A tétel megnevezése","Előző év","Előző év(ek)\nmódosításai","Tárgyév"]
[null,null,null,{"$f":"'MLE (É)'!D8","v":"2011-12-31"},null,{"$f":"'MLE (É)'!F8","v":"2012-12-31"}]
["a",null,"b","c","d","e"]
[26,"B","Forgóeszközök",{"$f":"'MLM (É)'!D34","v":0},{"$f":"'MLM (É)'!E34","v":0},{"$f":"'MLM (É)'!F34","v":0}]
[27,"I.","Készletek",{"$f":"'MLM (É)'!D35","v":0},{"$f":"'MLM (É)'!E35","v":0},{"$f":"'MLM (É)'!F35","v":0}]
[28,null,"Anyagok",{"$f":"'MLM (É)'!D36","v":0},{"$f":"'MLM (É)'!E36","v":0},{"$f":"'MLM (É)'!F36","v":0}]
[29,null,"Befejezetlen termelés és félkész termékek",{"$f":"'MLM (É)'!D37","v":0},{"$f":"'MLM (É)'!E37","v":0},{"$f":"'MLM (É)'!F37","v":0}]
[30,null,"Növendék-, hízó- és egyéb állatok",{"$f":"'MLM (É)'!D38","v":0},{"$f":"'MLM (É)'!E38","v":0},{"$f":"'MLM (É)'!F38","v":0}]
[31,null,"Késztermékek",{"$f":"'MLM (É)'!D39","v":0},{"$f":"'MLM (É)'!E39","v":0},{"$f":"'MLM (É)'!F39","v":0}]
[32,null,"Áruk",{"$f":"'MLM (É)'!D40","v":0},{"$f":"'MLM (É)'!E40","v":0},{"$f":"'MLM (É)'!F40","v":0}]
[33,null,"Készletekre adott előlegek",{"$f":"'MLM (É)'!D41","v":0},{"$f":"'MLM (É)'!E41","v":0},{"$f":"'MLM (É)'!F41","v":0}]
[34,"II.","Követelések",{"$f":"'MLM (É)'!D42","v":0},{"$f":"'MLM (É)'!E42","v":0},{"$f":"'MLM (É)'!F42","v":0}]
[35,null,"Követelések áruszállításból és szolgáltatásból (vevők)",{"$f":"'MLM (É)'!D43","v":0},{"$f":"'MLM (É)'!E43","v":0},{"$f":"'MLM (É)'!F43","v":0}]
[36,null,"Követelések kapcsolt vállalkozásokkal szemben",{"$f":"'MLM (É)'!D44","v":0},{"$f":"'MLM (É)'!E44","v":0},{"$f":"'MLM (É)'!F44","v":0}]
[37,null,"Követelések egyéb részesedési viszonyban \nlévő vállalkozással szemben",{"$f":"'MLM (É)'!D46","v":0},{"$f":"'MLM (É)'!E46","v":0},{"$f":"'MLM (É)'!F45","v":0}]
[38,null,"Váltókövetelések",{"$f":"'MLM (É)'!D47","v":0},{"$f":"'MLM (É)'!E47","v":0},{"$f":"'MLM (É)'!F47","v":0}]
[39,null,"Egyéb követelések",{"$f":"'MLM (É)'!D48","v":0},{"$f":"'MLM (É)'!E48","v":0},{"$f":"'MLM (É)'!F48","v":0}]
[40,"III.","Értékpapirok",{"$f":"'MLM (É)'!D49","v":0},{"$f":"'MLM (É)'!E49","v":0},{"$f":"'MLM (É)'!F49","v":0}]
[41,null,"Részesedés kapcsolt vállalkozásban",{"$f":"'MLM (É)'!D50","v":0},{"$f":"'MLM (É)'!E50","v":0},{"$f":"'MLM (É)'!F50","v":0}]
[42,null,"Egyéb részesedés",{"$f":"'MLM (É)'!D51","v":0},{"$f":"'MLM (É)'!E51","v":0},{"$f":"'MLM (É)'!F51","v":0}]
[43,null,"Saját részvények, saját üzletrészek",{"$f":"'MLM (É)'!D52","v":0},{"$f":"'MLM (É)'!E52","v":0},{"$f":"'MLM (É)'!F52","v":0}]
[44,null,"Forgatási célú hitelviszonyt megtestesítő értékpapírok",{"$f":"'MLM (É)'!D53","v":0},{"$f":"'MLM (É)'!E53","v":0},{"$f":"'MLM (É)'!F53","v":0}]
[45,"IV.","Pénzeszközök",{"$f":"'MLM (É)'!D54","v":0},{"$f":"'MLM (É)'!E54","v":0},{"$f":"'MLM (É)'!F54","v":0}]
[46,null,"Pénztár, csekk",{"$f":"'MLM (É)'!D55","v":0},{"$f":"'MLM (É)'!E55","v":0},{"$f":"'MLM (É)'!F55","v":0}]
[47,null,"Bankbetétek",{"$f":"'MLM (É)'!D56","v":0},{"$f":"'MLM (É)'!E56","v":0},{"$f":"'MLM (É)'!F56","v":0}]
[48,"C","Aktiv időbeli elhatárolás",{"$f":"'MLM (É)'!D57","v":0},{"$f":"'MLM (É)'!E57","v":0},{"$f":"'MLM (É)'!F57","v":0}]
[49,null,"Bevételek aktív időbeli elhatárolása",{"$f":"'MLM (É)'!D58","v":0},{"$f":"'MLM (É)'!E58","v":0},{"$f":"'MLM (É)'!F58","v":0}]
[50,null,"Költségek, ráfordítások aktív időbeli elhatárolása",{"$f":"'MLM (É)'!D59","v":0},{"$f":"'MLM (É)'!E59","v":0},{"$f":"'MLM (É)'!F59","v":0}]
[51,null,"Halasztott ráfordítások",{"$f":"'MLM (É)'!D60","v":0},{"$f":"'MLM (É)'!E60","v":0},{"$f":"'MLM (É)'!F60","v":0}]
[]
[52,null,"ESZKÖZÖK  ÖSSZESEN",{"$f":"+'MLM (É)'!D61","v":0},{"$f":"+'MLM (É)'!E61","v":0},{"$f":"+'MLM (É)'!F61","v":0}]
["Keltezés:",null,{"$f":"C35","v":"2013-03-31"}]
[null,null,null,null,"A vállalkozás vezetője\n(képviselője)"]
[]
["Stat.sz.",null,{"$f":"C1","v":"12005954-5170-113-01"}]
["Cégbir.sz.",null,{"$f":"C2","v":"01-09-366783"}]
[null,{"$f":"B3","v":"Macskafarka Kft"},null,null,null,13]
[null,null,"Az üzleti év mérlegfordulónapja (év, hó, nap):",{"$f":"'MLE (É)'!F8","v":"2012-12-31"}]
[null,"Éves beszámoló MÉRLEGE \"A\" változat\n(Források)"]
[null,null,null,null,null,"adatok E Ft-ban"]
[null,null,"A tétel megnevezése","Előző év","Előző év(ek)\nmódosításai","Tárgyév"]
[null,null,null,{"$f":"'MLE (É)'!D8","v":"2011-12-31"},null,{"$f":"'MLE (É)'!F8","v":"2012-12-31"}]
["a",null,"b","c","d","e"]
[53,"D","Saját tőke",{"$f":"'MLM (É)'!D63","v":0},{"$f":"'MLM (É)'!E63","v":0},{"$f":"'MLM (É)'!F63","v":0}]
[54,"I.","Jegyzett tőke",{"$f":"'MLM (É)'!D64","v":0},{"$f":"'MLM (É)'!E64","v":0},{"$f":"'MLM (É)'!F64","v":0}]
[55,null,"   Ebből visszavásárolt tulajdonú részesedés névértéke",{"$f":"'MLM (É)'!D65","v":0},{"$f":"'MLM (É)'!E65","v":0},{"$f":"'MLM (É)'!F65","v":0}]
[56,"II.","Jegyzett, de még be nem fizetett tőke (-)",{"$f":"'MLM (É)'!D66","v":0},{"$f":"'MLM (É)'!E66","v":0},{"$f":"'MLM (É)'!H66","v":0}]
[57,"III.","Tőketartalék",{"$f":"'MLM (É)'!D67","v":0},{"$f":"'MLM (É)'!E67","v":0},{"$f":"'MLM (É)'!F67","v":0}]
[58,"IV.","Eredménytartalék",{"$f":"'MLM (É)'!D68","v":0},{"$f":"'MLM (É)'!E68","v":0},{"$f":"'MLM (É)'!F68","v":0}]
[59,"V.","Lekötött tartalék",{"$f":"'MLM (É)'!D69","v":0},{"$f":"'MLM (É)'!E69","v":0},{"$f":"'MLM (É)'!F69","v":0}]
[60,"VI.","Értékelési tartalék",{"$f":"'MLM (É)'!D70","v":0},{"$f":"'MLM (É)'!E70","v":0},{"$f":"'MLM (É)'!F70","v":0}]
[61,"VII.","Mérleg szerinti eredmény",{"$f":"'MLM (É)'!D71","v":0},{"$f":"'MLM (É)'!E71","v":0},{"$f":"'MLM (É)'!F71","v":0}]
[62,"E","Céltartalékok",{"$f":"'MLM (É)'!D72","v":0},{"$f":"'MLM (É)'!E72","v":0},{"$f":"'MLM (É)'!F72","v":0}]
[63,null,"Céltartalék a várható kötelezettségekre",{"$f":"'MLM (É)'!D73","v":0},{"$f":"'MLM (É)'!E73","v":0},{"$f":"'MLM (É)'!F73","v":0}]
[64,null,"Céltartalék a jövőbeni költségekre",{"$f":"'MLM (É)'!D74","v":0},{"$f":"'MLM (É)'!E74","v":0},{"$f":"'MLM (É)'!F74","v":0}]
[65,null,"Egyéb céltartalék",{"$f":"'MLM (É)'!D75","v":0},{"$f":"'MLM (É)'!E75","v":0},{"$f":"'MLM (É)'!F75","v":0}]
["Keltezés:",null,{"$f":"C75","v":"2013-03-31"}]
[null,null,null,null,"A vállalkozás vezetője\n(képviselője)"]
[]
["Stat.sz.",null,{"$f":"C1","v":"12005954-5170-113-01"}]
["Cégbir.sz.",null,{"$f":"C2","v":"01-09-366783"}]
[null,{"$f":"B3","v":"Macskafarka Kft"},null,null,null,14]
[null,null,"Az üzleti év mérlegfordulónapja (év, hó, nap):",{"$f":"'MLE (É)'!F8","v":"2012-12-31"}]
[null,"Éves beszámoló MÉRLEGE \"A\" változat\n(Források)"]
[null,null,null,null,null,"adatok E Ft-ban"]
[null,null,"A tétel megnevezése","Előző év","Előző év(ek)\nmódosításai","Tárgyév"]
[null,null,null,{"$f":"'MLE (É)'!D8","v":"2011-12-31"},null,{"$f":"'MLE (É)'!F8","v":"2012-12-31"}]
["a",null,"b","c","d","e"]
[66,"F","Kötelezettségek",{"$f":"'MLM (É)'!D76","v":0},{"$f":"'MLM (É)'!E76","v":0},{"$f":"'MLM (É)'!F76","v":0}]
[67,"I.","Hátrasorolt kötelezettségek",{"$f":"'MLM (É)'!D77","v":0},{"$f":"'MLM (É)'!E77","v":0},{"$f":"'MLM (É)'!F77","v":0}]
[68,null,"Hátrasorolt kötelezettségek kapcsolt vállalkozással\nszemben",{"$f":"'MLM (É)'!D78","v":0},{"$f":"'MLM (É)'!E78","v":0},{"$f":"'MLM (É)'!F78","v":0}]
[69,null,"Hátrasorolt kötelezettségek egyéb részesedési\nviszonyban lévő vállalkozással szemben",{"$f":"'MLM (É)'!D80","v":0},{"$f":"'MLM (É)'!E80","v":0},{"$f":"'MLM (É)'!F79","v":0}]
[70,null,"Hátrasorolt kötelezettségek egyéb gazdálkodóval\nszemben",{"$f":"'MLM (É)'!D81","v":0},{"$f":"'MLM (É)'!E81","v":0},{"$f":"'MLM (É)'!F81","v":0}]
[71,"II.","Hosszúlejáratú kötelezettség",{"$f":"'MLM (É)'!D82","v":0},{"$f":"'MLM (É)'!E82","v":0},{"$f":"'MLM (É)'!F82","v":0}]
[72,null,"Hosszú lejáratra kapott kölcsönök",{"$f":"'MLM (É)'!D83","v":0},{"$f":"'MLM (É)'!E83","v":0},{"$f":"'MLM (É)'!F83","v":0}]
[73,null,"Átváltoztatható kötvények",{"$f":"'MLM (É)'!D84","v":0},{"$f":"'MLM (É)'!E84","v":0},{"$f":"'MLM (É)'!F84","v":0}]
[74,null,"Tartozások kötvénykibocsátásból",{"$f":"'MLM (É)'!D85","v":0},{"$f":"'MLM (É)'!E85","v":0},{"$f":"'MLM (É)'!F85","v":0}]
[75,null,"Beruházási és fejlesztési hitelek",{"$f":"'MLM (É)'!D86","v":0},{"$f":"'MLM (É)'!E86","v":0},{"$f":"'MLM (É)'!F86","v":0}]
[76,null,"Egyéb hosszú lejáratú hitelek",{"$f":"'MLM (É)'!D87","v":0},{"$f":"'MLM (É)'!E87","v":0},{"$f":"'MLM (É)'!F87","v":0}]
[77,null,"Tartós kötelezettségek kapcsolt vállalkozással\nszemben",{"$f":"'MLM (É)'!D88","v":0},{"$f":"'MLM (É)'!E88","v":0},{"$f":"'MLM (É)'!F88","v":0}]
[78,null,"Tartós kötelezettségek egyéb részesedési\nviszonyban lévő vállalkozással szemben",{"$f":"'MLM (É)'!D90","v":0},{"$f":"'MLM (É)'!E90","v":0},{"$f":"'MLM (É)'!F90","v":0}]
[79,null,"Egyéb hosszú lejáratú kötelezettségek",{"$f":"'MLM (É)'!D91","v":0},{"$f":"'MLM (É)'!E91","v":0},{"$f":"'MLM (É)'!F91","v":0}]
[80,"III.","Rövidlejáratú kötelezettség",{"$f":"'MLM (É)'!D92","v":0},{"$f":"'MLM (É)'!E92","v":0},{"$f":"'MLM (É)'!F92","v":0}]
[81,null,"Rövid lejáratú kölcsönök",{"$f":"'MLM (É)'!D93","v":0},{"$f":"'MLM (É)'!E93","v":0},{"$f":"'MLM (É)'!F93","v":0}]
[82,null,"   Ebből: az átváltoztatható kötvények",{"$f":"'MLM (É)'!D94","v":0},{"$f":"'MLM (É)'!E94","v":0},{"$f":"'MLM (É)'!F94","v":0}]
[83,null,"Rövid lejáratú hitelek",{"$f":"'MLM (É)'!D95","v":0},{"$f":"'MLM (É)'!E95","v":0},{"$f":"'MLM (É)'!F95","v":0}]
[84,null,"Vevőktől kapott előlegek",{"$f":"'MLM (É)'!D96","v":0},{"$f":"'MLM (É)'!E96","v":0},{"$f":"'MLM (É)'!F96","v":0}]
[85,null,"Kötelezettségek áruszállításból és szolgáltatásból (szállítók)",{"$f":"'MLM (É)'!D97","v":0},{"$f":"'MLM (É)'!E97","v":0},{"$f":"'MLM (É)'!F97","v":0}]
[86,null,"Váltótartozások",{"$f":"'MLM (É)'!D98","v":0},{"$f":"'MLM (É)'!E98","v":0},{"$f":"'MLM (É)'!F98","v":0}]
[87,null,"Rövid lejáratú kötelezettségek kapcsolt vállalkozással szemben",{"$f":"'MLM (É)'!D99","v":0},{"$f":"'MLM (É)'!E99","v":0},{"$f":"'MLM (É)'!F99","v":0}]
[88,null,"Rövid lejáratú kötelezettségek egyéb részesedési viszonyban lévő vállalkozással szemben",{"$f":"'MLM (É)'!D101","v":0},{"$f":"'MLM (É)'!E101","v":0},{"$f":"'MLM (É)'!F101","v":0}]
[89,null,"Egyéb rövid lejáratú kötelezettségek",{"$f":"'MLM (É)'!D102","v":0},{"$f":"'MLM (É)'!E102","v":0},{"$f":"'MLM (É)'!F102","v":0}]
[90,"G","Passziv időbeli elhatárolás",{"$f":"'MLM (É)'!D103","v":0},{"$f":"'MLM (É)'!E103","v":0},{"$f":"'MLM (É)'!F103","v":0}]
[91,null,"Bevételek passzív időbeli elhatárolása",{"$f":"'MLM (É)'!D104","v":0},{"$f":"'MLM (É)'!E104","v":0},{"$f":"'MLM (É)'!F104","v":0}]
[92,null,"Költségek, ráfordítások passzív időbeli elhatárolása",{"$f":"'MLM (É)'!D105","v":0},{"$f":"'MLM (É)'!E105","v":0},{"$f":"'MLM (É)'!F105","v":0}]
[93,null,"Halasztott bevételek",{"$f":"'MLM (É)'!D106","v":0},{"$f":"'MLM (É)'!E106","v":0},{"$f":"'MLM (É)'!F106","v":0}]
[]
[94,null,"FORRÁSOK ÖSSZESEN",{"$f":"'MLM (É)'!D107","v":0},{"$f":"'MLM (É)'!E107","v":0},{"$f":"'MLM (É)'!F107","v":0}]
["Keltezés:",null,{"$f":"C100","v":"2013-03-31"}]
[null,null,null,null,"A vállalkozás vezetője\n(képviselője)"]
[]
["Stat.sz.",null,{"$f":"'MLE (É)'!C2","v":"12005954-5170-113-01"}]
["Cégbir.sz.",null,{"$f":"'MLE (É)'!C3","v":"01-09-366783"}]
[null,{"$f":"Adat!B5","v":"Macskafarka Kft"},null,null,null,31]
[null,null,"Az üzleti év mérlegfordulónapja (év, hó, nap):",{"$f":"'MLE (É)'!F8","v":"2012-12-31"}]
[null,"Éves beszámoló\n\"A\" EREDMÉNYKIMUTATÁSA\n(összköltség eljárásssal)"]
[null,null,null,null,null,"adatok E Ft-ban"]
["Tétel szám","A tétel megnevezése",null,"Előző év","Előző év(ek)\nmódosításai","Tárgyév"]
[null,null,null,{"$f":"'MLE (É)'!D8","v":"2011-12-31"},null,{"$f":"'MLE (É)'!F8","v":"2012-12-31"}]
["a","b",null,"c","d","e"]
[1,"Belföldi értékesítés nettó árbevétele",null,{"$f":"'MLE (É)'!D10","v":0},{"$f":"'MLE (É)'!E10","v":0},{"$f":"'MLE (É)'!F10","v":0},null,"01"]
[2,"Exportértékesítés nettó árbevétele",null,{"$f":"'MLE (É)'!D11","v":0},{"$f":"'MLE (É)'!E11","v":0},{"$f":"'MLE (É)'!F11","v":0},null,"02"]
["I.","Értékesítés nettó árbevétele",null,{"$f":"'MLE (É)'!D12","v":0},{"$f":"'MLE (É)'!E12","v":0},{"$f":"'MLE (É)'!F12","v":0},null,"03"]
[3,"Saját termelésű készletek állományváltozása",null,{"$f":"'MLE (É)'!D13","v":0},{"$f":"'MLE (É)'!E13","v":0},{"$f":"'MLE (É)'!F13","v":0},null,"04"]
[4,"Saját előállítású eszközök aktivált értéke",null,{"$f":"'MLE (É)'!D14","v":0},{"$f":"'MLE (É)'!E14","v":0},{"$f":"'MLE (É)'!F14","v":0},null,"05"]
["II.","Aktivált saját teljesítmények",null,{"$f":"'MLE (É)'!D15","v":0},{"$f":"'MLE (É)'!E15","v":0},{"$f":"'MLE (É)'!F15","v":0},null,"06"]
["III.","Egyéb bevételek",null,{"$f":"'MLE (É)'!D16","v":0},{"$f":"'MLE (É)'!E16","v":0},{"$f":"'MLE (É)'!F16","v":0},null,"07"]
[null,null,"III.sorból: visszaírt értékvesztés",{"$f":"'MLE (É)'!D17","v":0},{"$f":"'MLE (É)'!E17","v":0},{"$f":"'MLE (É)'!F17","v":0},null,"08"]
[5,"Anyagköltség",null,{"$f":"'MLE (É)'!D18","v":0},{"$f":"'MLE (É)'!E18","v":0},{"$f":"'MLE (É)'!F18","v":0},null,"09"]
[6,"Igénybe vett szolgáltatások értéke",null,{"$f":"'MLE (É)'!D19","v":0},{"$f":"'MLE (É)'!E19","v":0},{"$f":"'MLE (É)'!F19","v":0},null,"10"]
[7,"Egyéb szolgáltatások értéke",null,{"$f":"'MLE (É)'!D20","v":0},{"$f":"'MLE (É)'!E20","v":0},{"$f":"'MLE (É)'!F20","v":0},null,"11"]
[8,"Eladott áruk beszerzési értéke",null,{"$f":"'MLE (É)'!D21","v":0},{"$f":"'MLE (É)'!E21","v":0},{"$f":"'MLE (É)'!F21","v":0},null,"12"]
[9,"Eladott (közvetített) szolgáltatások értéke",null,{"$f":"'MLE (É)'!D22","v":0},{"$f":"'MLE (É)'!E22","v":0},{"$f":"'MLE (É)'!F22","v":0},null,"13"]
["IV.","Anyagjellegű ráfordítások",null,{"$f":"'MLE (É)'!D23","v":0},{"$f":"'MLE (É)'!E23","v":0},{"$f":"'MLE (É)'!F23","v":0},null,"14"]
[10,"Bérköltség",null,{"$f":"'MLE (É)'!D24","v":0},{"$f":"'MLE (É)'!E24","v":0},{"$f":"'MLE (É)'!F24","v":0},null,"15"]
[11,"Személyi jellegű egyéb kifizetések",null,{"$f":"'MLE (É)'!D25","v":0},{"$f":"'MLE (É)'!E25","v":0},{"$f":"'MLE (É)'!F25","v":0},null,"16"]
[12,"Bérjárulékok",null,{"$f":"'MLE (É)'!D26","v":0},{"$f":"'MLE (É)'!E26","v":0},{"$f":"'MLE (É)'!F26","v":0},null,"17"]
["V.","Személyi jellegű ráfordítások",null,{"$f":"'MLE (É)'!D27","v":0},{"$f":"'MLE (É)'!E27","v":0},{"$f":"'MLE (É)'!F27","v":0},null,"18"]
["VI.","Értékcsökkenési leírás",null,{"$f":"'MLE (É)'!D28","v":0},{"$f":"'MLE (É)'!E28","v":0},{"$f":"'MLE (É)'!F28","v":0},null,"19"]
["VII.","Egyéb ráfordítások",null,{"$f":"'MLE (É)'!D29","v":0},{"$f":"'MLE (É)'!E29","v":0},{"$f":"'MLE (É)'!F29","v":0},null,"20"]
[null,null,"VII.sorból: értékvesztés",{"$f":"'MLE (É)'!D30","v":0},{"$f":"'MLE (É)'!E30","v":0},{"$f":"'MLE (É)'!F30","v":0},null,"21"]
["A","Üzemi tevékenység eredménye",null,{"$f":"'MLE (É)'!D31","v":0},{"$f":"'MLE (É)'!E31","v":0},{"$f":"'MLE (É)'!F31","v":0},null,"22"]
["Keltezés:",null,{"$f":"Adat!C15","v":"2013-03-31"}]
[null,null,null,null,"A vállalkozás vezetője\n(képviselője)"]
[]
["Stat.sz.",null,{"$f":"C145","v":"12005954-5170-113-01"}]
["Cégbir.sz.",null,{"$f":"C146","v":"01-09-366783"}]
[null,{"$f":"B147","v":"Macskafarka Kft"},null,null,null,32]
[null,null,"Az üzleti év mérlegfordulónapja (év, hó, nap):",{"$f":"'MLE (É)'!F8","v":"2012-12-31"}]
[null,"Éves beszámoló\n\"A\" EREDMÉNYKIMUTATÁSA\n(összköltség eljárásssal)"]
[null,null,null,null,null,"adatok E Ft-ban"]
["Tétel szám","A tétel megnevezése",null,"Előző év","Előző év(ek)\nmódosításai","Tárgyév"]
[null,null,null,{"$f":"'MLE (É)'!D8","v":"2011-12-31"},null,{"$f":"'MLE (É)'!F8","v":"2012-12-31"}]
["a","b",null,"c","d","e"]
[13,"Kapott (járó) osztalék és részesedés",null,{"$f":"'MLE (É)'!D32","v":0},{"$f":"'MLE (É)'!E32","v":0},{"$f":"'MLE (É)'!F32","v":0},null,"23"]
[null,"   Ebből: kapcsolt vállalkozástól kapott",null,{"$f":"'MLE (É)'!D33","v":0},{"$f":"'MLE (É)'!E33","v":0},{"$f":"'MLE (É)'!F33","v":0},null,"24"]
[14,"Részesedések értékesítésének árfolyamnyeresége",null,{"$f":"'MLE (É)'!D34","v":0},{"$f":"'MLE (É)'!E34","v":0},{"$f":"'MLE (É)'!F34","v":0},null,"25"]
[null,"   Ebből: kapcsolt vállalkozástól kapott",null,{"$f":"'MLE (É)'!D35","v":0},{"$f":"'MLE (É)'!E35","v":0},{"$f":"'MLE (É)'!F35","v":0},null,"26"]
[15,"Befektetett pénzügyi eszközök kamatai, árfolyamnyeresége",null,{"$f":"'MLE (É)'!D36","v":0},{"$f":"'MLE (É)'!E36","v":0},{"$f":"'MLE (É)'!F36","v":0},null,"27"]
[null,"   Ebből: kapcsolt vállalkozástól kapott",null,{"$f":"'MLE (É)'!D37","v":0},{"$f":"'MLE (É)'!E37","v":0},{"$f":"'MLE (É)'!F37","v":0},null,"28"]
[16,"Egyéb (kapott) kamatok és kamatjellegű bevételek",null,{"$f":"'MLE (É)'!D38","v":0},{"$f":"'MLE (É)'!E38","v":0},{"$f":"'MLE (É)'!F38","v":0},null,"29"]
[null,"   Ebből: kapcsolt vállalkozástól kapott",null,{"$f":"'MLE (É)'!D39","v":0},{"$f":"'MLE (É)'!E39","v":0},{"$f":"'MLE (É)'!F39","v":0},null,"30"]
[17,"Pénzügyi műveletek egyéb bevételei",null,{"$f":"'MLE (É)'!D40","v":0},{"$f":"'MLE (É)'!E40","v":0},{"$f":"'MLE (É)'!F40","v":0},null,"31"]
["VIII.","Pénzügyi műveletek bevételei",null,{"$f":"'MLE (É)'!D41","v":0},{"$f":"'MLE (É)'!E41","v":0},{"$f":"'MLE (É)'!F41","v":0},null,"32"]
[18,"Befektetett pénzügyi eszközök árfolyamvesztesége",null,{"$f":"'MLE (É)'!D42","v":0},{"$f":"'MLE (É)'!E42","v":0},{"$f":"'MLE (É)'!F42","v":0},null,"33"]
[null,"   Ebből: kapcsolt vállalkozának adott",null,{"$f":"'MLE (É)'!D43","v":0},{"$f":"'MLE (É)'!E43","v":0},{"$f":"'MLE (É)'!F43","v":0},null,"34"]
[19,"Fizetendő kamatok és kamatjellegű ráfordítások",null,{"$f":"'MLE (É)'!D44","v":0},{"$f":"'MLE (É)'!E44","v":0},{"$f":"'MLE (É)'!F44","v":0},null,"35"]
[null,"   Ebből: kapcsolt vállalkozásnak adott",null,{"$f":"'MLE (É)'!D45","v":0},{"$f":"'MLE (É)'!E45","v":0},{"$f":"'MLE (É)'!F45","v":0},null,"36"]
[20,"Részesedések, értékpapírok, bankbetétek értékvesztése",null,{"$f":"'MLE (É)'!D46","v":0},{"$f":"'MLE (É)'!E46","v":0},{"$f":"'MLE (É)'!F46","v":0},null,"37"]
[21,"Pénzügyi műveletek egyéb ráfordításai",null,{"$f":"'MLE (É)'!D47","v":0},{"$f":"'MLE (É)'!E47","v":0},{"$f":"'MLE (É)'!F47","v":0},null,"38"]
["IX.","Pénzügyi műveletek ráfordításai",null,{"$f":"'MLE (É)'!D48","v":0},{"$f":"'MLE (É)'!E48","v":0},{"$f":"'MLE (É)'!F48","v":0},null,"39"]
["B","Pénzügyi műv. eredménye",null,{"$f":"'MLE (É)'!D49","v":0},{"$f":"'MLE (É)'!E49","v":0},{"$f":"'MLE (É)'!F49","v":0},null,"40"]
["C","Szokásos vállalk. eredmény",null,{"$f":"'MLE (É)'!D50","v":0},{"$f":"'MLE (É)'!E50","v":0},{"$f":"'MLE (É)'!F50","v":0},null,"41"]
["X.","Rendkivűli bevételek",null,{"$f":"'MLE (É)'!D51","v":0},{"$f":"'MLE (É)'!E51","v":0},{"$f":"'MLE (É)'!F51","v":0},null,"42"]
["XI.","Rendkivüli ráfordítások",null,{"$f":"'MLE (É)'!D52","v":0},{"$f":"'MLE (É)'!E52","v":0},{"$f":"'MLE (É)'!F52","v":0},null,"43"]
["D","Rendkivűli eredmény",null,{"$f":"'MLE (É)'!D53","v":0},{"$f":"'MLE (É)'!E53","v":0},{"$f":"'MLE (É)'!F53","v":0},null,"44"]
["E","Adózás előtti eredmény",null,{"$f":"'MLE (É)'!D54","v":0},{"$f":"'MLE (É)'!E54","v":0},{"$f":"'MLE (É)'!F54","v":0},null,"45"]
["XII.","Adófizetési kötelezettség - társasági adó",null,{"$f":"'MLE (É)'!D55","v":0},{"$f":"'MLE (É)'!E55","v":0},{"$f":"'MLE (É)'!F55","v":0},null,"46"]
["F","Adózott eredmény",null,{"$f":"'MLE (É)'!D56","v":0},{"$f":"'MLE (É)'!E56","v":0},{"$f":"'MLE (É)'!F56","v":0},null,48]
[22,"Eredménytartalék igénybevétele osztalékra, részesedésre",null,{"$f":"'MLE (É)'!D57","v":0},{"$f":"'MLE (É)'!E57","v":0},{"$f":"'MLE (É)'!F57","v":0},null,49]
[23,"Jóváhagyott osztalék, részesedés",null,{"$f":"'MLE (É)'!D58","v":0},{"$f":"'MLE (É)'!E58","v":0},{"$f":"'MLE (É)'!F58","v":0},null,50]
["G","Mérleg szerinti eredmény",null,{"$f":"'MLE (É)'!D59","v":0},{"$f":"'MLE (É)'!E59","v":0},{"$f":"'MLE (É)'!F59","v":0},null,51]
[]
["Keltezés:",null,{"$f":"C176","v":"2013-03-31"}]
[null,null,null,null,"A vállalkozás vezetője\n(képviselője)"]

{"sheet":"Elfogad-Jk","index":27,"n_rows":66,"n_cols":13,"rows_kept":66,"cut":false,"hidden":false,"merged":[[57,171,57,179],[57,189,57,197],[57,126,57,134],[57,252,57,255],[9,1,9,4],[9,6,9,8],[15,0,15,4],[57,216,57,224],[57,225,57,233],[57,234,57,242],[57,243,57,251],[57,180,57,188],[57,135,57,143],[57,198,57,206],[57,207,57,215],[57,144,57,152],[57,153,57,161],[57,162,57,170],[33,0,33,8],[57,63,57,71],[57,9,57,17],[57,18,57,26],[37,0,37,8],[44,0,44,3],[48,0,48,3],[50,0,50,8],[41,10,48,12],[47,0,47,3],[46,0,46,3],[50,10,51,12],[51,0,51,8],[57,117,57,125],[57,108,57,116],[34,0,34,8],[31,5,31,8],[32,3,32,4],[57,36,57,44],[57,45,57,53],[57,90,57,98],[57,99,57,107],[43,0,43,8],[31,3,31,4],[37,10,37,12],[53,1,53,8],[39,10,39,12],[57,27,57,35],[57,54,57,62],[57,72,57,80],[57,81,57,89],[4,0,4,8],[8,6,8,8],[13,6,13,8],[13,1,13,4],[8,1,8,4],[10,1,10,4],[10,6,10,8],[12,1,12,4],[12,6,12,8],[11,1,11,4],[6,6,6,8],[7,6,7,8],[0,0,0,8],[1,0,1,8],[2,0,2,8],[3,0,3,8],[5,1,5,4],[5,6,5,8],[6,1,6,4],[7,1,7,4],[39,0,39,8],[11,6,11,8],[24,1,24,3],[24,4,24,8],[25,1,25,3],[25,4,25,8],[14,1,14,4],[14,6,14,8],[22,0,22,8],[15,6,15,8],[18,0,18,8],[19,0,19,8],[21,0,21,8],[20,0,20,8],[65,0,65,3],[65,5,65,8],[62,0,62,3],[62,5,62,8],[56,5,56,8],[59,5,59,8],[59,0,59,3],[56,0,56,3],[45,0,45,3],[41,0,41,8],[42,1,42,8],[23,1,23,8],[30,1,30,8],[27,0,27,8],[28,1,28,8],[26,0,26,8],[29,0,29,8]]}
["Jegyzőkönyv a"]
[{"$f":"Adat!B11","v":2012}]
["évi beszámoló elfogadásáról"]
[]
["Jelen vannak: "]
[null,{"$f":"Adat!B27","v":"Sajt Árpád"},null,null,null,{"$f":"IF(MLM!F24=0,0,Adat!D25/MLM!F24/1000)","v":0},"Tulajdonos képviselője"]
[null,{"$f":"Adat!B31","v":"Kutyufülű Aladár"},null,null,null,{"$f":"IF(MLM!F24=0,0,Adat!D29/MLM!F24/1000)","v":0},"Tulajdonos képviselője"]
[null,{"$f":"Adat!B35","v":"Mekk Elek"},null,null,null,{"$f":"IF(MLM!F24=0,0,Adat!D33/MLM!F24/1000)","v":0},"Tulajdonos képviselője"]
[null,{"$f":"Adat!B39","v":"Kukori Kázmér"},null,null,null,{"$f":"IF(MLM!F24=0,0,Adat!D37/MLM!F24/1000)","v":0},"Tulajdonos képviselője"]
[null,{"$f":"Adat!B41","v":"Mák Virág"},null,null,null,{"$f":"IF(MLM!F24=0,0,Adat!D41/MLM!F24/1000)","v":0},"Tulajdonos"]
[null,{"$f":"Adat!B44","v":"Kandúr Bandi"},null,null,null,{"$f":"IF(MLM!F24=0,0,Adat!D44/MLM!F24/1000)","v":0},"Tulajdonos"]
[null,{"$f":"Adat!B47","v":"Mor Zsolt"},null,null,null,{"$f":"IF(MLM!F24=0,0,Adat!D47/MLM!F24/1000)","v":0},"Tulajdonos"]
[null,{"$f":"Adat!B50","v":"Pilis Csaba"},null,null,null,{"$f":"IF(MLM!F24=0,0,Adat!D50/MLM!F24/1000)","v":0},"Tulajdonos"]
[null,{"$f":"Adat!B62","v":"Macska János"},null,null,null,null,"Ügyvezető igazgató",null,null,null,"Törlendő sor, ha ügyvezető egyben tag is."]
[null,{"$f":"Adat!C68","v":"Tényné Mind Etel"},null,null,null,null,"Kamarai tag könyvvizsgáló",null,null,null,"Törlendő sor, ha nincs könyvvizsgáló."]
["Tehát a tulajdonosi körből jelen van összesen: ",null,null,null,null,{"$f":"SUM(F6:F15)","v":0}]
[]
[]
["Alulírott tulajdonosok, a"]
[]
[{"$f":"Adat!B5","v":"Macskafarka Kft"}]
[{"$f":"Adat!B7","v":"Macskafalva, Egér út 1."}]
[]
[{"$f":"A2","v":2012},{"$f":"IF(Adat!A18=1,\"évi éves beszámolóját a mai napon 100 százalékos szavazat mellett elfogadjuk\",\"évi egyszerűsített éves beszámolóját a mai napon 100 százalékos szavazat mellett elfogadjuk\")","v":"évi egyszerűsített éves beszámolóját a mai napon 100 százalékos szavazat mellett elfogadjuk"}]
[null,{"$f":"IF(Adat!A18=1,'MLM (É)'!F61,MLM!F21)","v":0},null,null,"mérleg főösszeggel és"]
[null,{"$f":"IF(Adat!A18=1,'MLE (É)'!F59,MLM!F31)","v":0},null,null,"mérleg szerinti eredménnyel."]
["A mérleg szerinti eredményt teljes mértékben az eredménytartalékba kerül átvezetésre."]
[]
[{"$f":"Adat!B11","v":2012},{"$f":"IF(MLE!F47=0,\"év gazdálkodása alapján osztalék nem kerül kifizetésre. \",\"\")","v":"év gazdálkodása alapján osztalék nem kerül kifizetésre. "}]
["Vagy "]
[{"$f":"Adat!B11","v":2012},"év gazdálkodása alapján a tulajdonosok jelen határozattal az adózott eredményből"]
[null,null,null,{"$f":"IF(Adat!A18=1,'MLE (É)'!F58-'MLE (É)'!F57,MLE!F47-MLE!F46)","v":0},null,"osztalék kifizetése mellett döntenek."]
[null,"Továbbá",null,{"$f":"IF(Adat!A18=1,'MLE (É)'!F57,MLE!F46)","v":0},null,"az eredménytartalékból kerül bevonásra."]
[]
["Az ügyvezető intézkedik jelen jegyzőkönyv tartalmának a Határozatok Könyvébe történő bevezetéséről.",null,null,null,null,null,null,null,null,null,"Mérleg:",{"$f":"MLM!D6","v":"2011-12-31"},{"$f":"MLM!F6","v":"2012-12-31"}]
[null,null,null,null,null,null,null,null,null,null,"Saját tőke:",{"$f":"IF(Adat!A18=1,'MLM (É)'!D63,MLM!D23)","v":0},{"$f":"IF(Adat!A18=1,'MLM (É)'!F63,MLM!F23)","v":0}]
[null,null,null,null,null,null,null,null,null,null,"Törzstőke:",{"$f":"IF(Adat!A18=1,'MLM (É)'!D64,MLM!D24)","v":0},{"$f":"IF(Adat!A18=1,'MLM (É)'!F64,MLM!F24)","v":0}]
["A tulajdonosok egyben kijelentik, hogy tudomással bírnak arról a tényről, hogy a Társaság ezen éves \nbeszámolójával nem tesz eleget a gazdasági társaságokról szóló 2006 évi  IV  törvényben  \nfoglaltaknak, mert két egymást követő évben a saját tőke nem érte el a társasági formára minimálisan \nelőírt nagyságot. A tulajdonosok tudomással bírnak arról, hogy a törvény 51 §-a szerint három hónap\nidő áll rendelkezésre ahhoz, hogy a Társaság gondoskodjék a megfelelő saját tőke nagyságról, \nellenkező esetben át kell alakulni olyan társasági formába, ahol nincs kötelezően előírt minimális tőke.",null,null,null,null,null,null,null,null,null,{"$f":"IF(AND(L36<500,M36<500),\"KELL !\",\"TÖRÖLNI !\")","v":"KELL !"}]
[]
["A tulajdonosok kijelentik, hogy ismerik a gazdasági társaságokról szóló 2006 évi IV törvény azon\nrendelkezéseit, amelynek értelmében lépések megtételét kell elhatározni abban az esetben, ha\na társaság mérlegéből, könyvviteli nyilvántartásából ktűnik, hogy a sjaát tőke a veszteség folytán\n* a törzstőke felére, illetve\n* a törvényben megjelölt minimális tőkeérték (500 eFt) alá csökkent.\nEzen intézkedések meghozatalára vonatkozóan a tulajdonosok külön határozatban döntenek.",null,null,null,null,null,null,null,null,null,{"$f":"IF(OR(M36<M37*0.5,M36<500),\"KELL !\",\"TÖRÖLNI !\")","v":"KELL !"}]
[]
["A Társaság tulajdonosai a taggyűlés keretében az éves eredmény elfogadásával egyidejűleg, a számvitelről szóló 2000. évi C. törvény 155. § (6) bekezdésének megfelelően döntenek a \n",null,null,null,null,null,null,null,null,null,{"$f":"IF(E45=0,\"TÖRÖLNI !\",\"KELL !\")","v":"KELL !"}]
[{"$f":"A2+1","v":2013},"gazdasági év könyvvizsgálójának személyéről is. A döntés alapján  a Társaság "]
["a következő személyt, mint kamarai tag könyvvizsgálót kér fel azzal, hogy a könyvvizsgálatra\nvonatkozó szerződést tárgy év május 31-ig a Társaság ügyvezető igazgatója köteles megkötni."]
["Könyvvizsgáló neve",null,null,null,{"$f":"Adat!C68","v":"Tényné Mind Etel"}]
["Kamarai regisztrációs száma:",null,null,null,{"$f":"Adat!C69","v":"003333"}]
["Könyvvizsgáló társaság neve:",null,null,null,{"$f":"Adat!C70","v":"dr. Számszaki Kft"}]
["Könyvvizsgáló társaság címe:",null,null,null,{"$f":"Adat!C71","v":"1111 Budapest, Egyenleg u.11."}]
["Könyvvizsgáló társaság kamarai száma:",null,null,null,{"$f":"Adat!C72","v":"001111"}]
[]
["Elfogadásra kerül az ügyvezető azon nyilatkozata, miszerint az osztalék kifizetése nem veszélyezteti a társaság",null,null,null,null,null,null,null,null,null,{"$f":"IF((D32+D33>0),\"KELL !\",\"TÖRÖLNI !\")","v":"TÖRÖLNI !"}]
["fizetőképességét, illetve a hitelezők érdekeinek érvényesülését."]
[]
[{"$f":"Adat!B15","v":"Budapest,"},{"$f":"Adat!C15","v":"2013-03-31"}]
[]
[]
["Tulajdonos képviselője",null,null,null,null,"Tulajdonos képviselője"]
[]
[]
["Tulajdonos képviselője",null,null,null,null,"Tulajdonos képviselője"]
[]
[]
["Tulajdonos",null,null,null,null,"Tulajdonos"]
[]
[]
["Tulajdonos",null,null,null,null,"Tulajdonos"]

{"sheet":"Oszt.nyil","index":28,"n_rows":30,"n_cols":6,"rows_kept":30,"cut":false,"hidden":false,"merged":[[7,0,7,8],[0,0,0,8],[1,0,1,8],[2,0,2,8],[3,0,3,8],[28,5,28,7],[8,0,8,8],[13,0,13,2],[4,0,4,8],[14,0,14,8],[9,0,9,8],[5,0,5,8],[11,1,11,8],[12,3,12,4],[12,5,12,8],[13,3,13,4],[6,0,6,8],[29,5,29,7],[15,0,15,8],[17,0,17,8],[19,0,19,8],[21,0,21,8],[23,1,23,3]]}
["Ügyvezetői nyilatkozat"]
[{"$f":"Adat!B11","v":2012}]
["évi beszámolóban elfogadott osztalék kifizetéséhez"]
[]
["Alulírott, "]
[{"$f":"Adat!B62","v":"Macska János"}]
["a "]
[{"$f":"Adat!B5","v":"Macskafarka Kft"}]
[{"$f":"Adat!B7","v":"Macskafalva, Egér út 1."}]
["ügyvezető igazgatója a gazdasági társaságokról szóló 2006. évi IV. törvény 131. § -ban előírtaknak megfelelően az alábbi nyilatkozatot teszem."]
[]
[{"$f":"Adat!B11","v":2012},"év gazdálkodása alapján a tárgyévi adózott eredményből a Társaság tulajdonosainak"]
[null,null,null,{"$f":"MLE!F47-MLE!F46","v":0},null,"osztalék kerül kifizetésre."]
["Ezen túl az eredménytartalékból",null,null,{"$f":"MLE!F46","v":0},null,"kerül bevonásra."]
[]
["Tudomással bírunk arról, hogy a társaság saját tőkéjéből a tagok javára, azok tagsági jogviszonyára figyelemmel kifizetést a társaság fennállása során kizárólag a törvényben meghatározott esetekben és csak a számvitelről szóló 2000. évi C. törvényben meghatározott feltételek teljesülése esetén teljesíthet, illetve nem kerülhet sor kifizetésre, ha a társaságnak a számviteli törvény szerint helyesbített saját tőkéje nem éri el vagy a kifizetés következtében nem érné el a társaság törzstőkéjét."]
[]
["Aláírásunkkal igazoljuk a taggyűlés felé, hogy a kifizetés nem veszélyezteti a társaság fizetőképességét, illetve a hitelezők érdekeinek érvényesülését. "]
[]
["Tudomással bírunk arról, hogy a nyilatkozat megtételének elmulasztásával történő kifizetéssel, illetve valótlan nyilatkozat tételével okozott károkért az ügyvezető a vezető tisztségviselőkre vonatkozó általános rendelkezések szerint felel."]
[]
["Azokat a kifizetéseket, melyeket az idézett törvényi előírásokkal, illetve a hitelezők érdekeinek védelmével ellentétben kerülnek teljesítésre a társaság részére vissza kell fizetni, feltéve, hogy a társaság bizonyítja a tag rosszhiszeműségét."]
["   "]
[{"$f":"Adat!B15","v":"Budapest,"},{"$f":"Adat!C15","v":"2013-03-31"}]
[]
[]
[]
[]
[null,null,null,null,null,{"$f":"A6","v":"Macska János"}]
[null,null,null,null,null,"ügyvezető igazgató"]

{"sheet":"Bilanz-német","index":29,"n_rows":77,"n_cols":6,"rows_kept":77,"cut":false,"hidden":false,"merged":[[51,4,52,4],[50,0,50,4],[3,0,3,5],[5,0,5,5],[7,0,7,5],[11,4,12,4],[35,1,35,2],[30,4,31,4]]}
[{"$f":"Adat!B15","v":"Budapest,"},null,{"$f":"Adat!C15","v":"2013-03-31"},"Stat. Nr.",{"$f":"Adat!B8","v":"12005954-5170-113-01"}]
[null,null,null,"Firmenregister Nr. ",{"$f":"Adat!B9","v":"01-09-366783"}]
[]
[{"$f":"Adat!B5","v":"Macskafarka Kft"}]
[]
["JAHRESABSCHLUß"]
[]
[{"$f":"Adat!B11","v":2012}]
[]
[]
[null,null,"B I L A N Z","in THUF",null,"1.Seite"]
[null,null,{"$f":"Adat!B5","v":"Macskafarka Kft"},{"$f":"MLE!D8","v":"2011-12-31"},"Veränderung\nVorjahr",{"$f":"MLE!F8","v":"2012-12-31"}]
[null,null,null,"Vorjahr",null,"Berichtsjahr"]
["A","Anlagevermögen",null,{"$f":"'NY-Mérl-Er'!D10","v":0},{"$f":"'NY-Mérl-Er'!E10","v":0},{"$f":"'NY-Mérl-Er'!F10","v":0}]
["I. ","Immaterielle Vermögensgegenstände",null,{"$f":"'NY-Mérl-Er'!D11","v":0},{"$f":"'NY-Mérl-Er'!E11","v":0},{"$f":"'NY-Mérl-Er'!F11","v":0}]
[null,null,"Wertberichtigung der immateriellen Verm.",{"$f":"'NY-Mérl-Er'!D12","v":0},{"$f":"'NY-Mérl-Er'!E12","v":0},{"$f":"'NY-Mérl-Er'!F12","v":0}]
["II."," Sachanlagen",null,{"$f":"'NY-Mérl-Er'!D13","v":0},{"$f":"'NY-Mérl-Er'!E13","v":0},{"$f":"'NY-Mérl-Er'!F13","v":0}]
[null,null,"Wertberichtigung der Sachanlagen",{"$f":"'NY-Mérl-Er'!D14","v":0},{"$f":"'NY-Mérl-Er'!E14","v":0},{"$f":"'NY-Mérl-Er'!F14","v":0}]
["III.","Finanzanlagen",null,{"$f":"'NY-Mérl-Er'!D15","v":0},{"$f":"'NY-Mérl-Er'!E15","v":0},{"$f":"'NY-Mérl-Er'!F15","v":0}]
[null,null,"Wertberichtigung der Finanzanlagen",{"$f":"'NY-Mérl-Er'!D16","v":0},{"$f":"'NY-Mérl-Er'!E16","v":0},{"$f":"'NY-Mérl-Er'!F16","v":0}]
["B","Umlaufvermögen",null,{"$f":"'NY-Mérl-Er'!D17","v":0},{"$f":"'NY-Mérl-Er'!E17","v":0},{"$f":"'NY-Mérl-Er'!F17","v":0}]
["I.","Vorräte",null,{"$f":"'NY-Mérl-Er'!D18","v":0},{"$f":"'NY-Mérl-Er'!E18","v":0},{"$f":"'NY-Mérl-Er'!F18","v":0}]
["II.","Forderungen",null,{"$f":"'NY-Mérl-Er'!D19","v":0},{"$f":"'NY-Mérl-Er'!E19","v":0},{"$f":"'NY-Mérl-Er'!F19","v":0}]
["III.","Wertpapiere",null,{"$f":"'NY-Mérl-Er'!D20","v":0},{"$f":"'NY-Mérl-Er'!E20","v":0},{"$f":"'NY-Mérl-Er'!F20","v":0}]
["IV.","Flüssige Mittel",null,{"$f":"'NY-Mérl-Er'!D21","v":0},{"$f":"'NY-Mérl-Er'!E21","v":0},{"$f":"'NY-Mérl-Er'!F21","v":0}]
["C"," Aktive Rechnungsabgrenzungsposten",null,{"$f":"'NY-Mérl-Er'!D22","v":0},{"$f":"'NY-Mérl-Er'!E22","v":0},{"$f":"'NY-Mérl-Er'!F22","v":0}]
[]
[null,null,"Aktive zusammen",{"$f":"'NY-Mérl-Er'!D24","v":0},{"$f":"'NY-Mérl-Er'!E24","v":0},{"$f":"'NY-Mérl-Er'!F24","v":0}]
[]
[null,null,"B I L A N Z","in THUF",null,"2.Seite"]
[null,null,{"$f":"C12","v":"Macskafarka Kft"},{"$f":"D12","v":"2011-12-31"},"Veränderung\nVorjahr",{"$f":"F12","v":"2012-12-31"}]
[null,null,null,"Vorjahr",null,"Berichtsjahr"]
["D","Eigenkapital",null,{"$f":"'NY-Mérl-Er'!D43","v":0},{"$f":"'NY-Mérl-Er'!E43","v":0},{"$f":"'NY-Mérl-Er'!F43","v":0}]
["I.","Gezeichnetes Kapital",null,{"$f":"'NY-Mérl-Er'!D44","v":0},{"$f":"'NY-Mérl-Er'!E44","v":0},{"$f":"'NY-Mérl-Er'!F44","v":0}]
[null,null,"Davon: zurückgekaufter Eigentumsanteil ",{"$f":"'NY-Mérl-Er'!D45","v":0},{"$f":"'NY-Mérl-Er'!E45","v":0},{"$f":"'NY-Mérl-Er'!F45","v":0}]
["II.","Nicht bezahltes Kapital",null,{"$f":"'NY-Mérl-Er'!D46","v":0},{"$f":"'NY-Mérl-Er'!E46","v":0},{"$f":"'NY-Mérl-Er'!F46","v":0}]
["III.","Kapitalrücklage",null,{"$f":"'NY-Mérl-Er'!D47","v":0},{"$f":"'NY-Mérl-Er'!E47","v":0},{"$f":"'NY-Mérl-Er'!F47","v":0}]
["IV.","Gewinnrücklage",null,{"$f":"'NY-Mérl-Er'!D48","v":0},{"$f":"'NY-Mérl-Er'!E48","v":0},{"$f":"'NY-Mérl-Er'!F48","v":0}]
["V","Gebundene Rücklagen",null,{"$f":"'NY-Mérl-Er'!D49","v":0},{"$f":"'NY-Mérl-Er'!E49","v":0},{"$f":"'NY-Mérl-Er'!F49","v":0}]
["VI.","Bewertungsreserve",null,{"$f":"'NY-Mérl-Er'!D50","v":0},{"$f":"'NY-Mérl-Er'!E50","v":0},{"$f":"'NY-Mérl-Er'!F50","v":0}]
["VII","Bilanzergebnis",null,{"$f":"'NY-Mérl-Er'!D51","v":0},{"$f":"'NY-Mérl-Er'!E51","v":0},{"$f":"'NY-Mérl-Er'!F51","v":0}]
["E","Rückstellungen",null,{"$f":"'NY-Mérl-Er'!D52","v":0},{"$f":"'NY-Mérl-Er'!E52","v":0},{"$f":"'NY-Mérl-Er'!F52","v":0}]
["F","Verbindlichkeiten",null,{"$f":"'NY-Mérl-Er'!D53","v":0},{"$f":"'NY-Mérl-Er'!E53","v":0},{"$f":"'NY-Mérl-Er'!F53","v":0}]
["I.","Nachrangige Verbindlichkeiten",null,{"$f":"'NY-Mérl-Er'!D54","v":0},{"$f":"'NY-Mérl-Er'!E54","v":0},{"$f":"'NY-Mérl-Er'!F54","v":0}]
["II.","Langfristige Verbindlichkeiten",null,{"$f":"'NY-Mérl-Er'!D55","v":0},{"$f":"'NY-Mérl-Er'!E55","v":0},{"$f":"'NY-Mérl-Er'!F55","v":0}]
["III.","Kurzfristige Verbindlichkeiten",null,{"$f":"'NY-Mérl-Er'!D56","v":0},{"$f":"'NY-Mérl-Er'!E56","v":0},{"$f":"'NY-Mérl-Er'!F56","v":0}]
["G","Passive Rechnungsabgrenzungsposten",null,{"$f":"'NY-Mérl-Er'!D57","v":0},{"$f":"'NY-Mérl-Er'!E57","v":0},{"$f":"'NY-Mérl-Er'!F57","v":0}]
[]
[null,null,"Passive zusammen",{"$f":"'NY-Mérl-Er'!D59","v":0},{"$f":"'NY-Mérl-Er'!E59","v":0},{"$f":"'NY-Mérl-Er'!F59","v":0}]
[]
["G UND V \n(nach Gesamtkostenverfahren)",null,null,null,null,"inTHuf"]
[null,null,{"$f":"Adat!B5","v":"Macskafarka Kft"},{"$f":"'Bilanz-német'!D12","v":"2011-12-31"},"Veränderung\nVorjahr",{"$f":"'Bilanz-német'!F12","v":"2012-12-31"}]
[null,null,null,"Vorjahr",null,"Berichtsjahr"]
[]
["I.","Nettoumsatzerlöse (01+02)",null,{"$f":"'NY-Mérl-Er'!D76","v":0},{"$f":"'NY-Mérl-Er'!E76","v":0},{"$f":"'NY-Mérl-Er'!F76","v":0}]
["II.","Aktivierte Eigenleistungen (03+04)",null,{"$f":"'NY-Mérl-Er'!D77","v":0},{"$f":"'NY-Mérl-Er'!E77","v":0},{"$f":"'NY-Mérl-Er'!F77","v":0}]
["III.","Sonstige Erträge",null,{"$f":"'NY-Mérl-Er'!D78","v":0},{"$f":"'NY-Mérl-Er'!E78","v":0},{"$f":"'NY-Mérl-Er'!F78","v":0}]
[null,null,"Davon: zurückgeschriebene Wertverluste",{"$f":"'NY-Mérl-Er'!D79","v":0},{"$f":"'NY-Mérl-Er'!E79","v":0},{"$f":"'NY-Mérl-Er'!F79","v":0}]
["IV.","Materialaufwendungen (05+06+07+08+09)",null,{"$f":"'NY-Mérl-Er'!D80","v":0},{"$f":"'NY-Mérl-Er'!E80","v":0},{"$f":"'NY-Mérl-Er'!F80","v":0}]
["V.","Personalaufwand (10+11+12)",null,{"$f":"'NY-Mérl-Er'!D81","v":0},{"$f":"'NY-Mérl-Er'!E81","v":0},{"$f":"'NY-Mérl-Er'!F81","v":0}]
["VI.","Abschreibungen",null,{"$f":"'NY-Mérl-Er'!D82","v":0},{"$f":"'NY-Mérl-Er'!E82","v":0},{"$f":"'NY-Mérl-Er'!F82","v":0}]
["VII.","Sonstige Aufwendungen",null,{"$f":"'NY-Mérl-Er'!D83","v":0},{"$f":"'NY-Mérl-Er'!E83","v":0},{"$f":"'NY-Mérl-Er'!F83","v":0}]
[null,null,"Davon: Wertverluste",{"$f":"'NY-Mérl-Er'!D84","v":0},{"$f":"'NY-Mérl-Er'!E84","v":0},{"$f":"'NY-Mérl-Er'!F84","v":0}]
["A","Betriebsergebnis (Geschäftserg.) (I+II+III-IV-V-VI-VII)",null,{"$f":"'NY-Mérl-Er'!D85","v":0},{"$f":"'NY-Mérl-Er'!E85","v":0},{"$f":"'NY-Mérl-Er'!F85","v":0}]
["VIII.","Finanzerträge (13+14+15+16+17)",null,{"$f":"'NY-Mérl-Er'!D86","v":0},{"$f":"'NY-Mérl-Er'!E86","v":0},{"$f":"'NY-Mérl-Er'!F86","v":0}]
["IX.","Finanzaufwendungen (18+19+20+21)",null,{"$f":"'NY-Mérl-Er'!D87","v":0},{"$f":"'NY-Mérl-Er'!E87","v":0},{"$f":"'NY-Mérl-Er'!F87","v":0}]
["B","Finanzergebnis (VIII-IX)",null,{"$f":"'NY-Mérl-Er'!D88","v":0},{"$f":"'NY-Mérl-Er'!E88","v":0},{"$f":"'NY-Mérl-Er'!F88","v":0}]
["C","Ergebnis der gewöhnlichen Geschäftstätigkeit (+A+B)",null,{"$f":"'NY-Mérl-Er'!D89","v":0},{"$f":"'NY-Mérl-Er'!E89","v":0},{"$f":"'NY-Mérl-Er'!F89","v":0}]
["X.","Außerordentliche Erträge",null,{"$f":"'NY-Mérl-Er'!D90","v":0},{"$f":"'NY-Mérl-Er'!E90","v":0},{"$f":"'NY-Mérl-Er'!F90","v":0}]
["XI.","Außerordentliche Aufwendungen",null,{"$f":"'NY-Mérl-Er'!D91","v":0},{"$f":"'NY-Mérl-Er'!E91","v":0},{"$f":"'NY-Mérl-Er'!F91","v":0}]
["D","Außerordentliches Ergebnis (X-XI)",null,{"$f":"'NY-Mérl-Er'!D92","v":0},{"$f":"'NY-Mérl-Er'!E92","v":0},{"$f":"'NY-Mérl-Er'!F92","v":0}]
["E","Ergebnis vor Steuern (+C+D)",null,{"$f":"'NY-Mérl-Er'!D93","v":0},{"$f":"'NY-Mérl-Er'!E93","v":0},{"$f":"'NY-Mérl-Er'!F93","v":0}]
["XII.","Steuerpflicht - Körperschaftsteuer",null,{"$f":"'NY-Mérl-Er'!D94","v":0},{"$f":"'NY-Mérl-Er'!E94","v":0},{"$f":"'NY-Mérl-Er'!F94","v":0}]
["F","Versteuertes Ergebnis (+E-XII)",null,{"$f":"'NY-Mérl-Er'!D95","v":0},{"$f":"'NY-Mérl-Er'!E95","v":0},{"$f":"'NY-Mérl-Er'!F95","v":0}]
[null,"Entnahmen aus der Gewinnrücklage für Dividenden",null,{"$f":"'NY-Mérl-Er'!D96","v":0},{"$f":"'NY-Mérl-Er'!E96","v":0},{"$f":"'NY-Mérl-Er'!F96","v":0}]
[null,"Bestätigte Dividenden und Gewinnanteile",null,{"$f":"'NY-Mérl-Er'!D97","v":0},{"$f":"'NY-Mérl-Er'!E97","v":0},{"$f":"'NY-Mérl-Er'!F97","v":0}]
["G","Bilanzergebnis (+F+22-23)",null,{"$f":"'NY-Mérl-Er'!D98","v":0},{"$f":"'NY-Mérl-Er'!E98","v":0},{"$f":"'NY-Mérl-Er'!F98","v":0}]

{"sheet":"Bilanz-német (É)","index":30,"n_rows":169,"n_cols":6,"rows_kept":169,"cut":false,"hidden":true,"merged":[[11,4,12,4],[73,1,73,2],[116,4,117,4],[3,0,3,5],[5,0,5,5],[7,0,7,5],[115,0,115,2]]}
[{"$f":"Adat!B15","v":"Budapest,"},null,{"$f":"Adat!C15","v":"2013-03-31"},"Stat. Nr.",{"$f":"Adat!B8","v":"12005954-5170-113-01"}]
[null,null,null,"Firmenregister Nr. ",{"$f":"Adat!B9","v":"01-09-366783"}]
[]
[{"$f":"Adat!B5","v":"Macskafarka Kft"}]
[]
["JAHRESABSCHLUß"]
[]
[{"$f":"Adat!B11","v":2012}]
[]
[]
[null,null,"B I L A N Z","in THUF",null,"1.Seite"]
[null,null,{"$f":"Adat!B5","v":"Macskafarka Kft"},{"$f":"'MLE (É)'!D8","v":"2011-12-31"},"Veränderung\nVorjahr",{"$f":"'MLE (É)'!F8","v":"2012-12-31"}]
[null,null,null,"Vorjahr",null,"Berichtsjahr"]
["A","Anlagevermögen",null,{"$f":"'NY-Mérl-Er (É)'!D10","v":0},{"$f":"'NY-Mérl-Er (É)'!E10","v":0},{"$f":"'NY-Mérl-Er (É)'!F10","v":0}]
["I. ","Immaterielle Vermögensgegenstände",null,{"$f":"'NY-Mérl-Er (É)'!D11","v":0},{"$f":"'NY-Mérl-Er (É)'!E11","v":0},{"$f":"'NY-Mérl-Er (É)'!F11","v":0}]
[1,null,"Gründungs- und Umstrukturierungskosten",{"$f":"'NY-Mérl-Er (É)'!D12","v":0},{"$f":"'NY-Mérl-Er (É)'!E12","v":0},{"$f":"'NY-Mérl-Er (É)'!F12","v":0}]
[2,null,"Forschungs- und Entwicklungskosten",{"$f":"'NY-Mérl-Er (É)'!D13","v":0},{"$f":"'NY-Mérl-Er (É)'!E13","v":0},{"$f":"'NY-Mérl-Er (É)'!F13","v":0}]
[3,null,"Verkehrsfähige Rechte",{"$f":"'NY-Mérl-Er (É)'!D14","v":0},{"$f":"'NY-Mérl-Er (É)'!E14","v":0},{"$f":"'NY-Mérl-Er (É)'!F14","v":0}]
[4,null,"Geistiges Eigentum",{"$f":"'NY-Mérl-Er (É)'!D15","v":0},{"$f":"'NY-Mérl-Er (É)'!E15","v":0},{"$f":"'NY-Mérl-Er (É)'!F15","v":0}]
[5,null,"Geschäfts- oder Firmenwert",{"$f":"'NY-Mérl-Er (É)'!D16","v":0},{"$f":"'NY-Mérl-Er (É)'!E16","v":0},{"$f":"'NY-Mérl-Er (É)'!F16","v":0}]
[6,null,"Geleistete Anzahlungen für immat.Verm.",{"$f":"'NY-Mérl-Er (É)'!D17","v":0},{"$f":"'NY-Mérl-Er (É)'!E17","v":0},{"$f":"'NY-Mérl-Er (É)'!F17","v":0}]
[7,null,"Wertberichtigung der immateriellen Verm.",{"$f":"'NY-Mérl-Er (É)'!D18","v":0},{"$f":"'NY-Mérl-Er (É)'!E18","v":0},{"$f":"'NY-Mérl-Er (É)'!F18","v":0}]
["II."," Sachanlagen",null,{"$f":"'NY-Mérl-Er (É)'!D19","v":0},{"$f":"'NY-Mérl-Er (É)'!E19","v":0},{"$f":"'NY-Mérl-Er (É)'!F19","v":0}]
[1,null,"Grundstücke und Gebäude, Rechte",{"$f":"'NY-Mérl-Er (É)'!D20","v":0},{"$f":"'NY-Mérl-Er (É)'!E20","v":0},{"$f":"'NY-Mérl-Er (É)'!F20","v":0}]
[2,null,"Technische Anlagen, Maschinen und Fahrzeuge",{"$f":"'NY-Mérl-Er (É)'!D21","v":0},{"$f":"'NY-Mérl-Er (É)'!E21","v":0},{"$f":"'NY-Mérl-Er (É)'!F21","v":0}]
[3,null,"Sonstige Einrichtungen, Ausrüstungen und Fahrzeuge",{"$f":"'NY-Mérl-Er (É)'!D22","v":0},{"$f":"'NY-Mérl-Er (É)'!E22","v":0},{"$f":"'NY-Mérl-Er (É)'!F22","v":0}]
[4,null,"Zuchttiere",{"$f":"'NY-Mérl-Er (É)'!D23","v":0},{"$f":"'NY-Mérl-Er (É)'!E23","v":0},{"$f":"'NY-Mérl-Er (É)'!F23","v":0}]
[5,null,"Anlagen im Bau und Erneuerungen",{"$f":"'NY-Mérl-Er (É)'!D24","v":0},{"$f":"'NY-Mérl-Er (É)'!E24","v":0},{"$f":"'NY-Mérl-Er (É)'!F24","v":0}]
[6,null,"Geleistete Anzahlungen für Investitionen",{"$f":"'NY-Mérl-Er (É)'!D25","v":0},{"$f":"'NY-Mérl-Er (É)'!E25","v":0},{"$f":"'NY-Mérl-Er (É)'!F25","v":0}]
[7,null,"Wertberichtigung der Sachanlagen",{"$f":"'NY-Mérl-Er (É)'!D26","v":0},{"$f":"'NY-Mérl-Er (É)'!E26","v":0},{"$f":"'NY-Mérl-Er (É)'!F26","v":0}]
["III.","Finanzanlagen",null,{"$f":"'NY-Mérl-Er (É)'!D27","v":0},{"$f":"'NY-Mérl-Er (É)'!E27","v":0},{"$f":"'NY-Mérl-Er (É)'!F27","v":0}]
[1,null,"D.hafte Beteiligungen an verbund.Unternehmen",{"$f":"'NY-Mérl-Er (É)'!D28","v":0},{"$f":"'NY-Mérl-Er (É)'!E28","v":0},{"$f":"'NY-Mérl-Er (É)'!F28","v":0}]
[2,null,"D.haft erteilte Ausleihungen an verbund.Untern.",{"$f":"'NY-Mérl-Er (É)'!D29","v":0},{"$f":"'NY-Mérl-Er (É)'!E29","v":0},{"$f":"'NY-Mérl-Er (É)'!F29","v":0}]
[3,null,"Sonstige dauerhafte Beteiligungen",{"$f":"'NY-Mérl-Er (É)'!D30","v":0},{"$f":"'NY-Mérl-Er (É)'!E30","v":0},{"$f":"'NY-Mérl-Er (É)'!F30","v":0}]
[4,null,"D.hafte Ausleihungen mit sonst.Beteiligungsv.",{"$f":"'NY-Mérl-Er (É)'!D31","v":0},{"$f":"'NY-Mérl-Er (É)'!E31","v":0},{"$f":"'NY-Mérl-Er (É)'!F31","v":0}]
[5,null,"Sonstige dauerhaft erteilte Ausleihungen",{"$f":"'NY-Mérl-Er (É)'!D32","v":0},{"$f":"'NY-Mérl-Er (É)'!E32","v":0},{"$f":"'NY-Mérl-Er (É)'!F32","v":0}]
[6,null,"Wertpapiere des Anlagevermögens",{"$f":"'NY-Mérl-Er (É)'!D33","v":0},{"$f":"'NY-Mérl-Er (É)'!E33","v":0},{"$f":"'NY-Mérl-Er (É)'!F33","v":0}]
[7,null,"Wertberichtigung der Finanzanlagen",{"$f":"'NY-Mérl-Er (É)'!D34","v":0},{"$f":"'NY-Mérl-Er (É)'!E34","v":0},{"$f":"'NY-Mérl-Er (É)'!F34","v":0}]
["B","Umlaufvermögen",null,{"$f":"'NY-Mérl-Er (É)'!D47","v":0},{"$f":"'NY-Mérl-Er (É)'!E47","v":0},{"$f":"'NY-Mérl-Er (É)'!F47","v":0}]
["I.","Vorräte",null,{"$f":"'NY-Mérl-Er (É)'!D48","v":0},{"$f":"'NY-Mérl-Er (É)'!E48","v":0},{"$f":"'NY-Mérl-Er (É)'!F48","v":0}]
[1,null,"Roh-, Hilfs- und Betriebsstoffe",{"$f":"'NY-Mérl-Er (É)'!D49","v":0},{"$f":"'NY-Mérl-Er (É)'!E49","v":0},{"$f":"'NY-Mérl-Er (É)'!F49","v":0}]
[2,null,"Unvollendete Prod.und halbfertige Erzeugnisse",{"$f":"'NY-Mérl-Er (É)'!D50","v":0},{"$f":"'NY-Mérl-Er (É)'!E50","v":0},{"$f":"'NY-Mérl-Er (É)'!F50","v":0}]
[3,null,"Jung-, Mast- und sonstige Tiere",{"$f":"'NY-Mérl-Er (É)'!D51","v":0},{"$f":"'NY-Mérl-Er (É)'!E51","v":0},{"$f":"'NY-Mérl-Er (É)'!F51","v":0}]
[4,null,"Fertige Erzeugnisse",{"$f":"'NY-Mérl-Er (É)'!D52","v":0},{"$f":"'NY-Mérl-Er (É)'!E52","v":0},{"$f":"'NY-Mérl-Er (É)'!F52","v":0}]
[5,null,"Waren",{"$f":"'NY-Mérl-Er (É)'!D53","v":0},{"$f":"'NY-Mérl-Er (É)'!E53","v":0},{"$f":"'NY-Mérl-Er (É)'!F53","v":0}]
[6,null,"Geleistete Anzahlungen auf Vorräte",{"$f":"'NY-Mérl-Er (É)'!D54","v":0},{"$f":"'NY-Mérl-Er (É)'!E54","v":0},{"$f":"'NY-Mérl-Er (É)'!F54","v":0}]
["II.","Forderungen",null,{"$f":"'NY-Mérl-Er (É)'!D55","v":0},{"$f":"'NY-Mérl-Er (É)'!E55","v":0},{"$f":"'NY-Mérl-Er (É)'!F55","v":0}]
[1,null,"Ford.aus Lieferungen und Leistungen (Käufer)",{"$f":"'NY-Mérl-Er (É)'!D56","v":0},{"$f":"'NY-Mérl-Er (É)'!E56","v":0},{"$f":"'NY-Mérl-Er (É)'!F56","v":0}]
[2,null,"Forderungen gegen verbundene Unternehmen",{"$f":"'NY-Mérl-Er (É)'!D57","v":0},{"$f":"'NY-Mérl-Er (É)'!E57","v":0},{"$f":"'NY-Mérl-Er (É)'!F57","v":0}]
[3,null,"Ford.g.Unternehmen mit sonst.Beteiligungsv.",{"$f":"'NY-Mérl-Er (É)'!D58","v":0},{"$f":"'NY-Mérl-Er (É)'!E58","v":0},{"$f":"'NY-Mérl-Er (É)'!F58","v":0}]
[4,null,"Wechselforderungen",{"$f":"'NY-Mérl-Er (É)'!D59","v":0},{"$f":"'NY-Mérl-Er (É)'!E59","v":0},{"$f":"'NY-Mérl-Er (É)'!F59","v":0}]
[5,null,"Sonstige Forderungen",{"$f":"'NY-Mérl-Er (É)'!D60","v":0},{"$f":"'NY-Mérl-Er (É)'!E60","v":0},{"$f":"'NY-Mérl-Er (É)'!F60","v":0}]
["III.","Wertpapiere",null,{"$f":"'NY-Mérl-Er (É)'!D61","v":0},{"$f":"'NY-Mérl-Er (É)'!E61","v":0},{"$f":"'NY-Mérl-Er (É)'!F61","v":0}]
[1,null,"Beteiligungen an verbundenen Unternehmen",{"$f":"'NY-Mérl-Er (É)'!D62","v":0},{"$f":"'NY-Mérl-Er (É)'!E62","v":0},{"$f":"'NY-Mérl-Er (É)'!F62","v":0}]
[2,null,"Sonstige Beteligungen",{"$f":"'NY-Mérl-Er (É)'!D63","v":0},{"$f":"'NY-Mérl-Er (É)'!E63","v":0},{"$f":"'NY-Mérl-Er (É)'!F63","v":0}]
[3,null,"Eigene Aktien und Anteile",{"$f":"'NY-Mérl-Er (É)'!D64","v":0},{"$f":"'NY-Mérl-Er (É)'!E64","v":0},{"$f":"'NY-Mérl-Er (É)'!F64","v":0}]
[4,null,"Wertpapiere des Umlaufvermögens",{"$f":"'NY-Mérl-Er (É)'!D65","v":0},{"$f":"'NY-Mérl-Er (É)'!E65","v":0},{"$f":"'NY-Mérl-Er (É)'!F65","v":0}]
["IV.","Flüssige Mittel",null,{"$f":"'NY-Mérl-Er (É)'!D66","v":0},{"$f":"'NY-Mérl-Er (É)'!E66","v":0},{"$f":"'NY-Mérl-Er (É)'!F66","v":0}]
[1,null,"Kassenbestand, Schecks",{"$f":"'NY-Mérl-Er (É)'!D67","v":0},{"$f":"'NY-Mérl-Er (É)'!E67","v":0},{"$f":"'NY-Mérl-Er (É)'!F67","v":0}]
[2,null,"Bankguthaben",{"$f":"'NY-Mérl-Er (É)'!D68","v":0},{"$f":"'NY-Mérl-Er (É)'!E68","v":0},{"$f":"'NY-Mérl-Er (É)'!F68","v":0}]
["C"," Aktive Rechnungsabgrenzungsposten",null,{"$f":"'NY-Mérl-Er (É)'!D69","v":0},{"$f":"'NY-Mérl-Er (É)'!E69","v":0},{"$f":"'NY-Mérl-Er (É)'!F69","v":0}]
[1,null,"Aktive Rechnungsabgrenzung der Erlöse",{"$f":"'NY-Mérl-Er (É)'!D70","v":0},{"$f":"'NY-Mérl-Er (É)'!E70","v":0},{"$f":"'NY-Mérl-Er (É)'!F70","v":0}]
[2,null,"Aktive Rechnungsabgrenzung der Aufwend.",{"$f":"'NY-Mérl-Er (É)'!D71","v":0},{"$f":"'NY-Mérl-Er (É)'!E71","v":0},{"$f":"'NY-Mérl-Er (É)'!F71","v":0}]
[3,null,"Verschobene Aufwendungen",{"$f":"'NY-Mérl-Er (É)'!D72","v":0},{"$f":"'NY-Mérl-Er (É)'!E72","v":0},{"$f":"'NY-Mérl-Er (É)'!F72","v":0}]
[]
[null,null,"Aktive zusammen",{"$f":"'NY-Mérl-Er (É)'!D74","v":0},{"$f":"'NY-Mérl-Er (É)'!E74","v":0},{"$f":"'NY-Mérl-Er (É)'!F74","v":0}]
[]
[null,null,"B I L A N Z","in THUF",null,"2.Seite"]
[null,null,{"$f":"C12","v":"Macskafarka Kft"},{"$f":"D12","v":"2011-12-31"},"Veränderung\nVorjahr",{"$f":"F12","v":"2012-12-31"}]
[null,null,null,"Berichtsjahr",null,"Berichtsjahr"]
["D","Eigenkapital",null,{"$f":"'NY-Mérl-Er (É)'!D87","v":0},{"$f":"'NY-Mérl-Er (É)'!E87","v":0},{"$f":"'NY-Mérl-Er (É)'!F87","v":0}]
["I.","Gezeichnetes Kapital",null,{"$f":"'NY-Mérl-Er (É)'!D88","v":0},{"$f":"'NY-Mérl-Er (É)'!E88","v":0},{"$f":"'NY-Mérl-Er (É)'!F88","v":0}]
[null,null,"Davon: zurückgekaufter Eigentumsanteil ",{"$f":"'NY-Mérl-Er (É)'!D89","v":0},{"$f":"'NY-Mérl-Er (É)'!E89","v":0},{"$f":"'NY-Mérl-Er (É)'!F89","v":0}]
["II.","Nicht bezahltes Kapital",null,{"$f":"'NY-Mérl-Er (É)'!D90","v":0},{"$f":"'NY-Mérl-Er (É)'!E90","v":0},{"$f":"'NY-Mérl-Er (É)'!F90","v":0}]
["III.","Kapitalrücklage",null,{"$f":"'NY-Mérl-Er (É)'!D91","v":0},{"$f":"'NY-Mérl-Er (É)'!E91","v":0},{"$f":"'NY-Mérl-Er (É)'!F91","v":0}]
["IV.","Gewinnrücklage",null,{"$f":"'NY-Mérl-Er (É)'!D92","v":0},{"$f":"'NY-Mérl-Er (É)'!E92","v":0},{"$f":"'NY-Mérl-Er (É)'!F92","v":0}]
["V.","Gebundene Rücklagen",null,{"$f":"'NY-Mérl-Er (É)'!D93","v":0},{"$f":"'NY-Mérl-Er (É)'!E93","v":0},{"$f":"'NY-Mérl-Er (É)'!F93","v":0}]
["VI.","Bewertungsreserve",null,{"$f":"'NY-Mérl-Er (É)'!D94","v":0},{"$f":"'NY-Mérl-Er (É)'!E94","v":0},{"$f":"'NY-Mérl-Er (É)'!F94","v":0}]
["VII","Bilanzergebnis",null,{"$f":"'NY-Mérl-Er (É)'!D95","v":0},{"$f":"'NY-Mérl-Er (É)'!E95","v":0},{"$f":"'NY-Mérl-Er (É)'!F95","v":0}]
["E","Rückstellungen",null,{"$f":"'NY-Mérl-Er (É)'!D96","v":0},{"$f":"'NY-Mérl-Er (É)'!E96","v":0},{"$f":"'NY-Mérl-Er (É)'!F96","v":0}]
[1,null,"Rückstellungen für ungewisse Verbindlichkeiten",{"$f":"'NY-Mérl-Er (É)'!D97","v":0},{"$f":"'NY-Mérl-Er (É)'!E97","v":0},{"$f":"'NY-Mérl-Er (É)'!F97","v":0}]
[2,null,"Rückstellungen für zukünftige Kosten",{"$f":"'NY-Mérl-Er (É)'!D98","v":0},{"$f":"'NY-Mérl-Er (É)'!E98","v":0},{"$f":"'NY-Mérl-Er (É)'!F98","v":0}]
[3,null,"Sonstige Rückstellungen",{"$f":"'NY-Mérl-Er (É)'!D99","v":0},{"$f":"'NY-Mérl-Er (É)'!E99","v":0},{"$f":"'NY-Mérl-Er (É)'!F99","v":0}]
["F","Verbindlichkeiten",null,{"$f":"'NY-Mérl-Er (É)'!D112","v":0},{"$f":"'NY-Mérl-Er (É)'!E112","v":0},{"$f":"'NY-Mérl-Er (É)'!F112","v":0}]
["I.","Nachrangige Verbindlichkeiten",null,{"$f":"'NY-Mérl-Er (É)'!D113","v":0},{"$f":"'NY-Mérl-Er (É)'!E113","v":0},{"$f":"'NY-Mérl-Er (É)'!F113","v":0}]
[1,null,"Gegen verbundene Unternehmen",{"$f":"'NY-Mérl-Er (É)'!D114","v":0},{"$f":"'NY-Mérl-Er (É)'!E114","v":0},{"$f":"'NY-Mérl-Er (É)'!F114","v":0}]
[2,null,"Gegen Unternehmen mit sonst.Beteiligung",{"$f":"'NY-Mérl-Er (É)'!D115","v":0},{"$f":"'NY-Mérl-Er (É)'!E115","v":0},{"$f":"'NY-Mérl-Er (É)'!F115","v":0}]
[3,null,"Gegen sonstige Wirtschaftsführer",{"$f":"'NY-Mérl-Er (É)'!D116","v":0},{"$f":"'NY-Mérl-Er (É)'!E116","v":0},{"$f":"'NY-Mérl-Er (É)'!F116","v":0}]
["II.","Langfristige Verbindlichkeiten",null,{"$f":"'NY-Mérl-Er (É)'!D117","v":0},{"$f":"'NY-Mérl-Er (É)'!E117","v":0},{"$f":"'NY-Mérl-Er (É)'!F117","v":0}]
[1,null,"Erhaltene, langfristige Darlehen",{"$f":"'NY-Mérl-Er (É)'!D118","v":0},{"$f":"'NY-Mérl-Er (É)'!E118","v":0},{"$f":"'NY-Mérl-Er (É)'!F118","v":0}]
[2,null,"Wandelschuldverschreibungen",{"$f":"'NY-Mérl-Er (É)'!D119","v":0},{"$f":"'NY-Mérl-Er (É)'!E119","v":0},{"$f":"'NY-Mérl-Er (É)'!F119","v":0}]
[3,null,"Verbindlichkeiten aus Anleihen",{"$f":"'NY-Mérl-Er (É)'!D120","v":0},{"$f":"'NY-Mérl-Er (É)'!E120","v":0},{"$f":"'NY-Mérl-Er (É)'!F120","v":0}]
[4,null,"Investitions- und Entwicklungskredite",{"$f":"'NY-Mérl-Er (É)'!D121","v":0},{"$f":"'NY-Mérl-Er (É)'!E121","v":0},{"$f":"'NY-Mérl-Er (É)'!F121","v":0}]
[5,null,"Sonstige langfristige Kredite",{"$f":"'NY-Mérl-Er (É)'!D122","v":0},{"$f":"'NY-Mérl-Er (É)'!E122","v":0},{"$f":"'NY-Mérl-Er (É)'!F122","v":0}]
[6,null,"Gegen verbundene Unternehmen",{"$f":"'NY-Mérl-Er (É)'!D123","v":0},{"$f":"'NY-Mérl-Er (É)'!E123","v":0},{"$f":"'NY-Mérl-Er (É)'!F123","v":0}]
[7,null,"Gegen Unternehmen mit sonst.Beteiligung",{"$f":"'NY-Mérl-Er (É)'!D124","v":0},{"$f":"'NY-Mérl-Er (É)'!E124","v":0},{"$f":"'NY-Mérl-Er (É)'!F124","v":0}]
[8,null,"Sonstige langfristige Verbindlichkeiten",{"$f":"'NY-Mérl-Er (É)'!D125","v":0},{"$f":"'NY-Mérl-Er (É)'!E125","v":0},{"$f":"'NY-Mérl-Er (É)'!F125","v":0}]
["III.","Kurzfristige Verbindlichkeiten",null,{"$f":"'NY-Mérl-Er (É)'!D126","v":0},{"$f":"'NY-Mérl-Er (É)'!E126","v":0},{"$f":"'NY-Mérl-Er (É)'!F126","v":0}]
[1,null,"Kurzfristige Darlehen",{"$f":"'NY-Mérl-Er (É)'!D127","v":0},{"$f":"'NY-Mérl-Er (É)'!E127","v":0},{"$f":"'NY-Mérl-Er (É)'!F127","v":0}]
[null,null,null,{"$f":"'NY-Mérl-Er (É)'!D128","v":0},{"$f":"'NY-Mérl-Er (É)'!E128","v":0},{"$f":"'NY-Mérl-Er (É)'!F128","v":0}]
[2,null,"Kurzfristige Kredite",{"$f":"'NY-Mérl-Er (É)'!D129","v":0},{"$f":"'NY-Mérl-Er (É)'!E129","v":0},{"$f":"'NY-Mérl-Er (É)'!F129","v":0}]
[3,null,"Erhaltene Anzahlungen auf Bestellungen",{"$f":"'NY-Mérl-Er (É)'!D130","v":0},{"$f":"'NY-Mérl-Er (É)'!E130","v":0},{"$f":"'NY-Mérl-Er (É)'!F130","v":0}]
[4,null,"Verbindl.Lieferungen und Leist. (Lieferanten)",{"$f":"'NY-Mérl-Er (É)'!D131","v":0},{"$f":"'NY-Mérl-Er (É)'!E131","v":0},{"$f":"'NY-Mérl-Er (É)'!F131","v":0}]
[5,null,"Wechselverbindlichkeiten",{"$f":"'NY-Mérl-Er (É)'!D132","v":0},{"$f":"'NY-Mérl-Er (É)'!E132","v":0},{"$f":"'NY-Mérl-Er (É)'!F132","v":0}]
[6,null,"Gegen verbundene Unternehmen",{"$f":"'NY-Mérl-Er (É)'!D133","v":0},{"$f":"'NY-Mérl-Er (É)'!E133","v":0},{"$f":"'NY-Mérl-Er (É)'!F133","v":0}]
[7,null,"Gegen Unternehmen mit sonst.Beteiligung",{"$f":"'NY-Mérl-Er (É)'!D134","v":0},{"$f":"'NY-Mérl-Er (É)'!E134","v":0},{"$f":"'NY-Mérl-Er (É)'!F134","v":0}]
[8,null,"Sonstige kurzfristige Verbindlichkeiten",{"$f":"'NY-Mérl-Er (É)'!D135","v":0},{"$f":"'NY-Mérl-Er (É)'!E135","v":0},{"$f":"'NY-Mérl-Er (É)'!F135","v":0}]
["G","Passive Rechnungsabgrenzungsposten",null,{"$f":"'NY-Mérl-Er (É)'!D136","v":0},{"$f":"'NY-Mérl-Er (É)'!E136","v":0},{"$f":"'NY-Mérl-Er (É)'!F136","v":0}]
[1,null,"Passive Rechnungsabgrenzung der Erlöse",{"$f":"'NY-Mérl-Er (É)'!D137","v":0},{"$f":"'NY-Mérl-Er (É)'!E137","v":0},{"$f":"'NY-Mérl-Er (É)'!F137","v":0}]
[2,null,"Passive Rechnungsabgrenzung der Aufwend.",{"$f":"'NY-Mérl-Er (É)'!D138","v":0},{"$f":"'NY-Mérl-Er (É)'!E138","v":0},{"$f":"'NY-Mérl-Er (É)'!F138","v":0}]
[3,null,"Verschobene Erlöse und Erträge",{"$f":"'NY-Mérl-Er (É)'!D139","v":0},{"$f":"'NY-Mérl-Er (É)'!E139","v":0},{"$f":"'NY-Mérl-Er (É)'!F139","v":0}]
[]
[null,null,"Passive zusammen",{"$f":"'NY-Mérl-Er (É)'!D141","v":0},{"$f":"'NY-Mérl-Er (É)'!E141","v":0},{"$f":"'NY-Mérl-Er (É)'!F141","v":0}]
[]
[]
["G UND V \n(nach Gesamtkostenverfahren)",null,null,null,null,"inTHuf"]
[null,null,{"$f":"C12","v":"Macskafarka Kft"},{"$f":"'Bilanz-német (É)'!D12","v":"2011-12-31"},"Veränderung\nVorjahr",{"$f":"'Bilanz-német (É)'!F12","v":"2012-12-31"}]
[null,null,null,"Vorjahr",null,"Berichtsjahr"]
[]
["01.",null,"Nettoumsatzerlöse, Inland",{"$f":"'NY-Mérl-Er (É)'!D154","v":0},{"$f":"'NY-Mérl-Er (É)'!E154","v":0},{"$f":"'NY-Mérl-Er (É)'!F154","v":0}]
["02.",null,"Nettoumsatzerlöse, Ausland",{"$f":"'NY-Mérl-Er (É)'!D155","v":0},{"$f":"'NY-Mérl-Er (É)'!E155","v":0},{"$f":"'NY-Mérl-Er (É)'!F155","v":0}]
["I.","Nettoumsatzerlöse (01+02)",null,{"$f":"'NY-Mérl-Er (É)'!D156","v":0},{"$f":"'NY-Mérl-Er (É)'!E156","v":0},{"$f":"'NY-Mérl-Er (É)'!F156","v":0}]
["03.",null,"Bestandsänderung der Vorräte aus eigener Produktion",{"$f":"'NY-Mérl-Er (É)'!D157","v":0},{"$f":"'NY-Mérl-Er (É)'!E157","v":0},{"$f":"'NY-Mérl-Er (É)'!F157","v":0}]
["04.",null,"Aktivierter Wert der selbst hergestellten Vermögensgegenstände",{"$f":"'NY-Mérl-Er (É)'!D158","v":0},{"$f":"'NY-Mérl-Er (É)'!E158","v":0},{"$f":"'NY-Mérl-Er (É)'!F158","v":0}]
["II.","Aktivierte Eigenleistungen (03+04)",null,{"$f":"'NY-Mérl-Er (É)'!D159","v":0},{"$f":"'NY-Mérl-Er (É)'!E159","v":0},{"$f":"'NY-Mérl-Er (É)'!F159","v":0}]
["III.","Sonstige Erträge",null,{"$f":"'NY-Mérl-Er (É)'!D160","v":0},{"$f":"'NY-Mérl-Er (É)'!E160","v":0},{"$f":"'NY-Mérl-Er (É)'!F160","v":0}]
[null,null,"Davon: zurückgeschriebene Wertverluste",{"$f":"'NY-Mérl-Er (É)'!D161","v":0},{"$f":"'NY-Mérl-Er (É)'!E161","v":0},{"$f":"'NY-Mérl-Er (É)'!F161","v":0}]
["05.",null,"Aufwendungen für Roh-, Hilfs- und Betriebsstoffe",{"$f":"'NY-Mérl-Er (É)'!D162","v":0},{"$f":"'NY-Mérl-Er (É)'!E162","v":0},{"$f":"'NY-Mérl-Er (É)'!F162","v":0}]
["06.",null,"Aufwendungen für bezogene Leistungen",{"$f":"'NY-Mérl-Er (É)'!D163","v":0},{"$f":"'NY-Mérl-Er (É)'!E163","v":0},{"$f":"'NY-Mérl-Er (É)'!F163","v":0}]
["07.",null,"Aufwendungen für sonstige Leistungen",{"$f":"'NY-Mérl-Er (É)'!D164","v":0},{"$f":"'NY-Mérl-Er (É)'!E164","v":0},{"$f":"'NY-Mérl-Er (É)'!F164","v":0}]
["08.",null,"Aufwendungen für bezogene Waren",{"$f":"'NY-Mérl-Er (É)'!D165","v":0},{"$f":"'NY-Mérl-Er (É)'!E165","v":0},{"$f":"'NY-Mérl-Er (É)'!F165","v":0}]
["09.",null,"Aufwendungen für verkaufte (vermittelte) Leistungen",{"$f":"'NY-Mérl-Er (É)'!D166","v":0},{"$f":"'NY-Mérl-Er (É)'!E166","v":0},{"$f":"'NY-Mérl-Er (É)'!F166","v":0}]
["IV.","Materialaufwendungen (05+06+07+08+09)",null,{"$f":"'NY-Mérl-Er (É)'!D167","v":0},{"$f":"'NY-Mérl-Er (É)'!E167","v":0},{"$f":"'NY-Mérl-Er (É)'!F167","v":0}]
["10.",null,"Lohn- und Gehaltskosten",{"$f":"'NY-Mérl-Er (É)'!D168","v":0},{"$f":"'NY-Mérl-Er (É)'!E168","v":0},{"$f":"'NY-Mérl-Er (É)'!F168","v":0}]
["11.",null,"Sonstige Personalaufwendungen",{"$f":"'NY-Mérl-Er (É)'!D169","v":0},{"$f":"'NY-Mérl-Er (É)'!E169","v":0},{"$f":"'NY-Mérl-Er (É)'!F169","v":0}]
["12.",null,"Lohnnebenkosten",{"$f":"'NY-Mérl-Er (É)'!D170","v":0},{"$f":"'NY-Mérl-Er (É)'!E170","v":0},{"$f":"'NY-Mérl-Er (É)'!F170","v":0}]
["V.","Personalaufwand (10+11+12)",null,{"$f":"'NY-Mérl-Er (É)'!D171","v":0},{"$f":"'NY-Mérl-Er (É)'!E171","v":0},{"$f":"'NY-Mérl-Er (É)'!F171","v":0}]
["VI.","Abschreibungen",null,{"$f":"'NY-Mérl-Er (É)'!D172","v":0},{"$f":"'NY-Mérl-Er (É)'!E172","v":0},{"$f":"'NY-Mérl-Er (É)'!F172","v":0}]
["VII.","Sonstige Aufwendungen",null,{"$f":"'NY-Mérl-Er (É)'!D173","v":0},{"$f":"'NY-Mérl-Er (É)'!E173","v":0},{"$f":"'NY-Mérl-Er (É)'!F173","v":0}]
[null,null,"Davon: Wertverluste",{"$f":"'NY-Mérl-Er (É)'!D174","v":0},{"$f":"'NY-Mérl-Er (É)'!E174","v":0},{"$f":"'NY-Mérl-Er (É)'!F174","v":0}]
["A","Betriebsergebnis (Geschäftserg.) (I+II+III-IV-V-VI-VII)",null,{"$f":"'NY-Mérl-Er (É)'!D175","v":0},{"$f":"'NY-Mérl-Er (É)'!E175","v":0},{"$f":"'NY-Mérl-Er (É)'!F175","v":0}]
[13,null,"Erträge aus (zustehenden) Dividenden und Gewinnanteilen",{"$f":"'NY-Mérl-Er (É)'!D188","v":0},{"$f":"'NY-Mérl-Er (É)'!E188","v":0},{"$f":"'NY-Mérl-Er (É)'!F188","v":0}]
[null,null,"Davon: von verbundenen Unternehmen",{"$f":"'NY-Mérl-Er (É)'!D189","v":0},{"$f":"'NY-Mérl-Er (É)'!E189","v":0},{"$f":"'NY-Mérl-Er (É)'!F189","v":0}]
[14,null,"Kursgewinne aus dem Verkauf von Beteiligungen",{"$f":"'NY-Mérl-Er (É)'!D190","v":0},{"$f":"'NY-Mérl-Er (É)'!E190","v":0},{"$f":"'NY-Mérl-Er (É)'!F190","v":0}]
[null,null,"Davon: von verbundenen Unternehmen",{"$f":"'NY-Mérl-Er (É)'!D191","v":0},{"$f":"'NY-Mérl-Er (É)'!E191","v":0},{"$f":"'NY-Mérl-Er (É)'!F191","v":0}]
[15,null,"Zinsen und Kursgewinne von Finanzanlagen",{"$f":"'NY-Mérl-Er (É)'!D192","v":0},{"$f":"'NY-Mérl-Er (É)'!E192","v":0},{"$f":"'NY-Mérl-Er (É)'!F192","v":0}]
[null,null,"Davon: von verbundenen Unternehmen",{"$f":"'NY-Mérl-Er (É)'!D193","v":0},{"$f":"'NY-Mérl-Er (É)'!E193","v":0},{"$f":"'NY-Mérl-Er (É)'!F193","v":0}]
[16,null,"Sonstige (zustehende) Zinsen und ähnliche Erträge",{"$f":"'NY-Mérl-Er (É)'!D194","v":0},{"$f":"'NY-Mérl-Er (É)'!E194","v":0},{"$f":"'NY-Mérl-Er (É)'!F194","v":0}]
[null,null,"Davon: von verbundenen Unternehmen",{"$f":"'NY-Mérl-Er (É)'!D195","v":0},{"$f":"'NY-Mérl-Er (É)'!E195","v":0},{"$f":"'NY-Mérl-Er (É)'!F195","v":0}]
[17,null,"Sonstige finanzielle Erträge",{"$f":"'NY-Mérl-Er (É)'!D196","v":0},{"$f":"'NY-Mérl-Er (É)'!E196","v":0},{"$f":"'NY-Mérl-Er (É)'!F196","v":0}]
["VIII.","Finanzerträge (13+14+15+16+17)",null,{"$f":"'NY-Mérl-Er (É)'!D197","v":0},{"$f":"'NY-Mérl-Er (É)'!E197","v":0},{"$f":"'NY-Mérl-Er (É)'!F197","v":0}]
[18,null,"Kursverluste von Finanzanlagen",{"$f":"'NY-Mérl-Er (É)'!D198","v":0},{"$f":"'NY-Mérl-Er (É)'!E198","v":0},{"$f":"'NY-Mérl-Er (É)'!F198","v":0}]
[null,null,"Davon: an verbundene Unternehmen",{"$f":"'NY-Mérl-Er (É)'!D199","v":0},{"$f":"'NY-Mérl-Er (É)'!E199","v":0},{"$f":"'NY-Mérl-Er (É)'!F199","v":0}]
[19,null,"Zinsen und ähnliche Aufwendungen",{"$f":"'NY-Mérl-Er (É)'!D200","v":0},{"$f":"'NY-Mérl-Er (É)'!E200","v":0},{"$f":"'NY-Mérl-Er (É)'!F200","v":0}]
[null,null,"Davon: an verbundene Unternehmen",{"$f":"'NY-Mérl-Er (É)'!D201","v":0},{"$f":"'NY-Mérl-Er (É)'!E201","v":0},{"$f":"'NY-Mérl-Er (É)'!F201","v":0}]
[20,null,"WV v.Beteiligungen, Wertpapieren und Bankguthaben",{"$f":"'NY-Mérl-Er (É)'!D202","v":0},{"$f":"'NY-Mérl-Er (É)'!E202","v":0},{"$f":"'NY-Mérl-Er (É)'!F202","v":0}]
[21,null,"Sonstige finanzielle Aufwendungen",{"$f":"'NY-Mérl-Er (É)'!D203","v":0},{"$f":"'NY-Mérl-Er (É)'!E203","v":0},{"$f":"'NY-Mérl-Er (É)'!F203","v":0}]
["IX.","Finanzaufwendungen (18+19+20+21)",null,{"$f":"'NY-Mérl-Er (É)'!D204","v":0},{"$f":"'NY-Mérl-Er (É)'!E204","v":0},{"$f":"'NY-Mérl-Er (É)'!F204","v":0}]
["B","Finanzergebnis (VIII-IX)",null,{"$f":"'NY-Mérl-Er (É)'!D205","v":0},{"$f":"'NY-Mérl-Er (É)'!E205","v":0},{"$f":"'NY-Mérl-Er (É)'!F205","v":0}]
["C","Ergebnis der gewöhnlichen Geschäftstätigkeit (+A+B)",null,{"$f":"'NY-Mérl-Er (É)'!D206","v":0},{"$f":"'NY-Mérl-Er (É)'!E206","v":0},{"$f":"'NY-Mérl-Er (É)'!F206","v":0}]
["X.","Außerordentliche Erträge",null,{"$f":"'NY-Mérl-Er (É)'!D207","v":0},{"$f":"'NY-Mérl-Er (É)'!E207","v":0},{"$f":"'NY-Mérl-Er (É)'!F207","v":0}]
["XI.","Außerordentliche Aufwendungen",null,{"$f":"'NY-Mérl-Er (É)'!D208","v":0},{"$f":"'NY-Mérl-Er (É)'!E208","v":0},{"$f":"'NY-Mérl-Er (É)'!F208","v":0}]
["D","Außerordentliches Ergebnis (X-XI)",null,{"$f":"'NY-Mérl-Er (É)'!D209","v":0},{"$f":"'NY-Mérl-Er (É)'!E209","v":0},{"$f":"'NY-Mérl-Er (É)'!F209","v":0}]
["E","Ergebnis vor Steuern (+C+D)",null,{"$f":"'NY-Mérl-Er (É)'!D210","v":0},{"$f":"'NY-Mérl-Er (É)'!E210","v":0},{"$f":"'NY-Mérl-Er (É)'!F210","v":0}]
["XII.","Steuerpflicht",null,{"$f":"'NY-Mérl-Er (É)'!D211","v":0},{"$f":"'NY-Mérl-Er (É)'!E211","v":0},{"$f":"'NY-Mérl-Er (É)'!F211","v":0}]
["F","Versteuertes Ergebnis (+E-XII)",null,{"$f":"'NY-Mérl-Er (É)'!D212","v":0},{"$f":"'NY-Mérl-Er (É)'!E212","v":0},{"$f":"'NY-Mérl-Er (É)'!F212","v":0}]
[22,"Entnahmen aus der Gewinnrücklage für Dividenden",null,{"$f":"'NY-Mérl-Er (É)'!D213","v":0},{"$f":"'NY-Mérl-Er (É)'!E213","v":0},{"$f":"'NY-Mérl-Er (É)'!F213","v":0}]
[23,"Bestätigte Dividenden und Gewinnanteile",null,{"$f":"'NY-Mérl-Er (É)'!D214","v":0},{"$f":"'NY-Mérl-Er (É)'!E214","v":0},{"$f":"'NY-Mérl-Er (É)'!F214","v":0}]
["G","Bilanzergebnis (+F+22-23)",null,{"$f":"'NY-Mérl-Er (É)'!D215","v":0},{"$f":"'NY-Mérl-Er (É)'!E215","v":0},{"$f":"'NY-Mérl-Er (É)'!F215","v":0}]

{"sheet":"Balance-angol","index":31,"n_rows":77,"n_cols":6,"rows_kept":77,"cut":false,"hidden":false,"merged":[[51,4,52,4],[3,0,3,5],[5,0,5,5],[7,0,7,5],[11,4,12,4],[30,4,31,4],[35,1,35,2],[50,0,50,2]]}
[{"$f":"Adat!B15","v":"Budapest,"},null,{"$f":"Adat!C15","v":"2013-03-31"},"Stat. Nr.",{"$f":"Adat!B8","v":"12005954-5170-113-01"}]
[null,null,null,"Firm register Nr. ",{"$f":"Adat!B9","v":"01-09-366783"}]
[]
[{"$f":"Adat!B5","v":"Macskafarka Kft"}]
[]
["Simplified Annual Report"]
[]
[{"$f":"Adat!B11","v":2012}]
[]
[]
[null,null,"Balance Sheet Assets","in THUF",null,"1. Page"]
[null,null,{"$f":"Adat!B5","v":"Macskafarka Kft"},{"$f":"MLE!D8","v":"2011-12-31"},"Corr. of previous years",{"$f":"MLE!F8","v":"2012-12-31"}]
[null,null,null,"Previous year",null,"Current year"]
["A","Fixed assets",null,{"$f":"'NY-Mérl-Er'!D10","v":0},{"$f":"'NY-Mérl-Er'!E10","v":0},{"$f":"'NY-Mérl-Er'!F10","v":0}]
["I. ","INTANGIBLE ASSETS",null,{"$f":"'NY-Mérl-Er'!D11","v":0},{"$f":"'NY-Mérl-Er'!E11","v":0},{"$f":"'NY-Mérl-Er'!F11","v":0}]
[null,null,"from preview row: Value corr.",{"$f":"'NY-Mérl-Er'!D12","v":0},{"$f":"'NY-Mérl-Er'!E12","v":0},{"$f":"'NY-Mérl-Er'!F12","v":0}]
["II.","TANGIBLE ASSETS",null,{"$f":"'NY-Mérl-Er'!D13","v":0},{"$f":"'NY-Mérl-Er'!E13","v":0},{"$f":"'NY-Mérl-Er'!F13","v":0}]
[null,null,"from preview row: Value corr.",{"$f":"'NY-Mérl-Er'!D14","v":0},{"$f":"'NY-Mérl-Er'!E14","v":0},{"$f":"'NY-Mérl-Er'!F14","v":0}]
["III.","FINANCIAL INVESTMENTS",null,{"$f":"'NY-Mérl-Er'!D15","v":0},{"$f":"'NY-Mérl-Er'!E15","v":0},{"$f":"'NY-Mérl-Er'!F15","v":0}]
[null,null,"from preview row: Value corr.",{"$f":"'NY-Mérl-Er'!D16","v":0},{"$f":"'NY-Mérl-Er'!E16","v":0},{"$f":"'NY-Mérl-Er'!F16","v":0}]
["B","Current assets",null,{"$f":"'NY-Mérl-Er'!D17","v":0},{"$f":"'NY-Mérl-Er'!E17","v":0},{"$f":"'NY-Mérl-Er'!F17","v":0}]
["I.","INVENTORIES",null,{"$f":"'NY-Mérl-Er'!D18","v":0},{"$f":"'NY-Mérl-Er'!E18","v":0},{"$f":"'NY-Mérl-Er'!F18","v":0}]
["II.","RECEIVABLES",null,{"$f":"'NY-Mérl-Er'!D19","v":0},{"$f":"'NY-Mérl-Er'!E19","v":0},{"$f":"'NY-Mérl-Er'!F19","v":0}]
["III.","SECURITIES",null,{"$f":"'NY-Mérl-Er'!D20","v":0},{"$f":"'NY-Mérl-Er'!E20","v":0},{"$f":"'NY-Mérl-Er'!F20","v":0}]
["IV.","LIQUID ASSETS",null,{"$f":"'NY-Mérl-Er'!D21","v":0},{"$f":"'NY-Mérl-Er'!E21","v":0},{"$f":"'NY-Mérl-Er'!F21","v":0}]
["C","PREPAID EXPENSES, ACCRUED INCOME",null,{"$f":"'NY-Mérl-Er'!D22","v":0},{"$f":"'NY-Mérl-Er'!E22","v":0},{"$f":"'NY-Mérl-Er'!F22","v":0}]
[]
[null,null,"Total Assets",{"$f":"'NY-Mérl-Er'!D24","v":0},{"$f":"'NY-Mérl-Er'!E24","v":0},{"$f":"'NY-Mérl-Er'!F24","v":0}]
[]
[null,null,"Balance Sheet Liabilities",{"$f":"+D11","v":"in THUF"},null,"2. Page"]
[null,null,{"$f":"C12","v":"Macskafarka Kft"},{"$f":"D12","v":"2011-12-31"},"Corr. of previous years",{"$f":"F12","v":"2012-12-31"}]
[null,null,null,"Previous year",null,"Current year"]
["D","Equity",null,{"$f":"'NY-Mérl-Er'!D43","v":0},{"$f":"'NY-Mérl-Er'!E43","v":0},{"$f":"'NY-Mérl-Er'!F43","v":0}]
["I.","ISSUED CAPITAL",null,{"$f":"'NY-Mérl-Er'!D44","v":0},{"$f":"'NY-Mérl-Er'!E44","v":0},{"$f":"'NY-Mérl-Er'!F44","v":0}]
[null,null,"From which returned shares",{"$f":"'NY-Mérl-Er'!D45","v":0},{"$f":"'NY-Mérl-Er'!E45","v":0},{"$f":"'NY-Mérl-Er'!F45","v":0}]
["II.","ISSUED CAPITAL, UNPAID (-)",null,{"$f":"'NY-Mérl-Er'!D46","v":0},{"$f":"'NY-Mérl-Er'!E46","v":0},{"$f":"'NY-Mérl-Er'!F46","v":0}]
["III.","CAPITAL RESERVE",null,{"$f":"'NY-Mérl-Er'!D47","v":0},{"$f":"'NY-Mérl-Er'!E47","v":0},{"$f":"'NY-Mérl-Er'!F47","v":0}]
["IV.","ACCUMULATED PROFIT RESERVE",null,{"$f":"'NY-Mérl-Er'!D48","v":0},{"$f":"'NY-Mérl-Er'!E48","v":0},{"$f":"'NY-Mérl-Er'!F48","v":0}]
["V.","FIXED RESERVE",null,{"$f":"'NY-Mérl-Er'!D49","v":0},{"$f":"'NY-Mérl-Er'!E49","v":0},{"$f":"'NY-Mérl-Er'!F49","v":0}]
["VI.","REVALUATION RESERVE",null,{"$f":"'NY-Mérl-Er'!D50","v":0},{"$f":"'NY-Mérl-Er'!E50","v":0},{"$f":"'NY-Mérl-Er'!F50","v":0}]
["VII","PROFIT OR LOSS OF THE YEAR",null,{"$f":"'NY-Mérl-Er'!D51","v":0},{"$f":"'NY-Mérl-Er'!E51","v":0},{"$f":"'NY-Mérl-Er'!F51","v":0}]
["E","PROVISIONS",null,{"$f":"'NY-Mérl-Er'!D52","v":0},{"$f":"'NY-Mérl-Er'!E52","v":0},{"$f":"'NY-Mérl-Er'!F52","v":0}]
["F","LIABILITIES",null,{"$f":"'NY-Mérl-Er'!D53","v":0},{"$f":"'NY-Mérl-Er'!E53","v":0},{"$f":"'NY-Mérl-Er'!F53","v":0}]
["I.","SUBORDINATED LIABILITIES",null,{"$f":"'NY-Mérl-Er'!D54","v":0},{"$f":"'NY-Mérl-Er'!E54","v":0},{"$f":"'NY-Mérl-Er'!F54","v":0}]
["II.","LONG-TERM LIABILITIES",null,{"$f":"'NY-Mérl-Er'!D55","v":0},{"$f":"'NY-Mérl-Er'!E55","v":0},{"$f":"'NY-Mérl-Er'!F55","v":0}]
["III.","SHORT-TERM LIABILITIES",null,{"$f":"'NY-Mérl-Er'!D56","v":0},{"$f":"'NY-Mérl-Er'!E56","v":0},{"$f":"'NY-Mérl-Er'!F56","v":0}]
["G","ACCRUED EXPENSES, DEFERRED INCOMES",null,{"$f":"'NY-Mérl-Er'!D57","v":0},{"$f":"'NY-Mérl-Er'!E57","v":0},{"$f":"'NY-Mérl-Er'!F57","v":0}]
[]
[null,null,"Total Liabilities",{"$f":"'NY-Mérl-Er'!D59","v":0},{"$f":"'NY-Mérl-Er'!E59","v":0},{"$f":"'NY-Mérl-Er'!F59","v":0}]
[]
["\"A\" PROFIT AND LOSS ACCOUNT",null,null,{"$f":"+D30","v":"in THUF"},null,"3. Page"]
[null,null,{"$f":"Adat!B5","v":"Macskafarka Kft"},{"$f":"'Bilanz-német'!D12","v":"2011-12-31"},"Corr. of previous years",{"$f":"'Bilanz-német'!F12","v":"2012-12-31"}]
[null,null,null,"Previous year",null,"Current year"]
[]
["I.","Net sales revenues",null,{"$f":"'NY-Mérl-Er'!D76","v":0},{"$f":"'NY-Mérl-Er'!E76","v":0},{"$f":"'NY-Mérl-Er'!F76","v":0}]
["II.","Capitalised value of self-produced assets",null,{"$f":"'NY-Mérl-Er'!D77","v":0},{"$f":"'NY-Mérl-Er'!E77","v":0},{"$f":"'NY-Mérl-Er'!F77","v":0}]
["III.","Other revenues",null,{"$f":"'NY-Mérl-Er'!D78","v":0},{"$f":"'NY-Mérl-Er'!E78","v":0},{"$f":"'NY-Mérl-Er'!F78","v":0}]
[null,null,"from preview row: Value corr.",{"$f":"'NY-Mérl-Er'!D79","v":0},{"$f":"'NY-Mérl-Er'!E79","v":0},{"$f":"'NY-Mérl-Er'!F79","v":0}]
["IV.","Material-type expenditures",null,{"$f":"'NY-Mérl-Er'!D80","v":0},{"$f":"'NY-Mérl-Er'!E80","v":0},{"$f":"'NY-Mérl-Er'!F80","v":0}]
["V.","Personal-type expenditures",null,{"$f":"'NY-Mérl-Er'!D81","v":0},{"$f":"'NY-Mérl-Er'!E81","v":0},{"$f":"'NY-Mérl-Er'!F81","v":0}]
["VI.","Depreciation",null,{"$f":"'NY-Mérl-Er'!D82","v":0},{"$f":"'NY-Mérl-Er'!E82","v":0},{"$f":"'NY-Mérl-Er'!F82","v":0}]
["VII.","Other expenditures",null,{"$f":"'NY-Mérl-Er'!D83","v":0},{"$f":"'NY-Mérl-Er'!E83","v":0},{"$f":"'NY-Mérl-Er'!F83","v":0}]
[null,null,"from preview row: Value corr.",{"$f":"'NY-Mérl-Er'!D84","v":0},{"$f":"'NY-Mérl-Er'!E84","v":0},{"$f":"'NY-Mérl-Er'!F84","v":0}]
["A","OPERATING PROFIT OR LOSS                                                   (I±II+III-IV-V-VI-VII)",null,{"$f":"'NY-Mérl-Er'!D85","v":0},{"$f":"'NY-Mérl-Er'!E85","v":0},{"$f":"'NY-Mérl-Er'!F85","v":0}]
["VIII.","Receipts from financial transactions",null,{"$f":"'NY-Mérl-Er'!D86","v":0},{"$f":"'NY-Mérl-Er'!E86","v":0},{"$f":"'NY-Mérl-Er'!F86","v":0}]
["IX.","Expenses from financial transactions",null,{"$f":"'NY-Mérl-Er'!D87","v":0},{"$f":"'NY-Mérl-Er'!E87","v":0},{"$f":"'NY-Mérl-Er'!F87","v":0}]
["B","FINANCIAL PROFIT OR LOSS (VIII-IX)",null,{"$f":"'NY-Mérl-Er'!D88","v":0},{"$f":"'NY-Mérl-Er'!E88","v":0},{"$f":"'NY-Mérl-Er'!F88","v":0}]
["C","PROFIT/LOSS ON ORDINARY ACTIVITIES (±A±B)",null,{"$f":"'NY-Mérl-Er'!D89","v":0},{"$f":"'NY-Mérl-Er'!E89","v":0},{"$f":"'NY-Mérl-Er'!F89","v":0}]
["X.","Extraordinary receipts",null,{"$f":"'NY-Mérl-Er'!D90","v":0},{"$f":"'NY-Mérl-Er'!E90","v":0},{"$f":"'NY-Mérl-Er'!F90","v":0}]
["XI.","Extraordinary expenses",null,{"$f":"'NY-Mérl-Er'!D91","v":0},{"$f":"'NY-Mérl-Er'!E91","v":0},{"$f":"'NY-Mérl-Er'!F91","v":0}]
["D","EXTRAORDINARY PROFIT OR LOSS (X-XI)",null,{"$f":"'NY-Mérl-Er'!D92","v":0},{"$f":"'NY-Mérl-Er'!E92","v":0},{"$f":"'NY-Mérl-Er'!F92","v":0}]
["E","PROFIT/LOSS BEFORE TAXES (±C±D)",null,{"$f":"'NY-Mérl-Er'!D93","v":0},{"$f":"'NY-Mérl-Er'!E93","v":0},{"$f":"'NY-Mérl-Er'!F93","v":0}]
["XII.","Corporation tax",null,{"$f":"'NY-Mérl-Er'!D94","v":0},{"$f":"'NY-Mérl-Er'!E94","v":0},{"$f":"'NY-Mérl-Er'!F94","v":0}]
["F","PROFIT/LOSS AFTER TAXES (±E-XII)",null,{"$f":"'NY-Mérl-Er'!D95","v":0},{"$f":"'NY-Mérl-Er'!E95","v":0},{"$f":"'NY-Mérl-Er'!F95","v":0}]
[null,"Use of retained earnings for dividends",null,{"$f":"'NY-Mérl-Er'!D96","v":0},{"$f":"'NY-Mérl-Er'!E96","v":0},{"$f":"'NY-Mérl-Er'!F96","v":0}]
[null,"Dividends paid ( approved )",null,{"$f":"'NY-Mérl-Er'!D97","v":0},{"$f":"'NY-Mérl-Er'!E97","v":0},{"$f":"'NY-Mérl-Er'!F97","v":0}]
["G","PROFIT/LOSS OF THE YEAR",null,{"$f":"'NY-Mérl-Er'!D98","v":0},{"$f":"'NY-Mérl-Er'!E98","v":0},{"$f":"'NY-Mérl-Er'!F98","v":0}]

{"sheet":"Balance-angol (É)","index":32,"n_rows":168,"n_cols":6,"rows_kept":168,"cut":false,"hidden":true,"merged":[[72,1,72,2],[115,4,116,4],[3,0,3,5],[5,0,5,5],[7,0,7,5],[10,4,11,4],[67,4,68,4]]}
[{"$f":"Adat!B15","v":"Budapest,"},null,{"$f":"Adat!C15","v":"2013-03-31"},"Stat. Nr.",{"$f":"Adat!B8","v":"12005954-5170-113-01"}]
[null,null,null,"Firm register Nr. ",{"$f":"Adat!B9","v":"01-09-366783"}]
[]
[{"$f":"Adat!B5","v":"Macskafarka Kft"}]
[]
["Simplified Annual Report"]
[]
[{"$f":"Adat!B11","v":2012}]
[]
[null,null,"Balance Sheet Assets","in THUF",null,"1. Page"]
[null,null,{"$f":"Adat!B5","v":"Macskafarka Kft"},{"$f":"'MLE (É)'!D8","v":"2011-12-31"},"Corr. of previous years",{"$f":"'MLE (É)'!F8","v":"2012-12-31"}]
[null,null,null,"Previous year",null,"Current year"]
["A","Fixed assets and investments",null,{"$f":"'NY-Mérl-Er (É)'!D10","v":0},{"$f":"'NY-Mérl-Er (É)'!E10","v":0},{"$f":"'NY-Mérl-Er (É)'!F10","v":0}]
["I. ","INTANGIBLE ASSETS",null,{"$f":"'NY-Mérl-Er (É)'!D11","v":0},{"$f":"'NY-Mérl-Er (É)'!E11","v":0},{"$f":"'NY-Mérl-Er (É)'!F11","v":0}]
[null,null,"  1. Cap. value of original contributio ",{"$f":"'NY-Mérl-Er (É)'!D12","v":0},{"$f":"'NY-Mérl-Er (É)'!E12","v":0},{"$f":"'NY-Mérl-Er (É)'!F12","v":0}]
[null,null,"  2. Cap. value of research and develop ",{"$f":"'NY-Mérl-Er (É)'!D13","v":0},{"$f":"'NY-Mérl-Er (É)'!E13","v":0},{"$f":"'NY-Mérl-Er (É)'!F13","v":0}]
[null,null,"  3. Rights representing assets         ",{"$f":"'NY-Mérl-Er (É)'!D14","v":0},{"$f":"'NY-Mérl-Er (É)'!E14","v":0},{"$f":"'NY-Mérl-Er (É)'!F14","v":0}]
[null,null,"  4. Intellectual property              ",{"$f":"'NY-Mérl-Er (É)'!D15","v":0},{"$f":"'NY-Mérl-Er (É)'!E15","v":0},{"$f":"'NY-Mérl-Er (É)'!F15","v":0}]
[null,null,"  5. Goodwill                           ",{"$f":"'NY-Mérl-Er (É)'!D16","v":0},{"$f":"'NY-Mérl-Er (É)'!E16","v":0},{"$f":"'NY-Mérl-Er (É)'!F16","v":0}]
[null,null,"  6. Advances and prepayments on int. a.",{"$f":"'NY-Mérl-Er (É)'!D17","v":0},{"$f":"'NY-Mérl-Er (É)'!E17","v":0},{"$f":"'NY-Mérl-Er (É)'!F17","v":0}]
[null,null,"  7. Adjusted value of intangible assets",{"$f":"'NY-Mérl-Er (É)'!D18","v":0},{"$f":"'NY-Mérl-Er (É)'!E18","v":0},{"$f":"'NY-Mérl-Er (É)'!F18","v":0}]
["II.","TANGIBLE ASSETS",null,{"$f":"'NY-Mérl-Er (É)'!D19","v":0},{"$f":"'NY-Mérl-Er (É)'!E19","v":0},{"$f":"'NY-Mérl-Er (É)'!F19","v":0}]
[null,null,"  1. Land and buildings                 ",{"$f":"'NY-Mérl-Er (É)'!D20","v":0},{"$f":"'NY-Mérl-Er (É)'!E20","v":0},{"$f":"'NY-Mérl-Er (É)'!F20","v":0}]
[null,null,"  2. Technical equipment, machinery     ",{"$f":"'NY-Mérl-Er (É)'!D21","v":0},{"$f":"'NY-Mérl-Er (É)'!E21","v":0},{"$f":"'NY-Mérl-Er (É)'!F21","v":0}]
[null,null,"  3. Other equipment, fittings and veh. ",{"$f":"'NY-Mérl-Er (É)'!D22","v":0},{"$f":"'NY-Mérl-Er (É)'!E22","v":0},{"$f":"'NY-Mérl-Er (É)'!F22","v":0}]
[null,null,"  4. Assets in course of construction   ",{"$f":"'NY-Mérl-Er (É)'!D23","v":0},{"$f":"'NY-Mérl-Er (É)'!E23","v":0},{"$f":"'NY-Mérl-Er (É)'!F23","v":0}]
[null,null,"  5. Investments                        ",{"$f":"'NY-Mérl-Er (É)'!D24","v":0},{"$f":"'NY-Mérl-Er (É)'!E24","v":0},{"$f":"'NY-Mérl-Er (É)'!F24","v":0}]
[null,null,"  6. Advance payments towards investmen ",{"$f":"'NY-Mérl-Er (É)'!D25","v":0},{"$f":"'NY-Mérl-Er (É)'!E25","v":0},{"$f":"'NY-Mérl-Er (É)'!F25","v":0}]
[null,null,"  7. Value correction of tangible asset ",{"$f":"'NY-Mérl-Er (É)'!D26","v":0},{"$f":"'NY-Mérl-Er (É)'!E26","v":0},{"$f":"'NY-Mérl-Er (É)'!F26","v":0}]
["III.","FINANCIAL INVESTMENTS",null,{"$f":"'NY-Mérl-Er (É)'!D27","v":0},{"$f":"'NY-Mérl-Er (É)'!E27","v":0},{"$f":"'NY-Mérl-Er (É)'!F27","v":0}]
[null,null,"  1. Long-term part. in affiliated u.t. ",{"$f":"'NY-Mérl-Er (É)'!D28","v":0},{"$f":"'NY-Mérl-Er (É)'!E28","v":0},{"$f":"'NY-Mérl-Er (É)'!F28","v":0}]
[null,null,"  2. Long-term credit to affiliated u.t.",{"$f":"'NY-Mérl-Er (É)'!D29","v":0},{"$f":"'NY-Mérl-Er (É)'!E29","v":0},{"$f":"'NY-Mérl-Er (É)'!F29","v":0}]
[null,null,"  3. Other long-term participations     ",{"$f":"'NY-Mérl-Er (É)'!D30","v":0},{"$f":"'NY-Mérl-Er (É)'!E30","v":0},{"$f":"'NY-Mérl-Er (É)'!F30","v":0}]
[null,null,"  4. Long-term loan to independent u.t. ",{"$f":"'NY-Mérl-Er (É)'!D31","v":0},{"$f":"'NY-Mérl-Er (É)'!E31","v":0},{"$f":"'NY-Mérl-Er (É)'!F31","v":0}]
[null,null,"  5. Other long-term loans              ",{"$f":"'NY-Mérl-Er (É)'!D32","v":0},{"$f":"'NY-Mérl-Er (É)'!E32","v":0},{"$f":"'NY-Mérl-Er (É)'!F32","v":0}]
[null,null,"  6. Securities signifying a long-term c",{"$f":"'NY-Mérl-Er (É)'!D33","v":0},{"$f":"'NY-Mérl-Er (É)'!E33","v":0},{"$f":"'NY-Mérl-Er (É)'!F33","v":0}]
[null,null,"  7. Adjusted value of financial invest.",{"$f":"'NY-Mérl-Er (É)'!D34","v":0},{"$f":"'NY-Mérl-Er (É)'!E34","v":0},{"$f":"'NY-Mérl-Er (É)'!F34","v":0}]
["B","Currents assets",null,{"$f":"'NY-Mérl-Er (É)'!D47","v":0},{"$f":"'NY-Mérl-Er (É)'!E47","v":0},{"$f":"'NY-Mérl-Er (É)'!F47","v":0}]
["I.","INVENTORIES",null,{"$f":"'NY-Mérl-Er (É)'!D48","v":0},{"$f":"'NY-Mérl-Er (É)'!E48","v":0},{"$f":"'NY-Mérl-Er (É)'!F48","v":0}]
[null,null,"  1. Raw materials and consumable goods ",{"$f":"'NY-Mérl-Er (É)'!D49","v":0},{"$f":"'NY-Mérl-Er (É)'!E49","v":0},{"$f":"'NY-Mérl-Er (É)'!F49","v":0}]
[null,null,"  2. Work in progress & semi-finished p ",{"$f":"'NY-Mérl-Er (É)'!D50","v":0},{"$f":"'NY-Mérl-Er (É)'!E50","v":0},{"$f":"'NY-Mérl-Er (É)'!F50","v":0}]
[null,null,"  3. Livestock                          ",{"$f":"'NY-Mérl-Er (É)'!D51","v":0},{"$f":"'NY-Mérl-Er (É)'!E51","v":0},{"$f":"'NY-Mérl-Er (É)'!F51","v":0}]
[null,null,"  4. Finished goods                     ",{"$f":"'NY-Mérl-Er (É)'!D52","v":0},{"$f":"'NY-Mérl-Er (É)'!E52","v":0},{"$f":"'NY-Mérl-Er (É)'!F52","v":0}]
[null,null,"  5. Goods                              ",{"$f":"'NY-Mérl-Er (É)'!D53","v":0},{"$f":"'NY-Mérl-Er (É)'!E53","v":0},{"$f":"'NY-Mérl-Er (É)'!F53","v":0}]
[null,null,"  6. Advances on inventories            ",{"$f":"'NY-Mérl-Er (É)'!D54","v":0},{"$f":"'NY-Mérl-Er (É)'!E54","v":0},{"$f":"'NY-Mérl-Er (É)'!F54","v":0}]
["II.","RECEIVABLES",null,{"$f":"'NY-Mérl-Er (É)'!D55","v":0},{"$f":"'NY-Mérl-Er (É)'!E55","v":0},{"$f":"'NY-Mérl-Er (É)'!F55","v":0}]
[null,null,"  1. Receivables from customers         ",{"$f":"'NY-Mérl-Er (É)'!D56","v":0},{"$f":"'NY-Mérl-Er (É)'!E56","v":0},{"$f":"'NY-Mérl-Er (É)'!F56","v":0}]
[null,null,"  2. Receivables from affiliated u.t.   ",{"$f":"'NY-Mérl-Er (É)'!D57","v":0},{"$f":"'NY-Mérl-Er (É)'!E57","v":0},{"$f":"'NY-Mérl-Er (É)'!F57","v":0}]
[null,null,"  3. Receivables from founders          ",{"$f":"'NY-Mérl-Er (É)'!D58","v":0},{"$f":"'NY-Mérl-Er (É)'!E58","v":0},{"$f":"'NY-Mérl-Er (É)'!F58","v":0}]
[null,null,"  4. Bills receivable                   ",{"$f":"'NY-Mérl-Er (É)'!D59","v":0},{"$f":"'NY-Mérl-Er (É)'!E59","v":0},{"$f":"'NY-Mérl-Er (É)'!F59","v":0}]
[null,null,"  5. Other receivables                  ",{"$f":"'NY-Mérl-Er (É)'!D60","v":0},{"$f":"'NY-Mérl-Er (É)'!E60","v":0},{"$f":"'NY-Mérl-Er (É)'!F60","v":0}]
["III.","SECURITIES",null,{"$f":"'NY-Mérl-Er (É)'!D61","v":0},{"$f":"'NY-Mérl-Er (É)'!E61","v":0},{"$f":"'NY-Mérl-Er (É)'!F61","v":0}]
[null,null,"  1. Participations in affiliated u.t.  ",{"$f":"'NY-Mérl-Er (É)'!D62","v":0},{"$f":"'NY-Mérl-Er (É)'!E62","v":0},{"$f":"'NY-Mérl-Er (É)'!F62","v":0}]
[null,null,"  2. Own shares, partnership shares     ",{"$f":"'NY-Mérl-Er (É)'!D63","v":0},{"$f":"'NY-Mérl-Er (É)'!E63","v":0},{"$f":"'NY-Mérl-Er (É)'!F63","v":0}]
[null,null,"  3. Own shares and own partnership s.  ",{"$f":"'NY-Mérl-Er (É)'!D64","v":0},{"$f":"'NY-Mérl-Er (É)'!E64","v":0},{"$f":"'NY-Mérl-Er (É)'!F64","v":0}]
[null,null,"  4. Securities signifying a creditor rs",{"$f":"'NY-Mérl-Er (É)'!D65","v":0},{"$f":"'NY-Mérl-Er (É)'!E65","v":0},{"$f":"'NY-Mérl-Er (É)'!F65","v":0}]
["IV.","LIQUID ASSETS",null,{"$f":"'NY-Mérl-Er (É)'!D66","v":0},{"$f":"'NY-Mérl-Er (É)'!E66","v":0},{"$f":"'NY-Mérl-Er (É)'!F66","v":0}]
[null,null,"  1. Cash in hand, cheques              ",{"$f":"'NY-Mérl-Er (É)'!D67","v":0},{"$f":"'NY-Mérl-Er (É)'!E67","v":0},{"$f":"'NY-Mérl-Er (É)'!F67","v":0}]
[null,null,"  2. Bank deposits                      ",{"$f":"'NY-Mérl-Er (É)'!D68","v":0},{"$f":"'NY-Mérl-Er (É)'!E68","v":0},{"$f":"'NY-Mérl-Er (É)'!F68","v":0}]
["C","Prepayments",null,{"$f":"'NY-Mérl-Er (É)'!D69","v":0},{"$f":"'NY-Mérl-Er (É)'!E69","v":0},{"$f":"'NY-Mérl-Er (É)'!F69","v":0}]
[null,null,"  1. Accrued income                     ",{"$f":"'NY-Mérl-Er (É)'!D70","v":0},{"$f":"'NY-Mérl-Er (É)'!E70","v":0},{"$f":"'NY-Mérl-Er (É)'!F70","v":0}]
[null,null,"  2. Accrued expenses                   ",{"$f":"'NY-Mérl-Er (É)'!D71","v":0},{"$f":"'NY-Mérl-Er (É)'!E71","v":0},{"$f":"'NY-Mérl-Er (É)'!F71","v":0}]
[null,null,"  3. Deferred expenses                  ",{"$f":"'NY-Mérl-Er (É)'!D72","v":0},{"$f":"'NY-Mérl-Er (É)'!E72","v":0},{"$f":"'NY-Mérl-Er (É)'!F72","v":0}]
[]
[null,null,"ASSETS",{"$f":"'NY-Mérl-Er (É)'!D74","v":0},{"$f":"'NY-Mérl-Er (É)'!E74","v":0},{"$f":"'NY-Mérl-Er (É)'!F74","v":0}]
[]
[null,null,"Balance Sheet Liabilities","in THUF",null,"2. Page"]
[null,null,{"$f":"C11","v":"Macskafarka Kft"},{"$f":"D11","v":"2011-12-31"},{"$f":"+E11","v":"Corr. of previous years"},{"$f":"F11","v":"2012-12-31"}]
[null,null,null,{"$f":"+D12","v":"Previous year"},null,{"$f":"+F12","v":"Current year"}]
["D","Equity",null,{"$f":"'NY-Mérl-Er (É)'!D87","v":0},{"$f":"'NY-Mérl-Er (É)'!E87","v":0},{"$f":"'NY-Mérl-Er (É)'!F87","v":0}]
["I.","ISSUED CAPITAL",null,{"$f":"'NY-Mérl-Er (É)'!D88","v":0},{"$f":"'NY-Mérl-Er (É)'!E88","v":0},{"$f":"'NY-Mérl-Er (É)'!F88","v":0}]
[null,null,"From which returned shares",{"$f":"'NY-Mérl-Er (É)'!D89","v":0},{"$f":"'NY-Mérl-Er (É)'!E89","v":0},{"$f":"'NY-Mérl-Er (É)'!F89","v":0}]
["II.","ISSUED CAPITAL, UNPAID (-)",null,{"$f":"'NY-Mérl-Er (É)'!D90","v":0},{"$f":"'NY-Mérl-Er (É)'!E90","v":0},{"$f":"'NY-Mérl-Er (É)'!F90","v":0}]
["III.","CAPITAL RESERVE",null,{"$f":"'NY-Mérl-Er (É)'!D91","v":0},{"$f":"'NY-Mérl-Er (É)'!E91","v":0},{"$f":"'NY-Mérl-Er (É)'!F91","v":0}]
["IV.","ACCUMULATED PROFIT RESERVE",null,{"$f":"'NY-Mérl-Er (É)'!D92","v":0},{"$f":"'NY-Mérl-Er (É)'!E92","v":0},{"$f":"'NY-Mérl-Er (É)'!F92","v":0}]
["V.","TIED-UP RESERVE               ",null,{"$f":"'NY-Mérl-Er (É)'!D93","v":0},{"$f":"'NY-Mérl-Er (É)'!E93","v":0},{"$f":"'NY-Mérl-Er (É)'!F93","v":0}]
["VI.","EVULATION RESERVE",null,{"$f":"'NY-Mérl-Er (É)'!D94","v":0},{"$f":"'NY-Mérl-Er (É)'!E94","v":0},{"$f":"'NY-Mérl-Er (É)'!F94","v":0}]
["VII.","BALANCE-SHEER PROFIT OR LOSS FIGUR",null,{"$f":"'NY-Mérl-Er (É)'!D95","v":0},{"$f":"'NY-Mérl-Er (É)'!E95","v":0},{"$f":"'NY-Mérl-Er (É)'!F95","v":0}]
["E","Provisions",null,{"$f":"'NY-Mérl-Er (É)'!D96","v":0},{"$f":"'NY-Mérl-Er (É)'!E96","v":0},{"$f":"'NY-Mérl-Er (É)'!F96","v":0}]
[null,null,"  1. Provisions for expected liabilitie ",{"$f":"'NY-Mérl-Er (É)'!D97","v":0},{"$f":"'NY-Mérl-Er (É)'!E97","v":0},{"$f":"'NY-Mérl-Er (É)'!F97","v":0}]
[null,null,"  2. Provisions for expected losses     ",{"$f":"'NY-Mérl-Er (É)'!D98","v":0},{"$f":"'NY-Mérl-Er (É)'!E98","v":0},{"$f":"'NY-Mérl-Er (É)'!F98","v":0}]
[null,null,"  3. Other provisions                   ",{"$f":"'NY-Mérl-Er (É)'!D99","v":0},{"$f":"'NY-Mérl-Er (É)'!E99","v":0},{"$f":"'NY-Mérl-Er (É)'!F99","v":0}]
["F","Subordinated liabilities",null,{"$f":"'NY-Mérl-Er (É)'!D112","v":0},{"$f":"'NY-Mérl-Er (É)'!E112","v":0},{"$f":"'NY-Mérl-Er (É)'!F112","v":0}]
["I.","SUBORDINATED LIABILITIES",null,{"$f":"'NY-Mérl-Er (É)'!D113","v":0},{"$f":"'NY-Mérl-Er (É)'!E113","v":0},{"$f":"'NY-Mérl-Er (É)'!F113","v":0}]
[null,null,"  1. ~ to affiliated undertakings       ",{"$f":"'NY-Mérl-Er (É)'!D114","v":0},{"$f":"'NY-Mérl-Er (É)'!E114","v":0},{"$f":"'NY-Mérl-Er (É)'!F114","v":0}]
[null,null,"  2. ~ to independent undertakings      ",{"$f":"'NY-Mérl-Er (É)'!D115","v":0},{"$f":"'NY-Mérl-Er (É)'!E115","v":0},{"$f":"'NY-Mérl-Er (É)'!F115","v":0}]
[null,null,"  3. ~ to other economic entities       ",{"$f":"'NY-Mérl-Er (É)'!D116","v":0},{"$f":"'NY-Mérl-Er (É)'!E116","v":0},{"$f":"'NY-Mérl-Er (É)'!F116","v":0}]
["II.","LONG-TERM LIABILITIES",null,{"$f":"'NY-Mérl-Er (É)'!D117","v":0},{"$f":"'NY-Mérl-Er (É)'!E117","v":0},{"$f":"'NY-Mérl-Er (É)'!F117","v":0}]
[null,null,"  1. Long-term loans received           ",{"$f":"'NY-Mérl-Er (É)'!D118","v":0},{"$f":"'NY-Mérl-Er (É)'!E118","v":0},{"$f":"'NY-Mérl-Er (É)'!F118","v":0}]
[null,null,"  2. Convertible bonds                  ",{"$f":"'NY-Mérl-Er (É)'!D119","v":0},{"$f":"'NY-Mérl-Er (É)'!E119","v":0},{"$f":"'NY-Mérl-Er (É)'!F119","v":0}]
[null,null,"  3. Debts on issue of bonds            ",{"$f":"'NY-Mérl-Er (É)'!D120","v":0},{"$f":"'NY-Mérl-Er (É)'!E120","v":0},{"$f":"'NY-Mérl-Er (É)'!F120","v":0}]
[null,null,"  4. Investment and development credits ",{"$f":"'NY-Mérl-Er (É)'!D121","v":0},{"$f":"'NY-Mérl-Er (É)'!E121","v":0},{"$f":"'NY-Mérl-Er (É)'!F121","v":0}]
[null,null,"  5. Other long-term credits            ",{"$f":"'NY-Mérl-Er (É)'!D122","v":0},{"$f":"'NY-Mérl-Er (É)'!E122","v":0},{"$f":"'NY-Mérl-Er (É)'!F122","v":0}]
[null,null,"  6. Long-term liabilities to aff. u.t. ",{"$f":"'NY-Mérl-Er (É)'!D123","v":0},{"$f":"'NY-Mérl-Er (É)'!E123","v":0},{"$f":"'NY-Mérl-Er (É)'!F123","v":0}]
[null,null,"  7. Long-term liabilities to indepen. u",{"$f":"'NY-Mérl-Er (É)'!D124","v":0},{"$f":"'NY-Mérl-Er (É)'!E124","v":0},{"$f":"'NY-Mérl-Er (É)'!F124","v":0}]
[null,null,"  8. Other long-term liabilities        ",{"$f":"'NY-Mérl-Er (É)'!D125","v":0},{"$f":"'NY-Mérl-Er (É)'!E125","v":0},{"$f":"'NY-Mérl-Er (É)'!F125","v":0}]
["III.","SHORT-TERM LIABILITIES",null,{"$f":"'NY-Mérl-Er (É)'!D126","v":0},{"$f":"'NY-Mérl-Er (É)'!E126","v":0},{"$f":"'NY-Mérl-Er (É)'!F126","v":0}]
[null,null,"  1. Short-term loans                   ",{"$f":"'NY-Mérl-Er (É)'!D127","v":0},{"$f":"'NY-Mérl-Er (É)'!E127","v":0},{"$f":"'NY-Mérl-Er (É)'!F127","v":0}]
[null,null,"       From this ",{"$f":"'NY-Mérl-Er (É)'!D128","v":0},{"$f":"'NY-Mérl-Er (É)'!E128","v":0},{"$f":"'NY-Mérl-Er (É)'!F128","v":0}]
[null,null,"  2. Short-term credits                 ",{"$f":"'NY-Mérl-Er (É)'!D129","v":0},{"$f":"'NY-Mérl-Er (É)'!E129","v":0},{"$f":"'NY-Mérl-Er (É)'!F129","v":0}]
[null,null,"  3. Advances received from customers   ",{"$f":"'NY-Mérl-Er (É)'!D130","v":0},{"$f":"'NY-Mérl-Er (É)'!E130","v":0},{"$f":"'NY-Mérl-Er (É)'!F130","v":0}]
[null,null,"  4. Trade creditors                    ",{"$f":"'NY-Mérl-Er (É)'!D131","v":0},{"$f":"'NY-Mérl-Er (É)'!E131","v":0},{"$f":"'NY-Mérl-Er (É)'!F131","v":0}]
[null,null,"  5. Bills payable                      ",{"$f":"'NY-Mérl-Er (É)'!D132","v":0},{"$f":"'NY-Mérl-Er (É)'!E132","v":0},{"$f":"'NY-Mérl-Er (É)'!F132","v":0}]
[null,null,"  6. Short-term liabilities to aff. u.t.",{"$f":"'NY-Mérl-Er (É)'!D133","v":0},{"$f":"'NY-Mérl-Er (É)'!E133","v":0},{"$f":"'NY-Mérl-Er (É)'!F133","v":0}]
[null,null,"  7. Short-term liabilities to ind. u.t.",{"$f":"'NY-Mérl-Er (É)'!D134","v":0},{"$f":"'NY-Mérl-Er (É)'!E134","v":0},{"$f":"'NY-Mérl-Er (É)'!F134","v":0}]
[null,null,"  8. Other short-term liabilities       ",{"$f":"'NY-Mérl-Er (É)'!D135","v":0},{"$f":"'NY-Mérl-Er (É)'!E135","v":0},{"$f":"'NY-Mérl-Er (É)'!F135","v":0}]
["G","ACCRUED EXPENSES AND DEFERRED INCOMES",null,{"$f":"'NY-Mérl-Er (É)'!D136","v":0},{"$f":"'NY-Mérl-Er (É)'!E136","v":0},{"$f":"'NY-Mérl-Er (É)'!F136","v":0}]
[null,null,"  1. Deferred income                    ",{"$f":"'NY-Mérl-Er (É)'!D137","v":0},{"$f":"'NY-Mérl-Er (É)'!E137","v":0},{"$f":"'NY-Mérl-Er (É)'!F137","v":0}]
[null,null,"  2. Deferred expenses                  ",{"$f":"'NY-Mérl-Er (É)'!D138","v":0},{"$f":"'NY-Mérl-Er (É)'!E138","v":0},{"$f":"'NY-Mérl-Er (É)'!F138","v":0}]
[null,null,"  3. Accrued income                     ",{"$f":"'NY-Mérl-Er (É)'!D139","v":0},{"$f":"'NY-Mérl-Er (É)'!E139","v":0},{"$f":"'NY-Mérl-Er (É)'!F139","v":0}]
[]
[null,null,"Total Liabilities",{"$f":"'NY-Mérl-Er (É)'!D141","v":0},{"$f":"'NY-Mérl-Er (É)'!E141","v":0},{"$f":"'NY-Mérl-Er (É)'!F141","v":0}]
[]
[]
[null,null,"\"A\" PROFIT AND LOSS ACCOUNT",{"$f":"+D67","v":"in THUF"},null,"3. Page"]
[null,null,{"$f":"C11","v":"Macskafarka Kft"},{"$f":"'Bilanz-német (É)'!D12","v":"2011-12-31"},{"$f":"+E68","v":"Corr. of previous years"},{"$f":"'Bilanz-német (É)'!F12","v":"2012-12-31"}]
[null,null,null,{"$f":"+D69","v":"Previous year"},null,{"$f":"+F69","v":"Current year"}]
[]
[null,null,"  01 Net domestic sales revenues        ",{"$f":"'NY-Mérl-Er (É)'!D154","v":0},{"$f":"'NY-Mérl-Er (É)'!E154","v":0},{"$f":"'NY-Mérl-Er (É)'!F154","v":0}]
[null,null,"  02 Net export sales revenues          ",{"$f":"'NY-Mérl-Er (É)'!D155","v":0},{"$f":"'NY-Mérl-Er (É)'!E155","v":0},{"$f":"'NY-Mérl-Er (É)'!F155","v":0}]
[null,"I.","Net sales revenues (01+02)",{"$f":"'NY-Mérl-Er (É)'!D156","v":0},{"$f":"'NY-Mérl-Er (É)'!E156","v":0},{"$f":"'NY-Mérl-Er (É)'!F156","v":0}]
[null,null,"  03 Change in self-manuf. inventories  ",{"$f":"'NY-Mérl-Er (É)'!D157","v":0},{"$f":"'NY-Mérl-Er (É)'!E157","v":0},{"$f":"'NY-Mérl-Er (É)'!F157","v":0}]
[null,null,"  04 Capitalized value of self-man.asse ",{"$f":"'NY-Mérl-Er (É)'!D158","v":0},{"$f":"'NY-Mérl-Er (É)'!E158","v":0},{"$f":"'NY-Mérl-Er (É)'!F158","v":0}]
[null,"II.","Capitalized value of own performanc ",{"$f":"'NY-Mérl-Er (É)'!D159","v":0},{"$f":"'NY-Mérl-Er (É)'!E159","v":0},{"$f":"'NY-Mérl-Er (É)'!F159","v":0}]
[null,"III.","Other revenues (03.+/-04.)",{"$f":"'NY-Mérl-Er (É)'!D160","v":0},{"$f":"'NY-Mérl-Er (É)'!E160","v":0},{"$f":"'NY-Mérl-Er (É)'!F160","v":0}]
[null,null,"       From this value corr.",{"$f":"'NY-Mérl-Er (É)'!D161","v":0},{"$f":"'NY-Mérl-Er (É)'!E161","v":0},{"$f":"'NY-Mérl-Er (É)'!F161","v":0}]
[null,null,"  05 Cost of raw materials and consum.  ",{"$f":"'NY-Mérl-Er (É)'!D162","v":0},{"$f":"'NY-Mérl-Er (É)'!E162","v":0},{"$f":"'NY-Mérl-Er (É)'!F162","v":0}]
[null,null,"  06 Value of material-type services con",{"$f":"'NY-Mérl-Er (É)'!D163","v":0},{"$f":"'NY-Mérl-Er (É)'!E163","v":0},{"$f":"'NY-Mérl-Er (É)'!F163","v":0}]
[null,null,"  07. Other service activities          ",{"$f":"'NY-Mérl-Er (É)'!D164","v":0},{"$f":"'NY-Mérl-Er (É)'!E164","v":0},{"$f":"'NY-Mérl-Er (É)'!F164","v":0}]
[null,null,"  08 Purchase price of goods sold       ",{"$f":"'NY-Mérl-Er (É)'!D165","v":0},{"$f":"'NY-Mérl-Er (É)'!E165","v":0},{"$f":"'NY-Mérl-Er (É)'!F165","v":0}]
[null,null,"  09 Value of services sold (intermedia)",{"$f":"'NY-Mérl-Er (É)'!D166","v":0},{"$f":"'NY-Mérl-Er (É)'!E166","v":0},{"$f":"'NY-Mérl-Er (É)'!F166","v":0}]
[null,"IV.","Material-type expenditure (05.+06.+07.+08.)",{"$f":"'NY-Mérl-Er (É)'!D167","v":0},{"$f":"'NY-Mérl-Er (É)'!E167","v":0},{"$f":"'NY-Mérl-Er (É)'!F167","v":0}]
[null,null,"  10 Wage costs                         ",{"$f":"'NY-Mérl-Er (É)'!D168","v":0},{"$f":"'NY-Mérl-Er (É)'!E168","v":0},{"$f":"'NY-Mérl-Er (É)'!F168","v":0}]
[null,null,"  11 Other payments to personnel        ",{"$f":"'NY-Mérl-Er (É)'!D169","v":0},{"$f":"'NY-Mérl-Er (É)'!E169","v":0},{"$f":"'NY-Mérl-Er (É)'!F169","v":0}]
[null,null,"  12 Social security contribution       ",{"$f":"'NY-Mérl-Er (É)'!D170","v":0},{"$f":"'NY-Mérl-Er (É)'!E170","v":0},{"$f":"'NY-Mérl-Er (É)'!F170","v":0}]
[null,"V.","Payments to personnel               ",{"$f":"'NY-Mérl-Er (É)'!D171","v":0},{"$f":"'NY-Mérl-Er (É)'!E171","v":0},{"$f":"'NY-Mérl-Er (É)'!F171","v":0}]
[null,"VI.","Depreciation                       ",{"$f":"'NY-Mérl-Er (É)'!D172","v":0},{"$f":"'NY-Mérl-Er (É)'!E172","v":0},{"$f":"'NY-Mérl-Er (É)'!F172","v":0}]
[null,"VII.","Other expenditures                ",{"$f":"'NY-Mérl-Er (É)'!D173","v":0},{"$f":"'NY-Mérl-Er (É)'!E173","v":0},{"$f":"'NY-Mérl-Er (É)'!F173","v":0}]
[null,null,"       From this value corr.",{"$f":"'NY-Mérl-Er (É)'!D174","v":0},{"$f":"'NY-Mérl-Er (É)'!E174","v":0},{"$f":"'NY-Mérl-Er (É)'!F174","v":0}]
["A","OPERATING PROFIT OR LOSS \n(I.+II.+III.-IV.-V.-VI.-VII.-VIII.)",null,{"$f":"'NY-Mérl-Er (É)'!D175","v":0},{"$f":"'NY-Mérl-Er (É)'!E175","v":0},{"$f":"'NY-Mérl-Er (É)'!F175","v":0}]
[null,null,"  13 Income from investments            ",{"$f":"'NY-Mérl-Er (É)'!D188","v":0},{"$f":"'NY-Mérl-Er (É)'!E188","v":0},{"$f":"'NY-Mérl-Er (É)'!F188","v":0}]
[null,null,"       From this ",{"$f":"'NY-Mérl-Er (É)'!D189","v":0},{"$f":"'NY-Mérl-Er (É)'!E189","v":0},{"$f":"'NY-Mérl-Er (É)'!F189","v":0}]
[null,null,"  14 Capital gains on investments       ",{"$f":"'NY-Mérl-Er (É)'!D190","v":0},{"$f":"'NY-Mérl-Er (É)'!E190","v":0},{"$f":"'NY-Mérl-Er (É)'!F190","v":0}]
[null,null,"       From this ",{"$f":"'NY-Mérl-Er (É)'!D191","v":0},{"$f":"'NY-Mérl-Er (É)'!E191","v":0},{"$f":"'NY-Mérl-Er (É)'!F191","v":0}]
[null,null,"  15 Interests received                 ",{"$f":"'NY-Mérl-Er (É)'!D192","v":0},{"$f":"'NY-Mérl-Er (É)'!E192","v":0},{"$f":"'NY-Mérl-Er (É)'!F192","v":0}]
[null,null,"       From this ",{"$f":"'NY-Mérl-Er (É)'!D193","v":0},{"$f":"'NY-Mérl-Er (É)'!E193","v":0},{"$f":"'NY-Mérl-Er (É)'!F193","v":0}]
[null,null,"  16 Other interest and similar income  ",{"$f":"'NY-Mérl-Er (É)'!D194","v":0},{"$f":"'NY-Mérl-Er (É)'!E194","v":0},{"$f":"'NY-Mérl-Er (É)'!F194","v":0}]
[null,null,"       From this ",{"$f":"'NY-Mérl-Er (É)'!D195","v":0},{"$f":"'NY-Mérl-Er (É)'!E195","v":0},{"$f":"'NY-Mérl-Er (É)'!F195","v":0}]
[null,null,"  17 Other income from financial trans. ",{"$f":"'NY-Mérl-Er (É)'!D196","v":0},{"$f":"'NY-Mérl-Er (É)'!E196","v":0},{"$f":"'NY-Mérl-Er (É)'!F196","v":0}]
[null,"VIII.","Income from financial transaction (12.+13.+14.)",{"$f":"'NY-Mérl-Er (É)'!D197","v":0},{"$f":"'NY-Mérl-Er (É)'!E197","v":0},{"$f":"'NY-Mérl-Er (É)'!F197","v":0}]
[null,null,"  18 Losses on financial investments    ",{"$f":"'NY-Mérl-Er (É)'!D198","v":0},{"$f":"'NY-Mérl-Er (É)'!E198","v":0},{"$f":"'NY-Mérl-Er (É)'!F198","v":0}]
[null,null,"       From this ",{"$f":"'NY-Mérl-Er (É)'!D199","v":0},{"$f":"'NY-Mérl-Er (É)'!E199","v":0},{"$f":"'NY-Mérl-Er (É)'!F199","v":0}]
[null,null,"  19 Interests paid                     ",{"$f":"'NY-Mérl-Er (É)'!D200","v":0},{"$f":"'NY-Mérl-Er (É)'!E200","v":0},{"$f":"'NY-Mérl-Er (É)'!F200","v":0}]
[null,null,"       From this ",{"$f":"'NY-Mérl-Er (É)'!D201","v":0},{"$f":"'NY-Mérl-Er (É)'!E201","v":0},{"$f":"'NY-Mérl-Er (É)'!F201","v":0}]
[null,null,"  20 Write-offs of financial investmen  ",{"$f":"'NY-Mérl-Er (É)'!D202","v":0},{"$f":"'NY-Mérl-Er (É)'!E202","v":0},{"$f":"'NY-Mérl-Er (É)'!F202","v":0}]
[null,null,"  21 Other expenditures on financial t  ",{"$f":"'NY-Mérl-Er (É)'!D203","v":0},{"$f":"'NY-Mérl-Er (É)'!E203","v":0},{"$f":"'NY-Mérl-Er (É)'!F203","v":0}]
[null,"IX.","Expenditures of financial transac. ",{"$f":"'NY-Mérl-Er (É)'!D204","v":0},{"$f":"'NY-Mérl-Er (É)'!E204","v":0},{"$f":"'NY-Mérl-Er (É)'!F204","v":0}]
["B","FINANCIAL PROFIT OR LOSS (IX.-X.)",null,{"$f":"'NY-Mérl-Er (É)'!D205","v":0},{"$f":"'NY-Mérl-Er (É)'!E205","v":0},{"$f":"'NY-Mérl-Er (É)'!F205","v":0}]
["C","PROFIT OR LOSS ON ORDINARY ACTIVITIES (+/-A.+/-B.)",null,{"$f":"'NY-Mérl-Er (É)'!D206","v":0},{"$f":"'NY-Mérl-Er (É)'!E206","v":0},{"$f":"'NY-Mérl-Er (É)'!F206","v":0}]
[null,"X.","Extraordinary income                ",{"$f":"'NY-Mérl-Er (É)'!D207","v":0},{"$f":"'NY-Mérl-Er (É)'!E207","v":0},{"$f":"'NY-Mérl-Er (É)'!F207","v":0}]
[null,"XI.","Extraordinary expenditures         ",{"$f":"'NY-Mérl-Er (É)'!D208","v":0},{"$f":"'NY-Mérl-Er (É)'!E208","v":0},{"$f":"'NY-Mérl-Er (É)'!F208","v":0}]
["D","EXTRAORDINARY PROFIT OR LOSS FIGUREACTIVITIES (XI.-XII.)",null,{"$f":"'NY-Mérl-Er (É)'!D209","v":0},{"$f":"'NY-Mérl-Er (É)'!E209","v":0},{"$f":"'NY-Mérl-Er (É)'!F209","v":0}]
["E","PRE-TAX PROFIT OR LOSS FIGURE",null,{"$f":"'NY-Mérl-Er (É)'!D210","v":0},{"$f":"'NY-Mérl-Er (É)'!E210","v":0},{"$f":"'NY-Mérl-Er (É)'!F210","v":0}]
[null,"XII.","Tax liabilities",{"$f":"'NY-Mérl-Er (É)'!D211","v":0},{"$f":"'NY-Mérl-Er (É)'!E211","v":0},{"$f":"'NY-Mérl-Er (É)'!F211","v":0}]
["F","AFTER TAX PROFIT OR LOSS (±E-XII)",null,{"$f":"'NY-Mérl-Er (É)'!D212","v":0},{"$f":"'NY-Mérl-Er (É)'!E212","v":0},{"$f":"'NY-Mérl-Er (É)'!F212","v":0}]
[null,null,"  22. Use of acc.profit reserve for di  ",{"$f":"'NY-Mérl-Er (É)'!D213","v":0},{"$f":"'NY-Mérl-Er (É)'!E213","v":0},{"$f":"'NY-Mérl-Er (É)'!F213","v":0}]
[null,null,"  23. Dividends and profit-sharings pa  ",{"$f":"'NY-Mérl-Er (É)'!D214","v":0},{"$f":"'NY-Mérl-Er (É)'!E214","v":0},{"$f":"'NY-Mérl-Er (É)'!F214","v":0}]
["G","BALANCE SHEET PROFIT OR LOSS FIGURE (+/-F.+18.-19.)",null,{"$f":"'NY-Mérl-Er (É)'!D215","v":0},{"$f":"'NY-Mérl-Er (É)'!E215","v":0},{"$f":"'NY-Mérl-Er (É)'!F215","v":0}]

{"sheet":"olasz","index":33,"n_rows":77,"n_cols":6,"rows_kept":77,"cut":false,"hidden":false,"merged":[[29,3,29,4],[10,3,10,4],[10,0,10,2],[29,0,29,2],[3,0,3,5],[5,0,5,5],[7,0,7,5],[11,4,12,4],[51,4,52,4],[50,0,50,2],[50,3,50,4],[30,4,31,4],[35,1,35,2]]}
[{"$f":"Adat!B15","v":"Budapest,"},null,{"$f":"Adat!C15","v":"2013-03-31"},"Codice statistico:",{"$f":"Adat!B8","v":"12005954-5170-113-01"}]
[null,null,null,"Numer odi Iscrizione nel Registro delle Imprese:",{"$f":"Adat!B9","v":"01-09-366783"}]
[]
[{"$f":"Adat!B5","v":"Macskafarka Kft"}]
[]
["Relazione annuale semplificata"]
[]
[{"$f":"Adat!B11","v":2012}]
[]
[]
["B I L A N C I O",null,null,"dati espressi in mFt",null,"1."]
[null,null,{"$f":"Adat!B5","v":"Macskafarka Kft"},{"$f":"MLE!D8","v":"2011-12-31"},"Modifiche degli esercizi precedenti",{"$f":"MLE!F8","v":"2012-12-31"}]
[null,"Denominazione della partita",null,"Esercizio precedente",null,"Esercizio oggetto"]
["A","Immobilizzazioni immateriali",null,{"$f":"'NY-Mérl-Er'!D10","v":0},{"$f":"'NY-Mérl-Er'!E10","v":0},{"$f":"'NY-Mérl-Er'!F10","v":0}]
["I. ","Beni immateriali",null,{"$f":"'NY-Mérl-Er'!D11","v":0},{"$f":"'NY-Mérl-Er'!E11","v":0},{"$f":"'NY-Mérl-Er'!F11","v":0}]
[null,null,"Correzione valore beni immateriali",{"$f":"'NY-Mérl-Er'!D12","v":0},{"$f":"'NY-Mérl-Er'!E12","v":0},{"$f":"'NY-Mérl-Er'!F12","v":0}]
["II.","Mezzi investiti",null,{"$f":"'NY-Mérl-Er'!D13","v":0},{"$f":"'NY-Mérl-Er'!E13","v":0},{"$f":"'NY-Mérl-Er'!F13","v":0}]
[null,null,"Correzione valore mezzi",{"$f":"'NY-Mérl-Er'!D14","v":0},{"$f":"'NY-Mérl-Er'!E14","v":0},{"$f":"'NY-Mérl-Er'!F14","v":0}]
["III.","Immobilizzazioni finanziarie",null,{"$f":"'NY-Mérl-Er'!D15","v":0},{"$f":"'NY-Mérl-Er'!E15","v":0},{"$f":"'NY-Mérl-Er'!F15","v":0}]
[null,null,"Correzione valore mezzi finanziari investiti",{"$f":"'NY-Mérl-Er'!D16","v":0},{"$f":"'NY-Mérl-Er'!E16","v":0},{"$f":"'NY-Mérl-Er'!F16","v":0}]
["B","Immobilizzazioni materiali",null,{"$f":"'NY-Mérl-Er'!D17","v":0},{"$f":"'NY-Mérl-Er'!E17","v":0},{"$f":"'NY-Mérl-Er'!F17","v":0}]
["I.","Giacenze",null,{"$f":"'NY-Mérl-Er'!D18","v":0},{"$f":"'NY-Mérl-Er'!E18","v":0},{"$f":"'NY-Mérl-Er'!F18","v":0}]
["II.","Crediti",null,{"$f":"'NY-Mérl-Er'!D19","v":0},{"$f":"'NY-Mérl-Er'!E19","v":0},{"$f":"'NY-Mérl-Er'!F19","v":0}]
["III.","Titoli di valore",null,{"$f":"'NY-Mérl-Er'!D20","v":0},{"$f":"'NY-Mérl-Er'!E20","v":0},{"$f":"'NY-Mérl-Er'!F20","v":0}]
["IV.","Mezzi finanziari investiti",null,{"$f":"'NY-Mérl-Er'!D21","v":0},{"$f":"'NY-Mérl-Er'!E21","v":0},{"$f":"'NY-Mérl-Er'!F21","v":0}]
["C","Ratei e risconti (attivi)",null,{"$f":"'NY-Mérl-Er'!D22","v":0},{"$f":"'NY-Mérl-Er'!E22","v":0},{"$f":"'NY-Mérl-Er'!F22","v":0}]
[]
[null,null,"Immobilizzazioni in totale",{"$f":"'NY-Mérl-Er'!D24","v":0},{"$f":"'NY-Mérl-Er'!E24","v":0},{"$f":"'NY-Mérl-Er'!F24","v":0}]
[]
[{"$f":"+A11","v":"B I L A N C I O"},null,null,{"$f":"+D11","v":"dati espressi in mFt"},null,"2. "]
[null,null,{"$f":"C12","v":"Macskafarka Kft"},{"$f":"D12","v":"2011-12-31"},{"$f":"+E12","v":"Modifiche degli esercizi precedenti"},{"$f":"F12","v":"2012-12-31"}]
[null,null,null,{"$f":"+D13","v":"Esercizio precedente"},null,{"$f":"+F13","v":"Esercizio oggetto"}]
["D","Capitale proprio",null,{"$f":"'NY-Mérl-Er'!D43","v":0},{"$f":"'NY-Mérl-Er'!E43","v":0},{"$f":"'NY-Mérl-Er'!F43","v":0}]
["I.","Capitale sottoscritto",null,{"$f":"'NY-Mérl-Er'!D44","v":0},{"$f":"'NY-Mérl-Er'!E44","v":0},{"$f":"'NY-Mérl-Er'!F44","v":0}]
[null,null,"Valore nominale dellaquota riacquistata",{"$f":"'NY-Mérl-Er'!D45","v":0},{"$f":"'NY-Mérl-Er'!E45","v":0},{"$f":"'NY-Mérl-Er'!F45","v":0}]
["II.","Capitale sottoscritto, ma ancora non versato",null,{"$f":"'NY-Mérl-Er'!D46","v":0},{"$f":"'NY-Mérl-Er'!E46","v":0},{"$f":"'NY-Mérl-Er'!F46","v":0}]
["III.","Riserva di capitale",null,{"$f":"'NY-Mérl-Er'!D47","v":0},{"$f":"'NY-Mérl-Er'!E47","v":0},{"$f":"'NY-Mérl-Er'!F47","v":0}]
["IV.","Riserva d'utile",null,{"$f":"'NY-Mérl-Er'!D48","v":0},{"$f":"'NY-Mérl-Er'!E48","v":0},{"$f":"'NY-Mérl-Er'!F48","v":0}]
["V.","Riserve vincolate",null,{"$f":"'NY-Mérl-Er'!D49","v":0},{"$f":"'NY-Mérl-Er'!E49","v":0},{"$f":"'NY-Mérl-Er'!F49","v":0}]
["VI.","Riserva di valutazione",null,{"$f":"'NY-Mérl-Er'!D50","v":0},{"$f":"'NY-Mérl-Er'!E50","v":0},{"$f":"'NY-Mérl-Er'!F50","v":0}]
["VII.","Risultato dal bilancio",null,{"$f":"'NY-Mérl-Er'!D51","v":0},{"$f":"'NY-Mérl-Er'!E51","v":0},{"$f":"'NY-Mérl-Er'!F51","v":0}]
["E","Riserve mirate",null,{"$f":"'NY-Mérl-Er'!D52","v":0},{"$f":"'NY-Mérl-Er'!E52","v":0},{"$f":"'NY-Mérl-Er'!F52","v":0}]
["F","Obblighi",null,{"$f":"'NY-Mérl-Er'!D53","v":0},{"$f":"'NY-Mérl-Er'!E53","v":0},{"$f":"'NY-Mérl-Er'!F53","v":0}]
["I.","Obblighi secondari",null,{"$f":"'NY-Mérl-Er'!D54","v":0},{"$f":"'NY-Mérl-Er'!E54","v":0},{"$f":"'NY-Mérl-Er'!F54","v":0}]
["II.","Obblighi a lungo termine",null,{"$f":"'NY-Mérl-Er'!D55","v":0},{"$f":"'NY-Mérl-Er'!E55","v":0},{"$f":"'NY-Mérl-Er'!F55","v":0}]
["III.","Obblighi a breve termne",null,{"$f":"'NY-Mérl-Er'!D56","v":0},{"$f":"'NY-Mérl-Er'!E56","v":0},{"$f":"'NY-Mérl-Er'!F56","v":0}]
["G","Ratei e risconti (passivi)",null,{"$f":"'NY-Mérl-Er'!D57","v":0},{"$f":"'NY-Mérl-Er'!E57","v":0},{"$f":"'NY-Mérl-Er'!F57","v":0}]
[]
[null,null,"Fonti in totale",{"$f":"'NY-Mérl-Er'!D59","v":0},{"$f":"'NY-Mérl-Er'!E59","v":0},{"$f":"'NY-Mérl-Er'!F59","v":0}]
[]
["Conto profitti e perdite",null,null,{"$f":"+D30","v":"dati espressi in mFt"},null,"3."]
[null,null,{"$f":"Adat!B5","v":"Macskafarka Kft"},{"$f":"'Bilanz-német'!D12","v":"2011-12-31"},{"$f":"+E31","v":"Modifiche degli esercizi precedenti"},{"$f":"'Bilanz-német'!F12","v":"2012-12-31"}]
[null,null,null,{"$f":"+D32","v":"Esercizio precedente"},null,{"$f":"+F32","v":"Esercizio oggetto"}]
[]
["I.","Entrate nette da vendite",null,{"$f":"'NY-Mérl-Er'!D76","v":0},{"$f":"'NY-Mérl-Er'!E76","v":0},{"$f":"'NY-Mérl-Er'!F76","v":0}]
["II.","Rendimenti propri attivati",null,{"$f":"'NY-Mérl-Er'!D77","v":0},{"$f":"'NY-Mérl-Er'!E77","v":0},{"$f":"'NY-Mérl-Er'!F77","v":0}]
["III.","Altre entrate",null,{"$f":"'NY-Mérl-Er'!D78","v":0},{"$f":"'NY-Mérl-Er'!E78","v":0},{"$f":"'NY-Mérl-Er'!F78","v":0}]
[null,null,"dalla fila III. vendite riportate",{"$f":"'NY-Mérl-Er'!D79","v":0},{"$f":"'NY-Mérl-Er'!E79","v":0},{"$f":"'NY-Mérl-Er'!F79","v":0}]
["IV.","Spese di tipo materiale",null,{"$f":"'NY-Mérl-Er'!D80","v":0},{"$f":"'NY-Mérl-Er'!E80","v":0},{"$f":"'NY-Mérl-Er'!F80","v":0}]
["V.","Spese di tipo personale",null,{"$f":"'NY-Mérl-Er'!D81","v":0},{"$f":"'NY-Mérl-Er'!E81","v":0},{"$f":"'NY-Mérl-Er'!F81","v":0}]
["VI.","Ammortamenti",null,{"$f":"'NY-Mérl-Er'!D82","v":0},{"$f":"'NY-Mérl-Er'!E82","v":0},{"$f":"'NY-Mérl-Er'!F82","v":0}]
["VII.","Altre spese",null,{"$f":"'NY-Mérl-Er'!D83","v":0},{"$f":"'NY-Mérl-Er'!E83","v":0},{"$f":"'NY-Mérl-Er'!F83","v":0}]
[null,null,"dalla fila VII. perdite di valore",{"$f":"'NY-Mérl-Er'!D84","v":0},{"$f":"'NY-Mérl-Er'!E84","v":0},{"$f":"'NY-Mérl-Er'!F84","v":0}]
["A","Risultato dell'attivitá aziendale",null,{"$f":"'NY-Mérl-Er'!D85","v":0},{"$f":"'NY-Mérl-Er'!E85","v":0},{"$f":"'NY-Mérl-Er'!F85","v":0}]
["VIII.","Proventi finanziari",null,{"$f":"'NY-Mérl-Er'!D86","v":0},{"$f":"'NY-Mérl-Er'!E86","v":0},{"$f":"'NY-Mérl-Er'!F86","v":0}]
["IX.","Spese di attivitá finanziari",null,{"$f":"'NY-Mérl-Er'!D87","v":0},{"$f":"'NY-Mérl-Er'!E87","v":0},{"$f":"'NY-Mérl-Er'!F87","v":0}]
["B","Risultato delle attivitá finanziarie",null,{"$f":"'NY-Mérl-Er'!D88","v":0},{"$f":"'NY-Mérl-Er'!E88","v":0},{"$f":"'NY-Mérl-Er'!F88","v":0}]
["C","Risultato aziendale",null,{"$f":"'NY-Mérl-Er'!D89","v":0},{"$f":"'NY-Mérl-Er'!E89","v":0},{"$f":"'NY-Mérl-Er'!F89","v":0}]
["X.","Entrate straordinarie",null,{"$f":"'NY-Mérl-Er'!D90","v":0},{"$f":"'NY-Mérl-Er'!E90","v":0},{"$f":"'NY-Mérl-Er'!F90","v":0}]
["XI.","Spese straordinarie",null,{"$f":"'NY-Mérl-Er'!D91","v":0},{"$f":"'NY-Mérl-Er'!E91","v":0},{"$f":"'NY-Mérl-Er'!F91","v":0}]
["D","Risultato straordinario",null,{"$f":"'NY-Mérl-Er'!D92","v":0},{"$f":"'NY-Mérl-Er'!E92","v":0},{"$f":"'NY-Mérl-Er'!F92","v":0}]
["E","Risultato lordo",null,{"$f":"'NY-Mérl-Er'!D93","v":0},{"$f":"'NY-Mérl-Er'!E93","v":0},{"$f":"'NY-Mérl-Er'!F93","v":0}]
["XII.","Obblighi tributari I.",null,{"$f":"'NY-Mérl-Er'!D94","v":0},{"$f":"'NY-Mérl-Er'!E94","v":0},{"$f":"'NY-Mérl-Er'!F94","v":0}]
["F","Risultato nettó",null,{"$f":"'NY-Mérl-Er'!D95","v":0},{"$f":"'NY-Mérl-Er'!E95","v":0},{"$f":"'NY-Mérl-Er'!F95","v":0}]
[null,"Riserva d'utile per dividendi, partecipazioni",null,{"$f":"'NY-Mérl-Er'!D96","v":0},{"$f":"'NY-Mérl-Er'!E96","v":0},{"$f":"'NY-Mérl-Er'!F96","v":0}]
[null,"Dividendi, partecipazioni approvate",null,{"$f":"'NY-Mérl-Er'!D97","v":0},{"$f":"'NY-Mérl-Er'!E97","v":0},{"$f":"'NY-Mérl-Er'!F97","v":0}]
["G","Risultato dal bilancio",null,{"$f":"'NY-Mérl-Er'!D98","v":0},{"$f":"'NY-Mérl-Er'!E98","v":0},{"$f":"'NY-Mérl-Er'!F98","v":0}]

{"sheet":"olasz (É)","index":34,"n_rows":167,"n_cols":7,"rows_kept":167,"cut":false,"hidden":true,"merged":[[71,1,71,2],[114,4,115,4],[3,0,3,5],[5,0,5,5],[7,0,7,5],[10,4,11,4]]}
[{"$f":"Adat!B15","v":"Budapest,"},null,{"$f":"Adat!C15","v":"2013-03-31"},"Stat. Nr.",{"$f":"Adat!B8","v":"12005954-5170-113-01"}]
[null,null,null,"Firm register Nr. ",{"$f":"Adat!B9","v":"01-09-366783"}]
[]
[{"$f":"Adat!B5","v":"Macskafarka Kft"}]
[]
["FINANCIAL REPORT"]
[]
[{"$f":"Adat!B11","v":2012}]
[]
[null,null,"B A L A N C E","in THUF",null,"1.Page","ezt kell átírni olaszra!!!"]
[null,null,{"$f":"Adat!B5","v":"Macskafarka Kft"},{"$f":"'MLE (É)'!D8","v":"2011-12-31"},"Veränderung\nVorjahr",{"$f":"'MLE (É)'!F8","v":"2012-12-31"}]
[null,null,null,"Vorjahr",null,"Berichtsjahr"]
["A","Anlagevermögen",null,{"$f":"'NY-Mérl-Er (É)'!D10","v":0},{"$f":"'NY-Mérl-Er (É)'!E10","v":0},{"$f":"'NY-Mérl-Er (É)'!F10","v":0}]
["I. ","Immaterielle Vermögensgegenstände",null,{"$f":"'NY-Mérl-Er (É)'!D11","v":0},{"$f":"'NY-Mérl-Er (É)'!E11","v":0},{"$f":"'NY-Mérl-Er (É)'!F11","v":0}]
[1,null,"Gründungs- und Umstrukturierungskosten",{"$f":"'NY-Mérl-Er (É)'!D12","v":0},{"$f":"'NY-Mérl-Er (É)'!E12","v":0},{"$f":"'NY-Mérl-Er (É)'!F12","v":0}]
[2,null,"Forschungs- und Entwicklungskosten",{"$f":"'NY-Mérl-Er (É)'!D13","v":0},{"$f":"'NY-Mérl-Er (É)'!E13","v":0},{"$f":"'NY-Mérl-Er (É)'!F13","v":0}]
[3,null,"Verkehrsfähige Rechte",{"$f":"'NY-Mérl-Er (É)'!D14","v":0},{"$f":"'NY-Mérl-Er (É)'!E14","v":0},{"$f":"'NY-Mérl-Er (É)'!F14","v":0}]
[4,null,"Geistiges Eigentum",{"$f":"'NY-Mérl-Er (É)'!D15","v":0},{"$f":"'NY-Mérl-Er (É)'!E15","v":0},{"$f":"'NY-Mérl-Er (É)'!F15","v":0}]
[5,null,"Geschäfts- oder Firmenwert",{"$f":"'NY-Mérl-Er (É)'!D16","v":0},{"$f":"'NY-Mérl-Er (É)'!E16","v":0},{"$f":"'NY-Mérl-Er (É)'!F16","v":0}]
[6,null,"Geleistete Anzahlungen für immat.Verm.",{"$f":"'NY-Mérl-Er (É)'!D17","v":0},{"$f":"'NY-Mérl-Er (É)'!E17","v":0},{"$f":"'NY-Mérl-Er (É)'!F17","v":0}]
[7,null,"Wertberichtigung der immateriellen Verm.",{"$f":"'NY-Mérl-Er (É)'!D18","v":0},{"$f":"'NY-Mérl-Er (É)'!E18","v":0},{"$f":"'NY-Mérl-Er (É)'!F18","v":0}]
["II."," Sachanlagen",null,{"$f":"'NY-Mérl-Er (É)'!D19","v":0},{"$f":"'NY-Mérl-Er (É)'!E19","v":0},{"$f":"'NY-Mérl-Er (É)'!F19","v":0}]
[1,null,"Grundstücke und Gebäude, Rechte",{"$f":"'NY-Mérl-Er (É)'!D20","v":0},{"$f":"'NY-Mérl-Er (É)'!E20","v":0},{"$f":"'NY-Mérl-Er (É)'!F20","v":0}]
[2,null,"Technische Anlagen, Maschinen und Fahrzeuge",{"$f":"'NY-Mérl-Er (É)'!D21","v":0},{"$f":"'NY-Mérl-Er (É)'!E21","v":0},{"$f":"'NY-Mérl-Er (É)'!F21","v":0}]
[3,null,"Sonstige Einrichtungen, Ausrüstungen und Fahrzeuge",{"$f":"'NY-Mérl-Er (É)'!D22","v":0},{"$f":"'NY-Mérl-Er (É)'!E22","v":0},{"$f":"'NY-Mérl-Er (É)'!F22","v":0}]
[4,null,"Zuchttiere",{"$f":"'NY-Mérl-Er (É)'!D23","v":0},{"$f":"'NY-Mérl-Er (É)'!E23","v":0},{"$f":"'NY-Mérl-Er (É)'!F23","v":0}]
[5,null,"Anlagen im Bau und Erneuerungen",{"$f":"'NY-Mérl-Er (É)'!D24","v":0},{"$f":"'NY-Mérl-Er (É)'!E24","v":0},{"$f":"'NY-Mérl-Er (É)'!F24","v":0}]
[6,null,"Geleistete Anzahlungen für Investitionen",{"$f":"'NY-Mérl-Er (É)'!D25","v":0},{"$f":"'NY-Mérl-Er (É)'!E25","v":0},{"$f":"'NY-Mérl-Er (É)'!F25","v":0}]
[7,null,"Wertberichtigung der Sachanlagen",{"$f":"'NY-Mérl-Er (É)'!D26","v":0},{"$f":"'NY-Mérl-Er (É)'!E26","v":0},{"$f":"'NY-Mérl-Er (É)'!F26","v":0}]
["III.","Finanzanlagen",null,{"$f":"'NY-Mérl-Er (É)'!D27","v":0},{"$f":"'NY-Mérl-Er (É)'!E27","v":0},{"$f":"'NY-Mérl-Er (É)'!F27","v":0}]
[1,null,"D.hafte Beteiligungen an verbund.Unternehmen",{"$f":"'NY-Mérl-Er (É)'!D28","v":0},{"$f":"'NY-Mérl-Er (É)'!E28","v":0},{"$f":"'NY-Mérl-Er (É)'!F28","v":0}]
[2,null,"D.haft erteilte Ausleihungen an verbund.Untern.",{"$f":"'NY-Mérl-Er (É)'!D29","v":0},{"$f":"'NY-Mérl-Er (É)'!E29","v":0},{"$f":"'NY-Mérl-Er (É)'!F29","v":0}]
[3,null,"Sonstige dauerhafte Beteiligungen",{"$f":"'NY-Mérl-Er (É)'!D30","v":0},{"$f":"'NY-Mérl-Er (É)'!E30","v":0},{"$f":"'NY-Mérl-Er (É)'!F30","v":0}]
[4,null,"D.hafte Ausleihungen mit sonst.Beteiligungsv.",{"$f":"'NY-Mérl-Er (É)'!D31","v":0},{"$f":"'NY-Mérl-Er (É)'!E31","v":0},{"$f":"'NY-Mérl-Er (É)'!F31","v":0}]
[5,null,"Sonstige dauerhaft erteilte Ausleihungen",{"$f":"'NY-Mérl-Er (É)'!D32","v":0},{"$f":"'NY-Mérl-Er (É)'!E32","v":0},{"$f":"'NY-Mérl-Er (É)'!F32","v":0}]
[6,null,"Wertpapiere des Anlagevermögens",{"$f":"'NY-Mérl-Er (É)'!D33","v":0},{"$f":"'NY-Mérl-Er (É)'!E33","v":0},{"$f":"'NY-Mérl-Er (É)'!F33","v":0}]
[7,null,"Wertberichtigung der Finanzanlagen",{"$f":"'NY-Mérl-Er (É)'!D34","v":0},{"$f":"'NY-Mérl-Er (É)'!E34","v":0},{"$f":"'NY-Mérl-Er (É)'!F34","v":0}]
["B","Umlaufvermögen",null,{"$f":"'NY-Mérl-Er (É)'!D47","v":0},{"$f":"'NY-Mérl-Er (É)'!E47","v":0},{"$f":"'NY-Mérl-Er (É)'!F47","v":0}]
["I.","Vorräte",null,{"$f":"'NY-Mérl-Er (É)'!D48","v":0},{"$f":"'NY-Mérl-Er (É)'!E48","v":0},{"$f":"'NY-Mérl-Er (É)'!F48","v":0}]
[1,null,"Roh-, Hilfs- und Betriebsstoffe",{"$f":"'NY-Mérl-Er (É)'!D49","v":0},{"$f":"'NY-Mérl-Er (É)'!E49","v":0},{"$f":"'NY-Mérl-Er (É)'!F49","v":0}]
[2,null,"Unvollendete Prod.und halbfertige Erzeugnisse",{"$f":"'NY-Mérl-Er (É)'!D50","v":0},{"$f":"'NY-Mérl-Er (É)'!E50","v":0},{"$f":"'NY-Mérl-Er (É)'!F50","v":0}]
[3,null,"Jung-, Mast- und sonstige Tiere",{"$f":"'NY-Mérl-Er (É)'!D51","v":0},{"$f":"'NY-Mérl-Er (É)'!E51","v":0},{"$f":"'NY-Mérl-Er (É)'!F51","v":0}]
[4,null,"Fertige Erzeugnisse",{"$f":"'NY-Mérl-Er (É)'!D52","v":0},{"$f":"'NY-Mérl-Er (É)'!E52","v":0},{"$f":"'NY-Mérl-Er (É)'!F52","v":0}]
[5,null,"Waren",{"$f":"'NY-Mérl-Er (É)'!D53","v":0},{"$f":"'NY-Mérl-Er (É)'!E53","v":0},{"$f":"'NY-Mérl-Er (É)'!F53","v":0}]
[6,null,"Geleistete Anzahlungen auf Vorräte",{"$f":"'NY-Mérl-Er (É)'!D54","v":0},{"$f":"'NY-Mérl-Er (É)'!E54","v":0},{"$f":"'NY-Mérl-Er (É)'!F54","v":0}]
["II.","Forderungen",null,{"$f":"'NY-Mérl-Er (É)'!D55","v":0},{"$f":"'NY-Mérl-Er (É)'!E55","v":0},{"$f":"'NY-Mérl-Er (É)'!F55","v":0}]
[1,null,"Ford.aus Lieferungen und Leistungen (Käufer)",{"$f":"'NY-Mérl-Er (É)'!D56","v":0},{"$f":"'NY-Mérl-Er (É)'!E56","v":0},{"$f":"'NY-Mérl-Er (É)'!F56","v":0}]
[2,null,"Forderungen gegen verbundene Unternehmen",{"$f":"'NY-Mérl-Er (É)'!D57","v":0},{"$f":"'NY-Mérl-Er (É)'!E57","v":0},{"$f":"'NY-Mérl-Er (É)'!F57","v":0}]
[3,null,"Ford.g.Unternehmen mit sonst.Beteiligungsv.",{"$f":"'NY-Mérl-Er (É)'!D58","v":0},{"$f":"'NY-Mérl-Er (É)'!E58","v":0},{"$f":"'NY-Mérl-Er (É)'!F58","v":0}]
[4,null,"Wechselforderungen",{"$f":"'NY-Mérl-Er (É)'!D59","v":0},{"$f":"'NY-Mérl-Er (É)'!E59","v":0},{"$f":"'NY-Mérl-Er (É)'!F59","v":0}]
[5,null,"Sonstige Forderungen",{"$f":"'NY-Mérl-Er (É)'!D60","v":0},{"$f":"'NY-Mérl-Er (É)'!E60","v":0},{"$f":"'NY-Mérl-Er (É)'!F60","v":0}]
["III.","Wertpapiere",null,{"$f":"'NY-Mérl-Er (É)'!D61","v":0},{"$f":"'NY-Mérl-Er (É)'!E61","v":0},{"$f":"'NY-Mérl-Er (É)'!F61","v":0}]
[1,null,"Beteiligungen an verbundenen Unternehmen",{"$f":"'NY-Mérl-Er (É)'!D62","v":0},{"$f":"'NY-Mérl-Er (É)'!E62","v":0},{"$f":"'NY-Mérl-Er (É)'!F62","v":0}]
[2,null,"Sonstige Beteligungen",{"$f":"'NY-Mérl-Er (É)'!D63","v":0},{"$f":"'NY-Mérl-Er (É)'!E63","v":0},{"$f":"'NY-Mérl-Er (É)'!F63","v":0}]
[3,null,"Eigene Aktien und Anteile",{"$f":"'NY-Mérl-Er (É)'!D64","v":0},{"$f":"'NY-Mérl-Er (É)'!E64","v":0},{"$f":"'NY-Mérl-Er (É)'!F64","v":0}]
[4,null,"Wertpapiere des Umlaufvermögens",{"$f":"'NY-Mérl-Er (É)'!D65","v":0},{"$f":"'NY-Mérl-Er (É)'!E65","v":0},{"$f":"'NY-Mérl-Er (É)'!F65","v":0}]
["IV.","Flüssige Mittel",null,{"$f":"'NY-Mérl-Er (É)'!D66","v":0},{"$f":"'NY-Mérl-Er (É)'!E66","v":0},{"$f":"'NY-Mérl-Er (É)'!F66","v":0}]
[1,null,"Kassenbestand, Schecks",{"$f":"'NY-Mérl-Er (É)'!D67","v":0},{"$f":"'NY-Mérl-Er (É)'!E67","v":0},{"$f":"'NY-Mérl-Er (É)'!F67","v":0}]
[2,null,"Bankguthaben",{"$f":"'NY-Mérl-Er (É)'!D68","v":0},{"$f":"'NY-Mérl-Er (É)'!E68","v":0},{"$f":"'NY-Mérl-Er (É)'!F68","v":0}]
["C"," Aktive Rechnungsabgrenzungsposten",null,{"$f":"'NY-Mérl-Er (É)'!D69","v":0},{"$f":"'NY-Mérl-Er (É)'!E69","v":0},{"$f":"'NY-Mérl-Er (É)'!F69","v":0}]
[1,null,"Aktive Rechnungsabgrenzung der Erlöse",{"$f":"'NY-Mérl-Er (É)'!D70","v":0},{"$f":"'NY-Mérl-Er (É)'!E70","v":0},{"$f":"'NY-Mérl-Er (É)'!F70","v":0}]
[2,null,"Aktive Rechnungsabgrenzung der Aufwend.",{"$f":"'NY-Mérl-Er (É)'!D71","v":0},{"$f":"'NY-Mérl-Er (É)'!E71","v":0},{"$f":"'NY-Mérl-Er (É)'!F71","v":0}]
[3,null,"Verschobene Aufwendungen",{"$f":"'NY-Mérl-Er (É)'!D72","v":0},{"$f":"'NY-Mérl-Er (É)'!E72","v":0},{"$f":"'NY-Mérl-Er (É)'!F72","v":0}]
[]
[null,null,"Aktive zusammen",{"$f":"'NY-Mérl-Er (É)'!D74","v":0},{"$f":"'NY-Mérl-Er (É)'!E74","v":0},{"$f":"'NY-Mérl-Er (É)'!F74","v":0}]
[null,null,"B I L A N Z","in THUF",null,"2.Seite"]
[null,null,{"$f":"C11","v":"Macskafarka Kft"},{"$f":"D11","v":"2011-12-31"},{"$f":"+E11","v":"Veränderung\nVorjahr"},{"$f":"F11","v":"2012-12-31"}]
[null,null,null,{"$f":"+D12","v":"Vorjahr"},null,{"$f":"+F12","v":"Berichtsjahr"}]
["D","Eigenkapital",null,{"$f":"'NY-Mérl-Er (É)'!D87","v":0},{"$f":"'NY-Mérl-Er (É)'!E87","v":0},{"$f":"'NY-Mérl-Er (É)'!F87","v":0}]
["I.","Gezeichnetes Kapital",null,{"$f":"'NY-Mérl-Er (É)'!D88","v":0},{"$f":"'NY-Mérl-Er (É)'!E88","v":0},{"$f":"'NY-Mérl-Er (É)'!F88","v":0}]
[null,null,"Davon: zurückgekaufter Eigentumsanteil ",{"$f":"'NY-Mérl-Er (É)'!D89","v":0},{"$f":"'NY-Mérl-Er (É)'!E89","v":0},{"$f":"'NY-Mérl-Er (É)'!F89","v":0}]
["II.","Nicht bezahltes Kapital",null,{"$f":"'NY-Mérl-Er (É)'!D90","v":0},{"$f":"'NY-Mérl-Er (É)'!E90","v":0},{"$f":"'NY-Mérl-Er (É)'!F90","v":0}]
["II.","Kapitalrücklage",null,{"$f":"'NY-Mérl-Er (É)'!D91","v":0},{"$f":"'NY-Mérl-Er (É)'!E91","v":0},{"$f":"'NY-Mérl-Er (É)'!F91","v":0}]
["III.","Gewinnrücklage",null,{"$f":"'NY-Mérl-Er (É)'!D92","v":0},{"$f":"'NY-Mérl-Er (É)'!E92","v":0},{"$f":"'NY-Mérl-Er (É)'!F92","v":0}]
["IV.","Gebundene Rücklagen",null,{"$f":"'NY-Mérl-Er (É)'!D93","v":0},{"$f":"'NY-Mérl-Er (É)'!E93","v":0},{"$f":"'NY-Mérl-Er (É)'!F93","v":0}]
["V","Bewertungsreserve",null,{"$f":"'NY-Mérl-Er (É)'!D94","v":0},{"$f":"'NY-Mérl-Er (É)'!E94","v":0},{"$f":"'NY-Mérl-Er (É)'!F94","v":0}]
["VII","Bilanzergebnis",null,{"$f":"'NY-Mérl-Er (É)'!D95","v":0},{"$f":"'NY-Mérl-Er (É)'!E95","v":0},{"$f":"'NY-Mérl-Er (É)'!F95","v":0}]
["E","Rückstellungen",null,{"$f":"'NY-Mérl-Er (É)'!D96","v":0},{"$f":"'NY-Mérl-Er (É)'!E96","v":0},{"$f":"'NY-Mérl-Er (É)'!F96","v":0}]
[1,null,"Rückstellungen für ungewisse Verbindlichkeiten",{"$f":"'NY-Mérl-Er (É)'!D97","v":0},{"$f":"'NY-Mérl-Er (É)'!E97","v":0},{"$f":"'NY-Mérl-Er (É)'!F97","v":0}]
[2,null,"Rückstellungen für zukünftige Kosten",{"$f":"'NY-Mérl-Er (É)'!D98","v":0},{"$f":"'NY-Mérl-Er (É)'!E98","v":0},{"$f":"'NY-Mérl-Er (É)'!F98","v":0}]
[3,null,"Sonstige Rückstellungen",{"$f":"'NY-Mérl-Er (É)'!D99","v":0},{"$f":"'NY-Mérl-Er (É)'!E99","v":0},{"$f":"'NY-Mérl-Er (É)'!F99","v":0}]
["F","Verbindlichkeiten",null,{"$f":"'NY-Mérl-Er (É)'!D112","v":0},{"$f":"'NY-Mérl-Er (É)'!E112","v":0},{"$f":"'NY-Mérl-Er (É)'!F112","v":0}]
["I.","Nachrangige Verbindlichkeiten",null,{"$f":"'NY-Mérl-Er (É)'!D113","v":0},{"$f":"'NY-Mérl-Er (É)'!E113","v":0},{"$f":"'NY-Mérl-Er (É)'!F113","v":0}]
[1,null,"Gegen verbundene Unternehmen",{"$f":"'NY-Mérl-Er (É)'!D114","v":0},{"$f":"'NY-Mérl-Er (É)'!E114","v":0},{"$f":"'NY-Mérl-Er (É)'!F114","v":0}]
[2,null,"Gegen Unternehmen mit sonst.Beteiligung",{"$f":"'NY-Mérl-Er (É)'!D115","v":0},{"$f":"'NY-Mérl-Er (É)'!E115","v":0},{"$f":"'NY-Mérl-Er (É)'!F115","v":0}]
[3,null,"Gegen sonstige Wirtschaftsführer",{"$f":"'NY-Mérl-Er (É)'!D116","v":0},{"$f":"'NY-Mérl-Er (É)'!E116","v":0},{"$f":"'NY-Mérl-Er (É)'!F116","v":0}]
["II.","Langfristige Verbindlichkeiten",null,{"$f":"'NY-Mérl-Er (É)'!D117","v":0},{"$f":"'NY-Mérl-Er (É)'!E117","v":0},{"$f":"'NY-Mérl-Er (É)'!F117","v":0}]
[1,null,"Erhaltene, langfristige Darlehen",{"$f":"'NY-Mérl-Er (É)'!D118","v":0},{"$f":"'NY-Mérl-Er (É)'!E118","v":0},{"$f":"'NY-Mérl-Er (É)'!F118","v":0}]
[2,null,"Wandelschuldverschreibungen",{"$f":"'NY-Mérl-Er (É)'!D119","v":0},{"$f":"'NY-Mérl-Er (É)'!E119","v":0},{"$f":"'NY-Mérl-Er (É)'!F119","v":0}]
[3,null,"Verbindlichkeiten aus Anleihen",{"$f":"'NY-Mérl-Er (É)'!D120","v":0},{"$f":"'NY-Mérl-Er (É)'!E120","v":0},{"$f":"'NY-Mérl-Er (É)'!F120","v":0}]
[4,null,"Investitions- und Entwicklungskredite",{"$f":"'NY-Mérl-Er (É)'!D121","v":0},{"$f":"'NY-Mérl-Er (É)'!E121","v":0},{"$f":"'NY-Mérl-Er (É)'!F121","v":0}]
[5,null,"Sonstige langfristige Kredite",{"$f":"'NY-Mérl-Er (É)'!D122","v":0},{"$f":"'NY-Mérl-Er (É)'!E122","v":0},{"$f":"'NY-Mérl-Er (É)'!F122","v":0}]
[6,null,"Gegen verbundene Unternehmen",{"$f":"'NY-Mérl-Er (É)'!D123","v":0},{"$f":"'NY-Mérl-Er (É)'!E123","v":0},{"$f":"'NY-Mérl-Er (É)'!F123","v":0}]
[7,null,"Gegen Unternehmen mit sonst.Beteiligung",{"$f":"'NY-Mérl-Er (É)'!D124","v":0},{"$f":"'NY-Mérl-Er (É)'!E124","v":0},{"$f":"'NY-Mérl-Er (É)'!F124","v":0}]
[8,null,"Sonstige langfristige Verbindlichkeiten",{"$f":"'NY-Mérl-Er (É)'!D125","v":0},{"$f":"'NY-Mérl-Er (É)'!E125","v":0},{"$f":"'NY-Mérl-Er (É)'!F125","v":0}]
["III.","Kurzfristige Verbindlichkeiten",null,{"$f":"'NY-Mérl-Er (É)'!D126","v":0},{"$f":"'NY-Mérl-Er (É)'!E126","v":0},{"$f":"'NY-Mérl-Er (É)'!F126","v":0}]
[1,null,"Kurzfristige Darlehen",{"$f":"'NY-Mérl-Er (É)'!D127","v":0},{"$f":"'NY-Mérl-Er (É)'!E127","v":0},{"$f":"'NY-Mérl-Er (É)'!F127","v":0}]
[null,null,null,{"$f":"'NY-Mérl-Er (É)'!D128","v":0},{"$f":"'NY-Mérl-Er (É)'!E128","v":0},{"$f":"'NY-Mérl-Er (É)'!F128","v":0}]
[2,null,"Kurzfristige Kredite",{"$f":"'NY-Mérl-Er (É)'!D129","v":0},{"$f":"'NY-Mérl-Er (É)'!E129","v":0},{"$f":"'NY-Mérl-Er (É)'!F129","v":0}]
[3,null,"Erhaltene Anzahlungen auf Bestellungen",{"$f":"'NY-Mérl-Er (É)'!D130","v":0},{"$f":"'NY-Mérl-Er (É)'!E130","v":0},{"$f":"'NY-Mérl-Er (É)'!F130","v":0}]
[4,null,"Verbindl.Lieferungen und Leist. (Lieferanten)",{"$f":"'NY-Mérl-Er (É)'!D131","v":0},{"$f":"'NY-Mérl-Er (É)'!E131","v":0},{"$f":"'NY-Mérl-Er (É)'!F131","v":0}]
[5,null,"Wechselverbindlichkeiten",{"$f":"'NY-Mérl-Er (É)'!D132","v":0},{"$f":"'NY-Mérl-Er (É)'!E132","v":0},{"$f":"'NY-Mérl-Er (É)'!F132","v":0}]
[6,null,"Gegen verbundene Unternehmen",{"$f":"'NY-Mérl-Er (É)'!D133","v":0},{"$f":"'NY-Mérl-Er (É)'!E133","v":0},{"$f":"'NY-Mérl-Er (É)'!F133","v":0}]
[7,null,"Gegen Unternehmen mit sonst.Beteiligung",{"$f":"'NY-Mérl-Er (É)'!D134","v":0},{"$f":"'NY-Mérl-Er (É)'!E134","v":0},{"$f":"'NY-Mérl-Er (É)'!F134","v":0}]
[8,null,"Sonstige kurzfristige Verbindlichkeiten",{"$f":"'NY-Mérl-Er (É)'!D135","v":0},{"$f":"'NY-Mérl-Er (É)'!E135","v":0},{"$f":"'NY-Mérl-Er (É)'!F135","v":0}]
["G","Passive Rechnungsabgrenzungsposten",null,{"$f":"'NY-Mérl-Er (É)'!D136","v":0},{"$f":"'NY-Mérl-Er (É)'!E136","v":0},{"$f":"'NY-Mérl-Er (É)'!F136","v":0}]
[1,null,"Passive Rechnungsabgrenzung der Erlöse",{"$f":"'NY-Mérl-Er (É)'!D137","v":0},{"$f":"'NY-Mérl-Er (É)'!E137","v":0},{"$f":"'NY-Mérl-Er (É)'!F137","v":0}]
[2,null,"Passive Rechnungsabgrenzung der Aufwend.",{"$f":"'NY-Mérl-Er (É)'!D138","v":0},{"$f":"'NY-Mérl-Er (É)'!E138","v":0},{"$f":"'NY-Mérl-Er (É)'!F138","v":0}]
[3,null,"Verschobene Erlöse und Erträge",{"$f":"'NY-Mérl-Er (É)'!D139","v":0},{"$f":"'NY-Mérl-Er (É)'!E139","v":0},{"$f":"'NY-Mérl-Er (É)'!F139","v":0}]
[]
[null,null,"Passive zusammen",{"$f":"'NY-Mérl-Er (É)'!D141","v":0},{"$f":"'NY-Mérl-Er (É)'!E141","v":0},{"$f":"'NY-Mérl-Er (É)'!F141","v":0}]
[]
[]
[null,null,"G UND V \n(nach Gesamtkostenverfahren)",{"$f":"+D66","v":"in THUF"},null,"3.Seite"]
[null,null,{"$f":"C11","v":"Macskafarka Kft"},{"$f":"'Bilanz-német (É)'!D12","v":"2011-12-31"},{"$f":"+E67","v":"Veränderung\nVorjahr"},{"$f":"'Bilanz-német (É)'!F12","v":"2012-12-31"}]
[null,null,null,{"$f":"+D68","v":"Vorjahr"},null,{"$f":"+F68","v":"Berichtsjahr"}]
[]
["01.",null,"Nettoumsatzerlöse, Inland",{"$f":"'NY-Mérl-Er (É)'!D154","v":0},{"$f":"'NY-Mérl-Er (É)'!E154","v":0},{"$f":"'NY-Mérl-Er (É)'!F154","v":0}]
["02.",null,"Nettoumsatzerlöse, Ausland",{"$f":"'NY-Mérl-Er (É)'!D155","v":0},{"$f":"'NY-Mérl-Er (É)'!E155","v":0},{"$f":"'NY-Mérl-Er (É)'!F155","v":0}]
["I.","Nettoumsatzerlöse (01+02)",null,{"$f":"'NY-Mérl-Er (É)'!D156","v":0},{"$f":"'NY-Mérl-Er (É)'!E156","v":0},{"$f":"'NY-Mérl-Er (É)'!F156","v":0}]
["03.",null,"Bestandsänderung der Vorräte aus eigener Produktion",{"$f":"'NY-Mérl-Er (É)'!D157","v":0},{"$f":"'NY-Mérl-Er (É)'!E157","v":0},{"$f":"'NY-Mérl-Er (É)'!F157","v":0}]
["04.",null,"Aktivierter Wert der selbst hergestellten Vermögensgegenstände",{"$f":"'NY-Mérl-Er (É)'!D158","v":0},{"$f":"'NY-Mérl-Er (É)'!E158","v":0},{"$f":"'NY-Mérl-Er (É)'!F158","v":0}]
["II.","Aktivierte Eigenleistungen (03+04)",null,{"$f":"'NY-Mérl-Er (É)'!D159","v":0},{"$f":"'NY-Mérl-Er (É)'!E159","v":0},{"$f":"'NY-Mérl-Er (É)'!F159","v":0}]
["III.","Sonstige Erträge",null,{"$f":"'NY-Mérl-Er (É)'!D160","v":0},{"$f":"'NY-Mérl-Er (É)'!E160","v":0},{"$f":"'NY-Mérl-Er (É)'!F160","v":0}]
[null,null,"Davon: zurückgeschriebene Wertverluste",{"$f":"'NY-Mérl-Er (É)'!D161","v":0},{"$f":"'NY-Mérl-Er (É)'!E161","v":0},{"$f":"'NY-Mérl-Er (É)'!F161","v":0}]
["05.",null,"Aufwendungen für Roh-, Hilfs- und Betriebsstoffe",{"$f":"'NY-Mérl-Er (É)'!D162","v":0},{"$f":"'NY-Mérl-Er (É)'!E162","v":0},{"$f":"'NY-Mérl-Er (É)'!F162","v":0}]
["06.",null,"Aufwendungen für bezogene Leistungen",{"$f":"'NY-Mérl-Er (É)'!D163","v":0},{"$f":"'NY-Mérl-Er (É)'!E163","v":0},{"$f":"'NY-Mérl-Er (É)'!F163","v":0}]
["07.",null,"Aufwendungen für sonstige Leistungen",{"$f":"'NY-Mérl-Er (É)'!D164","v":0},{"$f":"'NY-Mérl-Er (É)'!E164","v":0},{"$f":"'NY-Mérl-Er (É)'!F164","v":0}]
["08.",null,"Aufwendungen für bezogene Waren",{"$f":"'NY-Mérl-Er (É)'!D165","v":0},{"$f":"'NY-Mérl-Er (É)'!E165","v":0},{"$f":"'NY-Mérl-Er (É)'!F165","v":0}]
["09.",null,"Aufwendungen für verkaufte (vermittelte) Leistungen",{"$f":"'NY-Mérl-Er (É)'!D166","v":0},{"$f":"'NY-Mérl-Er (É)'!E166","v":0},{"$f":"'NY-Mérl-Er (É)'!F166","v":0}]
["IV.","Materialaufwendungen (05+06+07+08+09)",null,{"$f":"'NY-Mérl-Er (É)'!D167","v":0},{"$f":"'NY-Mérl-Er (É)'!E167","v":0},{"$f":"'NY-Mérl-Er (É)'!F167","v":0}]
["10.",null,"Lohn- und Gehaltskosten",{"$f":"'NY-Mérl-Er (É)'!D168","v":0},{"$f":"'NY-Mérl-Er (É)'!E168","v":0},{"$f":"'NY-Mérl-Er (É)'!F168","v":0}]
["11.",null,"Sonstige Personalaufwendungen",{"$f":"'NY-Mérl-Er (É)'!D169","v":0},{"$f":"'NY-Mérl-Er (É)'!E169","v":0},{"$f":"'NY-Mérl-Er (É)'!F169","v":0}]
["12.",null,"Lohnnebenkosten",{"$f":"'NY-Mérl-Er (É)'!D170","v":0},{"$f":"'NY-Mérl-Er (É)'!E170","v":0},{"$f":"'NY-Mérl-Er (É)'!F170","v":0}]
["V.","Personalaufwand (10+11+12)",null,{"$f":"'NY-Mérl-Er (É)'!D171","v":0},{"$f":"'NY-Mérl-Er (É)'!E171","v":0},{"$f":"'NY-Mérl-Er (É)'!F171","v":0}]
["VI.","Abschreibungen",null,{"$f":"'NY-Mérl-Er (É)'!D172","v":0},{"$f":"'NY-Mérl-Er (É)'!E172","v":0},{"$f":"'NY-Mérl-Er (É)'!F172","v":0}]
["VII.","Sonstige Aufwendungen",null,{"$f":"'NY-Mérl-Er (É)'!D173","v":0},{"$f":"'NY-Mérl-Er (É)'!E173","v":0},{"$f":"'NY-Mérl-Er (É)'!F173","v":0}]
[null,null,"Davon: Wertverluste",{"$f":"'NY-Mérl-Er (É)'!D174","v":0},{"$f":"'NY-Mérl-Er (É)'!E174","v":0},{"$f":"'NY-Mérl-Er (É)'!F174","v":0}]
["A","Betriebsergebnis (Geschäftserg.) (I+II+III-IV-V-VI-VII)",null,{"$f":"'NY-Mérl-Er (É)'!D175","v":0},{"$f":"'NY-Mérl-Er (É)'!E175","v":0},{"$f":"'NY-Mérl-Er (É)'!F175","v":0}]
[13,null,"Erträge aus (zustehenden) Dividenden und Gewinnanteilen",{"$f":"'NY-Mérl-Er (É)'!D188","v":0},{"$f":"'NY-Mérl-Er (É)'!E188","v":0},{"$f":"'NY-Mérl-Er (É)'!F188","v":0}]
[null,null,"Davon: von verbundenen Unternehmen",{"$f":"'NY-Mérl-Er (É)'!D189","v":0},{"$f":"'NY-Mérl-Er (É)'!E189","v":0},{"$f":"'NY-Mérl-Er (É)'!F189","v":0}]
[14,null,"Kursgewinne aus dem Verkauf von Beteiligungen",{"$f":"'NY-Mérl-Er (É)'!D190","v":0},{"$f":"'NY-Mérl-Er (É)'!E190","v":0},{"$f":"'NY-Mérl-Er (É)'!F190","v":0}]
[null,null,"Davon: von verbundenen Unternehmen",{"$f":"'NY-Mérl-Er (É)'!D191","v":0},{"$f":"'NY-Mérl-Er (É)'!E191","v":0},{"$f":"'NY-Mérl-Er (É)'!F191","v":0}]
[15,null,"Zinsen und Kursgewinne von Finanzanlagen",{"$f":"'NY-Mérl-Er (É)'!D192","v":0},{"$f":"'NY-Mérl-Er (É)'!E192","v":0},{"$f":"'NY-Mérl-Er (É)'!F192","v":0}]
[null,null,"Davon: von verbundenen Unternehmen",{"$f":"'NY-Mérl-Er (É)'!D193","v":0},{"$f":"'NY-Mérl-Er (É)'!E193","v":0},{"$f":"'NY-Mérl-Er (É)'!F193","v":0}]
[16,null,"Sonstige (zustehende) Zinsen und ähnliche Erträge",{"$f":"'NY-Mérl-Er (É)'!D194","v":0},{"$f":"'NY-Mérl-Er (É)'!E194","v":0},{"$f":"'NY-Mérl-Er (É)'!F194","v":0}]
[null,null,"Davon: von verbundenen Unternehmen",{"$f":"'NY-Mérl-Er (É)'!D195","v":0},{"$f":"'NY-Mérl-Er (É)'!E195","v":0},{"$f":"'NY-Mérl-Er (É)'!F195","v":0}]
[17,null,"Sonstige finanzielle Erträge",{"$f":"'NY-Mérl-Er (É)'!D196","v":0},{"$f":"'NY-Mérl-Er (É)'!E196","v":0},{"$f":"'NY-Mérl-Er (É)'!F196","v":0}]
["VIII.","Finanzerträge (13+14+15+16+17)",null,{"$f":"'NY-Mérl-Er (É)'!D197","v":0},{"$f":"'NY-Mérl-Er (É)'!E197","v":0},{"$f":"'NY-Mérl-Er (É)'!F197","v":0}]
[18,null,"Kursverluste von Finanzanlagen",{"$f":"'NY-Mérl-Er (É)'!D198","v":0},{"$f":"'NY-Mérl-Er (É)'!E198","v":0},{"$f":"'NY-Mérl-Er (É)'!F198","v":0}]
[null,null,"Davon: an verbundene Unternehmen",{"$f":"'NY-Mérl-Er (É)'!D199","v":0},{"$f":"'NY-Mérl-Er (É)'!E199","v":0},{"$f":"'NY-Mérl-Er (É)'!F199","v":0}]
[19,null,"Zinsen und ähnliche Aufwendungen",{"$f":"'NY-Mérl-Er (É)'!D200","v":0},{"$f":"'NY-Mérl-Er (É)'!E200","v":0},{"$f":"'NY-Mérl-Er (É)'!F200","v":0}]
[null,null,"Davon: an verbundene Unternehmen",{"$f":"'NY-Mérl-Er (É)'!D201","v":0},{"$f":"'NY-Mérl-Er (É)'!E201","v":0},{"$f":"'NY-Mérl-Er (É)'!F201","v":0}]
[20,null,"WV v.Beteiligungen, Wertpapieren und Bankguthaben",{"$f":"'NY-Mérl-Er (É)'!D202","v":0},{"$f":"'NY-Mérl-Er (É)'!E202","v":0},{"$f":"'NY-Mérl-Er (É)'!F202","v":0}]
[21,null,"Sonstige finanzielle Aufwendungen",{"$f":"'NY-Mérl-Er (É)'!D203","v":0},{"$f":"'NY-Mérl-Er (É)'!E203","v":0},{"$f":"'NY-Mérl-Er (É)'!F203","v":0}]
["IX.","Finanzaufwendungen (18+19+20+21)",null,{"$f":"'NY-Mérl-Er (É)'!D204","v":0},{"$f":"'NY-Mérl-Er (É)'!E204","v":0},{"$f":"'NY-Mérl-Er (É)'!F204","v":0}]
["B","Finanzergebnis (VIII-IX)",null,{"$f":"'NY-Mérl-Er (É)'!D205","v":0},{"$f":"'NY-Mérl-Er (É)'!E205","v":0},{"$f":"'NY-Mérl-Er (É)'!F205","v":0}]
["C","Ergebnis der gewöhnlichen Geschäftstätigkeit (+A+B)",null,{"$f":"'NY-Mérl-Er (É)'!D206","v":0},{"$f":"'NY-Mérl-Er (É)'!E206","v":0},{"$f":"'NY-Mérl-Er (É)'!F206","v":0}]
["X.","Außerordentliche Erträge",null,{"$f":"'NY-Mérl-Er (É)'!D207","v":0},{"$f":"'NY-Mérl-Er (É)'!E207","v":0},{"$f":"'NY-Mérl-Er (É)'!F207","v":0}]
["XI.","Außerordentliche Aufwendungen",null,{"$f":"'NY-Mérl-Er (É)'!D208","v":0},{"$f":"'NY-Mérl-Er (É)'!E208","v":0},{"$f":"'NY-Mérl-Er (É)'!F208","v":0}]
["D","Außerordentliches Ergebnis (X-XI)",null,{"$f":"'NY-Mérl-Er (É)'!D209","v":0},{"$f":"'NY-Mérl-Er (É)'!E209","v":0},{"$f":"'NY-Mérl-Er (É)'!F209","v":0}]
["E","Ergebnis vor Steuern (+C+D)",null,{"$f":"'NY-Mérl-Er (É)'!D210","v":0},{"$f":"'NY-Mérl-Er (É)'!E210","v":0},{"$f":"'NY-Mérl-Er (É)'!F210","v":0}]
["XII.","Steuerpflicht",null,{"$f":"'NY-Mérl-Er (É)'!D211","v":0},{"$f":"'NY-Mérl-Er (É)'!E211","v":0},{"$f":"'NY-Mérl-Er (É)'!F211","v":0}]
["F","Versteuertes Ergebnis (+E-XII)",null,{"$f":"'NY-Mérl-Er (É)'!D212","v":0},{"$f":"'NY-Mérl-Er (É)'!E212","v":0},{"$f":"'NY-Mérl-Er (É)'!F212","v":0}]
[22,"Entnahmen aus der Gewinnrücklage für Dividenden",null,{"$f":"'NY-Mérl-Er (É)'!D213","v":0},{"$f":"'NY-Mérl-Er (É)'!E213","v":0},{"$f":"'NY-Mérl-Er (É)'!F213","v":0}]
[23,"Bestätigte Dividenden und Gewinnanteile",null,{"$f":"'NY-Mérl-Er (É)'!D214","v":0},{"$f":"'NY-Mérl-Er (É)'!E214","v":0},{"$f":"'NY-Mérl-Er (É)'!F214","v":0}]
["G","Bilanzergebnis (+F+22-23)",null,{"$f":"'NY-Mérl-Er (É)'!D215","v":0},{"$f":"'NY-Mérl-Er (É)'!E215","v":0},{"$f":"'NY-Mérl-Er (É)'!F215","v":0}]

{"sheet":"francia","index":35,"n_rows":77,"n_cols":6,"rows_kept":77,"cut":false,"hidden":false,"merged":[[50,0,50,4],[51,4,52,4],[3,0,3,5],[5,0,5,5],[7,0,7,5],[11,4,12,4],[30,4,31,4],[35,1,35,2]]}
[{"$f":"Adat!B15","v":"Budapest,"},null,{"$f":"Adat!C15","v":"2013-03-31"},"Nr. statistique:",null,{"$f":"Adat!B8","v":"12005954-5170-113-01"}]
[null,null,null,"Nr. De registre de Comerce:",null,{"$f":"Adat!B9","v":"01-09-366783"}]
[]
[{"$f":"Adat!B5","v":"Macskafarka Kft"}]
[]
["RAPPORT FINANCIER"]
[]
[{"$f":"Adat!B11","v":2012}]
[]
[]
[null,null,"BILAN","en kHUF",null,"1."]
[null,null,{"$f":"Adat!B5","v":"Macskafarka Kft"},{"$f":"MLE!D8","v":"2011-12-31"},"Correstions des années passées",{"$f":"MLE!F8","v":"2012-12-31"}]
[null,null,null,"année de base",null,"année en cours"]
["A"," Actif immobilisé",null,{"$f":"'NY-Mérl-Er'!D10","v":0},{"$f":"'NY-Mérl-Er'!E10","v":0},{"$f":"'NY-Mérl-Er'!F10","v":0}]
["I. ","I. IMMOBILISATION INCORPORELLES ",null,{"$f":"'NY-Mérl-Er'!D11","v":0},{"$f":"'NY-Mérl-Er'!E11","v":0},{"$f":"'NY-Mérl-Er'!F11","v":0}]
[null,null,"Amt/Prov.écart d'acquisition",{"$f":"'NY-Mérl-Er'!D12","v":0},{"$f":"'NY-Mérl-Er'!E12","v":0},{"$f":"'NY-Mérl-Er'!F12","v":0}]
["II.","II. IMMOBILISATIONS CORPORELLES",null,{"$f":"'NY-Mérl-Er'!D13","v":0},{"$f":"'NY-Mérl-Er'!E13","v":0},{"$f":"'NY-Mérl-Er'!F13","v":0}]
[null,null,"Amt/Prov.écart d'acquisition",{"$f":"'NY-Mérl-Er'!D14","v":0},{"$f":"'NY-Mérl-Er'!E14","v":0},{"$f":"'NY-Mérl-Er'!F14","v":0}]
["III.","III. IMMOBILISATION FINANCIERES",null,{"$f":"'NY-Mérl-Er'!D15","v":0},{"$f":"'NY-Mérl-Er'!E15","v":0},{"$f":"'NY-Mérl-Er'!F15","v":0}]
[null,null,"Amt/Prov.écart d'acquisition",{"$f":"'NY-Mérl-Er'!D16","v":0},{"$f":"'NY-Mérl-Er'!E16","v":0},{"$f":"'NY-Mérl-Er'!F16","v":0}]
["B","Actif circulant",null,{"$f":"'NY-Mérl-Er'!D17","v":0},{"$f":"'NY-Mérl-Er'!E17","v":0},{"$f":"'NY-Mérl-Er'!F17","v":0}]
["I.","STOCKS ",null,{"$f":"'NY-Mérl-Er'!D18","v":0},{"$f":"'NY-Mérl-Er'!E18","v":0},{"$f":"'NY-Mérl-Er'!F18","v":0}]
["II.","CRÉANCES",null,{"$f":"'NY-Mérl-Er'!D19","v":0},{"$f":"'NY-Mérl-Er'!E19","v":0},{"$f":"'NY-Mérl-Er'!F19","v":0}]
["III.","VALEURS MOBILIÉRES",null,{"$f":"'NY-Mérl-Er'!D20","v":0},{"$f":"'NY-Mérl-Er'!E20","v":0},{"$f":"'NY-Mérl-Er'!F20","v":0}]
["IV."," DISPONIBILITÉS",null,{"$f":"'NY-Mérl-Er'!D21","v":0},{"$f":"'NY-Mérl-Er'!E21","v":0},{"$f":"'NY-Mérl-Er'!F21","v":0}]
["C","Comptes de réguralisation /actif/",null,{"$f":"'NY-Mérl-Er'!D22","v":0},{"$f":"'NY-Mérl-Er'!E22","v":0},{"$f":"'NY-Mérl-Er'!F22","v":0}]
[]
[null,null,"Total es actifs",{"$f":"'NY-Mérl-Er'!D24","v":0},{"$f":"'NY-Mérl-Er'!E24","v":0},{"$f":"'NY-Mérl-Er'!F24","v":0}]
[]
[null,null,"BILAN","en kHUF",null,"2."]
[null,null,{"$f":"C12","v":"Macskafarka Kft"},{"$f":"D12","v":"2011-12-31"},"Correstions des années passées",{"$f":"F12","v":"2012-12-31"}]
[null,null,null,"année de base",null,"année en cours"]
["D","Capitaux propres",null,{"$f":"'NY-Mérl-Er'!D43","v":0},{"$f":"'NY-Mérl-Er'!E43","v":0},{"$f":"'NY-Mérl-Er'!F43","v":0}]
["I.","CAPITAL SOCIAL",null,{"$f":"'NY-Mérl-Er'!D44","v":0},{"$f":"'NY-Mérl-Er'!E44","v":0},{"$f":"'NY-Mérl-Er'!F44","v":0}]
[null,null,"dont: valeur nominale des écarts d'acquisation",{"$f":"'NY-Mérl-Er'!D45","v":0},{"$f":"'NY-Mérl-Er'!E45","v":0},{"$f":"'NY-Mérl-Er'!F45","v":0}]
["II.","CAPITAL SOCIAL NON VERSÉ",null,{"$f":"'NY-Mérl-Er'!D46","v":0},{"$f":"'NY-Mérl-Er'!E46","v":0},{"$f":"'NY-Mérl-Er'!F46","v":0}]
["III."," RÉSERVE DE CAPITAL",null,{"$f":"'NY-Mérl-Er'!D47","v":0},{"$f":"'NY-Mérl-Er'!E47","v":0},{"$f":"'NY-Mérl-Er'!F47","v":0}]
["IV."," RÉSERVE DE RÉSULTAT",null,{"$f":"'NY-Mérl-Er'!D48","v":0},{"$f":"'NY-Mérl-Er'!E48","v":0},{"$f":"'NY-Mérl-Er'!F48","v":0}]
["V.","RESÉSERVE LÉGALE",null,{"$f":"'NY-Mérl-Er'!D49","v":0},{"$f":"'NY-Mérl-Er'!E49","v":0},{"$f":"'NY-Mérl-Er'!F49","v":0}]
["VI.","ÉCARTS DE RÉÉVALUATIONS",null,{"$f":"'NY-Mérl-Er'!D50","v":0},{"$f":"'NY-Mérl-Er'!E50","v":0},{"$f":"'NY-Mérl-Er'!F50","v":0}]
["VII","RÉSULTAT DE L'EXERCIE",null,{"$f":"'NY-Mérl-Er'!D51","v":0},{"$f":"'NY-Mérl-Er'!E51","v":0},{"$f":"'NY-Mérl-Er'!F51","v":0}]
["E","Provisions",null,{"$f":"'NY-Mérl-Er'!D52","v":0},{"$f":"'NY-Mérl-Er'!E52","v":0},{"$f":"'NY-Mérl-Er'!F52","v":0}]
["F","Dettes",null,{"$f":"'NY-Mérl-Er'!D53","v":0},{"$f":"'NY-Mérl-Er'!E53","v":0},{"$f":"'NY-Mérl-Er'!F53","v":0}]
["I.","Dettes secondaires",null,{"$f":"'NY-Mérl-Er'!D54","v":0},{"$f":"'NY-Mérl-Er'!E54","v":0},{"$f":"'NY-Mérl-Er'!F54","v":0}]
["II.","Dettes a long terme ",null,{"$f":"'NY-Mérl-Er'!D55","v":0},{"$f":"'NY-Mérl-Er'!E55","v":0},{"$f":"'NY-Mérl-Er'!F55","v":0}]
["III.","Dettes a court terme",null,{"$f":"'NY-Mérl-Er'!D56","v":0},{"$f":"'NY-Mérl-Er'!E56","v":0},{"$f":"'NY-Mérl-Er'!F56","v":0}]
["G","Compte de régularisation /passif/",null,{"$f":"'NY-Mérl-Er'!D57","v":0},{"$f":"'NY-Mérl-Er'!E57","v":0},{"$f":"'NY-Mérl-Er'!F57","v":0}]
[]
[null,null,"Total des passifs",{"$f":"'NY-Mérl-Er'!D59","v":0},{"$f":"'NY-Mérl-Er'!E59","v":0},{"$f":"'NY-Mérl-Er'!F59","v":0}]
[]
["COMPTE DE RÉSULTAT 'A' Charges et",null,null,null,null,"en kHUF"]
[null,null,{"$f":"Adat!B5","v":"Macskafarka Kft"},{"$f":"'Bilanz-német'!D12","v":"2011-12-31"},"Correstions des années passées",{"$f":"'Bilanz-német'!F12","v":"2012-12-31"}]
[null,null,null,"année de base",null,"année en cours"]
[]
["I.","Montant net du chiffre d´affaires",null,{"$f":"'NY-Mérl-Er'!D76","v":0},{"$f":"'NY-Mérl-Er'!E76","v":0},{"$f":"'NY-Mérl-Er'!F76","v":0}]
["II.","Production propre",null,{"$f":"'NY-Mérl-Er'!D77","v":0},{"$f":"'NY-Mérl-Er'!E77","v":0},{"$f":"'NY-Mérl-Er'!F77","v":0}]
["III.","Autres recettes",null,{"$f":"'NY-Mérl-Er'!D78","v":0},{"$f":"'NY-Mérl-Er'!E78","v":0},{"$f":"'NY-Mérl-Er'!F78","v":0}]
[null,null,"Dont: reprise d' évaluation",{"$f":"'NY-Mérl-Er'!D79","v":0},{"$f":"'NY-Mérl-Er'!E79","v":0},{"$f":"'NY-Mérl-Er'!F79","v":0}]
["IV.","Charges matérielles",null,{"$f":"'NY-Mérl-Er'!D80","v":0},{"$f":"'NY-Mérl-Er'!E80","v":0},{"$f":"'NY-Mérl-Er'!F80","v":0}]
["V.","Charges du personnel ",null,{"$f":"'NY-Mérl-Er'!D81","v":0},{"$f":"'NY-Mérl-Er'!E81","v":0},{"$f":"'NY-Mérl-Er'!F81","v":0}]
["VI.","Dotation aux amortissements",null,{"$f":"'NY-Mérl-Er'!D82","v":0},{"$f":"'NY-Mérl-Er'!E82","v":0},{"$f":"'NY-Mérl-Er'!F82","v":0}]
["VII.","Autres charges",null,{"$f":"'NY-Mérl-Er'!D83","v":0},{"$f":"'NY-Mérl-Er'!E83","v":0},{"$f":"'NY-Mérl-Er'!F83","v":0}]
[null,null,"Dont: perte de valeur",{"$f":"'NY-Mérl-Er'!D84","v":0},{"$f":"'NY-Mérl-Er'!E84","v":0},{"$f":"'NY-Mérl-Er'!F84","v":0}]
["A","RÉSULTAT D´EXPLOITATION \n(I.+II.+III.-IV.-V.-VI.-VII.-VIII. )",null,{"$f":"'NY-Mérl-Er'!D85","v":0},{"$f":"'NY-Mérl-Er'!E85","v":0},{"$f":"'NY-Mérl-Er'!F85","v":0}]
["VIII.","Total des produits financieres",null,{"$f":"'NY-Mérl-Er'!D86","v":0},{"$f":"'NY-Mérl-Er'!E86","v":0},{"$f":"'NY-Mérl-Er'!F86","v":0}]
["IX.","Total des charges financiéres",null,{"$f":"'NY-Mérl-Er'!D87","v":0},{"$f":"'NY-Mérl-Er'!E87","v":0},{"$f":"'NY-Mérl-Er'!F87","v":0}]
["B","RÉSULTAT FINANCIER ( IX.-X. )",null,{"$f":"'NY-Mérl-Er'!D88","v":0},{"$f":"'NY-Mérl-Er'!E88","v":0},{"$f":"'NY-Mérl-Er'!F88","v":0}]
["C","RÉSULTAT COURANT (+- A. +- B. )",null,{"$f":"'NY-Mérl-Er'!D89","v":0},{"$f":"'NY-Mérl-Er'!E89","v":0},{"$f":"'NY-Mérl-Er'!F89","v":0}]
["X.","Produits exceptionnels",null,{"$f":"'NY-Mérl-Er'!D90","v":0},{"$f":"'NY-Mérl-Er'!E90","v":0},{"$f":"'NY-Mérl-Er'!F90","v":0}]
["XI.","Charges exceptionnels",null,{"$f":"'NY-Mérl-Er'!D91","v":0},{"$f":"'NY-Mérl-Er'!E91","v":0},{"$f":"'NY-Mérl-Er'!F91","v":0}]
["D","RÉSULTAT EXCEPTIONEL (XI.-XII. )",null,{"$f":"'NY-Mérl-Er'!D92","v":0},{"$f":"'NY-Mérl-Er'!E92","v":0},{"$f":"'NY-Mérl-Er'!F92","v":0}]
["E","RÉSULTAT AVANT IMPOT ( +-C.+-D.)",null,{"$f":"'NY-Mérl-Er'!D93","v":0},{"$f":"'NY-Mérl-Er'!E93","v":0},{"$f":"'NY-Mérl-Er'!F93","v":0}]
["XII.","Impots á payer",null,{"$f":"'NY-Mérl-Er'!D94","v":0},{"$f":"'NY-Mérl-Er'!E94","v":0},{"$f":"'NY-Mérl-Er'!F94","v":0}]
["F","RÉSULTAT APRÉS-IMPOT ( +-E.-XIII. )",null,{"$f":"'NY-Mérl-Er'!D95","v":0},{"$f":"'NY-Mérl-Er'!E95","v":0},{"$f":"'NY-Mérl-Er'!F95","v":0}]
[null,"Dotations aux provisions pour dividendes ",null,{"$f":"'NY-Mérl-Er'!D96","v":0},{"$f":"'NY-Mérl-Er'!E96","v":0},{"$f":"'NY-Mérl-Er'!F96","v":0}]
[null,"Dividendes et participations payés",null,{"$f":"'NY-Mérl-Er'!D97","v":0},{"$f":"'NY-Mérl-Er'!E97","v":0},{"$f":"'NY-Mérl-Er'!F97","v":0}]
["G","RÉSULTAT DE L´EXERCICE ( +-F.+18.-19. )",null,{"$f":"'NY-Mérl-Er'!D98","v":0},{"$f":"'NY-Mérl-Er'!E98","v":0},{"$f":"'NY-Mérl-Er'!F98","v":0}]

{"sheet":"francia (É)","index":36,"n_rows":168,"n_cols":11,"rows_kept":168,"cut":false,"hidden":true,"merged":[[115,4,116,4],[3,0,3,5],[5,0,5,5],[7,0,7,5],[10,4,11,4],[67,4,68,4],[72,1,72,2]]}
[{"$f":"Adat!B15","v":"Budapest,"},null,{"$f":"Adat!C15","v":"2013-03-31"},"Nr. statistique:",null,{"$f":"Adat!B8","v":"12005954-5170-113-01"}]
[null,null,null,"Nr. De registre de Comerce:",null,{"$f":"Adat!B9","v":"01-09-366783"}]
[]
[{"$f":"Adat!B5","v":"Macskafarka Kft"}]
[]
["RAPPORT FINANCIER"]
[]
[{"$f":"Adat!B11","v":2012}]
[]
[null,null,"BILAN","en kHUF",null,"1."]
[null,null,{"$f":"Adat!B5","v":"Macskafarka Kft"},{"$f":"'MLE (É)'!D8","v":"2011-12-31"},"Correstions des années passées",{"$f":"'MLE (É)'!F8","v":"2012-12-31"}]
[null,null,null,"année de base",null,"année de base"]
["A","IMMOBILISATIONS",null,{"$f":"'NY-Mérl-Er (É)'!D10","v":0},{"$f":"'NY-Mérl-Er (É)'!E10","v":0},{"$f":"'NY-Mérl-Er (É)'!F10","v":0}]
["I. ","Immobilisations incorporelles    ",null,{"$f":"'NY-Mérl-Er (É)'!D11","v":0},{"$f":"'NY-Mérl-Er (É)'!E11","v":0},{"$f":"'NY-Mérl-Er (É)'!F11","v":0}]
[null,null,"1. Création et réorganisation           ",{"$f":"'NY-Mérl-Er (É)'!D12","v":0},{"$f":"'NY-Mérl-Er (É)'!E12","v":0},{"$f":"'NY-Mérl-Er (É)'!F12","v":0}]
[null,null,"2. Recherches et développements         ",{"$f":"'NY-Mérl-Er (É)'!D13","v":0},{"$f":"'NY-Mérl-Er (É)'!E13","v":0},{"$f":"'NY-Mérl-Er (É)'!F13","v":0}]
[null,null,"3. Droits patrimoniaux                  ",{"$f":"'NY-Mérl-Er (É)'!D14","v":0},{"$f":"'NY-Mérl-Er (É)'!E14","v":0},{"$f":"'NY-Mérl-Er (É)'!F14","v":0}]
[null,null,"4. Logiciels                            ",{"$f":"'NY-Mérl-Er (É)'!D15","v":0},{"$f":"'NY-Mérl-Er (É)'!E15","v":0},{"$f":"'NY-Mérl-Er (É)'!F15","v":0}]
[null,null,"5. Fonds de commerce                    ",{"$f":"'NY-Mérl-Er (É)'!D16","v":0},{"$f":"'NY-Mérl-Er (É)'!E16","v":0},{"$f":"'NY-Mérl-Er (É)'!F16","v":0}]
[null,null,"6. Avances sur immobilisations incorpore",{"$f":"'NY-Mérl-Er (É)'!D17","v":0},{"$f":"'NY-Mérl-Er (É)'!E17","v":0},{"$f":"'NY-Mérl-Er (É)'!F17","v":0}]
[null,null,"7. Réévaluation des immobilisations inco",{"$f":"'NY-Mérl-Er (É)'!D18","v":0},{"$f":"'NY-Mérl-Er (É)'!E18","v":0},{"$f":"'NY-Mérl-Er (É)'!F18","v":0}]
["II.","Immobilisations corporelles         ",null,{"$f":"'NY-Mérl-Er (É)'!D19","v":0},{"$f":"'NY-Mérl-Er (É)'!E19","v":0},{"$f":"'NY-Mérl-Er (É)'!F19","v":0}]
[null,null,"1. Biens immobiliers et droits patrimoni",{"$f":"'NY-Mérl-Er (É)'!D20","v":0},{"$f":"'NY-Mérl-Er (É)'!E20","v":0},{"$f":"'NY-Mérl-Er (É)'!F20","v":0}]
[null,null,"2. Installations techniques et véhicules",{"$f":"'NY-Mérl-Er (É)'!D21","v":0},{"$f":"'NY-Mérl-Er (É)'!E21","v":0},{"$f":"'NY-Mérl-Er (É)'!F21","v":0}]
[null,null,"3. Autres installations et véhicules    ",{"$f":"'NY-Mérl-Er (É)'!D22","v":0},{"$f":"'NY-Mérl-Er (É)'!E22","v":0},{"$f":"'NY-Mérl-Er (É)'!F22","v":0}]
[null,null,"4. Immobilisations et rénovations       ",{"$f":"'NY-Mérl-Er (É)'!D23","v":0},{"$f":"'NY-Mérl-Er (É)'!E23","v":0},{"$f":"'NY-Mérl-Er (É)'!F23","v":0}]
[null,null,"5. Reproducteurs                        ",{"$f":"'NY-Mérl-Er (É)'!D24","v":0},{"$f":"'NY-Mérl-Er (É)'!E24","v":0},{"$f":"'NY-Mérl-Er (É)'!F24","v":0}]
[null,null,"6. Avances sur immobilisations          ",{"$f":"'NY-Mérl-Er (É)'!D25","v":0},{"$f":"'NY-Mérl-Er (É)'!E25","v":0},{"$f":"'NY-Mérl-Er (É)'!F25","v":0}]
[null,null,"7. Réévaluation des immobilisations     ",{"$f":"'NY-Mérl-Er (É)'!D26","v":0},{"$f":"'NY-Mérl-Er (É)'!E26","v":0},{"$f":"'NY-Mérl-Er (É)'!F26","v":0}]
["III.","Immobilisations financieres        ",null,{"$f":"'NY-Mérl-Er (É)'!D27","v":0},{"$f":"'NY-Mérl-Er (É)'!E27","v":0},{"$f":"'NY-Mérl-Er (É)'!F27","v":0}]
[null,null,"1. Participations á L.T.-entreprise liée",{"$f":"'NY-Mérl-Er (É)'!D28","v":0},{"$f":"'NY-Mérl-Er (É)'!E28","v":0},{"$f":"'NY-Mérl-Er (É)'!F28","v":0}]
[null,null,"2. Préts á L.T -entreprise liée         ",{"$f":"'NY-Mérl-Er (É)'!D29","v":0},{"$f":"'NY-Mérl-Er (É)'!E29","v":0},{"$f":"'NY-Mérl-Er (É)'!F29","v":0}]
[null,null,"3. Autres participations á L.T.         ",{"$f":"'NY-Mérl-Er (É)'!D30","v":0},{"$f":"'NY-Mérl-Er (É)'!E30","v":0},{"$f":"'NY-Mérl-Er (É)'!F30","v":0}]
[null,null,"4. Préts á L.T -autres participations   ",{"$f":"'NY-Mérl-Er (É)'!D31","v":0},{"$f":"'NY-Mérl-Er (É)'!E31","v":0},{"$f":"'NY-Mérl-Er (É)'!F31","v":0}]
[null,null,"5. Autres préts á L.T                   ",{"$f":"'NY-Mérl-Er (É)'!D32","v":0},{"$f":"'NY-Mérl-Er (É)'!E32","v":0},{"$f":"'NY-Mérl-Er (É)'!F32","v":0}]
[null,null,"6. Titres                               ",{"$f":"'NY-Mérl-Er (É)'!D33","v":0},{"$f":"'NY-Mérl-Er (É)'!E33","v":0},{"$f":"'NY-Mérl-Er (É)'!F33","v":0}]
[null,null,"7. Réévaluation des immobilisations fin.",{"$f":"'NY-Mérl-Er (É)'!D34","v":0},{"$f":"'NY-Mérl-Er (É)'!E34","v":0},{"$f":"'NY-Mérl-Er (É)'!F34","v":0}]
["B"," ACTIF CIRCULANT                      ",null,{"$f":"'NY-Mérl-Er (É)'!D47","v":0},{"$f":"'NY-Mérl-Er (É)'!E47","v":0},{"$f":"'NY-Mérl-Er (É)'!F47","v":0}]
["I.","Stocks                               ",null,{"$f":"'NY-Mérl-Er (É)'!D48","v":0},{"$f":"'NY-Mérl-Er (É)'!E48","v":0},{"$f":"'NY-Mérl-Er (É)'!F48","v":0}]
[null,null,"1. Matiéres                             ",{"$f":"'NY-Mérl-Er (É)'!D49","v":0},{"$f":"'NY-Mérl-Er (É)'!E49","v":0},{"$f":"'NY-Mérl-Er (É)'!F49","v":0}]
[null,null,"2. Productions en cours et produits semi",{"$f":"'NY-Mérl-Er (É)'!D50","v":0},{"$f":"'NY-Mérl-Er (É)'!E50","v":0},{"$f":"'NY-Mérl-Er (É)'!F50","v":0}]
[null,null,"3. Animaux d'élevage et autres animaux  ",{"$f":"'NY-Mérl-Er (É)'!D51","v":0},{"$f":"'NY-Mérl-Er (É)'!E51","v":0},{"$f":"'NY-Mérl-Er (É)'!F51","v":0}]
[null,null,"4. Produits finis                       ",{"$f":"'NY-Mérl-Er (É)'!D52","v":0},{"$f":"'NY-Mérl-Er (É)'!E52","v":0},{"$f":"'NY-Mérl-Er (É)'!F52","v":0}]
[null,null,"5. Marchandises                         ",{"$f":"'NY-Mérl-Er (É)'!D53","v":0},{"$f":"'NY-Mérl-Er (É)'!E53","v":0},{"$f":"'NY-Mérl-Er (É)'!F53","v":0}]
[null,null,"6. Avances sur stocks                   ",{"$f":"'NY-Mérl-Er (É)'!D54","v":0},{"$f":"'NY-Mérl-Er (É)'!E54","v":0},{"$f":"'NY-Mérl-Er (É)'!F54","v":0}]
["II.","Créances                            ",null,{"$f":"'NY-Mérl-Er (É)'!D55","v":0},{"$f":"'NY-Mérl-Er (É)'!E55","v":0},{"$f":"'NY-Mérl-Er (É)'!F55","v":0}]
[null,null,"1. Créances vis á vis des clients       ",{"$f":"'NY-Mérl-Er (É)'!D56","v":0},{"$f":"'NY-Mérl-Er (É)'!E56","v":0},{"$f":"'NY-Mérl-Er (É)'!F56","v":0}]
[null,null,"2. Créances vis á vis de l'entreprise li",{"$f":"'NY-Mérl-Er (É)'!D57","v":0},{"$f":"'NY-Mérl-Er (É)'!E57","v":0},{"$f":"'NY-Mérl-Er (É)'!F57","v":0}]
[null,null,"3. Créances vis á vis d'autres sociétés ",{"$f":"'NY-Mérl-Er (É)'!D58","v":0},{"$f":"'NY-Mérl-Er (É)'!E58","v":0},{"$f":"'NY-Mérl-Er (É)'!F58","v":0}]
[null,null,"4. Effets á recevoir                    ",{"$f":"'NY-Mérl-Er (É)'!D59","v":0},{"$f":"'NY-Mérl-Er (É)'!E59","v":0},{"$f":"'NY-Mérl-Er (É)'!F59","v":0}]
[null,null,"5. Autres créances                      ",{"$f":"'NY-Mérl-Er (É)'!D60","v":0},{"$f":"'NY-Mérl-Er (É)'!E60","v":0},{"$f":"'NY-Mérl-Er (É)'!F60","v":0}]
["III.","Titres de participation            ",null,{"$f":"'NY-Mérl-Er (É)'!D61","v":0},{"$f":"'NY-Mérl-Er (É)'!E61","v":0},{"$f":"'NY-Mérl-Er (É)'!F61","v":0}]
[null,null,"1. Participations -entreprise liée      ",{"$f":"'NY-Mérl-Er (É)'!D62","v":0},{"$f":"'NY-Mérl-Er (É)'!E62","v":0},{"$f":"'NY-Mérl-Er (É)'!F62","v":0}]
[null,null,"2. Autres participations á C.T          ",{"$f":"'NY-Mérl-Er (É)'!D63","v":0},{"$f":"'NY-Mérl-Er (É)'!E63","v":0},{"$f":"'NY-Mérl-Er (É)'!F63","v":0}]
[null,null,"3. Actions propres et parts sociales pro",{"$f":"'NY-Mérl-Er (É)'!D64","v":0},{"$f":"'NY-Mérl-Er (É)'!E64","v":0},{"$f":"'NY-Mérl-Er (É)'!F64","v":0}]
[null,null,"4. Titre á endosser                     ",{"$f":"'NY-Mérl-Er (É)'!D65","v":0},{"$f":"'NY-Mérl-Er (É)'!E65","v":0},{"$f":"'NY-Mérl-Er (É)'!F65","v":0}]
["IV.","Disponibilités                      ",null,{"$f":"'NY-Mérl-Er (É)'!D66","v":0},{"$f":"'NY-Mérl-Er (É)'!E66","v":0},{"$f":"'NY-Mérl-Er (É)'!F66","v":0}]
[null,null,"1. Caisses et cheques                   ",{"$f":"'NY-Mérl-Er (É)'!D67","v":0},{"$f":"'NY-Mérl-Er (É)'!E67","v":0},{"$f":"'NY-Mérl-Er (É)'!F67","v":0}]
[null,null,"2. Banques                              ",{"$f":"'NY-Mérl-Er (É)'!D68","v":0},{"$f":"'NY-Mérl-Er (É)'!E68","v":0},{"$f":"'NY-Mérl-Er (É)'!F68","v":0}]
["C","COMPTES DE RÉGULARISATION ACTIF",null,{"$f":"'NY-Mérl-Er (É)'!D69","v":0},{"$f":"'NY-Mérl-Er (É)'!E69","v":0},{"$f":"'NY-Mérl-Er (É)'!F69","v":0}]
[1,null,"1. Factures á établir                   ",{"$f":"'NY-Mérl-Er (É)'!D70","v":0},{"$f":"'NY-Mérl-Er (É)'!E70","v":0},{"$f":"'NY-Mérl-Er (É)'!F70","v":0}]
[2,null,"2. Charges et frais constatés d'avance  ",{"$f":"'NY-Mérl-Er (É)'!D71","v":0},{"$f":"'NY-Mérl-Er (É)'!E71","v":0},{"$f":"'NY-Mérl-Er (É)'!F71","v":0}]
[3,null,"3. Frais constatés d'avance             ",{"$f":"'NY-Mérl-Er (É)'!D72","v":0},{"$f":"'NY-Mérl-Er (É)'!E72","v":0},{"$f":"'NY-Mérl-Er (É)'!F72","v":0}]
[]
[null,null,"          ACTIF                         ",{"$f":"'NY-Mérl-Er (É)'!D74","v":0},{"$f":"'NY-Mérl-Er (É)'!E74","v":0},{"$f":"'NY-Mérl-Er (É)'!F74","v":0}]
[]
[null,null,{"$f":"+C10","v":"BILAN"},{"$f":"+D10","v":"en kHUF"},null,"2."]
[null,null,{"$f":"C11","v":"Macskafarka Kft"},{"$f":"D11","v":"2011-12-31"},{"$f":"+E11","v":"Correstions des années passées"},{"$f":"F11","v":"2012-12-31"}]
[null,null,null,{"$f":"+D12","v":"année de base"},null,{"$f":"+F12","v":"année de base"}]
["D","CAPITAUX PROPRES",null,{"$f":"'NY-Mérl-Er (É)'!D87","v":0},{"$f":"'NY-Mérl-Er (É)'!E87","v":0},{"$f":"'NY-Mérl-Er (É)'!F87","v":0}]
["I.","Capital                              ",null,{"$f":"'NY-Mérl-Er (É)'!D88","v":0},{"$f":"'NY-Mérl-Er (É)'!E88","v":0},{"$f":"'NY-Mérl-Er (É)'!F88","v":0}]
[null,null,null,{"$f":"'NY-Mérl-Er (É)'!D89","v":0},{"$f":"'NY-Mérl-Er (É)'!E89","v":0},{"$f":"'NY-Mérl-Er (É)'!F89","v":0}]
["II.","Capital souscrit non libéré         ",null,{"$f":"'NY-Mérl-Er (É)'!D90","v":0},{"$f":"'NY-Mérl-Er (É)'!E90","v":0},{"$f":"'NY-Mérl-Er (É)'!F90","v":0}]
["III.","Réserves de capital                ",null,{"$f":"'NY-Mérl-Er (É)'!D91","v":0},{"$f":"'NY-Mérl-Er (É)'!E91","v":0},{"$f":"'NY-Mérl-Er (É)'!F91","v":0}]
["IV.","Réserves de résultat                ",null,{"$f":"'NY-Mérl-Er (É)'!D92","v":0},{"$f":"'NY-Mérl-Er (É)'!E92","v":0},{"$f":"'NY-Mérl-Er (É)'!F92","v":0}]
["V","Réserves                             ",null,{"$f":"'NY-Mérl-Er (É)'!D93","v":0},{"$f":"'NY-Mérl-Er (É)'!E93","v":0},{"$f":"'NY-Mérl-Er (É)'!F93","v":0}]
["VI.","Réserves de réévaluation            ",null,{"$f":"'NY-Mérl-Er (É)'!D94","v":0},{"$f":"'NY-Mérl-Er (É)'!E94","v":0},{"$f":"'NY-Mérl-Er (É)'!F94","v":0}]
["VII.","Résultat bilantiel                  ",null,{"$f":"'NY-Mérl-Er (É)'!D95","v":0},{"$f":"'NY-Mérl-Er (É)'!E95","v":0},{"$f":"'NY-Mérl-Er (É)'!F95","v":0}]
["E","PROVISIONS",null,{"$f":"'NY-Mérl-Er (É)'!D96","v":0},{"$f":"'NY-Mérl-Er (É)'!E96","v":0},{"$f":"'NY-Mérl-Er (É)'!F96","v":0}]
[null,null,"1. Provisions sur factures á recevoir   ",{"$f":"'NY-Mérl-Er (É)'!D97","v":0},{"$f":"'NY-Mérl-Er (É)'!E97","v":0},{"$f":"'NY-Mérl-Er (É)'!F97","v":0}]
[null,null,"2. Provisions sur charges á attendre    ",{"$f":"'NY-Mérl-Er (É)'!D98","v":0},{"$f":"'NY-Mérl-Er (É)'!E98","v":0},{"$f":"'NY-Mérl-Er (É)'!F98","v":0}]
[null,null,"3. Autres provisions                    ",{"$f":"'NY-Mérl-Er (É)'!D99","v":0},{"$f":"'NY-Mérl-Er (É)'!E99","v":0},{"$f":"'NY-Mérl-Er (É)'!F99","v":0}]
["F","DETTES",null,{"$f":"'NY-Mérl-Er (É)'!D112","v":0},{"$f":"'NY-Mérl-Er (É)'!E112","v":0},{"$f":"'NY-Mérl-Er (É)'!F112","v":0}]
["I.","Dette de deuxiéme rang               ",null,{"$f":"'NY-Mérl-Er (É)'!D113","v":0},{"$f":"'NY-Mérl-Er (É)'!E113","v":0},{"$f":"'NY-Mérl-Er (É)'!F113","v":0}]
[null,null,"1. ~ vis á vis d'entreprise liée        ",{"$f":"'NY-Mérl-Er (É)'!D114","v":0},{"$f":"'NY-Mérl-Er (É)'!E114","v":0},{"$f":"'NY-Mérl-Er (É)'!F114","v":0}]
[null,null,"2. ~ vis á vis d'autres actionnaires ou ",{"$f":"'NY-Mérl-Er (É)'!D115","v":0},{"$f":"'NY-Mérl-Er (É)'!E115","v":0},{"$f":"'NY-Mérl-Er (É)'!F115","v":0}]
[null,null,"3. ~ vis á vis d'autres sociétés        ",{"$f":"'NY-Mérl-Er (É)'!D116","v":0},{"$f":"'NY-Mérl-Er (É)'!E116","v":0},{"$f":"'NY-Mérl-Er (É)'!F116","v":0}]
["II.","Dettes á L.T.                       ",null,{"$f":"'NY-Mérl-Er (É)'!D117","v":0},{"$f":"'NY-Mérl-Er (É)'!E117","v":0},{"$f":"'NY-Mérl-Er (É)'!F117","v":0}]
[null,null,"1. Emprunts á L.T.                      ",{"$f":"'NY-Mérl-Er (É)'!D118","v":0},{"$f":"'NY-Mérl-Er (É)'!E118","v":0},{"$f":"'NY-Mérl-Er (É)'!F118","v":0}]
[null,null,"2. Obligations convertibles             ",{"$f":"'NY-Mérl-Er (É)'!D119","v":0},{"$f":"'NY-Mérl-Er (É)'!E119","v":0},{"$f":"'NY-Mérl-Er (É)'!F119","v":0}]
[null,null,"3. Dettes sur émission des obligations  ",{"$f":"'NY-Mérl-Er (É)'!D120","v":0},{"$f":"'NY-Mérl-Er (É)'!E120","v":0},{"$f":"'NY-Mérl-Er (É)'!F120","v":0}]
[null,null,"4. Emprunts sur investissement et  dével",{"$f":"'NY-Mérl-Er (É)'!D121","v":0},{"$f":"'NY-Mérl-Er (É)'!E121","v":0},{"$f":"'NY-Mérl-Er (É)'!F121","v":0}]
[null,null,"5. Autres emprunts á L.T.               ",{"$f":"'NY-Mérl-Er (É)'!D122","v":0},{"$f":"'NY-Mérl-Er (É)'!E122","v":0},{"$f":"'NY-Mérl-Er (É)'!F122","v":0}]
[null,null,"6. Dettes á L.T. vis á vis de l'entrepri",{"$f":"'NY-Mérl-Er (É)'!D123","v":0},{"$f":"'NY-Mérl-Er (É)'!E123","v":0},{"$f":"'NY-Mérl-Er (É)'!F123","v":0}]
[null,null,"7. Dettes á L.T. vis á vis de l'autre as",{"$f":"'NY-Mérl-Er (É)'!D124","v":0},{"$f":"'NY-Mérl-Er (É)'!E124","v":0},{"$f":"'NY-Mérl-Er (É)'!F124","v":0}]
[null,null,"8. Autre dettes á L.T.                  ",{"$f":"'NY-Mérl-Er (É)'!D125","v":0},{"$f":"'NY-Mérl-Er (É)'!E125","v":0},{"$f":"'NY-Mérl-Er (É)'!F125","v":0}]
["III.","Dettes á C.T.                      ",null,{"$f":"'NY-Mérl-Er (É)'!D126","v":0},{"$f":"'NY-Mérl-Er (É)'!E126","v":0},{"$f":"'NY-Mérl-Er (É)'!F126","v":0}]
[null,null,"1. Emprunt á C.T.                       ",{"$f":"'NY-Mérl-Er (É)'!D127","v":0},{"$f":"'NY-Mérl-Er (É)'!E127","v":0},{"$f":"'NY-Mérl-Er (É)'!F127","v":0}]
[null,null,"                                        ",{"$f":"'NY-Mérl-Er (É)'!D128","v":0},{"$f":"'NY-Mérl-Er (É)'!E128","v":0},{"$f":"'NY-Mérl-Er (É)'!F128","v":0}]
[null,null,"2. Crédits á C.T.                       ",{"$f":"'NY-Mérl-Er (É)'!D129","v":0},{"$f":"'NY-Mérl-Er (É)'!E129","v":0},{"$f":"'NY-Mérl-Er (É)'!F129","v":0}]
[null,null,"3. Acomptes reçus des clients           ",{"$f":"'NY-Mérl-Er (É)'!D130","v":0},{"$f":"'NY-Mérl-Er (É)'!E130","v":0},{"$f":"'NY-Mérl-Er (É)'!F130","v":0}]
[null,null,"4. Dettes vis á vis des fournisseurs    ",{"$f":"'NY-Mérl-Er (É)'!D131","v":0},{"$f":"'NY-Mérl-Er (É)'!E131","v":0},{"$f":"'NY-Mérl-Er (É)'!F131","v":0}]
[null,null,"5. Effets á payer                       ",{"$f":"'NY-Mérl-Er (É)'!D132","v":0},{"$f":"'NY-Mérl-Er (É)'!E132","v":0},{"$f":"'NY-Mérl-Er (É)'!F132","v":0}]
[null,null,"6. Dettes á C.T.vis á vis d'entreprise l",{"$f":"'NY-Mérl-Er (É)'!D133","v":0},{"$f":"'NY-Mérl-Er (É)'!E133","v":0},{"$f":"'NY-Mérl-Er (É)'!F133","v":0}]
[null,null,"7. Dettes á C.T. vis á vis d'autre actio",{"$f":"'NY-Mérl-Er (É)'!D134","v":0},{"$f":"'NY-Mérl-Er (É)'!E134","v":0},{"$f":"'NY-Mérl-Er (É)'!F134","v":0}]
[null,null,"8. Autres dettes á C.T                  ",{"$f":"'NY-Mérl-Er (É)'!D135","v":0},{"$f":"'NY-Mérl-Er (É)'!E135","v":0},{"$f":"'NY-Mérl-Er (É)'!F135","v":0}]
["G","COMPTES DE RÉGULARISATION PASSIF",null,{"$f":"'NY-Mérl-Er (É)'!D136","v":0},{"$f":"'NY-Mérl-Er (É)'!E136","v":0},{"$f":"'NY-Mérl-Er (É)'!F136","v":0}]
[null,null,"1. Produits constatés d'avance          ",{"$f":"'NY-Mérl-Er (É)'!D137","v":0},{"$f":"'NY-Mérl-Er (É)'!E137","v":0},{"$f":"'NY-Mérl-Er (É)'!F137","v":0}]
[null,null,"2. Factures non parvenues               ",{"$f":"'NY-Mérl-Er (É)'!D138","v":0},{"$f":"'NY-Mérl-Er (É)'!E138","v":0},{"$f":"'NY-Mérl-Er (É)'!F138","v":0}]
[null,null,"3. Produits différés sur plusieurs exerc",{"$f":"'NY-Mérl-Er (É)'!D139","v":0},{"$f":"'NY-Mérl-Er (É)'!E139","v":0},{"$f":"'NY-Mérl-Er (É)'!F139","v":0}]
[]
[null,null,"PASSIF",{"$f":"'NY-Mérl-Er (É)'!D141","v":0},{"$f":"'NY-Mérl-Er (É)'!E141","v":0},{"$f":"'NY-Mérl-Er (É)'!F141","v":0}]
[]
[]
[null,null,"COMPTE DE RÉSULTAT 'A' Charges et",{"$f":"D67","v":"en kHUF"}]
[null,null,{"$f":"C11","v":"Macskafarka Kft"},{"$f":"'Bilanz-német (É)'!D12","v":"2011-12-31"},{"$f":"+E68","v":"Correstions des années passées"},{"$f":"'Bilanz-német (É)'!F12","v":"2012-12-31"}]
[null,null,null,{"$f":"+D69","v":"année de base"},null,{"$f":"+F69","v":"année de base"}]
[]
[null,null,"01. Chiffre d'affaire net - Hongrie     ",{"$f":"'NY-Mérl-Er (É)'!D154","v":0},{"$f":"'NY-Mérl-Er (É)'!E154","v":0},{"$f":"'NY-Mérl-Er (É)'!F154","v":0},null,null,null,null,"01. Chiffre d'affaire net - Hongrie     "]
[null,null,"02. Chiffre d'affaire net - Export      ",{"$f":"'NY-Mérl-Er (É)'!D155","v":0},{"$f":"'NY-Mérl-Er (É)'!E155","v":0},{"$f":"'NY-Mérl-Er (É)'!F155","v":0},null,null,null,null,"02. Chiffre d'affaire net - Export      "]
[null,"I. Chiffre d'affaire net(01+02)         ",null,{"$f":"'NY-Mérl-Er (É)'!D156","v":0},{"$f":"'NY-Mérl-Er (É)'!E156","v":0},{"$f":"'NY-Mérl-Er (É)'!F156","v":0},null,null,null,null,"I. Chiffre d'affaire net(01+02)         "]
[null,null,"03. Production immobilisée              ",{"$f":"'NY-Mérl-Er (É)'!D157","v":0},{"$f":"'NY-Mérl-Er (É)'!E157","v":0},{"$f":"'NY-Mérl-Er (É)'!F157","v":0},null,null,null,null,"05. Production immobilisée              "]
[null,null,"04. Variation des stocks sur production ",{"$f":"'NY-Mérl-Er (É)'!D158","v":0},{"$f":"'NY-Mérl-Er (É)'!E158","v":0},{"$f":"'NY-Mérl-Er (É)'!F158","v":0},null,null,null,null,"04. Variation des stocks sur production "]
[null,"II. Production immobilisée(03+04)       ",null,{"$f":"'NY-Mérl-Er (É)'!D159","v":0},{"$f":"'NY-Mérl-Er (É)'!E159","v":0},{"$f":"'NY-Mérl-Er (É)'!F159","v":0},null,null,null,null,"II. Production immobilisée(03+04)       "]
[null,"III. Autres produits                    ",null,{"$f":"'NY-Mérl-Er (É)'!D160","v":0},{"$f":"'NY-Mérl-Er (É)'!E160","v":0},{"$f":"'NY-Mérl-Er (É)'!F160","v":0}]
[null,null,"Davon: zurückgeschriebene Wertverluste",{"$f":"'NY-Mérl-Er (É)'!D161","v":0},{"$f":"'NY-Mérl-Er (É)'!E161","v":0},{"$f":"'NY-Mérl-Er (É)'!F161","v":0},null,null,null,null,"III. Autres produits                    "]
[null,null,"05. Achats de matiéres premiéres        ",{"$f":"'NY-Mérl-Er (É)'!D162","v":0},{"$f":"'NY-Mérl-Er (É)'!E162","v":0},{"$f":"'NY-Mérl-Er (É)'!F162","v":0}]
[null,null,"06. Prestations                         ",{"$f":"'NY-Mérl-Er (É)'!D163","v":0},{"$f":"'NY-Mérl-Er (É)'!E163","v":0},{"$f":"'NY-Mérl-Er (É)'!F163","v":0},null,null,null,null,"05. Achats de matiéres premiéres        "]
[null,null,"07. Autres services                     ",{"$f":"'NY-Mérl-Er (É)'!D164","v":0},{"$f":"'NY-Mérl-Er (É)'!E164","v":0},{"$f":"'NY-Mérl-Er (É)'!F164","v":0},null,null,null,null,"06. Prestations                         "]
[null,null,"08. Couts d'achat des marchandises vend ",{"$f":"'NY-Mérl-Er (É)'!D165","v":0},{"$f":"'NY-Mérl-Er (É)'!E165","v":0},{"$f":"'NY-Mérl-Er (É)'!F165","v":0},null,null,null,null,"07. Autres services                     "]
[null,null,"09. Sous-traitance                      ",{"$f":"'NY-Mérl-Er (É)'!D166","v":0},{"$f":"'NY-Mérl-Er (É)'!E166","v":0},{"$f":"'NY-Mérl-Er (É)'!F166","v":0},null,null,null,null,"08. Couts d'achat des marchandises vend "]
[null,"IV. Charges á caracture matériel        ",null,{"$f":"'NY-Mérl-Er (É)'!D167","v":0},{"$f":"'NY-Mérl-Er (É)'!E167","v":0},{"$f":"'NY-Mérl-Er (É)'!F167","v":0},null,null,null,null,"09. Sous-traitance                      "]
[null,null,"10. Salaires                            ",{"$f":"'NY-Mérl-Er (É)'!D168","v":0},{"$f":"'NY-Mérl-Er (É)'!E168","v":0},{"$f":"'NY-Mérl-Er (É)'!F168","v":0},null,null,null,null,"IV. Charges á caract?re matériel        "]
[null,null,"11. Autres charges á caractére personnel",{"$f":"'NY-Mérl-Er (É)'!D169","v":0},{"$f":"'NY-Mérl-Er (É)'!E169","v":0},{"$f":"'NY-Mérl-Er (É)'!F169","v":0},null,null,null,null,"10. Salaires                            "]
[null,null,"12. Charges sociales                    ",{"$f":"'NY-Mérl-Er (É)'!D170","v":0},{"$f":"'NY-Mérl-Er (É)'!E170","v":0},{"$f":"'NY-Mérl-Er (É)'!F170","v":0},null,null,null,null,"11. Autres charges á caractére personnel"]
[null,"V. Charges á caracture personnel        ",null,{"$f":"'NY-Mérl-Er (É)'!D171","v":0},{"$f":"'NY-Mérl-Er (É)'!E171","v":0},{"$f":"'NY-Mérl-Er (É)'!F171","v":0},null,null,null,null,"12. Charges sociales                    "]
[null,"VI. Dotations aux amortissements        ",null,{"$f":"'NY-Mérl-Er (É)'!D172","v":0},{"$f":"'NY-Mérl-Er (É)'!E172","v":0},{"$f":"'NY-Mérl-Er (É)'!F172","v":0},null,null,null,null,"V. Charges á caract?re personnel        "]
[null,"VII. Autres frais                       ",null,{"$f":"'NY-Mérl-Er (É)'!D173","v":0},{"$f":"'NY-Mérl-Er (É)'!E173","v":0},{"$f":"'NY-Mérl-Er (É)'!F173","v":0},null,null,null,null,"VI. Dotations aux amortissements        "]
[null,null,null,{"$f":"'NY-Mérl-Er (É)'!D174","v":0},{"$f":"'NY-Mérl-Er (É)'!E174","v":0},{"$f":"'NY-Mérl-Er (É)'!F174","v":0},null,null,null,null,"VII. Autres frais                       "]
["A","FÉSULTAT D'EXPOITATION (I+II+III-IV-V-VI-VII)",null,{"$f":"'NY-Mérl-Er (É)'!D175","v":0},{"$f":"'NY-Mérl-Er (É)'!E175","v":0},{"$f":"'NY-Mérl-Er (É)'!F175","v":0},null,null,null,null,"A. RÉSULTAT D'EXPLOITATION              "]
[null,null,"13. Dividendes et participations        ",{"$f":"'NY-Mérl-Er (É)'!D188","v":0},{"$f":"'NY-Mérl-Er (É)'!E188","v":0},{"$f":"'NY-Mérl-Er (É)'!F188","v":0},null,null,null,null,"13. Dividendes et participations        "]
[null,null,"                                        ",{"$f":"'NY-Mérl-Er (É)'!D189","v":0},{"$f":"'NY-Mérl-Er (É)'!E189","v":0},{"$f":"'NY-Mérl-Er (É)'!F189","v":0},null,null,null,null,"                                        "]
[null,null,"14. Gain de change sur cession de partic",{"$f":"'NY-Mérl-Er (É)'!D190","v":0},{"$f":"'NY-Mérl-Er (É)'!E190","v":0},{"$f":"'NY-Mérl-Er (É)'!F190","v":0},null,null,null,null,"14. Gain de change sur cession de partic"]
[null,null,"                                        ",{"$f":"'NY-Mérl-Er (É)'!D191","v":0},{"$f":"'NY-Mérl-Er (É)'!E191","v":0},{"$f":"'NY-Mérl-Er (É)'!F191","v":0},null,null,null,null,"                                        "]
[null,null,"15. Intéréts et gain de change sur immob",{"$f":"'NY-Mérl-Er (É)'!D192","v":0},{"$f":"'NY-Mérl-Er (É)'!E192","v":0},{"$f":"'NY-Mérl-Er (É)'!F192","v":0},null,null,null,null,"15. Intéréts et gain de change sur immob"]
[null,null,"                                        ",{"$f":"'NY-Mérl-Er (É)'!D193","v":0},{"$f":"'NY-Mérl-Er (É)'!E193","v":0},{"$f":"'NY-Mérl-Er (É)'!F193","v":0},null,null,null,null,"                                        "]
[null,null,"16. Autres intéréts reçus               ",{"$f":"'NY-Mérl-Er (É)'!D194","v":0},{"$f":"'NY-Mérl-Er (É)'!E194","v":0},{"$f":"'NY-Mérl-Er (É)'!F194","v":0},null,null,null,null,"16. Autres intéréts reçus               "]
[null,null,"                                        ",{"$f":"'NY-Mérl-Er (É)'!D195","v":0},{"$f":"'NY-Mérl-Er (É)'!E195","v":0},{"$f":"'NY-Mérl-Er (É)'!F195","v":0},null,null,null,null,"                                        "]
[null,null,"17. Autres produits financiers          ",{"$f":"'NY-Mérl-Er (É)'!D196","v":0},{"$f":"'NY-Mérl-Er (É)'!E196","v":0},{"$f":"'NY-Mérl-Er (É)'!F196","v":0},null,null,null,null,"17. Autres produits financiers          "]
[null,"VIII. Produits financiers               ",null,{"$f":"'NY-Mérl-Er (É)'!D197","v":0},{"$f":"'NY-Mérl-Er (É)'!E197","v":0},{"$f":"'NY-Mérl-Er (É)'!F197","v":0},null,null,null,null,"VIII. Produits financiers               "]
[null,null,"18. Perte de change sur immobilisations ",{"$f":"'NY-Mérl-Er (É)'!D198","v":0},{"$f":"'NY-Mérl-Er (É)'!E198","v":0},{"$f":"'NY-Mérl-Er (É)'!F198","v":0}]
[null,null,"                                        ",{"$f":"'NY-Mérl-Er (É)'!D199","v":0},{"$f":"'NY-Mérl-Er (É)'!E199","v":0},{"$f":"'NY-Mérl-Er (É)'!F199","v":0},null,null,null,null,"18. Perte de change sur immobilisations "]
[null,null,"19. Intéréts á payer                    ",{"$f":"'NY-Mérl-Er (É)'!D200","v":0},{"$f":"'NY-Mérl-Er (É)'!E200","v":0},{"$f":"'NY-Mérl-Er (É)'!F200","v":0},null,null,null,null,"                                        "]
[null,null,"                                        ",{"$f":"'NY-Mérl-Er (É)'!D201","v":0},{"$f":"'NY-Mérl-Er (É)'!E201","v":0},{"$f":"'NY-Mérl-Er (É)'!F201","v":0},null,null,null,null,"19. Intéréts á payer                    "]
[null,null,"20. Dépréciation des participations, des",{"$f":"'NY-Mérl-Er (É)'!D202","v":0},{"$f":"'NY-Mérl-Er (É)'!E202","v":0},{"$f":"'NY-Mérl-Er (É)'!F202","v":0},null,null,null,null,"20. Dépréciation des participations, des"]
[null,null,"21. Autres charges financiéres          ",{"$f":"'NY-Mérl-Er (É)'!D203","v":0},{"$f":"'NY-Mérl-Er (É)'!E203","v":0},{"$f":"'NY-Mérl-Er (É)'!F203","v":0},null,null,null,null,"21. Autres charges financiéres          "]
[null,"IX. Charges financiéres                 ",null,{"$f":"'NY-Mérl-Er (É)'!D204","v":0},{"$f":"'NY-Mérl-Er (É)'!E204","v":0},{"$f":"'NY-Mérl-Er (É)'!F204","v":0},null,null,null,null,"IX. Charges financiéres                 "]
["B","RÉSULTAT FINANCIER",null,{"$f":"'NY-Mérl-Er (É)'!D205","v":0},{"$f":"'NY-Mérl-Er (É)'!E205","v":0},{"$f":"'NY-Mérl-Er (É)'!F205","v":0},null,null,null,null,"B. RÉSULTAT FINANCIER                   "]
["C","RÉSULTAT COURANT (+A+B)",null,{"$f":"'NY-Mérl-Er (É)'!D206","v":0},{"$f":"'NY-Mérl-Er (É)'!E206","v":0},{"$f":"'NY-Mérl-Er (É)'!F206","v":0},null,null,null,null,"C. RÉSULTAT COURANT(+-A+-B)             "]
[null,"X. Produits exceptionnels               ",null,{"$f":"'NY-Mérl-Er (É)'!D207","v":0},{"$f":"'NY-Mérl-Er (É)'!E207","v":0},{"$f":"'NY-Mérl-Er (É)'!F207","v":0},null,null,null,null,"X. Produits exceptionnels               "]
[null,"XI. Charges exceptionnelles             ",null,{"$f":"'NY-Mérl-Er (É)'!D208","v":0},{"$f":"'NY-Mérl-Er (É)'!E208","v":0},{"$f":"'NY-Mérl-Er (É)'!F208","v":0},null,null,null,null,"XI. Charges exceptionnelles             "]
["D","RÉSULTAT EXCEPTIONNEL (X-XI)",null,{"$f":"'NY-Mérl-Er (É)'!D209","v":0},{"$f":"'NY-Mérl-Er (É)'!E209","v":0},{"$f":"'NY-Mérl-Er (É)'!F209","v":0},null,null,null,null,"D. RÉSULTAT EXCEPTIONNEL(X-XI)          "]
["E","RÉSULTAT AVANT IS  (+C+D)",null,{"$f":"'NY-Mérl-Er (É)'!D210","v":0},{"$f":"'NY-Mérl-Er (É)'!E210","v":0},{"$f":"'NY-Mérl-Er (É)'!F210","v":0},null,null,null,null,"E. RÉSULTAT AVANT IS(+-C+-D)            "]
[null,"XII. Impôts sur les sociétés            ",null,{"$f":"'NY-Mérl-Er (É)'!D211","v":0},{"$f":"'NY-Mérl-Er (É)'!E211","v":0},{"$f":"'NY-Mérl-Er (É)'!F211","v":0},null,null,null,null,"XII. Impôts sur les sociétés            "]
["F","RÉSULTAT APRES IS  (+E-XII)",null,{"$f":"'NY-Mérl-Er (É)'!D212","v":0},{"$f":"'NY-Mérl-Er (É)'!E212","v":0},{"$f":"'NY-Mérl-Er (É)'!F212","v":0},null,null,null,null,"F. RÉSULTAT APRES IS(+-E-XII)           "]
[null,null,"22. Réserves utilisées pour dividendes e",{"$f":"'NY-Mérl-Er (É)'!D213","v":0},{"$f":"'NY-Mérl-Er (É)'!E213","v":0},{"$f":"'NY-Mérl-Er (É)'!F213","v":0},null,null,null,null,"22. Réserves utilisées pour dividendes e"]
[null,null,"23. Dividendes, participations distribué",{"$f":"'NY-Mérl-Er (É)'!D214","v":0},{"$f":"'NY-Mérl-Er (É)'!E214","v":0},{"$f":"'NY-Mérl-Er (É)'!F214","v":0},null,null,null,null,"23. Dividendes, participations distribué"]
["G","RÉSULTAT BILANTIEL (+F+22-23)",null,{"$f":"'NY-Mérl-Er (É)'!D215","v":0},{"$f":"'NY-Mérl-Er (É)'!E215","v":0},{"$f":"'NY-Mérl-Er (É)'!F215","v":0},null,null,null,null,"G.RÉSULTAT BILANTIEL(+-F+22-23)         "]